Workbook

Sheet Admin (hidden)
A1: Plassering | B1: Tekst
A2: Versjon | B2: Versjon 23.04.2018
A3: Overskrift | B3: Meny for tabeller - resultatkontroll 2018
A4: År fra til tabell 43 | B4: Skattestatistikk 1992, 1995, 1999, 2005-2016. Alminnelig inntekt og personinntekt fordelt på bruker og ektefelle, og bruker
A5: Overskrift tabell 44 | B5: Skattestatistikk 2006-2016. Jordbruksbedrifter etter hvor stor del av bruttoinntekta som kommer fra næringsinntekt i jordbruket. Tall for bruker og ektefelle/samboer

Sheet MENY
K1: Antall tabeller | L1: =COUNT(A4:A49) -> 44
H2: 33
C3: =Admin!B3 -> Meny for tabeller - resultatkontroll 2018 | H3: Arknavn : | I3: =VLOOKUP(H2,A5:K48,11,FALSE) -> Handel RÅK-varer | K3: Område | L3: ="A"&VLOOKUP(H2,A5:L48,12,FALSE) -> A1
A4: Nr | C4: Tabeller tekst | I4: Hjelp | K4: Arknavn | L4: Første linje
A5: 1 | C5: =A5&" "&Jordbr.areal!A1 -> 1 Jordbruksarealet fordelt på fylker. 1 000 dekar | K5: Jordbr.areal | L5: 1
A6: =A5+1 -> 2 | C6: =A6&" "&'J.areal, leid'!A1 -> 2 Leid jordbruksareal etter størrelsen på jordbruksbedriften. Fylkestall, 1000 dekar | K6: J.areal, leid | L6: 1
A7: =A6+1 -> 3 | C7: =A7&" "&'Ant. jordbr.bedr.'!A1 -> 3 Antall jordbruksbedrifter i drift etter størrelse. Fylkestall, 1000 dekar | K7: Ant. jordbr.bedr. | L7: 1
A8: 4 | C8: =A8&" "&'J.bedr. korn'!A1 -> 4 Antall jordbruksbedrifter med korn etter størrelsen på kornarealet. Fylkestall, 1000 dekar | K8: J.bedr. korn | L8: 1
A9: 5 | C9: =A9&" "&'J.bedr. potet'!A1 -> 5 Antall jordbruksbedrifter med poteter etter størrelsen på potetarealet. Fylkestall, 1000 dekar | K9: J.bedr. potet | L9: 1
A10: 6 | C10: =A10&" "&'J.bedr. grønnsak'!A1 -> 6 Antall jordbruksbedrifter med grønnsaker på friland etter størrelsen på grønnsakarealet. Fylkestall, 1000 dekar | K10: J.bedr. grønnsak | L10: 1
A11: 7 | C11: =A11&" "&'J.bedr. eng'!A1 -> 7 Antall jordbruksbedrifter med engareal etter størrelsen på engarealet. Fylkestall, 1000 dekar | K11: J.bedr. eng | L11: 1
A12: 8 | C12: =A12&" "&'J.bedr. melkekyr'!A1 -> 8 Antall jordbruksbedrifter med melkekyr etter antall melkekyr. Fylkestall | K12: J.bedr. melkekyr | L12: 1
A13: 9 | C13: =A13&" "&'J.bedr. ammekyr'!A1 -> 9 Antall jordbruksbedrifter med ammekyr etter antall ammekyr. Fylkestall | K13: J.bedr. ammekyr | L13: 1
A14: 10 | C14: =A14&" "&'J.bedr. sau'!A1 -> 10 Antall jordbruksbedrifter med sau etter antall vinterfôra sau. Fylkestall | K14: J.bedr. sau | L14: 1
A15: 11 | C15: =A15&" "&'J.bedr. purker'!A1 -> 11 Antall jordbruksbedrifter med purker etter antall purker. Fylkestall | K15: J.bedr. purker | L15: 1
A16: 12 | C16: =A16&" "&'J.bedr. høner'!A1 -> 12 Antall jordbruksbedrifter med verpehøner etter antall verpehøner. Fylkestall | K16: J.bedr. høner | L16: 1
A17: 13 | C17: =A17&" "&'J.bedr. sl.kylling'!A1 -> 13 Antall jordbruksbedrifter med slaktekyllinger etter antall slakta kyllinger. Fylkestall | K17: J.bedr. sl.kylling | L17: 1
A18: 14 | C18: =A18&" "&'Økologisk jordbruk'!A1 -> 14 Økologiske driftsenheter og økologisk jordbruksareal | K18: Økologisk jordbruk | L18: =ROW('Økologisk jordbruk'!A1) -> 1
A19: 15 | C19: =A19&" "&'Økologisk jordbruk'!A15 -> 15 Husdyrhold på økologisk godkjente driftsenheter. Antall dyr | K19: Økologisk jordbruk | L19: =ROW('Økologisk jordbruk'!A15) -> 15
A20: 16 | C20: =A20&" "&'Prod. korn'!A1 -> 16 Produksjon av korn, fylkestall. 1000 tonn | K20: Prod. korn | L20: 1
A21: 17 | C21: =A21&" "&'Prod. poteter'!A1 -> 17 Produksjon av poteter, fylkestall. 1000 tonn | K21: Prod. poteter | L21: 1
A22: 18 | C22: =A22&" "&'Prod. kumelk'!A1 -> 18 Produksjon av kumelk. Meierileveranse inkl. inkl. gårdssmør beregnet som melk, fylkestall. Mill. liter | K22: Prod. kumelk | L22: 1
A23: 19 | C23: =A23&" "&'Prod. storfe og kalv'!A1 -> 19 Produksjon av storfe- og kalvekjøtt, fylkestall. Tonn | K23: Prod. storfe og kalv | L23: 1
A24: 20 | C24: =A24&" "&'Prod. svinekj.'!A1 -> 20 Produksjon av svinekjøtt, fylkestall. Tonn | K24: Prod. svinekj. | L24: 1
A25: 21 | C25: =A25&" "&'Prod. sau og lam'!A1 -> 21 Produksjon av sau- og lammekjøtt, fylkestall. Tonn | K25: Prod. sau og lam | L25: 1
A26: 22 | C26: =A26&" "&'Prod. fjørfekj.'!A1 -> 22 Produksjon av fjørfekjøtt, fylkestall. Tonn | K26: Prod. fjørfekj. | L26: 1
A27: 23 | C27: =A27&" "&'Prod. egg'!A1 -> 23 Produksjon av egg, fylkestall. Tonn | K27: Prod. egg | L27: 1
A28: 24 | C28: =A28&" "&'Handel kjøtt'!A1 -> 24 Handel med kjøtt. Mill. kg | K28: Handel kjøtt | L28: =ROW('Handel kjøtt'!A1) -> 1
A29: 25 | C29: =A29&" "&'Handel kjøtt'!A25 -> 25 Handel med storfekjøtt fordelt på land. Mill. kg | K29: Handel kjøtt | L29: =ROW('Handel kjøtt'!A25) -> 25
A30: 26 | C30: =A30&" "&'Handel kjøtt'!A42 -> 26 Handel med svin fordelt på land. Mill. kg | K30: Handel kjøtt | L30: =ROW('Handel kjøtt'!A42) -> 42
A31: 27 | C31: =A31&" "&'Handel egg'!A1 -> 27 Handel med egg og eggprodukter: Mill. kg | K31: Handel egg | L31: =ROW('Handel egg'!A1) -> 1
A32: 28 | C32: =A32&" "&'Handel egg'!A17 -> 28 Handel med egg fordelt på land. Mill. kg | K32: Handel egg | L32: =ROW('Handel egg'!A17) -> 17
A33: 29 | C33: =A33&" "&'Handel meiereiprodukter'!A1 -> 29 Handel med meieriprodukter. Mill. kg | K33: Handel meiereiprodukter | L33: =ROW('Handel meiereiprodukter'!A1) -> 1
A34: 30 | C34: =A34&" "&'Handel meiereiprodukter'!A22 -> 30 Handel med meieriprodukter fordelt på land. Mill. kg | K34: Handel meiereiprodukter | L34: =ROW('Handel meiereiprodukter'!A22) -> 22
A35: 31 | C35: =A35&" "&'Handel grønns, frukt og bær'!A1 -> 31 Handel med grønnsaker av grønnsaker etter sort. Mill. kg | K35: Handel grønns, frukt og bær | L35: =ROW('Handel grønns, frukt og bær'!A1) -> 1
A36: 32 | C36: =A36&" "&'Handel grønns, frukt og bær'!A22 -> 32 Handel med frukt og bær. Mill. kg | K36: Handel grønns, frukt og bær | L36: =ROW('Handel grønns, frukt og bær'!A22) -> 22
A37: 33 | C37: =A37&" "&'Handel RÅK-varer'!A1 -> 33 Handel med RÅK-varer. Mill. kg | K37: Handel RÅK-varer | L37: 1
A38: 34 | C38: =A38&" "&'J.bedr. e. kommunekl. gml'!A1 -> 34 Antall jordbruksbedrifter fordelt på kommuneklasser, med inndelinger t.o.m. 2013 | K38: J.bedr. e. kommunekl. gml | L38: 1
A39: 35 | C39: =A39&" "&'J.bedr. e. kommunekl. ny'!A1 -> 35 Antall jordbruksbedrifter fordelt på kommuneklasser, med ny inndeling f.o.m. 2014 | K39: J.bedr. e. kommunekl. ny | L39: 1
A40: 36 | C40: =A40&" "&'J.bedr. e. soner - gml'!A1 -> 36 Antall jordbruksbedrifter fordelt etter virkeområdene for distriktspolitiske virkemidler, med soneinndeling t.o.m. 2013 | K40: J.bedr. e. soner - gml | L40: 1
A41: 37 | C41: =A41&" "&'J.bedr. e. soner - ny'!A1 -> 37 Antall jordbruksbedrifter fordelt etter virkeområdene for distriktspolitiske virkemidler, med soneinndeling f.o.m 2014 | K41: J.bedr. e. soner - ny | L41: 1
A42: 38 | C42: =A42&" "&'Brukere etter alder'!A1 -> 38 Antall personlige brukere etter alder, fylkestall | K42: Brukere etter alder | L42: 1
A43: 39 | C43: =A43&" "&'Gj. sn. alder bruker'!A1 -> 39 Gjennomsnittlig alder på bruker etter arealgruppe, fylkestall | K43: Gj. sn. alder bruker | L43: 1
A44: 40 | C44: =A44&" "&'Brukere etter kjønn'!A1 -> 40 Personlige brukere fordelt på kjønn, fylkestall | K44: Brukere etter kjønn | L44: 1
A45: 41 | C45: =A45&" "&'Andel kvinner'!A1 -> 41 Andelen kvinner av personlige brukere etter fylke og areal. Prosent | K45: Andel kvinner | L45: 1
A46: 42 | C46: =A46&" "&'Arbeidsforbr. menn og kvinner'!A1 -> 42 Arbeidsforbruket fordelt på menn og kvinner. 1000 årsverk. | K46: Arbeidsforbr. menn og kvinner | L46: 1
A47: 43 | C47: =A47&" "&Admin!B4 -> 43 Skattestatistikk 1992, 1995, 1999, 2005-2016. Alminnelig inntekt og personinntekt fordelt på bruker og ektefelle, og bruker | K47: Alm. innt. og personinnt. | L47: 1
A48: 44 | C48: =A48&" "&Admin!B5 -> 44 Skattestatistikk 2006-2016. Jordbruksbedrifter etter hvor stor del av bruttoinntekta som kommer fra næringsinntekt i jordbruket. Tall for bruker og ektefelle/samboer | K48: Næringsinnt. jordbr. | L48: 1

Sheet Jordbr.areal (hidden)
A1: Jordbruksarealet fordelt på fylker. 1 000 dekar
C3: 1979 | D3: 1989 | E3: 1995 | F3: 1999 | G3: 2000 | H3: 2001 | I3: 2002 | J3: 2003 | K3: 2004 | L3: 2005 | M3: 2006 | N3: 2007 | O3: 2008 | P3: 2009 | Q3: 2010 | R3: 2011 | S3: 2012 | T3: 2013 | U3: 2014 | V3: 2015 | W3: 2016 | X3: 2017*
A4: Østfold | B4: Åker og hage | C4: 641 | D4: 696 | E4: 703.1 | F4: 670.793 | G4: 672.057 | H4: 680.904 | I4: 675.421 | J4: 664.412 | K4: 666.888 | L4: 664.73 | M4: 655.295 | N4: 653.38 | O4: 639.498 | P4: 631.151 | Q4: 623.487 | R4: 617.15 | S4: 612.208 | T4: 600.431 | U4: 597.212 | V4: 596.748 | W4: 606.709 | X4: 607.559
B5: Fulldyrka eng og beite | C5: 88 | D5: 59 | E5: 69.8 | F5: 79.161 | G5: 77.961 | H5: 77.253 | I5: 79.184 | J5: 81.046 | K5: 78.988 | L5: 78.518 | M5: 84.138 | N5: 87.686 | O5: 88.553 | P5: 89.759 | Q5: 94.866 | R5: 97.044 | S5: 100.879 | T5: 108.536 | U5: 111.773 | V5: 113.097 | W5: 107.288 | X5: 105.22
B6: Fulldyrka i alt | C6: 729 | D6: 755 | E6: 772.9 | F6: 749.954 | G6: 750.018 | H6: 758.157 | I6: 754.605 | J6: 745.458 | K6: 745.868 | L6: 743.248 | M6: 739.433 | N6: 741.066 | O6: 728.051 | P6: 720.91 | Q6: 718.353 | R6: 714.194 | S6: 713.087 | T6: 708.967 | U6: 708.985 | V6: 709.845 | W6: =W4+W5 -> 713.997 | X6: 712.779
B7: Annen eng og beite | C7: 26 | D7: 12 | E7: 20.5 | F7: 21.386 | G7: 21.563 | H7: 20.99 | I7: 21.965 | J7: 21.737 | K7: 21.186 | L7: 22.309 | M7: 22.928 | N7: 23.04 | O7: 21.766 | P7: 21.9 | Q7: 22.376 | R7: 22.16 | S7: 21.618 | T7: 21.502 | U7: 20.929 | V7: 20.988 | W7: 20.654 | X7: 18.73
B8: Jordbruksareal i drift i alt | C8: 755 | D8: 767 | E8: 793.4 | F8: 771.34 | G8: 771.581 | H8: 779.147 | I8: 776.57 | J8: 767.195 | K8: 767.054 | L8: 765.557 | M8: 762.361 | N8: 764.106 | O8: 749.817 | P8: 742.81 | Q8: 740.729 | R8: 736.354 | S8: 734.705 | T8: 730.469 | U8: 729.914 | V8: 730.833 | W8: =SUM(W6:W7) -> 734.651 | X8: 731.509
B9: Jordbruksareal ute av drift | C9: 5 | D9: 6 | E9: 6.7 | F9: 3.554 | G9: 3.719 | H9: 4.137 | I9: 3.649 | J9: 3.68 | K9: 3.634 | L9: 4.136 | M9: 3.971 | N9: 0.155 | O9: 0.097 | P9: 0.102 | Q9: 3.15 | R9: 3.458 | S9: 3.272 | T9: 4.444 | U9: 4.367 | V9: 4.403 | W9: 4.029
A10: Akershus/Oslo | B10: Åker og hage | C10: 651 | D10: 717 | E10: 726.9 | F10: 680.628 | G10: 681.677 | H10: 685.376 | I10: 682.937 | J10: 674.927 | K10: 677.658 | L10: 676.223 | M10: 667.667 | N10: 661.278 | O10: 654.23 | P10: 644.102 | Q10: 638.137 | R10: 632.607 | S10: 629.295 | T10: 618.16 | U10: 615.152 | V10: 611.065 | W10: 608.686 | X10: 600.988
B11: Fulldyrka eng og beite | C11: 113 | D11: 78 | E11: 93.9 | F11: 102.685 | G11: 100.296 | H11: 98.402 | I11: 96.335 | J11: 97.572 | K11: 94.86 | L11: 93.954 | M11: 97.483 | N11: 101.549 | O11: 104.948 | P11: 105.309 | Q11: 109.718 | R11: 109.977 | S11: 112.899 | T11: 120.086 | U11: 123.77 | V11: 125.161 | W11: 118.813 | X11: 118.428
B12: Fulldyrka i alt | C12: 764 | D12: 795 | E12: 820.8 | F12: 783.313 | G12: 781.973 | H12: 783.778 | I12: 779.272 | J12: 772.499 | K12: 772.518 | L12: 770.177 | M12: 765.15 | N12: 762.827 | O12: 759.178 | P12: 749.411 | Q12: 747.855 | R12: 742.584 | S12: 742.194 | T12: 738.246 | U12: 738.922 | V12: 736.226 | W12: =W10+W11 -> 727.499 | X12: =X10+X11 -> 719.416
B13: Annen eng og beite | C13: 37 | D13: 21 | E13: 27.3 | F13: 30.768 | G13: 31.302 | H13: 30.587 | I13: 31.384 | J13: 31.087 | K13: 31.112 | L13: 32.122 | M13: 32.655 | N13: 33.386 | O13: 34.655 | P13: 35.028 | Q13: 34.257 | R13: 34.563 | S13: 35.423 | T13: 34.975 | U13: 34.806 | V13: 34.617 | W13: 35.022 | X13: 33.604
B14: Jordbruksareal i drift i alt | C14: 801 | D14: 816 | E14: 848.1 | F14: 814.081 | G14: 813.275 | H14: 814.365 | I14: 810.656 | J14: 803.586 | K14: 803.63 | L14: 802.299 | M14: 797.805 | N14: 796.213 | O14: 793.833 | P14: 784.439 | Q14: 782.112 | R14: 777.147 | S14: 777.617 | T14: 773.221 | U14: 773.728 | V14: 770.843 | W14: =SUM(W12:W13) -> 762.521 | X14: 753.02
B15: Jordbruksareal ute av drift | C15: 8 | D15: 10 | E15: 9.5 | F15: 6.233 | G15: 6.4 | H15: 6.005 | I15: 5.141 | J15: 5.298 | K15: 4.904 | L15: 5.192 | M15: 6.158 | N15: 5.274 | O15: 4.936 | P15: 5.095 | Q15: 6.033 | R15: 5.747 | S15: 6.339 | T15: 6.216 | U15: 5.487 | V15: 5.974 | W15: 5.963
A16: Hedmark | B16: Åker og hage | C16: 700 | D16: 739 | E16: 732.9 | F16: 699.38 | G16: 697.354 | H16: 698.498 | I16: 687.976 | J16: 677.789 | K16: 677.843 | L16: 667.655 | M16: 654.808 | N16: 647.649 | O16: 645.02 | P16: 641.3 | Q16: 637.145 | R16: 625.068 | S16: 618.39 | T16: 605.251 | U16: 604.035 | V16: 601.724 | W16: 603.553 | X16: 599.726
B17: Fulldyrka eng og beite | C17: 260 | D17: 290 | E17: 318.4 | F17: 335.448 | G17: 336.907 | H17: 336.237 | I17: 342.237 | J17: 343.715 | K17: 344.55 | L17: 344.505 | M17: 349.43 | N17: 355.382 | O17: 356.685 | P17: 355.257 | Q17: 352.345 | R17: 357.808 | S17: 359.418 | T17: 365.959 | U17: 372.606 | V17: 372.144 | W17: 373.779 | X17: 374.246
B18: Fulldyrka i alt | C18: 960 | D18: 1029 | E18: 1051.3 | F18: 1034.828 | G18: 1034.261 | H18: 1034.735 | I18: 1030.213 | J18: 1021.504 | K18: 1022.393 | L18: 1012.16 | M18: 1004.238 | N18: 1003.031 | O18: 1001.705 | P18: 996.557 | Q18: 989.49 | R18: 982.876 | S18: 977.808 | T18: 971.21 | U18: 976.641 | V18: 973.868 | W18: =W16+W17 -> 977.332 | X18: 973.972
B19: Annen eng og beite | C19: 42 | D19: 38 | E19: 44.5 | F19: 51.427 | G19: 53.852 | H19: 53.195 | I19: 55.772 | J19: 55.743 | K19: 56.396 | L19: 59.39 | M19: 61.506 | N19: 63.225 | O19: 64.488 | P19: 67.406 | Q19: 66.961 | R19: 67.714 | S19: 68.411 | T19: 68.942 | U19: 69.8 | V19: 70.689 | W19: 71.698 | X19: 74.567
B20: Jordbruksareal i drift i alt | C20: 1002 | D20: 1067 | E20: 1095.8 | F20: 1086.255 | G20: 1088.113 | H20: 1087.93 | I20: 1085.985 | J20: 1077.247 | K20: 1078.789 | L20: 1071.55 | M20: 1065.744 | N20: 1066.256 | O20: 1066.193 | P20: 1063.963 | Q20: 1056.451 | R20: 1050.59 | S20: 1046.219 | T20: 1040.152 | U20: 1046.441 | V20: 1044.557 | W20: =SUM(W18:W19) -> 1049.03 | X20: 1048.539
B21: Jordbruksareal ute av drift | C21: 8 | D21: 7 | E21: 7.8 | F21: 4.999 | G21: 5.56 | H21: 5.899 | I21: 6.16 | J21: 6.006 | K21: 5.618 | L21: 5.644 | M21: 4.948 | N21: 3.178 | O21: 2.746 | P21: 3.508 | Q21: 6.014 | R21: 6.095 | S21: 7.296 | T21: 8.673 | U21: 6.548 | V21: 7.15 | W21: 6.512
A22: Oppland | B22: Åker og hage | C22: 379 | D22: 379 | E22: 361 | F22: 331.335 | G22: 328.506 | H22: 323.229 | I22: 312.922 | J22: 305.324 | K22: 303.703 | L22: 295.638 | M22: 284.561 | N22: 275.908 | O22: 270.131 | P22: 261.666 | Q22: 257.677 | R22: 250.588 | S22: 247.021 | T22: 236.949 | U22: 228.593 | V22: 226.048 | W22: 228.339 | X22: 226.893
B23: Fulldyrka eng og beite | C23: 425 | D23: 495 | E23: 523.8 | F23: 554.137 | G23: 559.505 | H23: 563.151 | I23: 570.196 | J23: 574.546 | K23: 576.546 | L23: 579.826 | M23: 589.995 | N23: 597.526 | O23: 600.427 | P23: 597.777 | Q23: 587.212 | R23: 583.422 | S23: 584.182 | T23: 590.748 | U23: 600.051 | V23: 602.786 | W23: 597.928 | X23: 595.688
B24: Fulldyrka i alt | C24: 804 | D24: 874 | E24: 884.8 | F24: 885.472 | G24: 888.011 | H24: 886.38 | I24: 883.118 | J24: 879.87 | K24: 880.249 | L24: 875.464 | M24: 874.556 | N24: 873.434 | O24: 870.558 | P24: 859.443 | Q24: 844.889 | R24: 834.01 | S24: 831.203 | T24: 827.697 | U24: 828.644 | V24: 828.834 | W24: =W22+W23 -> 826.267 | X24: 822.581
B25: Annen eng og beite | C25: 108 | D25: 90 | E25: 109.4 | F25: 142.554 | G25: 153.695 | H25: 157.722 | I25: 161.961 | J25: 165.318 | K25: 168.675 | L25: 177.852 | M25: 180.65 | N25: 182.253 | O25: 181.098 | P25: 178.532 | Q25: 179.909 | R25: 177.704 | S25: 175.53 | T25: 172.47 | U25: 170.564 | V25: 168.071 | W25: 168.151 | X25: 172.572
B26: Jordbruksareal i drift i alt | C26: 912 | D26: 964 | E26: 994.2 | F26: 1028.026 | G26: 1041.706 | H26: 1044.102 | I26: 1045.079 | J26: 1045.188 | K26: 1048.924 | L26: 1053.316 | M26: 1055.206 | N26: 1055.687 | O26: 1051.656 | P26: 1037.975 | Q26: 1024.798 | R26: 1011.714 | S26: 1006.733 | T26: 1000.167 | U26: 999.208 | V26: 996.905 | W26: =SUM(W24:W25) -> 994.418 | X26: 995.153
B27: Jordbruksareal ute av drift | C27: 10 | D27: 9 | E27: 7.7 | F27: 7.358 | G27: 7.551 | H27: 7.499 | I27: 6.326 | J27: 6.55 | K27: 5.939 | L27: 6.172 | M27: 6.029 | N27: 6.696 | O27: 7.375 | P27: 8.643 | Q27: 8.089 | R27: 7.849 | S27: 9.852 | T27: 8.775 | U27: 10.466 | V27: 9.98 | W27: 10.521
A28: Buskerud | B28: Åker og hage | C28: 326 | D28: 342.1 | E28: 331 | F28: 304.909 | G28: 302.498 | H28: 300.6 | I28: 298.238 | J28: 290.992 | K28: 292.685 | L28: 286.686 | M28: 279.47 | N28: 270.239 | O28: 266.803 | P28: 262.257 | Q28: 255.578 | R28: 252.792 | S28: 250.184 | T28: 241.947 | U28: 242.014 | V28: 240.936 | W28: 240.731 | X28: 240.777
B29: Fulldyrka eng og beite | C29: 127 | D29: 131 | E29: 150.4 | F29: 166.634 | G29: 168.546 | H29: 170.745 | I29: 173.412 | J29: 175.318 | K29: 176.417 | L29: 178.715 | M29: 183.061 | N29: 189.346 | O29: 190.446 | P29: 189.186 | Q29: 188.309 | R29: 188.941 | S29: 189.502 | T29: 193.174 | U29: 194.13 | V29: 196.541 | W29: 193.39 | X29: 191.642
B30: Fulldyrka i alt | C30: 453 | D30: 473.1 | E30: 481.4 | F30: 471.543 | G30: 471.044 | H30: 471.345 | I30: 471.65 | J30: 466.31 | K30: 469.102 | L30: 465.401 | M30: 462.531 | N30: 459.585 | O30: 457.249 | P30: 451.443 | Q30: 443.887 | R30: 441.733 | S30: 439.686 | T30: 435.121 | U30: 436.144 | V30: 437.477 | W30: =W28+W29 -> 434.121 | X30: 432.419
B31: Annen eng og beite | C31: 47 | D31: 43 | E31: 43.5 | F31: 50.692 | G31: 55.275 | H31: 55.696 | I31: 58.721 | J31: 60.232 | K31: 62.287 | L31: 65.105 | M31: 66.321 | N31: 69.781 | O31: 70.953 | P31: 72.657 | Q31: 72.259 | R31: 72.891 | S31: 71.75 | T31: 72.295 | U31: 71.992 | V31: 71.697 | W31: 71.637 | X31: 73.971
B32: Jordbruksareal i drift i alt | C32: 500 | D32: 516.1 | E32: 524.9 | F32: 522.235 | G32: 526.319 | H32: 527.041 | I32: 530.371 | J32: 526.542 | K32: 531.389 | L32: 530.506 | M32: 528.852 | N32: 529.366 | O32: 528.202 | P32: 524.1 | Q32: 516.146 | R32: 514.624 | S32: 511.436 | T32: 507.416 | U32: 508.136 | V32: 509.174 | W32: =SUM(W30:W31) -> 505.758 | X32: =SUM(X30:X31) -> 506.39
B33: Jordbruksareal ute av drift | C33: 6 | D33: 5 | E33: 7.3 | F33: 3.197 | G33: 3.539 | H33: 3.36 | I33: 2.943 | J33: 3.36 | K33: 2.503 | L33: 2.819 | M33: 2.623 | N33: 1.948 | O33: 2.081 | P33: 2.035 | Q33: 2.639 | R33: 2.904 | S33: 3.34 | T33: 3.464 | U33: 3.3 | V33: 3.518 | W33: 3.375
A34: Vestfold | B34: Åker og hage | C34: 384 | D34: 402 | E34: 396.1 | F34: 372.201 | G34: 372.158 | H34: 371.656 | I34: 368.775 | J34: 363.965 | K34: 360.833 | L34: 354.97 | M34: 350.474 | N34: 345.659 | O34: 339.135 | P34: 337.004 | Q34: 334.335 | R34: 329.944 | S34: 326.933 | T34: 317.77 | U34: 316.645 | V34: 316.073 | W34: 316.108 | X34: 314.405
B35: Fulldyrka eng og beite | C35: 36 | D35: 28 | E35: 41.8 | F35: 53.568 | G35: 52.777 | H35: 53.893 | I35: 56.641 | J35: 58.151 | K35: 57.975 | L35: 59.386 | M35: 62.801 | N35: 64.546 | O35: 67.269 | P35: 68.224 | Q35: 70.606 | R35: 73.415 | S35: 75.392 | T35: 81.682 | U35: 83.312 | V35: 83.795 | W35: 81.264 | X35: 78.559
B36: Fulldyrka i alt | C36: 420 | D36: 430 | E36: 437.9 | F36: 425.769 | G36: 424.935 | H36: 425.549 | I36: 425.416 | J36: 422.116 | K36: 418.808 | L36: 414.356 | M36: 413.275 | N36: 410.205 | O36: 406.404 | P36: 405.228 | Q36: 404.941 | R36: 403.359 | S36: 402.325 | T36: 399.452 | U36: 399.957 | V36: 399.868 | W36: =W34+W35 -> 397.372 | X36: 392.964
B37: Annen eng og beite | C37: 10 | D37: 7.7 | E37: 9.3 | F37: 9.898 | G37: 10.371 | H37: 9.211 | I37: 10.099 | J37: 10.375 | K37: 9.345 | L37: 9.086 | M37: 8.956 | N37: 9.203 | O37: 9.193 | P37: 8.973 | Q37: 9.312 | R37: 9.433 | S37: 9.494 | T37: 9.411 | U37: 9.52 | V37: 9.071 | W37: 9.053 | X37: 9.158
B38: Jordbruksareal i drift i alt | C38: 430 | D38: 437.7 | E38: 447.2 | F38: 435.667 | G38: 435.306 | H38: 434.76 | I38: 435.515 | J38: 432.491 | K38: 428.153 | L38: 423.442 | M38: 422.231 | N38: 419.408 | O38: 415.597 | P38: 414.201 | Q38: 414.253 | R38: 412.792 | S38: 411.819 | T38: 408.863 | U38: 409.477 | V38: 408.939 | W38: =SUM(W36:W37) -> 406.425 | X38: =SUM(X36:X37) -> 402.122
B39: Jordbruksareal ute av drift | C39: 3 | D39: 3 | E39: 3.3 | F39: 1.71 | G39: 1.902 | H39: 2.13 | I39: 2.323 | J39: 1.872 | K39: 1.866 | L39: 1.664 | M39: 1.761 | N39: 0.015 | O39: 0.01 | P39: 0.01 | Q39: 2.121 | R39: 2.017 | S39: 2.704 | T39: 3.411 | U39: 2.223 | V39: 2.122 | W39: 2.322
A40: Telemark | B40: Åker og hage | C40: 131 | D40: 136 | E40: 127.4 | F40: 116.985 | G40: 116.024 | H40: 113.938 | I40: 112.701 | J40: 108.49 | K40: 107.313 | L40: 104.434 | M40: 100.524 | N40: 96.236 | O40: 94.202 | P40: 91.496 | Q40: 89.864 | R40: 88.381 | S40: 85.6 | T40: 82.484 | U40: 83.442 | V40: 81.37 | W40: 82.206 | X40: 81.563
B41: Fulldyrka eng og beite | C41: 95 | D41: 97 | E41: 105.3 | F41: 115.403 | G41: 116.937 | H41: 117.338 | I41: 118.034 | J41: 117.698 | K41: 119.488 | L41: 120.531 | M41: 122.444 | N41: 125.799 | O41: 127.052 | P41: 128.288 | Q41: 128.136 | R41: 126.469 | S41: 126.154 | T41: 128.485 | U41: 128.93 | V41: 130.623 | W41: 128.053 | X41: 126.409
B42: Fulldyrka i alt | C42: 226 | D42: 233 | E42: 232.7 | F42: 232.388 | G42: 232.961 | H42: 231.276 | I42: 230.735 | J42: 226.188 | K42: 226.801 | L42: 224.965 | M42: 222.968 | N42: 222.035 | O42: 221.254 | P42: 219.784 | Q42: 218 | R42: 214.85 | S42: 211.754 | T42: 210.969 | U42: 212.372 | V42: 211.993 | W42: =W40+W41 -> 210.259 | X42: 207.972
B43: Annen eng og beite | C43: 35 | D43: 24.2 | E43: 25.8 | F43: 29.502 | G43: 32.047 | H43: 32.032 | I43: 33.586 | J43: 32.628 | K43: 33.582 | L43: 34.102 | M43: 34.575 | N43: 34.579 | O43: 35.04 | P43: 34.754 | Q43: 34.148 | R43: 32.096 | S43: 32.408 | T43: 32.665 | U43: 32.159 | V43: 32.176 | W43: 30.947 | X43: 33.102
B44: Jordbruksareal i drift i alt | C44: 261 | D44: 257.2 | E44: 258.5 | F44: 261.89 | G44: 265.008 | H44: 263.308 | I44: 264.321 | J44: 258.816 | K44: 260.383 | L44: 259.067 | M44: 257.543 | N44: 256.614 | O44: 256.294 | P44: 254.538 | Q44: 252.148 | R44: 246.946 | S44: 244.162 | T44: 243.634 | U44: 244.531 | V44: 244.169 | W44: =SUM(W42:W43) -> 241.206 | X44: =SUM(X42:X43) -> 241.074
B45: Jordbruksareal ute av drift | C45: 6 | D45: 8 | E45: 6.6 | F45: 3.123 | G45: 2.732 | H45: 2.581 | I45: 2.389 | J45: 2.233 | K45: 2.123 | L45: 2.012 | M45: 2.237 | N45: 1.58 | O45: 1.435 | P45: 1.589 | Q45: 1.51 | R45: 2.02 | S45: 2.1 | T45: 2.281 | U45: 1.624 | V45: 1.64 | W45: 2.18
A46: Aust-Agder | B46: Åker og hage | C46: 37 | D46: 33 | E46: 27.1 | F46: 24.445 | G46: 23.4 | H46: 23.674 | I46: 23.104 | J46: 21.293 | K46: 20.625 | L46: 19.826 | M46: 19.105 | N46: 18.799 | O46: 18.032 | P46: 17.225 | Q46: 16.128 | R46: 15.084 | S46: 14.27 | T46: 13.358 | U46: 13.385 | V46: 13.297 | W46: 13.306 | X46: 13.75
B47: Fulldyrka eng og beite | C47: 69 | D47: 72 | E47: 85.2 | F47: 84.573 | G47: 83.866 | H47: 83.57 | I47: 83.566 | J47: 82.642 | K47: 82.532 | L47: 81.851 | M47: 81.607 | N47: 81.174 | O47: 80.558 | P47: 81.247 | Q47: 79.759 | R47: 80.246 | S47: 79.719 | T47: 80.166 | U47: 81.174 | V47: 81.772 | W47: 80.866 | X47: 81.748
B48: Fulldyrka i alt | C48: 106 | D48: 105 | E48: 112.3 | F48: 109.018 | G48: 107.266 | H48: 107.244 | I48: 106.67 | J48: 103.935 | K48: 103.157 | L48: 101.677 | M48: 100.712 | N48: 99.973 | O48: 98.59 | P48: 98.472 | Q48: 95.887 | R48: 95.33 | S48: 93.989 | T48: 93.524 | U48: 94.559 | V48: 95.069 | W48: =W46+W47 -> 94.172 | X48: 95.498
B49: Annen eng og beite | C49: 10 | D49: 9 | E49: 8.8 | F49: 11.351 | G49: 11.951 | H49: 11.327 | I49: 11.783 | J49: 12.162 | K49: 12.423 | L49: 12.373 | M49: 12.786 | N49: 13.248 | O49: 13.522 | P49: 13.66 | Q49: 15.386 | R49: 16.236 | S49: 16.524 | T49: 16.468 | U49: 16.782 | V49: 17.028 | W49: 16.218 | X49: 16.852
B50: Jordbruksareal i drift i alt | C50: 116 | D50: 114 | E50: 121.1 | F50: 120.369 | G50: 119.217 | H50: 118.571 | I50: 118.453 | J50: 116.097 | K50: 115.58 | L50: 114.05 | M50: 113.498 | N50: 113.221 | O50: 112.112 | P50: 112.132 | Q50: 111.273 | R50: 111.566 | S50: 110.513 | T50: 109.992 | U50: 111.341 | V50: 112.097 | W50: =SUM(W48:W49) -> 110.39 | X50: =SUM(X48:X49) -> 112.35
B51: Jordbruksareal ute av drift | C51: 4 | D51: 3 | E51: 2.2 | F51: 1.087 | G51: 1.107 | H51: 0.891 | I51: 0.678 | J51: 0.618 | K51: 0.637 | L51: 0.853 | M51: 0.755 | N51: 0.814 | O51: 0.766 | P51: 0.718 | Q51: 0.686 | R51: 0.753 | S51: 0.709 | T51: 0.641 | U51: 0.602 | V51: 0.716 | W51: 0.952
A52: Vest-Agder | B52: Åker og hage | C52: 25 | D52: 26 | E52: 20.9 | F52: 15.847 | G52: 16.491 | H52: 17.043 | I52: 14.77 | J52: 14.595 | K52: 14.066 | L52: 13.572 | M52: 12.644 | N52: 11.847 | O52: 11.166 | P52: 10.984 | Q52: 11.968 | R52: 11.089 | S52: 9.789 | T52: 7.49 | U52: 6.978 | V52: 6.761 | W52: 7.123 | X52: 7.105
B53: Fulldyrka eng og beite | C53: 120 | D53: 130 | E53: 138 | F53: 143.551 | G53: 141.602 | H53: 141.334 | I53: 141.117 | J53: 140.185 | K53: 138.698 | L53: 136.651 | M53: 138.39 | N53: 136.744 | O53: 137.263 | P53: 135.899 | Q53: 130.926 | R53: 130.933 | S53: 128.552 | T53: 130.269 | U53: 130.824 | V53: 130.444 | W53: 129.698 | X53: 129.139
B54: Fulldyrka i alt | C54: 145 | D54: 156 | E54: 158.9 | F54: 159.398 | G54: 158.093 | H54: 158.377 | I54: 155.887 | J54: 154.78 | K54: 152.764 | L54: 150.223 | M54: 151.034 | N54: 148.591 | O54: 148.429 | P54: 146.883 | Q54: 142.894 | R54: 142.022 | S54: 138.341 | T54: 137.759 | U54: 137.802 | V54: 137.205 | W54: =W52+W53 -> 136.821 | X54: 136.244
B55: Annen eng og beite | C55: 31 | D55: 31 | E55: 39.1 | F55: 43.362 | G55: 44.758 | H55: 45.615 | I55: 45.415 | J55: 44.71 | K55: 44.343 | L55: 45.033 | M55: 45.276 | N55: 45.716 | O55: 46.47 | P55: 46.318 | Q55: 46.139 | R55: 46.501 | S55: 44.664 | T55: 44.897 | U55: 44.982 | V55: 46.079 | W55: 47.065 | X55: 50.008
B56: Jordbruksareal i drift i alt | C56: 176 | D56: 187 | E56: 198 | F56: 202.76 | G56: 202.851 | H56: 203.992 | I56: 201.302 | J56: 199.49 | K56: 197.107 | L56: 195.256 | M56: 196.31 | N56: 194.307 | O56: 194.899 | P56: 193.201 | Q56: 189.033 | R56: 188.523 | S56: 183.005 | T56: 182.656 | U56: 182.784 | V56: 183.284 | W56: =SUM(W54:W55) -> 183.886 | X56: =SUM(X54:X55) -> 186.252
B57: Jordbruksareal ute av drift | C57: 3 | D57: 2 | E57: 1.6 | F57: 2.067 | G57: 2.233 | H57: 1.903 | I57: 1.703 | J57: 1.639 | K57: 1.532 | L57: 1.806 | M57: 2.022 | N57: 1.94 | O57: 1.919 | P57: 1.83 | Q57: 1.953 | R57: 1.505 | S57: 1.217 | T57: 1.243 | U57: 1.595 | V57: 1.545 | W57: 1.695
A58: Rogaland | B58: Åker og hage | C58: 123 | D58: 145 | E58: 134.2 | F58: 106.419 | G58: 108.514 | H58: 104.23 | I58: 89.153 | J58: 83.917 | K58: 79.693 | L58: 74.318 | M58: 63.599 | N58: 61.443 | O58: 59.45 | P58: 59.555 | Q58: 60.925 | R58: 54.283 | S58: 49.452 | T58: 41.962 | U58: 41.759 | V58: 43.713 | W58: 51.576 | X58: 47.687
B59: Fulldyrka eng og beite | C59: 364 | D59: 398.6 | E59: 427.3 | F59: 462.009 | G59: 459.475 | H59: 468.232 | I59: 495.427 | J59: 499.182 | K59: 500.026 | L59: 502.192 | M59: 504.212 | N59: 501.545 | O59: 492.96 | P59: 488.655 | Q59: 481.979 | R59: 487.946 | S59: 490.797 | T59: 494.636 | U59: 494.218 | V59: 491.985 | W59: 482.846 | X59: 481.947
B60: Fulldyrka i alt | C60: 487 | D60: 543.6 | E60: 561.5 | F60: 568.428 | G60: 567.989 | H60: 572.462 | I60: 584.58 | J60: 583.099 | K60: 579.719 | L60: 576.51 | M60: 567.811 | N60: 562.988 | O60: 552.41 | P60: 548.21 | Q60: 542.904 | R60: 542.229 | S60: 540.249 | T60: 536.598 | U60: 535.977 | V60: 535.698 | W60: =W58+W59 -> 534.422 | X60: 529.634
B61: Annen eng og beite | C61: 265 | D61: 304 | E61: 347.4 | F61: 399.837 | G61: 405.913 | H61: 411.42 | I61: 425.075 | J61: 424.842 | K61: 429.907 | L61: 430.66 | M61: 442.485 | N61: 451.366 | O61: 454.762 | P61: 454.471 | Q61: 457.972 | R61: 461.542 | S61: 462.876 | T61: 463.526 | U61: 463.254 | V61: 464.659 | W61: 462.72 | X61: 465.413
B62: Jordbruksareal i drift i alt | C62: 752 | D62: 847.6 | E62: 908.9 | F62: 968.265 | G62: 973.902 | H62: 983.882 | I62: 1009.655 | J62: 1007.941 | K62: 1009.626 | L62: 1007.17 | M62: 1010.296 | N62: 1014.354 | O62: 1007.172 | P62: 1002.681 | Q62: 1000.876 | R62: 1003.771 | S62: 1003.125 | T62: 1000.124 | U62: 999.231 | V62: 1000.357 | W62: =SUM(W60:W61) -> 997.142 | X62: 995.047
B63: Jordbruksareal ute av drift | C63: 2 | D63: 3 | E63: 4 | F63: 2.986 | G63: 3.376 | H63: 2.986 | I63: 2.713 | J63: 2.963 | K63: 2.743 | L63: 2.445 | M63: 2.451 | N63: 4.314 | O63: 4.896 | P63: 4.903 | Q63: 3.6 | R63: 3.63 | S63: 4.419 | T63: 4.721 | U63: 5.344 | V63: 5.867 | W63: 5.374
A64: Hordaland | B64: Åker og hage | C64: 36 | D64: 28 | E64: 20.2 | F64: 17.719 | G64: 16.851 | H64: 16.348 | I64: 14.109 | J64: 13.319 | K64: 12.52 | L64: 12.006 | M64: 11.338 | N64: 11.036 | O64: 10.673 | P64: 10.576 | Q64: 10.498 | R64: 10.03 | S64: 9.573 | T64: 9.005 | U64: 8.694 | V64: 8.836 | W64: 9.056 | X64: 8.483
B65: Fulldyrka eng og beite | C65: 279 | D65: 281 | E65: 271.1 | F65: 267.499 | G65: 266.663 | H65: 262.907 | I65: 248.669 | J65: 243 | K65: 237.929 | L65: 231.732 | M65: 227.413 | N65: 221.337 | O65: 218.6 | P65: 216.365 | Q65: 210.164 | R65: 206.668 | S65: 198.701 | T65: 190.301 | U65: 185.999 | V65: 184.968 | W65: 183.779 | X65: 180.859
B66: Fulldyrka i alt | C66: 315 | D66: 309 | E66: 291.3 | F66: 285.218 | G66: 283.514 | H66: 279.255 | I66: 262.778 | J66: 256.319 | K66: 250.449 | L66: 243.738 | M66: 238.751 | N66: 232.373 | O66: 229.273 | P66: 226.941 | Q66: 220.662 | R66: 216.698 | S66: 208.274 | T66: 199.306 | U66: 194.693 | V66: 193.804 | W66: =W64+W65 -> 192.835 | X66: 189.342
B67: Annen eng og beite | C67: 162 | D67: 155 | E67: 177.1 | F67: 185.914 | G67: 192.554 | H67: 194.196 | I67: 184.162 | J67: 185.342 | K67: 186.106 | L67: 188.004 | M67: 188.788 | N67: 191.013 | O67: 194.057 | P67: 193.997 | Q67: 195.435 | R67: 197.889 | S67: 200.234 | T67: 203.143 | U67: 204.674 | V67: 208.151 | W67: 208.515 | X67: 219.1
B68: Jordbruksareal i drift i alt | C68: 477 | D68: 464 | E68: 468.4 | F68: 471.132 | G68: 476.068 | H68: 473.451 | I68: 446.94 | J68: 441.661 | K68: 436.555 | L68: 431.742 | M68: 427.539 | N68: 423.386 | O68: 423.33 | P68: 420.938 | Q68: 416.097 | R68: 414.587 | S68: 408.508 | T68: 402.449 | U68: 399.367 | V68: 401.955 | W68: =SUM(W66:W67) -> 401.35 | X68: =SUM(X66:X67) -> 408.442
B69: Jordbruksareal ute av drift | C69: 7 | D69: 6 | E69: 5.6 | F69: 2.478 | G69: 3.106 | H69: 2.353 | I69: 2.11 | J69: 1.871 | K69: 1.961 | L69: 2.164 | M69: 2.503 | N69: 2.799 | O69: 2.579 | P69: 2.787 | Q69: 2.87 | R69: 3.486 | S69: 2.862 | T69: 4 | U69: 3.757 | V69: 3.714 | W69: 3.751
A70: Sogn og Fjordane | B70: Åker og hage | C70: 30 | D70: 27 | E70: 18.9 | F70: 14.796 | G70: 14.293 | H70: 14.188 | I70: 13.057 | J70: 12.313 | K70: 11.562 | L70: 10.924 | M70: 10.47 | N70: 9.879 | O70: 9.828 | P70: 8.991 | Q70: 9.271 | R70: 9.27 | S70: 8.961 | T70: 8.939 | U70: 8.665 | V70: 8.61 | W70: 8.634 | X70: 8.272
B71: Fulldyrka eng og beite | C71: 262 | D71: 290 | E71: 301.2 | F71: 300.796 | G71: 299.075 | H71: 298.216 | I71: 297.496 | J71: 296.065 | K71: 293.572 | L71: 288.354 | M71: 288.523 | N71: 285.911 | O71: 284.323 | P71: 274.719 | Q71: 266.209 | R71: 256.911 | S71: 247.535 | T71: 243.779 | U71: 243.523 | V71: 243.306 | W71: 241.45 | X71: 240.681
B72: Fulldyrka i alt | C72: 292 | D72: 317 | E72: 320.1 | F72: 315.592 | G72: 313.368 | H72: 312.404 | I72: 310.553 | J72: 308.378 | K72: 305.134 | L72: 299.278 | M72: 298.993 | N72: 295.79 | O72: 294.151 | P72: 283.71 | Q72: 275.48 | R72: 266.181 | S72: 256.496 | T72: 252.718 | U72: 252.188 | V72: 251.916 | W72: =W70+W71 -> 250.084 | X72: 248.953
B73: Annen eng og beite | C73: 156 | D73: 140 | E73: 149 | F73: 161.093 | G73: 166.338 | H73: 169.911 | I73: 169.639 | J73: 168.951 | K73: 169.96 | L73: 167.92 | M73: 165.186 | N73: 167.502 | O73: 167.942 | P73: 168.846 | Q73: 172.792 | R73: 175.693 | S73: 175.534 | T73: 177.854 | U73: 176.535 | V73: 177.014 | W73: 175.9 | X73: 178.324
B74: Jordbruksareal i drift i alt | C74: 448 | D74: 457 | E74: 469.1 | F74: 476.685 | G74: 479.706 | H74: 482.315 | I74: 480.192 | J74: 477.329 | K74: 475.094 | L74: 467.198 | M74: 464.179 | N74: 463.292 | O74: 462.093 | P74: 452.556 | Q74: 448.272 | R74: 441.874 | S74: 432.03 | T74: 430.572 | U74: 428.723 | V74: 428.93 | W74: =SUM(W72:W73) -> 425.984 | X74: 427.277
B75: Jordbruksareal ute av drift | C75: 5 | D75: 4 | E75: 2.5 | F75: 3.252 | G75: 3.706 | H75: 3.712 | I75: 3.588 | J75: 2.932 | K75: 2.716 | L75: 2.464 | M75: 2.777 | N75: 2.788 | O75: 3.151 | P75: 3.689 | Q75: 2.671 | R75: 3.227 | S75: 3.622 | T75: 3.978 | U75: 4.43 | V75: 3.837 | W75: 3.871
A76: Møre og Romsdal | B76: Åker og hage | C76: 48 | D76: 54 | E76: 32.8 | F76: 29.234 | G76: 31.991 | H76: 34.007 | I76: 32.307 | J76: 32.9 | K76: 30.547 | L76: 30.072 | M76: 28.657 | N76: 27.355 | O76: 24.862 | P76: 25.83 | Q76: 25.281 | R76: 24.193 | S76: 22.256 | T76: 20.935 | U76: 19.725 | V76: 19.35 | W76: 19.615 | X76: 17.2
B77: Fulldyrka eng og beite | C77: 419 | D77: 463 | E77: 482.5 | F77: 482.723 | G77: 475.67 | H77: 474.165 | I77: 472.608 | J77: 467.01 | K77: 466.216 | L77: 460.659 | M77: 461.795 | N77: 457.495 | O77: 454.292 | P77: 439.913 | Q77: 439.38 | R77: 429.792 | S77: 428.322 | T77: 424.948 | U77: 426.336 | V77: 423.409 | W77: 422.824 | X77: 424.092
B78: Fulldyrka i alt | C78: 467 | D78: 517 | E78: 515.3 | F78: 511.957 | G78: 507.661 | H78: 508.172 | I78: 504.915 | J78: 499.91 | K78: 496.763 | L78: 490.731 | M78: 490.452 | N78: 484.85 | O78: 479.154 | P78: 465.743 | Q78: 464.661 | R78: 453.985 | S78: 450.578 | T78: 445.883 | U78: 446.061 | V78: 442.759 | W78: =W76+W77 -> 442.439 | X78: 441.292
B79: Annen eng og beite | C79: 99 | D79: 75 | E79: 86.4 | F79: 103.843 | G79: 108.581 | H79: 109.535 | I79: 110.188 | J79: 109.577 | K79: 108.281 | L79: 108.199 | M79: 108.859 | N79: 107.86 | O79: 107.178 | P79: 104.472 | Q79: 104.32 | R79: 101.987 | S79: 99.688 | T79: 98.131 | U79: 94.001 | V79: 93.998 | W79: 94.16 | X79: 98.501
B80: Jordbruksareal i drift i alt | C80: 566 | D80: 592 | E80: 601.7 | F80: 615.8 | G80: 616.242 | H80: 617.707 | I80: 615.103 | J80: 609.487 | K80: 605.044 | L80: 598.93 | M80: 599.311 | N80: 592.71 | O80: 586.332 | P80: 570.215 | Q80: 568.981 | R80: 555.972 | S80: 550.266 | T80: 544.014 | U80: 540.062 | V80: 536.757 | W80: =SUM(W78:W79) -> 536.599 | X80: =SUM(X78:X79) -> 539.793
B81: Jordbruksareal ute av drift | C81: 10 | D81: 7 | E81: 5.7 | F81: 5.592 | G81: 5.999 | H81: 5.7 | I81: 4.441 | J81: 5.085 | K81: 5.191 | L81: 5.501 | M81: 5.588 | N81: 5.254 | O81: 5.408 | P81: 5.51 | Q81: 5.77 | R81: 6.199 | S81: 5.348 | T81: 5.503 | U81: 4.711 | V81: 5.259 | W81: 5.476
A82: Sør-Trøndelag | B82: Åker og hage | C82: 195 | D82: 213 | E82: 197.8 | F82: 186.619 | G82: 192.114 | H82: 193.507 | I82: 187.128 | J82: 187.659 | K82: 188.388 | L82: 189.129 | M82: 188.204 | N82: 187.079 | O82: 184.792 | P82: 185.804 | Q82: 186.49 | R82: 183.852 | S82: 181.049 | T82: 178.523 | U82: 176.433 | V82: 172.778 | W82: 175.045 | X82: 172.711
B83: Fulldyrka eng og beite | C83: 441 | D83: 471 | E83: 487.4 | F83: 501.444 | G83: 493.446 | H83: 491.088 | I83: 494.487 | J83: 490.195 | K83: 489.163 | L83: 480.929 | M83: 482.936 | N83: 475.791 | O83: 475.558 | P83: 463.987 | Q83: 456.527 | R83: 450.901 | S83: 452.923 | T83: 452.079 | U83: 455.836 | V83: 456.825 | W83: 452.802 | X83: 453.606
B84: Fulldyrka i alt | C84: 636 | D84: 684 | E84: 685.2 | F84: 688.063 | G84: 685.56 | H84: 684.595 | I84: 681.615 | J84: 677.854 | K84: 677.551 | L84: 670.058 | M84: 671.14 | N84: 662.87 | O84: 660.35 | P84: 649.791 | Q84: 643.017 | R84: 634.753 | S84: 633.972 | T84: 630.602 | U84: 632.269 | V84: 629.603 | W84: =W82+W83 -> 627.847 | X84: 626.317
B85: Annen eng og beite | C85: 44 | D85: 36 | E85: 59.7 | F85: 76.637 | G85: 83.505 | H85: 86.466 | I85: 92.021 | J85: 93.406 | K85: 95.691 | L85: 103.629 | M85: 102.193 | N85: 103.271 | O85: 102.324 | P85: 98.328 | Q85: 104.214 | R85: 105.566 | S85: 107.93 | T85: 106.682 | U85: 105.574 | V85: 106.318 | W85: 105.618 | X85: 109.018
B86: Jordbruksareal i drift i alt | C86: 680 | D86: 720 | E86: 744.9 | F86: 764.7 | G86: 769.065 | H86: 771.061 | I86: 773.636 | J86: 771.26 | K86: 773.242 | L86: 773.687 | M86: 773.333 | N86: 766.141 | O86: 762.674 | P86: 748.119 | Q86: 747.231 | R86: 740.319 | S86: 741.902 | T86: 737.284 | U86: 737.843 | V86: 735.921 | W86: =SUM(W84:W85) -> 733.465 | X86: =SUM(X84:X85) -> 735.335
B87: Jordbruksareal ute av drift | C87: 10 | D87: 11 | E87: 9.4 | F87: 6.725 | G87: 7.547 | H87: 7.35 | I87: 6.654 | J87: 7.133 | K87: 6.539 | L87: 6.99 | M87: 6.108 | N87: 6.538 | O87: 6.807 | P87: 6.685 | Q87: 6.289 | R87: 6.294 | S87: 6.832 | T87: 7.294 | U87: 8.97 | V87: 8.082 | W87: 8.026
A88: Nord-Trøndelag | B88: Åker og hage | C88: 385 | D88: 412 | E88: 385.7 | F88: 361.499 | G88: 364.752 | H88: 369.538 | I88: 360.104 | J88: 361.628 | K88: 366.641 | L88: 372.316 | M88: 369.987 | N88: 363.455 | O88: 354.68 | P88: 353.032 | Q88: 351.838 | R88: 348.01 | S88: 349.737 | T88: 347.315 | U88: 344.506 | V88: 336.352 | W88: 342.9 | X88: 339.784
B89: Fulldyrka eng og beite | C89: 374 | D89: 402 | E89: 436.2 | F89: 470.373 | G89: 466.617 | H89: 465.761 | I89: 476.451 | J89: 473.248 | K89: 469.047 | L89: 459.744 | M89: 464.131 | N89: 458.437 | O89: 457.022 | P89: 454.052 | Q89: 445.15 | R89: 441.349 | S89: 440.568 | T89: 441.511 | U89: 442.86 | V89: 450.027 | W89: 445.373 | X89: 444.048
B90: Fulldyrka i alt | C90: 759 | D90: 814 | E90: 821.9 | F90: 831.872 | G90: 831.369 | H90: 835.299 | I90: 836.555 | J90: 834.876 | K90: 835.688 | L90: 832.06 | M90: 834.118 | N90: 821.892 | O90: 811.702 | P90: 807.084 | Q90: 796.988 | R90: 789.359 | S90: 790.305 | T90: 788.826 | U90: 787.366 | V90: 786.379 | W90: =W88+W89 -> 788.273 | X90: 783.832
B91: Annen eng og beite | C91: 32 | D91: 28 | E91: 45.9 | F91: 53.14 | G91: 57.811 | H91: 58.985 | I91: 59.769 | J91: 60.971 | K91: 61.26 | L91: 64.889 | M91: 67.853 | N91: 71.114 | O91: 74.122 | P91: 75.28 | Q91: 75.365 | R91: 78.94 | S91: 78.722 | T91: 79.506 | U91: 80.094 | V91: 80.72 | W91: 80.797 | X91: 84.405
B92: Jordbruksareal i drift i alt | C92: 791 | D92: 842 | E92: 867.8 | F92: 885.012 | G92: 889.18 | H92: 894.284 | I92: 896.324 | J92: 895.847 | K92: 896.948 | L92: 896.949 | M92: 901.971 | N92: 893.006 | O92: 885.824 | P92: 882.364 | Q92: 872.353 | R92: 868.299 | S92: 869.027 | T92: 868.332 | U92: 867.46 | V92: 867.099 | W92: =SUM(W90:W91) -> 869.07 | X92: =SUM(X90:X91) -> 868.237
B93: Jordbruksareal ute av drift | C93: 7 | D93: 6 | E93: 6.3 | F93: 5.049 | G93: 5.282 | H93: 4.856 | I93: 4.494 | J93: 4.508 | K93: 4.677 | L93: 4.436 | M93: 4.486 | N93: 4.351 | O93: 4.004 | P93: 4.496 | Q93: 5.037 | R93: 5.795 | S93: 6.393 | T93: 6.214 | U93: 6.103 | V93: 8.492 | W93: 7.93
A94: Nordland | B94: Åker og hage | C94: 40 | D94: 52 | E94: 43.4 | F94: 31.12 | G94: 26.113 | H94: 26.554 | I94: 21.61 | J94: 21.808 | K94: 17.728 | L94: 16.753 | M94: 15.286 | N94: 13.694 | O94: 13.473 | P94: 12.58 | Q94: 11.645 | R94: 10.27 | S94: 9.66 | T94: 9.321 | U94: 8.901 | V94: 8.759 | W94: 8.389 | X94: 9.957
B95: Fulldyrka eng og beite | C95: 396 | D95: 416 | E95: 433.6 | F95: 452.71 | G95: 458.466 | H95: 458.956 | I95: 466.478 | J95: 462.91 | K95: 464.219 | L95: 460.459 | M95: 461.768 | N95: 464.741 | O95: 451.701 | P95: 447.353 | Q95: 439.234 | R95: 437.839 | S95: 435.596 | T95: 433.91 | U95: 435.543 | V95: 435.815 | W95: 435.635 | X95: 433.029
B96: Fulldyrka i alt | C96: 436 | D96: 468 | E96: 477 | F96: 483.83 | G96: 484.579 | H96: 485.51 | I96: 488.088 | J96: 484.718 | K96: 481.947 | L96: 477.212 | M96: 477.054 | N96: 478.435 | O96: 465.174 | P96: 459.933 | Q96: 450.879 | R96: 448.109 | S96: 445.256 | T96: 443.231 | U96: 444.444 | V96: 444.574 | W96: =W94+W95 -> 444.024 | X96: 442.986
B97: Annen eng og beite | C97: 78 | D97: 54 | E97: 74.1 | F97: 95.701 | G97: 103.971 | H97: 108.659 | I97: 114.301 | J97: 118.344 | K97: 121.599 | L97: 123.688 | M97: 127.755 | N97: 131.151 | O97: 127.056 | P97: 125.99 | Q97: 120.007 | R97: 117.198 | S97: 117.082 | T97: 114.262 | U97: 113.362 | V97: 111.963 | W97: 111.387 | X97: 115.55
B98: Jordbruksareal i drift i alt | C98: 514 | D98: 522 | E98: 551.1 | F98: 579.531 | G98: 588.55 | H98: 594.169 | I98: 602.389 | J98: 603.062 | K98: 603.546 | L98: 600.9 | M98: 604.809 | N98: 609.586 | O98: 592.23 | P98: 585.923 | Q98: 570.886 | R98: 565.307 | S98: 562.338 | T98: 557.493 | U98: 557.806 | V98: 556.537 | W98: =SUM(W96:W97) -> 555.411 | X98: =SUM(X96:X97) -> 558.536
B99: Jordbruksareal ute av drift | C99: 23 | D99: 12 | E99: 10.9 | F99: 6.972 | G99: 7.652 | H99: 6.404 | I99: 6.272 | J99: 5.895 | K99: 5.987 | L99: 5.727 | M99: 5.941 | N99: 5.66 | O99: 4.775 | P99: 4.443 | Q99: 4.659 | R99: 4.948 | S99: 4.695 | T99: 4.874 | U99: 5.135 | V99: 4.903 | W99: 5.544
A100: Troms | B100: Åker og hage | C100: 14 | D100: 20 | E100: 35 | F100: 22.356 | G100: 18.569 | H100: 16.776 | I100: 14.077 | J100: 12.561 | K100: 10.362 | L100: 9.789 | M100: 14.944 | N100: 10.123 | O100: 8.991 | P100: 8.681 | Q100: 12.131 | R100: 8.081 | S100: 7.02 | T100: 7.295 | U100: 6.549 | V100: 6.975 | W100: 6.317 | X100: 10.922
B101: Fulldyrka eng og beite | C101: 213 | D101: 204 | E101: 204.1 | F101: 221.169 | G101: 220.384 | H101: 221.613 | I101: 222.772 | J101: 222.805 | K101: 222.114 | L101: 219.878 | M101: 214.673 | N101: 218.446 | O101: 216.366 | P101: 211.584 | Q101: 205.795 | R101: 202.847 | S101: 198.384 | T101: 199.339 | U101: 196.991 | V101: 199.709 | W101: 197.853 | X101: 193.544
B102: Fulldyrka i alt | C102: 227 | D102: 224 | E102: 239.1 | F102: 243.525 | G102: 238.953 | H102: 238.389 | I102: 236.849 | J102: 235.366 | K102: 232.476 | L102: 229.667 | M102: 229.617 | N102: 228.569 | O102: 225.357 | P102: 220.265 | Q102: 217.926 | R102: 210.928 | S102: 205.404 | T102: 206.634 | U102: 203.54 | V102: 206.684 | W102: =W100+W101 -> 204.17 | X102: 204.466
B103: Annen eng og beite | C103: 36 | D103: 18 | E103: 24.3 | F103: 29.664 | G103: 33.505 | H103: 33.787 | I103: 34.071 | J103: 34.114 | K103: 33.828 | L103: 33.13 | M103: 33.831 | N103: 34.083 | O103: 33.607 | P103: 34.654 | Q103: 35.971 | R103: 34.569 | S103: 34.29 | T103: 34.435 | U103: 33.693 | V103: 33.025 | W103: 32.704 | X103: 35.86
B104: Jordbruksareal i drift i alt | C104: 263 | D104: 242 | E104: 263.4 | F104: 273.189 | G104: 273.189 | H104: 273.189 | I104: 273.189 | J104: 273.189 | K104: 273.189 | L104: 273.189 | M104: 273.189 | N104: 273.189 | O104: 258.964 | P104: 254.919 | Q104: 253.897 | R104: 245.497 | S104: 239.694 | T104: 241.069 | U104: 237.233 | V104: 239.709 | W104: =SUM(W102:W103) -> 236.874 | X104: 240.326
B105: Jordbruksareal ute av drift | C105: 16 | D105: 7 | E105: 4.5 | F105: 2.49 | G105: 3.046 | H105: 2.83 | I105: 2.71 | J105: 2.861 | K105: 2.883 | L105: 2.735 | M105: 2.659 | N105: 2.881 | O105: 2.489 | P105: 2.153 | Q105: 1.993 | R105: 2.071 | S105: 6.694 | T105: 2.703 | U105: 3.396 | V105: 3.216 | W105: 3.657
A106: Finnmark | B106: Åker og hage | C106: 5 | D106: 9 | E106: 8.2 | F106: 8.316 | G106: 7.923 | H106: 6.892 | I106: 6.11 | J106: 6.405 | K106: 6.413 | L106: 5.434 | M106: 4.29 | N106: 3.778 | O106: 4.279 | P106: 4.125 | Q106: 3.587 | R106: 3.004 | S106: 2.861 | T106: 3.355 | U106: 3.287 | V106: 3.056 | W106: 3.489 | X106: 3.099
B107: Fulldyrka eng og beite | C107: 75 | D107: 78 | E107: 82.8 | F107: 83.047 | G107: 83.222 | H107: 81.99 | I107: 81.865 | J107: 79.84 | K107: 79.157 | L107: 80.103 | M107: 81.5 | N107: 82.085 | O107: 80.242 | P107: 80.247 | Q107: 79.164 | R107: 79.25 | S107: 79.506 | T107: 77.441 | U107: 77.494 | V107: 76.769 | W107: 76.287 | X107: 75.04
B108: Fulldyrka i alt | C108: 80 | D108: 87 | E108: 91 | F108: 91.363 | G108: 91.145 | H108: 88.882 | I108: 87.975 | J108: 86.245 | K108: 85.58 | L108: 85.537 | M108: 85.79 | N108: 85.863 | O108: 84.521 | P108: 84.372 | Q108: 82.751 | R108: 82.254 | S108: 82.367 | T108: 80.796 | U108: 80.781 | V108: 79.825 | W108: =W106+W107 -> 79.776 | X108: 78.139
B109: Annen eng og beite | C109: 15 | D109: 9 | E109: 7.6 | F109: 14.145 | G109: 16.236 | H109: 16.029 | I109: 14.831 | J109: 14.892 | K109: 14.35 | L109: 14.283 | M109: 14.381 | N109: 14.03 | O109: 13.14 | P109: 12.798 | Q109: 11.57 | R109: 13.023 | S109: 13.168 | T109: 12.725 | U109: 13.613 | V109: 12.464 | W109: 12.782 | X109: 13.417
B110: Jordbruksareal i drift i alt | C110: 95 | D110: 96 | E110: 98.6 | F110: 105.508 | G110: 107.381 | H110: 104.911 | I110: 102.806 | J110: 101.137 | K110: 99.93 | L110: 99.82 | M110: 100.171 | N110: 99.893 | O110: 97.661 | P110: 97.17 | Q110: 94.321 | R110: 95.277 | S110: 95.535 | T110: 93.521 | U110: 94.394 | V110: 92.289 | W110: =SUM(W108:W109) -> 92.558 | X110: 91.556
B111: Jordbruksareal ute av drift | C111: 7 | D111: 4 | E111: 3.5 | F111: 1.636 | G111: 2 | H111: 1.676 | I111: 1.39 | J111: 1.716 | K111: 1.469 | L111: 1.352 | M111: 1.167 | N111: 1.465 | O111: 1.379 | P111: 1.699 | Q111: 1.903 | R111: 1.635 | S111: 1.57 | T111: 1.698 | U111: 1.907 | V111: 1.984 | W111: 1.767
A112: Hele landet | B112: Åker og hage | C112: 4150 | D112: 4430.1 | E112: 4302.6 | F112: 3994.601 | G112: 3991.285 | H112: 3996.958 | I112: 3914.499 | J112: 3854.297 | K112: 3845.468 | L112: 3804.475 | M112: 3731.323 | N112: 3668.837 | O112: 3609.245 | P112: 3566.359 | Q112: 3535.985 | R112: 3473.696 | S112: 3434.259 | T112: 3350.49 | U112: 3325.975 | V112: 3302.451 | W112: 3331.782 | X112: 3310.881
B113: Fulldyrka eng og beite | C113: 4156 | D113: 4383.6 | E113: 4652.8 | F113: 4876.93 | G113: 4861.415 | H113: 4864.851 | I113: 4916.975 | J113: 4905.128 | K113: 4891.497 | L113: 4857.987 | M113: 4896.3 | N113: 4905.54 | O113: 4884.265 | P113: 4827.821 | Q113: 4765.479 | R113: 4741.758 | S113: 4729.029 | T113: 4757.049 | U113: 4785.37 | V113: 4799.176 | W113: 4749.928 | X113: 4727.925
B114: Fulldyrka i alt | C114: 8306 | D114: 8813.7 | E114: 8955.4 | F114: 8871.531 | G114: 8852.7 | H114: 8861.809 | I114: 8831.474 | J114: 8759.425 | K114: 8736.967 | L114: 8662.462 | M114: 8627.623 | N114: 8574.377 | O114: 8493.51 | P114: 8394.18 | Q114: 8301.464 | R114: 8215.454 | S114: 8163.288 | T114: 8107.539 | U114: 8111.345 | V114: 8101.627 | W114: 8081.71 | X114: 8038.806
B115: Annen eng og beite | C115: 1233 | D115: 1094.9 | E115: 1299.7 | F115: 1510.914 | G115: 1583.228 | H115: 1605.363 | I115: 1634.743 | J115: 1644.431 | K115: 1660.331 | L115: 1691.774 | M115: 1716.984 | N115: 1745.821 | O115: 1751.373 | P115: 1748.064 | Q115: 1758.393 | R115: 1765.705 | S115: 1765.346 | T115: 1763.889 | U115: 1756.334 | V115: 1758.728 | W115: 1755.028 | X115: 1802.152
B116: Jordbruksareal i drift i alt | C116: 9539 | D116: 9908.6 | E116: 10255.1 | F116: 10382.445 | G116: 10436.659 | H116: 10468.185 | I116: 10468.486 | J116: 10407.565 | K116: 10404.183 | L116: 10364.628 | M116: 10354.348 | N116: 10330.735 | O116: 10244.883 | P116: 10142.244 | Q116: 10059.857 | R116: 9981.159 | S116: 9928.634 | T116: 9871.428 | U116: 9867.679 | V116: 9860.355 | W116: 9836.738 | X116: 9840.958
B117: Jordbruksareal ute av drift | C117: 140 | D117: 113 | E117: 105.1 | F117: 70.208 | G117: 76.457 | H117: 72.272 | I117: 65.684 | J117: 66.22 | K117: 62.922 | L117: 64.112 | M117: 64.184 | N117: 57.65 | O117: 56.853 | P117: 59.895 | Q117: 66.987 | R117: 69.633 | S117: 79.264 | T117: 80.133 | U117: 79.965 | V117: 82.402 | W117: 82.945 | X117: 0
A118: * Foreløpige tall. Har ikke mottatt tall for
A119: "jordbruksareal ute av drift" for 2017

Sheet J.areal, leid (hidden)
A1: Leid jordbruksareal etter størrelsen på jordbruksbedriften. Fylkestall, 1000 dekar
B3: Arealgruppe | C3: 1979 | E3: 1989 | G3: 1999 | U3: 2006 | W3: 2007 | Y3: 2008 | AA3: 2009 | AC3: 2010 | AE3: 2011 | AG3: 2012 | AI3: 2013 | AK3: 2014 | AM3: 2015 | AO3: 2016
C4: Areal | D4: % | E4: Areal | F4: % | G4: Areal | H4: % | U4: Areal | V4: % | W4: Areal | X4: % | Y4: Areal | Z4: % | AA4: Areal | AB4: % | AC4: Areal | AD4: % | AE4: Areal | AF4: % | AG4: Areal | AH4: % | AI4: Areal | AJ4: % | AK4: Areal | AL4: % | AM4: Areal | AN4: % | AO4: Areal | AP4: %
A5: Østfold | B5: < 100 | C5: 27296 | D5: 14.80533287 | E5: 21124 | F5: 10.91262256 | G5: 9975 | H5: 4.163449298 | U5: 4677 | V5: 1.677426297 | W5: 4461 | X5: 1.539507468 | Y5: 4477 | Z5: 1.532169747 | AA5: 4245 | AB5: 1.421772376 | AC5: 4800 | AD5: 1.584158416 | AE5: 5010 | AF5: 1.655262645 | AG5: 5100 | AH5: 1.658536585 | AI5: 5200 | AJ5: 1.66987797 | AK5: 4900 | AL5: 1.545253863 | AM5: 4600 | AN5: 1 | AO5: 4300 | AP5: 1.357751816
B6: 100-199 | C6: 50232 | D6: 27.24580454 | E6: 47828 | F6: 24.70786366 | G6: 32844 | H6: 13.70870464 | U6: 19751 | V6: 7.083781651 | W6: 20275 | X6: 6.996976892 | Y6: 20070 | Z6: 6.868583162 | AA6: 21569 | AB6: 7.224077355 | AC6: 20500 | AD6: 6.765676568 | AE6: 19916 | AF6: 6.580082003 | AG6: 18700 | AH6: 6.081300813 | AI6: 17700 | AJ6: 5.684007707 | AK6: 16200 | AL6: 5.108798486 | AM6: 17300 | AN6: 2 | AO6: 15700 | AP6: 4.957372908
B7: 200-299 | C7: 42684 | D7: 23.15177419 | E7: 47208 | F7: 24.38757271 | G7: 43890 | H7: 18.31917691 | U7: 31282 | V7: 11.21942472 | W7: 33863 | X7: 11.68624555 | Y7: 32773 | Z7: 11.21594798 | AA7: 29694 | AB7: 9.945373127 | AC7: 28500 | AD7: 9.405940594 | AE7: 28628 | AF7: 9.45845489 | AG7: 28800 | AH7: 9.365853659 | AI7: 29300 | AJ7: 9.409120103 | AK7: 29100 | AL7: 9.176915799 | AM7: 27100 | AN7: 4 | AO7: 25500 | AP7: 8.051784023
B8: 300-499 | C8: 42429 | D8: 23.01346235 | E8: 54176 | F8: 27.98722969 | G8: 70048 | H8: 29.2372227 | U8: 65323 | V8: 23.42837673 | W8: 63842 | X8: 22.03210845 | Y8: 59260 | Z8: 20.28062971 | AA8: 59122 | AB8: 19.80165522 | AC8: 64600 | AD8: 21.32013201 | AE8: 66626 | AF8: 22.01268044 | AG8: 61900 | AH8: 20.1300813 | AI8: 58800 | AJ8: 18.88246628 | AK8: 57900 | AL8: 18.25922422 | AM8: 56600 | AN8: 8 | AO8: 55300 | AP8: 17.46131986
B9: 500-799 | C9: 15380 | D9: 8.342102123 | E9: 17265 | F9: 8.91906971 | G9: 60074 | H9: 25.07419079 | U9: 67235 | V9: 24.11412381 | W9: 69998 | X9: 24.15656663 | Y9: 72865 | Z9: 24.9366872 | AA9: 77909 | AB9: 26.0939609 | AC9: 75000 | AD9: 24.75247525 | AE9: 71774 | AF9: 23.71353714 | AG9: 73000 | AH9: 23.7398374 | AI9: 71300 | AJ9: 22.89659602 | AK9: 73400 | AL9: 23.14727215 | AM9: 76700 | AN9: 10 | AO9: 74800 | AP9: 23.61856647
B10: ≥ 800 | C10: 6345 | D10: 3.441523925 | E10: 5973 | F10: 3.085641667 | G10: 22754 | H10: 9.497255671 | U10: 90552 | V10: 32.4768668 | W10: 97329 | X10: 33.58859501 | Y10: 102755 | Z10: 35.1659822 | AA10: 106032 | AB10: 35.51316102 | AC10: 109600 | AD10: 36.17161716 | AE10: 110717 | AF10: 36.57998289 | AG10: 120000 | AH10: 39.02439024 | AI10: 129100 | AJ10: 41.45793192 | AK10: 135600 | AL10: 42.76253548 | AM10: 134300 | AN10: 18 | AO10: 141100 | AP10: 44.55320493
B11: Sum leid areal | C11: 184366 | E11: 193574 | G11: 239585 | I11: 0 | K11: 0 | M11: 0 | O11: 0 | Q11: 0 | S11: 0 | U11: 278820 | W11: 289768 | Y11: 292200 | AA11: 298571 | AC11: 303000 | AE11: 302671 | AG11: 307500 | AI11: 311400 | AK11: 317100 | AM11: 316600 | AO11: 316700
B12: Totalt areal | C12: 754750 | E12: 767044 | G12: 771340 | I12: 761815 | K12: 779147 | M12: 776570 | O12: 767195 | Q12: 767054 | S12: 765557 | U12: 762361 | W12: 764106 | Y12: 749817 | AA12: 742810 | AC12: 740729 | AE12: 736819 | AG12: 734705 | AI12: 730469 | AK12: 729800 | AM12: 730800 | AO12: 734700
B13: % leid areal | C13: 24.4274263 | E13: 25.23636193 | G13: 31.06088106 | I13: 0 | K13: 0 | M13: 0 | O13: 0 | Q13: 0 | S13: 0 | U13: 36.5732245 | W13: 37.92248719 | Y13: 38.96950856 | AA13: 40.19480082 | AC13: 40.90564835 | AE13: 41.07806666 | AG13: 41.85353305 | AI13: 42.63014584 | AK13: 43.45026035 | AM13: 43 | AO13: 43.10602967
A14: Akershus/Oslo | B14: < 100 | C14: 23769 | D14: 13.50902818 | E14: 17215 | F14: 8.914654418 | G14: 10466 | H14: 4.166451032 | U14: 5134 | V14: 1.744715558 | W14: 5290 | X14: 1.745022233 | Y14: 5545 | Z14: 1.792641924 | AA14: 5905 | AB14: 1.888717591 | AC14: 7000 | AD14: 2.20959596 | AE14: 6863 | AF14: 2.125807671 | AG14: 6400 | AH14: 1.939981813 | AI14: 6100 | AJ14: 1.784147412 | AK14: 5900 | AL14: 1.680432925 | AM14: 5900 | AN14: 1 | AO14: 5200 | AP14: 1.495112133
B15: 100-199 | C15: 38976 | D15: 22.15187355 | E15: 36182 | F15: 18.73656847 | G15: 29663 | H15: 11.80866014 | U15: 19778 | V15: 6.721266907 | W15: 20110 | X15: 6.633723462 | Y15: 21056 | Z15: 6.807189965 | AA15: 19350 | AB15: 6.189108449 | AC15: 19800 | AD15: 6.25 | AE15: 17844 | AF15: 5.527161893 | AG15: 17600 | AH15: 5.334949985 | AI15: 18000 | AJ15: 5.26469728 | AK15: 16200 | AL15: 4.614070066 | AM15: 17500 | AN15: 2 | AO15: 15500 | AP15: 4.456584244
B16: 200-299 | C16: 35165 | D16: 19.98590501 | E16: 39119 | F16: 20.25747117 | G16: 32792 | H16: 13.05429603 | U16: 26119 | V16: 8.876163937 | W16: 24527 | X16: 8.090767546 | Y16: 22099 | Z16: 7.144381223 | AA16: 23754 | AB16: 7.59773034 | AC16: 25700 | AD16: 8.112373737 | AE16: 24674 | AF16: 7.642747846 | AG16: 24500 | AH16: 7.426492877 | AI16: 24400 | AJ16: 7.136589646 | AK16: 22500 | AL16: 6.408430647 | AM16: 22200 | AN16: 3 | AO16: 23200 | AP16: 6.670500288
B17: 300-499 | C17: 48060 | D17: 27.31473325 | E17: 60013 | F17: 31.07726724 | G17: 71863 | H17: 28.60822382 | U17: 62598 | V17: 21.27302386 | W17: 60771 | X17: 20.04664388 | Y17: 59618 | Z17: 19.27389112 | AA17: 60869 | AB17: 19.46898409 | AC17: 58500 | AD17: 18.46590909 | AE17: 60408 | AF17: 18.71132009 | AG17: 57000 | AH17: 17.27796302 | AI17: 58300 | AJ17: 17.05176952 | AK17: 58800 | AL17: 16.74736542 | AM17: 56100 | AN17: 7 | AO17: 53000 | AP17: 15.2386429
B18: 500-799 | C18: 22248 | D18: 12.64457314 | E18: 27477 | F18: 14.22875164 | G18: 66910 | H18: 26.63646461 | U18: 75581 | V18: 25.68510841 | W18: 71503 | X18: 23.58682888 | Y18: 72429 | Z18: 23.41555671 | AA18: 68715 | AB18: 21.97853163 | AC18: 73800 | AD18: 23.29545455 | AE18: 68392 | AF18: 21.18435643 | AG18: 65300 | AH18: 19.79387693 | AI18: 68300 | AJ18: 19.97660135 | AK18: 77900 | AL18: 22.18741099 | AM18: 79300 | AN18: 10 | AO18: 81200 | AP18: 23.34675101
B19: ≥ 800 | C19: 7731 | D19: 4.393886865 | E19: 13103 | F19: 6.785287066 | G19: 39503 | H19: 15.72590437 | U19: 105050 | V19: 35.69972133 | W19: 120947 | X19: 39.897014 | Y19: 128573 | Z19: 41.56633907 | AA19: 134053 | AB19: 42.8769279 | AC19: 132000 | AD19: 41.66666667 | AE19: 144661 | AF19: 44.80860607 | AG19: 159100 | AH19: 48.22673537 | AI19: 166800 | AJ19: 48.78619479 | AK19: 169800 | AL19: 48.36228995 | AM19: 169700 | AN19: 22 | AO19: 169700 | AP19: 48.79240943
B20: Sum leid areal | C20: 175949 | E20: 193109 | G20: 251197 | I20: 0 | K20: 0 | M20: 0 | O20: 0 | Q20: 0 | S20: 0 | U20: 294260 | W20: 303148 | Y20: 309320 | AA20: 312646 | AC20: 316800 | AE20: 322842 | AG20: 329900 | AI20: 341900 | AK20: 351100 | AM20: 350700 | AO20: 347800
B21: Totalt areal | C21: 800066 | E21: 816099 | G21: 814081 | I21: 800110 | K21: 814365 | M21: 810656 | O21: 803586 | Q21: 803630 | S21: 802299 | U21: 797805 | W21: 796213 | Y21: 793833 | AA21: 784439 | AC21: 782112 | AE21: 778836 | AG21: 777617 | AI21: 773221 | AK21: 773800 | AM21: 770700 | AO21: 762500
B22: % leid areal | C22: 21.99181068 | E22: 23.66244782 | G22: 30.85651182 | I22: 0 | K22: 0 | M22: 0 | O22: 0 | Q22: 0 | S22: 0 | U22: 36.88369965 | W22: 38.07373153 | Y22: 38.96537433 | AA22: 39.855999 | AC22: 40.50570762 | AE22: 41.45185893 | AG22: 42.42448403 | AI22: 44.21762989 | AK22: 45.37348152 | AM22: 46 | AO22: 45.61311475
A23: Hedmark | B23: < 100 | C23: 50545 | D23: 23.35483454 | E23: 36660 | F23: 13.71020823 | G23: 27200 | H23: 7.593862372 | U23: 13262 | V23: 3.145195525 | W23: 12615 | X23: 2.941951553 | Y23: 11586 | Z23: 2.707755877 | AA23: 11459 | AB23: 2.613584527 | AC23: 11700 | AD23: 2.588495575 | AE23: 10265 | AF23: 2.273145001 | AG23: 10000 | AH23: 2.156101768 | AI23: 10300 | AJ23: 2.155713688 | AK23: 10800 | AL23: 2.255168094 | AM23: 10200 | AN23: 2 | AO23: 9900 | AP23: 2.059496568
B24: 100-199 | C24: 64382 | D24: 29.748362 | E24: 72094 | F24: 26.9619136 | G24: 70685 | H24: 19.73427065 | U24: 51220 | V24: 12.14725643 | W24: 46382 | X24: 10.81677344 | Y24: 44965 | Z24: 10.50873839 | AA24: 40269 | AB24: 9.184609069 | AC24: 43500 | AD24: 9.623893805 | AE24: 42810 | AF24: 9.480110812 | AG24: 39200 | AH24: 8.451918931 | AI24: 35700 | AJ24: 7.4717455 | AK24: 34100 | AL24: 7.120484444 | AM24: 32600 | AN24: 7 | AO24: 29900 | AP24: 6.220095694
B25: 200-299 | C25: 36331 | D25: 16.78711037 | E25: 61136 | F25: 22.86381044 | G25: 79128 | H25: 22.09143904 | U25: 66054 | V25: 15.66526506 | W25: 63336 | X25: 14.77062573 | Y25: 58359 | Z25: 13.63904067 | AA25: 58016 | AB25: 13.23236931 | AC25: 54800 | AD25: 12.12389381 | AE25: 53581 | AF25: 11.86530758 | AG25: 55900 | AH25: 12.05260888 | AI25: 52700 | AJ25: 11.02971955 | AK25: 48700 | AL25: 10.16913761 | AM25: 47000 | AN25: 10 | AO25: 42400 | AP25: 8.820470148
B26: 300-499 | C26: 34298 | D26: 15.84774191 | E26: 58324 | F26: 21.8121709 | G26: 83681 | H26: 23.36257343 | U26: 107011 | V26: 25.3785642 | W26: 112613 | X26: 26.26254381 | Y26: 112715 | Z26: 26.34254304 | AA26: 111578 | AB26: 25.44886415 | AC26: 111500 | AD26: 24.66814159 | AE26: 110639 | AF26: 24.50058351 | AG26: 104800 | AH26: 22.59594653 | AI26: 102300 | AJ26: 21.41063206 | AK26: 106700 | AL26: 22.28022552 | AM26: 104500 | AN26: 22 | AO26: 103700 | AP26: 21.57270647
B27: 500-799 | C27: 20269 | D27: 9.365498886 | E27: 27989 | F27: 10.46740366 | G27: 62180 | H27: 17.35979273 | U27: 89087 | V27: 21.12773592 | W27: 87390 | X27: 20.38027318 | Y27: 90137 | Z27: 21.0658546 | AA27: 93916 | AB27: 21.42049083 | AC27: 98900 | AD27: 21.88053097 | AE27: 95876 | AF27: 21.23137361 | AG27: 99900 | AH27: 21.53945666 | AI27: 110100 | AJ27: 23.04311427 | AK27: 111600 | AL27: 23.30340363 | AM27: 108800 | AN27: 23 | AO27: 114300 | AP27: 23.77782401
B28: ≥ 800 | C28: 10597 | D28: 4.896452302 | E28: 11189 | F28: 4.184493179 | G28: 35310 | H28: 9.858061778 | U28: 95025 | V28: 22.53598287 | W28: 106461 | X28: 24.82783228 | Y28: 110120 | Z28: 25.73606742 | AA28: 123202 | AB28: 28.10008211 | AC28: 131600 | AD28: 29.11504425 | AE28: 138406 | AF28: 30.64947949 | AG28: 154000 | AH28: 33.20396723 | AI28: 166700 | AJ28: 34.88907493 | AK28: 167000 | AL28: 34.87158071 | AM28: 174000 | AN28: 36 | AO28: 180500 | AP28: 37.54940711
B29: Sum leid areal | C29: 216422 | E29: 267392 | G29: 358184 | I29: 0 | K29: 0 | M29: 0 | O29: 0 | Q29: 0 | S29: 0 | U29: 421659 | W29: 428797 | Y29: 427882 | AA29: 438440 | AC29: 452000 | AE29: 451577 | AG29: 463800 | AI29: 477800 | AK29: 478900 | AM29: 477100 | AO29: 480700
B30: Totalt areal | C30: 1001351 | E30: 1066999 | G30: 1086255 | I30: 1067264 | K30: 1087930 | M30: 1085985 | O30: 1077247 | Q30: 1078789 | S30: 1071550 | U30: 1065744 | W30: 1066256 | Y30: 1066193 | AA30: 1063963 | AC30: 1056451 | AE30: 1049800 | AG30: 1046219 | AI30: 1040152 | AK30: 1046400 | AM30: 1044600 | AO30: 1049000
B31: % leid areal | C31: 21.61300084 | E31: 25.06019218 | G31: 32.97420955 | I31: 0 | K31: 0 | M31: 0 | O31: 0 | Q31: 0 | S31: 0 | U31: 39.56475476 | W31: 40.2152016 | Y31: 40.13175851 | AA31: 41.20819991 | AC31: 42.78475765 | AE31: 43.01552677 | AG31: 44.33106262 | AI31: 45.93559403 | AK31: 45.76643731 | AM31: 46 | AO31: 45.82459485
A32: Oppland | B32: < 100 | C32: 50884 | D32: 32.16434893 | E32: 37742 | F32: 18.34540417 | G32: 31573 | H32: 10.61202403 | U32: 19129 | V32: 5.411560354 | W32: 16442 | X32: 4.531111779 | Y32: 16217 | Z32: 4.376089502 | AA32: 16178 | AB32: 4.342667554 | AC32: 16300 | AD32: 4.27148847 | AE32: 16842 | AF32: 4.452033973 | AG32: 17200 | AH32: 4.482668752 | AI32: 17500 | AJ32: 4.467704876 | AK32: 16200 | AL32: 4.102304381 | AM32: 16700 | AN32: 4 | AO32: 15300 | AP32: 3.8221334
B33: 100-199 | C33: 54409 | D33: 34.39254109 | E33: 87447 | F33: 42.50571137 | G33: 99302 | H33: 33.37646754 | U33: 76333 | V33: 21.59447104 | W33: 72986 | X33: 20.11359471 | Y33: 68842 | Z33: 18.57672526 | AA33: 68384 | AB33: 18.35634677 | AC33: 73200 | AD33: 19.18238994 | AE33: 71368 | AF33: 18.86550057 | AG33: 69000 | AH33: 17.98279906 | AI33: 67100 | AJ33: 17.13045698 | AK33: 62700 | AL33: 15.87743733 | AM33: 63100 | AN33: 16 | AO33: 59900 | AP33: 14.96377717
B34: 200-299 | C34: 27176 | D34: 17.17825537 | E34: 45980 | F34: 22.34968162 | G34: 83618 | H34: 28.10490688 | U34: 98192 | V34: 27.77834357 | W34: 96751 | X34: 26.66279015 | Y34: 95227 | Z34: 25.69660696 | AA34: 91692 | AB34: 24.61292331 | AC34: 92500 | AD34: 24.24004193 | AE34: 89157 | AF34: 23.56786563 | AG34: 86300 | AH34: 22.49152984 | AI34: 87800 | AJ34: 22.41511361 | AK34: 81400 | AL34: 20.61281337 | AM34: 76900 | AN34: 19 | AO34: 79800 | AP34: 19.93504871
B35: 300-499 | C35: 20802 | D35: 13.14917826 | E35: 23707 | F35: 11.52335585 | G35: 51549 | H35: 17.32617193 | U35: 94054 | V35: 26.60771067 | W35: 101383 | X35: 27.93928387 | Y35: 106936 | Z35: 28.85623155 | AA35: 106783 | AB35: 28.66380699 | AC35: 104600 | AD35: 27.41090147 | AE35: 105061 | AF35: 27.77194759 | AG35: 111100 | AH35: 28.95491269 | AI35: 105900 | AJ35: 27.03599694 | AK35: 106300 | AL35: 26.91820714 | AM35: 103200 | AN35: 26 | AO35: 99500 | AP35: 24.85635773
B36: 500-799 | C36: 3894 | D36: 2.461441214 | E36: 7084 | F36: 3.443348078 | G36: 28127 | H36: 9.453786455 | U36: 42250 | V36: 11.95245046 | W36: 47111 | X36: 12.98292221 | Y36: 48979 | Z36: 13.21677793 | AA36: 54292 | AB36: 14.5736251 | AC36: 59200 | AD36: 15.51362683 | AE36: 60051 | AF36: 15.87395156 | AG36: 58900 | AH36: 15.35053427 | AI36: 67900 | AJ36: 17.33469492 | AK36: 70900 | AL36: 17.95391238 | AM36: 74900 | AN36: 19 | AO36: 77300 | AP36: 19.31051711
B37: ≥ 800 | C37: 1035 | D37: 0.6542351454 | E37: 3770 | F37: 1.832498906 | G37: 3352 | H37: 1.126643161 | U37: 23526 | V37: 6.655463897 | W37: 28196 | X37: 7.77029727 | Y37: 34381 | Z37: 9.277568797 | AA37: 35207 | AB37: 9.450630275 | AC37: 35800 | AD37: 9.381551363 | AE37: 35820 | AF37: 9.468700684 | AG37: 41200 | AH37: 10.73755538 | AI37: 45500 | AJ37: 11.61603268 | AK37: 57400 | AL37: 14.5353254 | AM37: 60700 | AN37: 15 | AO37: 68500 | AP37: 17.11216588
B38: Sum leid areal | C38: 158200 | E38: 205730 | G38: 297521 | I38: 0 | K38: 0 | M38: 0 | O38: 0 | Q38: 0 | S38: 0 | U38: 353484 | W38: 362869 | Y38: 370582 | AA38: 372536 | AC38: 381600 | AE38: 378299 | AG38: 383700 | AI38: 391700 | AK38: 394900 | AM38: 395500 | AO38: 400300
B39: Totalt areal | C39: 911010 | E39: 964762 | G39: 1028026 | I39: 1031031 | K39: 1044102 | M39: 1045079 | O39: 1045188 | Q39: 1048924 | S39: 1053316 | U39: 1055206 | W39: 1055687 | Y39: 1051656 | AA39: 1037975 | AC39: 1024798 | AE39: 1011848 | AG39: 1006733 | AI39: 1000167 | AK39: 999300 | AM39: 996900 | AO39: 994400
B40: % leid areal | C40: 17.36534176 | E40: 21.32443027 | G40: 28.94099955 | I40: 0 | K40: 0 | M40: 0 | O40: 0 | Q40: 0 | S40: 0 | U40: 33.49905137 | W40: 34.37278284 | Y40: 35.23794853 | AA40: 35.89065247 | AC40: 37.23660663 | AE40: 37.38693954 | AG40: 38.11338259 | AI40: 39.1634597 | AK40: 39.51766236 | AM40: 40 | AO40: 40.25543041
A41: Buskerud | B41: < 100 | C41: 29688 | D41: 31.35084903 | E41: 23962 | F41: 22.96244478 | G41: 17842 | H41: 11.47152051 | U41: 7744 | V41: 3.801930422 | W41: 6507 | X41: 3.07087506 | Y41: 6905 | Z41: 3.149071241 | AA41: 6962 | AB41: 3.129762413 | AC41: 7800 | AD41: 3.406113537 | AE41: 7167 | AF41: 3.082275732 | AG41: 7300 | AH41: 3.114334471 | AI41: 7200 | AJ41: 3.048264183 | AK41: 6900 | AL41: 2.863070539 | AM41: 7500 | AN41: 3 | AO41: 6600 | AP41: 2.711585867
B42: 100-199 | C42: 33253 | D42: 35.11552758 | E42: 41071 | F42: 39.35775684 | G42: 45384 | H42: 29.17965962 | U42: 36170 | V42: 17.75772513 | W42: 33455 | X42: 15.78855465 | Y42: 31550 | Z42: 14.38858764 | AA42: 29898 | AB42: 13.44062577 | AC42: 30700 | AD42: 13.40611354 | AE42: 28670 | AF42: 12.32996306 | AG42: 28400 | AH42: 12.11604096 | AI42: 29800 | AJ42: 12.61642676 | AK42: 28900 | AL42: 11.99170124 | AM42: 27700 | AN42: 11 | AO42: 26400 | AP42: 10.84634347
B43: 200-299 | C43: 15796 | D43: 16.68074681 | E43: 21296 | F43: 20.40765479 | G43: 37289 | H43: 23.97497637 | U43: 40564 | V43: 19.91496716 | W43: 39591 | X43: 18.68434217 | Y43: 38874 | Z43: 17.72874662 | AA43: 36563 | AB43: 16.43687204 | AC43: 37100 | AD43: 16.20087336 | AE43: 37035 | AF43: 15.92745664 | AG43: 36700 | AH43: 15.65699659 | AI43: 33500 | AJ43: 14.18289585 | AK43: 34200 | AL43: 14.19087137 | AM43: 34100 | AN43: 14 | AO43: 33300 | AP43: 13.68118324
B44: 300-499 | C44: 12096 | D44: 12.7735068 | E44: 14361 | F44: 13.76194264 | G44: 35624 | H44: 22.904464 | U44: 49000 | V44: 24.05663619 | W44: 50964 | X44: 24.05164847 | Y44: 51160 | Z44: 23.33185875 | AA44: 50885 | AB44: 22.87531749 | AC44: 50000 | AD44: 21.83406114 | AE44: 52417 | AF44: 22.5427162 | AG44: 51500 | AH44: 21.97098976 | AI44: 53900 | AJ44: 22.81964437 | AK44: 52100 | AL44: 21.61825726 | AM44: 52200 | AN44: 21 | AO44: 53700 | AP44: 22.06244864
B45: 500-799 | C45: 3863 | D45: 4.079369773 | E45: 3163 | F45: 3.031058043 | G45: 13334 | H45: 8.573100242 | U45: 41637 | V45: 20.44175839 | W45: 44400 | X45: 20.95387316 | Y45: 47169 | Z45: 21.51173662 | AA45: 52590 | AB45: 23.6417991 | AC45: 58700 | AD45: 25.63318777 | AE45: 59503 | AF45: 25.59015667 | AG45: 55400 | AH45: 23.63481229 | AI45: 52100 | AJ45: 22.05757832 | AK45: 57500 | AL45: 23.85892116 | AM45: 58700 | AN45: 24 | AO45: 55900 | AP45: 22.9663106
B46: ≥ 800 | C46: 0 | D46: 0 | E46: 500 | F46: 0.4791429092 | G46: 6060 | H46: 3.896279246 | U46: 28571 | V46: 14.02698271 | W46: 36977 | X46: 17.45070649 | Y46: 43613 | Z46: 19.88999913 | AA46: 45547 | AB46: 20.47562319 | AC46: 44700 | AD46: 19.51965066 | AE46: 47731 | AF46: 20.52743169 | AG46: 55100 | AH46: 23.50682594 | AI46: 59700 | AJ46: 25.27519052 | AK46: 61400 | AL46: 25.47717842 | AM46: 63400 | AN46: 26 | AO46: 67500 | AP46: 27.73212818
B47: Sum leid areal | C47: 94696 | E47: 104353 | G47: 155533 | I47: 0 | K47: 0 | M47: 0 | O47: 0 | Q47: 0 | S47: 0 | U47: 203686 | W47: 211894 | Y47: 219271 | AA47: 222445 | AC47: 229000 | AE47: 232523 | AG47: 234400 | AI47: 236200 | AK47: 241000 | AM47: 243600 | AO47: 243400
B48: Totalt areal | C48: 499702 | E48: 516316 | G48: 522235 | I48: 517365 | K48: 527041 | M48: 530371 | O48: 526542 | Q48: 531389 | S48: 530506 | U48: 528852 | W48: 529366 | Y48: 528202 | AA48: 524730 | AC48: 516146 | AE48: 515342 | AG48: 511436 | AI48: 507416 | AK48: 508200 | AM48: 509300 | AO48: 505800
B49: % leid areal | C49: 18.95049449 | E49: 20.21107229 | G49: 29.78218618 | I49: 0 | K49: 0 | M49: 0 | O49: 0 | Q49: 0 | S49: 0 | U49: 38.51474515 | W49: 40.02788241 | Y49: 41.51271673 | AA49: 42.39227793 | AC49: 44.36729143 | AE49: 45.12013381 | AG49: 45.83173652 | AI49: 46.54957668 | AK49: 47.4222747 | AM49: 48 | AO49: 48.12178727
B50: < 100 | C50: 20284 | D50: 20.3325949 | E50: 14731 | F50: 13.88904603 | G50: 6295 | H50: 4.483362771 | U50: 3611 | V50: 2.075096543 | W50: 3432 | X50: 1.925385694 | Y50: 4113 | Z50: 2.258996441 | AA50: 3799 | AB50: 2.04698529 | AC50: 4500 | AD50: 2.280790674 | AE50: 4830 | AF50: 2.432697877 | AG50: 4500 | AH50: 2.208047105 | AI50: 4400 | AJ50: 2.122527738 | AK50: 3900 | AL50: 1.878612717 | AM50: 4000 | AN50: 2 | AO50: 3700 | AP50: 1.76779742
B51: 100-199 | C51: 36383 | D51: 36.47016369 | E51: 33632 | F51: 31.70975467 | G51: 25164 | H51: 17.92205572 | U51: 16438 | V51: 9.446257815 | W51: 14576 | X51: 8.177279102 | Y51: 12687 | Z51: 6.968122501 | AA51: 11729 | AB51: 6.319844819 | AC51: 12900 | AD51: 6.538266599 | AE51: 12078 | AF51: 6.083255685 | AG51: 12400 | AH51: 6.084396467 | AI51: 12200 | AJ51: 5.885190545 | AK51: 11700 | AL51: 5.63583815 | AM51: 12600 | AN51: 6 | AO51: 12600 | AP51: 6.02006689
A52: Vestfold | B52: 200-299 | C52: 21470 | D52: 21.52143623 | E52: 28026 | F52: 26.424167 | G52: 31830 | H52: 22.66964845 | U52: 20354 | V52: 11.6966256 | W52: 18029 | X52: 10.114446 | Y52: 19061 | Z52: 10.46893537 | AA52: 18795 | AB52: 10.12716202 | AC52: 18800 | AD52: 9.528636594 | AE52: 16037 | AF52: 8.077262082 | AG52: 18900 | AH52: 9.273797841 | AI52: 17200 | AJ52: 8.297153883 | AK52: 17000 | AL52: 8.188824663 | AM52: 15200 | AN52: 7 | AO52: 14500 | AP52: 6.927854754
B53: 300-499 | C53: 15263 | D53: 15.29956596 | E53: 21163 | F53: 19.95342347 | G53: 41215 | H53: 29.35374053 | U53: 44690 | V53: 25.68154652 | W53: 43013 | X53: 24.13071529 | Y53: 42995 | Z53: 23.61428446 | AA53: 44933 | AB53: 24.21089498 | AC53: 43900 | AD53: 22.25038013 | AE53: 46575 | AF53: 23.4581581 | AG53: 44300 | AH53: 21.73699706 | AI53: 43800 | AJ53: 21.12879884 | AK53: 39600 | AL53: 19.07514451 | AM53: 39100 | AN53: 19 | AO53: 37300 | AP53: 17.82130913
B54: 500-799 | C54: 6037 | D54: 6.051462997 | E54: 7000 | F54: 6.599913258 | G54: 20351 | H54: 14.49418837 | U54: 42178 | V54: 24.2380011 | W54: 43254 | X54: 24.26591865 | Y54: 47330 | Z54: 25.99521069 | AA54: 46721 | AB54: 25.17430896 | AC54: 46700 | AD54: 23.66953877 | AE54: 42853 | AF54: 21.58352011 | AG54: 42700 | AH54: 20.95191364 | AI54: 46000 | AJ54: 22.19006271 | AK54: 49900 | AL54: 24.03660886 | AM54: 49400 | AN54: 24 | AO54: 52000 | AP54: 24.8447205
B55: ≥ 800 | C55: 324 | D55: 0.3247762152 | E55: 1510 | F55: 1.423695574 | G55: 15553 | H55: 14.49418837 | U55: 46745 | V55: 26.86247242 | W55: 55946 | X55: 31.38625526 | Y55: 55886 | Z55: 30.69445055 | AA55: 59613 | AB55: 32.12080392 | AC55: 70500 | AD55: 35.73238723 | AE55: 76172 | AF55: 38.36510615 | AG55: 81000 | AH55: 39.74484789 | AI55: 83700 | AJ55: 40.37626628 | AK55: 85500 | AL55: 41.1849711 | AM55: 88600 | AN55: 42 | AO55: 89200 | AP55: 42.61825131
B56: Sum leid areal | C56: 99761 | E56: 106062 | G56: 140408 | I56: 0 | K56: 0 | M56: 0 | O56: 0 | Q56: 0 | S56: 0 | U56: 174016 | W56: 178250 | Y56: 182072 | AA56: 185590 | AC56: 197300 | AE56: 198545 | AG56: 203800 | AI56: 207300 | AK56: 207600 | AM56: 208900 | AO56: 209300
B57: Totalt areal | C57: 430492 | E57: 438626 | G57: 435667 | I57: 427950 | K57: 434760 | M57: 435515 | O57: 432491 | Q57: 428153 | S57: 423442 | U57: 422231 | W57: 419408 | Y57: 415597 | AA57: 414201 | AC57: 414253 | AE57: 412712 | AG57: 411819 | AI57: 408863 | AK57: 409600 | AM57: 408900 | AO57: 406300
B58: % leid areal | C58: 23.17371751 | E58: 24.18050914 | G58: 32.22828445 | I58: 0 | K58: 0 | M58: 0 | O58: 0 | Q58: 0 | S58: 0 | U58: 41.21345898 | W58: 42.50038149 | Y58: 43.80974839 | AA58: 44.80674841 | AC58: 47.62789889 | AE58: 48.10739693 | AG58: 49.4877604 | AI58: 50.70157975 | AK58: 50.68359375 | AM58: 51 | AO58: 51.51365986
B59: < 100 | C59: 32400 | D59: 50.86661643 | E59: 25205 | F59: 37.21723466 | G59: 20241 | H59: 18.63794993 | U59: 9967 | V59: 7.765908542 | W59: 9335 | X59: 7.174477766 | Y59: 9547 | Z59: 7.115970871 | AA59: 9722 | AB59: 7.176761525 | AC59: 10000 | AD59: 7.288629738 | AE59: 9356 | AF59: 6.903828983 | AG59: 9100 | AH59: 6.652046784 | AI59: 8700 | AJ59: 6.308919507 | AK59: 9000 | AL59: 6.465517241 | AM59: 8900 | AN59: 6 | AO59: 9100 | AP59: 6.345885635
B60: 100-199 | C60: 19490 | D60: 30.59846772 | E60: 25888 | F60: 38.22573977 | G60: 34574 | H60: 31.83580262 | U60: 28987 | V60: 22.58557148 | W60: 26736 | X60: 20.54813471 | Y60: 27412 | Z60: 20.43186273 | AA60: 28208 | AB60: 20.82309084 | AC60: 27400 | AD60: 19.97084548 | AE60: 28223 | AF60: 20.82586206 | AG60: 28200 | AH60: 20.61403509 | AI60: 25700 | AJ60: 18.63669326 | AK60: 24600 | AL60: 17.67241379 | AM60: 24600 | AN60: 17 | AO60: 23100 | AP60: 16.10878661
A61: Telemark | B61: 200-299 | C61: 6929 | D61: 10.87823411 | E61: 11659 | F61: 17.21546276 | G61: 25907 | H61: 23.85521312 | U61: 24521 | V61: 19.10583359 | W61: 27123 | X61: 20.8455662 | Y61: 27184 | Z61: 20.2619202 | AA61: 25428 | AB61: 18.77090023 | AC61: 27900 | AD61: 20.33527697 | AE61: 26303 | AF61: 19.40908655 | AG61: 22700 | AH61: 16.59356725 | AI61: 23500 | AJ61: 17.0413343 | AK61: 22000 | AL61: 15.8045977 | AM61: 21300 | AN61: 15 | AO61: 20300 | AP61: 14.15620642
B62: 300-499 | C62: 3500 | D62: 5.49485054 | E62: 4892 | F62: 7.2234363 | G62: 20254 | H62: 18.64992035 | U62: 39846 | V62: 31.0464926 | W62: 38060 | X62: 29.25127196 | Y62: 38775 | Z62: 28.90141097 | AA62: 38840 | AB62: 28.67161259 | AC62: 34400 | AD62: 25.0728863 | AE62: 32002 | AF62: 23.61440093 | AG62: 33900 | AH62: 24.78070175 | AI62: 35000 | AJ62: 25.38071066 | AK62: 34000 | AL62: 24.42528736 | AM62: 35200 | AN62: 25 | AO62: 35100 | AP62: 24.47698745
B63: 500-799 | C63: 1377 | D63: 2.161831198 | E63: 80 | F63: 0.1181265135 | G63: 7625 | H63: 7.021113986 | U63: 17490 | V63: 13.62754494 | W63: 19804 | X63: 15.22049895 | Y63: 20424 | Z63: 15.22327318 | AA63: 22966 | AB63: 16.95345661 | AC63: 26800 | AD63: 19.5335277 | AE63: 27053 | AF63: 19.96251448 | AG63: 28100 | AH63: 20.54093567 | AI63: 27700 | AJ63: 20.08701958 | AK63: 32300 | AL63: 23.20402299 | AM63: 31300 | AN63: 22 | AO63: 35200 | AP63: 24.54672245
B64: ≥ 800 | C64: 0 | D64: 0 | E64: 0 | F64: 0 | G64: 0 | H64: 0 | U64: 7532 | V64: 5.868648855 | W64: 9056 | X64: 6.960050417 | Y64: 10821 | Z64: 8.06556204 | AA64: 10301 | AB64: 7.604178201 | AC64: 10700 | AD64: 7.798833819 | AE64: 12582 | AF64: 9.284306998 | AG64: 14800 | AH64: 10.81871345 | AI64: 17300 | AJ64: 12.5453227 | AK64: 17300 | AL64: 12.42816092 | AM64: 19300 | AN64: 14 | AO64: 20600 | AP64: 14.36541144
B65: Sum leid areal | C65: 63696 | E65: 67724 | G65: 108601 | I65: 0 | K65: 0 | M65: 0 | O65: 0 | Q65: 0 | S65: 0 | U65: 128343 | W65: 130114 | Y65: 134163 | AA65: 135465 | AC65: 137200 | AE65: 135519 | AG65: 136800 | AI65: 137900 | AK65: 139200 | AM65: 140600 | AO65: 143400
B66: Totalt areal | C66: 261223 | E66: 257475 | G66: 261890 | I66: 257911 | K66: 263308 | M66: 264321 | O66: 258816 | Q66: 260383 | S66: 259067 | U66: 257543 | W66: 256614 | Y66: 256294 | AA66: 254538 | AC66: 252148 | AE66: 246047 | AG66: 244162 | AI66: 243634 | AK66: 244700 | AM66: 244100 | AO66: 241500
B67: % leid areal | C67: 24.38376406 | E67: 26.30313623 | G67: 41.46817366 | I67: 0 | K67: 0 | M67: 0 | O67: 0 | Q67: 0 | S67: 0 | U67: 49.83362002 | W67: 50.70417047 | Y67: 52.34730427 | AA67: 53.21995144 | AC67: 54.4124879 | AE67: 55.07850126 | AG67: 56.0283746 | AI67: 56.60129539 | AK67: 56.88598284 | AM67: 58 | AO67: 59.37888199
A68: Aust-Agder | B68: < 100 | C68: 20020 | D68: 54.12712575 | E68: 15362 | F68: 38.44055752 | G68: 12450 | H68: 21.56329563 | U68: 4899 | V68: 7.659354919 | W68: 4064 | X68: 6.285961765 | Y68: 3708 | Z68: 5.758389887 | AA68: 3611 | AB68: 5.465415468 | AC68: 4500 | AD68: 6.859756098 | AE68: 4749 | AF68: 7.232163253 | AG68: 4600 | AH68: 6.938159879 | AI68: 4500 | AJ68: 6.807866868 | AK68: 5400 | AL68: 7.976366322 | AM68: 5200 | AN68: 8 | AO68: 5200 | AP68: 7.602339181
B69: 100-199 | C69: 11149 | D69: 30.14302322 | E69: 16903 | F69: 42.29662438 | G69: 23962 | H69: 41.50198313 | U69: 18142 | V69: 28.36415941 | W69: 16663 | X69: 25.77337128 | Y69: 15447 | Z69: 23.9886323 | AA69: 15002 | AB69: 22.70622068 | AC69: 14300 | AD69: 21.79878049 | AE69: 14696 | AF69: 22.38026346 | AG69: 14300 | AH69: 21.56862745 | AI69: 15100 | AJ69: 22.84417549 | AK69: 14900 | AL69: 22.00886263 | AM69: 14900 | AN69: 22 | AO69: 14500 | AP69: 21.19883041
B70: 200-299 | C70: 3080 | D70: 8.327250115 | E70: 6028 | F70: 15.08395266 | G70: 11317 | H70: 19.60094913 | U70: 17140 | V70: 26.79757978 | W70: 16861 | X70: 26.07962631 | Y70: 15250 | Z70: 23.68269843 | AA70: 16811 | AB70: 25.44422582 | AC70: 15900 | AD70: 24.23780488 | AE70: 15192 | AF70: 23.13561258 | AG70: 16300 | AH70: 24.5852187 | AI70: 16000 | AJ70: 24.20574887 | AK70: 14000 | AL70: 20.67946824 | AM70: 14300 | AN70: 21 | AO70: 14900 | AP70: 21.78362573
B71: 300-499 | C71: 2394 | D71: 6.472544407 | E71: 1404 | F71: 3.513249756 | G71: 6973 | H71: 12.07717755 | U71: 16941 | V71: 26.48645268 | W71: 19430 | X71: 30.05320794 | Y71: 20606 | Z71: 32.00037271 | AA71: 19271 | AB71: 29.16754957 | AC71: 18900 | AD71: 28.81097561 | AE71: 17854 | AF71: 27.18952258 | AG71: 17100 | AH71: 25.7918552 | AI71: 15900 | AJ71: 24.05446293 | AK71: 20300 | AL71: 29.98522895 | AM71: 20200 | AN71: 30 | AO71: 19500 | AP71: 28.50877193
B72: 500-799 | C72: 344 | D72: 0.9300565063 | E72: 266 | F72: 0.6656156945 | G72: 2175 | H72: 3.767081767 | U72: 5758 | V72: 9.002360814 | W72: 6429 | X72: 9.944007919 | Y72: 8197 | Z72: 12.72964453 | AA72: 9541 | AB72: 14.44074466 | AC72: 10000 | AD72: 15.24390244 | AE72: 10955 | AF72: 16.68316455 | AG72: 14000 | AH72: 21.11613876 | AI72: 13400 | AJ72: 20.27231467 | AK72: 11800 | AL72: 17.42983752 | AM72: 11800 | AN72: 17 | AO72: 11900 | AP72: 17.39766082
B73: ≥ 800 | C73: 0 | D73: 0 | E73: 0 | F73: 0 | G73: 860 | H73: 1.489512791 | U73: 1081 | V73: 1.6900924 | W73: 1205 | X73: 1.863824785 | Y73: 1185 | Z73: 1.84026214 | AA73: 1834 | AB73: 2.775843802 | AC73: 2000 | AD73: 3.048780488 | AE73: 2219 | AF73: 3.379273586 | AH73: 0 | AI73: 1200 | AJ73: 1.815431165 | AK73: 1300 | AL73: 1.920236337 | AM73: 1800 | AN73: 3 | AO73: 2400 | AP73: 3.50877193
B74: Sum leid areal | C74: 36987 | E74: 39963 | G74: 57737 | I74: 0 | K74: 0 | M74: 0 | O74: 0 | Q74: 0 | S74: 0 | U74: 63961 | W74: 64652 | Y74: 64393 | AA74: 66070 | AC74: 65600 | AE74: 65665 | AG74: 66300 | AI74: 66100 | AK74: 67700 | AM74: 68200 | AO74: 68400
B75: Totalt areal | C75: 115487 | E75: 114109 | G75: 120369 | I75: 117107 | K75: 118571 | M75: 118453 | O75: 116097 | Q75: 115580 | S75: 114050 | U75: 113498 | W75: 113221 | Y75: 112112 | AA75: 112132 | AC75: 111273 | AE75: 110942 | AG75: 110513 | AI75: 109992 | AK75: 111400 | AM75: 112000 | AO75: 110400
B76: % leid areal | C76: 32.02698139 | E76: 35.02177742 | G76: 47.96666916 | I76: 0 | K76: 0 | M76: 0 | O76: 0 | Q76: 0 | S76: 0 | U76: 56.35429699 | W76: 57.10248099 | Y76: 57.43631369 | AA76: 58.92162808 | AC76: 58.95410387 | AE76: 59.18858503 | AG76: 59.99294201 | AI76: 60.09527966 | AK76: 60.77199282 | AM76: 61 | AO76: 61.95652174
A77: Vest-Agder | B77: < 100 | C77: 30088 | D77: 52.23157712 | E77: 22416 | F77: 32.43947266 | G77: 17329 | H77: 18.7766822 | U77: 8990 | V77: 8.818567056 | W77: 8356 | X77: 8.157925567 | Y77: 8086 | Z77: 7.770068995 | AA77: 8122 | AB77: 7.757698479 | AC77: 9000 | AD77: 8.604206501 | AE77: 8226 | AF77: 7.865523077 | AG77: 8500 | AH77: 8.325171401 | AI77: 8400 | AJ77: 8.219178082 | AK77: 7700 | AL77: 7.425265188 | AM77: 8800 | AN77: 8 | AO77: 8700 | AP77: 8.317399618
B78: 100-199 | C78: 19173 | D78: 33.28356913 | E78: 31433 | F78: 45.48848787 | G78: 34928 | H78: 37.84592047 | U78: 22812 | V78: 22.37699129 | W78: 22474 | X78: 21.94126606 | Y78: 22907 | Z78: 22.01199239 | AA78: 21363 | AB78: 20.40479101 | AC78: 22600 | AD78: 21.60611855 | AE78: 22747 | AF78: 21.75018885 | AG78: 21700 | AH78: 21.25367287 | AI78: 20600 | AJ78: 20.15655577 | AK78: 21900 | AL78: 21.11861138 | AM78: 20300 | AN78: 19 | AO78: 20300 | AP78: 19.40726577
B79: 200-299 | C79: 5028 | D79: 8.728408992 | E79: 11543 | F79: 16.70453394 | G79: 23603 | H79: 25.57481851 | U79: 27728 | V79: 27.19924665 | W79: 27703 | X79: 27.04631546 | Y79: 26295 | Z79: 25.26761863 | AA79: 27361 | AB79: 26.13375869 | AC79: 25100 | AD79: 23.99617591 | AE79: 23178 | AF79: 22.16230171 | AG79: 24200 | AH79: 23.70225269 | AI79: 22800 | AJ79: 22.30919765 | AK79: 22100 | AL79: 21.31147541 | AM79: 20900 | AN79: 20 | AO79: 20200 | AP79: 19.31166348
B80: 300-499 | C80: 2566 | D80: 4.454474438 | E80: 3084 | F80: 4.463032373 | G80: 14906 | H80: 16.15126233 | U80: 31560 | V80: 30.95817311 | W80: 33166 | X80: 32.37981802 | Y80: 33544 | Z80: 32.23339035 | AA80: 33831 | AB80: 32.31355544 | AC80: 33600 | AD80: 32.12237094 | AE80: 34927 | AF80: 33.3964411 | AG80: 33400 | AH80: 32.71302644 | AI80: 35200 | AJ80: 34.44227006 | AK80: 32400 | AL80: 31.243973 | AM80: 32200 | AN80: 31 | AO80: 33800 | AP80: 32.31357553
B81: 500-799 | C81: 750 | D81: 1.301970315 | E81: 625 | F81: 0.9044731625 | G81: 1524 | H81: 1.651316502 | U81: 9132 | V81: 8.957859217 | W81: 8931 | X81: 8.719295505 | Y81: 11048 | Z81: 10.61633963 | AA81: 12514 | AB81: 11.95270115 | AC81: 12900 | AD81: 12.33269598 | AE81: 14116 | AF81: 13.49741354 | AG81: 12500 | AH81: 12.24289912 | AI81: 13000 | AJ81: 12.72015656 | AK81: 15200 | AL81: 14.65766635 | AM81: 19400 | AN81: 19 | AO81: 19200 | AP81: 18.35564054
B82: ≥ 800 | C82: 0 | D82: 0 | E82: 0 | F82: 0 | G82: 0 | H82: 1.651316502 | U82: 1722 | V82: 1.689162678 | W82: 1798 | X82: 1.755379388 | Y82: 2186 | Z82: 2.10059001 | AA82: 1505 | AB82: 1.437495224 | AC82: 1400 | AD82: 1.338432122 | AE82: 1389 | AF82: 1.328131723 | AG82: 1800 | AH82: 1.762977473 | AI82: 2200 | AJ82: 2.152641879 | AK82: 4400 | AL82: 4.243008679 | AM82: 2700 | AN82: 3 | AO82: 2400 | AP82: 2.294455067
B83: Sum leid areal | C83: 57605 | E83: 69101 | G83: 92290 | I83: 0 | K83: 0 | M83: 0 | O83: 0 | Q83: 0 | S83: 0 | U83: 101944 | W83: 102428 | Y83: 104066 | AA83: 104696 | AC83: 104600 | AE83: 104583 | AG83: 102100 | AI83: 102200 | AK83: 103700 | AM83: 104300 | AO83: 104600
B84: Totalt areal | C84: 176301 | E84: 186923 | G84: 202760 | I84: 199422 | K84: 203992 | M84: 201302 | O84: 199490 | Q84: 197107 | S84: 195256 | U84: 196310 | W84: 194307 | Y84: 194899 | AA84: 193201 | AC84: 189033 | AE84: 189027 | AG84: 183005 | AI84: 182656 | AK84: 182600 | AM84: 183300 | AO84: 183900
B85: % leid areal | C85: 32.67423327 | E85: 36.96762838 | G85: 45.51686723 | I85: 0 | K85: 0 | M85: 0 | O85: 0 | Q85: 0 | S85: 0 | U85: 51.93011054 | W85: 52.71451878 | Y85: 53.39483527 | AA85: 54.1901957 | AC85: 55.33425381 | AE85: 55.32701678 | AG85: 55.79082539 | AI85: 55.95217239 | AK85: 56.79079956 | AM85: 57 | AO85: 56.87873844
A86: Rogaland | B86: < 100 | C86: 42736 | D86: 35.09048511 | E86: 30003 | F86: 20.2962963 | G86: 19882 | H86: 8.940672821 | U86: 12905 | V86: 4.009681649 | W86: 11851 | X86: 3.567848122 | Y86: 11732 | Z86: 3.493288551 | AA86: 11257 | AB86: 3.23155713 | AC86: 13400 | AD86: 4.06430088 | AE86: 13482 | AF86: 4.024898124 | AG86: 14300 | AH86: 4.234527687 | AI86: 13400 | AJ86: 3.913551402 | AK86: 12500 | AL86: 3.753753754 | AM86: 12400 | AN86: 4 | AO86: 12100 | AP86: 3.556731335
B87: 100-199 | C87: 47874 | D87: 39.30929156 | E87: 67132 | F87: 45.41315745 | G87: 69986 | H87: 31.47177991 | U87: 53800 | V87: 16.71606918 | W87: 52823 | X87: 15.90283025 | Y87: 50577 | Z87: 15.05967056 | AA87: 50473 | AB87: 14.48932957 | AC87: 51900 | AD87: 15.74158326 | AE87: 48887 | AF87: 14.59465914 | AG87: 48400 | AH87: 14.33224756 | AI87: 47400 | AJ87: 13.84345794 | AK87: 45100 | AL87: 13.54354354 | AM87: 42300 | AN87: 13 | AO87: 40500 | AP87: 11.9047619
B88: 200-299 | C88: 17401 | D88: 14.28794298 | E88: 29177 | F88: 19.73752748 | G88: 72282 | H88: 32.50426078 | U88: 77000 | V88: 23.92448562 | W88: 75005 | X88: 22.58091709 | Y88: 73871 | Z88: 21.99562892 | AA88: 71333 | AB88: 20.47762856 | AC88: 70300 | AD88: 21.32241432 | AE88: 71236 | AF88: 21.26669951 | AG88: 66500 | AH88: 19.69203435 | AI88: 64000 | AJ88: 18.69158879 | AK88: 56800 | AL88: 17.05705706 | AM88: 56000 | AN88: 17 | AO88: 57300 | AP88: 16.84303351
B89: 300-499 | C89: 9345 | D89: 7.67316977 | E89: 17195 | F89: 11.63199729 | G89: 48630 | H89: 21.86826875 | U89: 97026 | V89: 30.14671613 | W89: 97066 | X89: 29.2225758 | Y89: 98535 | Z89: 29.33951477 | AA89: 100258 | AB89: 28.78115437 | AC89: 98600 | AD89: 29.90597513 | AE89: 102885 | AF89: 30.71514934 | AG89: 101600 | AH89: 30.08587504 | AI89: 102300 | AJ89: 29.87733645 | AK89: 98200 | AL89: 29.48948949 | AM89: 100300 | AN89: 30 | AO89: 98300 | AP89: 28.89476778
B90: 500-799 | C90: 1197 | D90: 0.9828554537 | E90: 2188 | F90: 1.48012853 | G90: 9282 | H90: 4.173992814 | U90: 55055 | V90: 17.10600722 | W90: 62243 | X90: 18.73880437 | Y90: 58732 | Z90: 17.48788128 | AA90: 68185 | AB90: 19.57392937 | AC90: 56600 | AD90: 17.16712163 | AE90: 56116 | AF90: 16.75279507 | AG90: 63800 | AH90: 18.89250814 | AI90: 67100 | AJ90: 19.59696262 | AK90: 70200 | AL90: 21.08108108 | AM90: 71800 | AN90: 22 | AO90: 76300 | AP90: 22.42798354
B91: ≥ 800 | C91: 3235 | D91: 2.656255132 | E91: 2130 | F91: 1.440892948 | G91: 2315 | H91: 1.041024926 | U91: 26060 | V91: 8.097040199 | W91: 33173 | X91: 9.987024365 | Y91: 42397 | Z91: 12.62401591 | AA91: 46840 | AB91: 13.44640099 | AC91: 38900 | AD91: 11.79860479 | AE91: 42359 | AF91: 12.64579881 | AG91: 43100 | AH91: 12.76280723 | AI91: 48200 | AJ91: 14.0771028 | AK91: 50200 | AL91: 15.07507508 | AM91: 49000 | AN91: 15 | AO91: 55700 | AP91: 16.37272193
B92: Sum leid areal | C92: 121788 | E92: 147825 | G92: 222377 | I92: 0 | K92: 0 | M92: 0 | O92: 0 | Q92: 0 | S92: 0 | U92: 321846 | W92: 332161 | Y92: 335844 | AA92: 348346 | AC92: 329700 | AE92: 334965 | AG92: 337700 | AI92: 342400 | AK92: 333000 | AM92: 331800 | AO92: 340200
B93: Totalt areal | C93: 751895 | E93: 847166 | G93: 968265 | I93: 967642 | K93: 983882 | M93: 1009655 | O93: 1007941 | Q93: 1009626 | S93: 1007170 | U93: 1010296 | W93: 1014354 | Y93: 1007172 | AA93: 1002681 | AC93: 1000876 | AE93: 1005999 | AG93: 1003125 | AI93: 1000124 | AK93: 999300 | AM93: 1000500 | AO93: 997100
B94: % leid areal | C94: 16.19747438 | E94: 17.44935467 | G94: 22.96654325 | I94: 0 | K94: 0 | M94: 0 | O94: 0 | Q94: 0 | S94: 0 | U94: 31.8566044 | W94: 32.74606301 | Y94: 33.34524788 | AA94: 34.74145815 | AC94: 32.94114356 | AE94: 33.29675278 | AG94: 33.66479751 | AI94: 34.23575477 | AK94: 33.32332633 | AM94: 33 | AO94: 34.11894494
A95: Hordaland | B95: < 100 | C95: 46850 | D95: 55.7751375 | E95: 40694 | F95: 37.77020818 | G95: 40224 | H95: 27.0777516 | U95: 26300 | V95: 15.16374539 | W95: 24462 | X95: 13.89625809 | Y95: 24464 | Z95: 13.98038723 | AA95: 23701 | AB95: 13.38457281 | AC95: 23900 | AD95: 13.54875283 | AE95: 23300 | AF95: 13.02723979 | AG95: 25500 | AH95: 14.07284768 | AI95: 26100 | AJ95: 14.36433682 | AK95: 23600 | AL95: 13.11111111 | AM95: 23800 | AN95: 13 | AO95: 24300 | AP95: 13.14223905
B96: 100-199 | C96: 29576 | D96: 35.21036215 | E96: 52981 | F96: 49.174409 | G96: 71089 | H96: 47.85526759 | U96: 57771 | V96: 33.30892528 | W96: 56845 | X96: 32.29224066 | Y96: 54205 | Z96: 30.97640981 | AA96: 51593 | AB96: 29.13591263 | AC96: 51700 | AD96: 29.30839002 | AE96: 49940 | AF96: 27.92190365 | AG96: 49600 | AH96: 27.37306843 | AI96: 49000 | AJ96: 26.96752889 | AK96: 47900 | AL96: 26.61111111 | AM96: 47400 | AN96: 26 | AO96: 45300 | AP96: 24.49972958
B97: 200-299 | C97: 4510 | D97: 5.369175457 | E97: 11287 | F97: 10.47604904 | G97: 26596 | H97: 17.90373612 | U97: 41657 | V97: 24.01810424 | W97: 42486 | X97: 24.13524737 | Y97: 43553 | Z97: 24.88913525 | AA97: 44868 | AB97: 25.33812974 | AC97: 43200 | AD97: 24.48979592 | AE97: 44968 | AF97: 25.14201369 | AG97: 46500 | AH97: 25.66225166 | AI97: 43500 | AJ97: 23.94056136 | AK97: 41800 | AL97: 23.22222222 | AM97: 42200 | AN97: 23 | AO97: 42300 | AP97: 22.87723094
B98: 300-499 | C98: 2932 | D98: 3.490559299 | E98: 2495 | F98: 2.31573867 | G98: 9928 | H98: 6.683271626 | U98: 34169 | V98: 19.70076107 | W98: 37474 | X98: 21.28805394 | Y98: 34650 | Z98: 19.80135781 | AA98: 37467 | AB98: 21.15859202 | AC98: 38600 | AD98: 21.88208617 | AE98: 38893 | AF98: 21.74542649 | AG98: 37600 | AH98: 20.75055188 | AI98: 41900 | AJ98: 23.05998899 | AK98: 42600 | AL98: 23.66666667 | AM98: 45500 | AN98: 25 | AO98: 44400 | AP98: 24.01297999
B99: 500-799 | C99: 130 | D99: 0.1547655897 | E99: 284 | F99: 0.2635951031 | G99: 463 | H99: 0.3116795692 | U99: 11381 | V99: 6.561923432 | W99: 12791 | X99: 7.266251214 | Y99: 14628 | Z99: 8.359430361 | AA99: 15949 | AB99: 9.006816244 | AC99: 15500 | AD99: 8.786848073 | AE99: 17563 | AF99: 9.819631435 | AG99: 17200 | AH99: 9.492273731 | AI99: 17500 | AJ99: 9.631260319 | AK99: 20100 | AL99: 11.16666667 | AM99: 19800 | AN99: 11 | AO99: 22100 | AP99: 11.95240671
B100: ≥ 800 | C100: 0 | D100: 0 | E100: 0 | F100: 0 | G100: 250 | H100: 0.3116795692 | U100: 2162 | V100: 1.24654059 | W100: 1975 | X100: 1.121948726 | Y100: 3488 | Z100: 1.993279539 | AA100: 3499 | AB100: 1.975976553 | AC100: 3500 | AD100: 1.984126984 | AE100: 4192 | AF100: 2.343784944 | AG100: 4800 | AH100: 2.649006623 | AI100: 3700 | AJ100: 2.03632361 | AK100: 4000 | AL100: 2.222222222 | AM100: 4300 | AN100: 2 | AO100: 6500 | AP100: 3.515413737
B101: Sum leid areal | C101: 83998 | E101: 107741 | G101: 148550 | I101: 0 | K101: 0 | M101: 0 | O101: 0 | Q101: 0 | S101: 0 | U101: 173440 | W101: 176033 | Y101: 174988 | AA101: 177077 | AC101: 176400 | AE101: 178856 | AG101: 181200 | AI101: 181700 | AK101: 180000 | AM101: 183000 | AO101: 184900
B102: Totalt areal | C102: 476120 | E102: 464969 | G102: 471132 | I102: 465570 | K102: 473451 | M102: 446940 | O102: 441661 | Q102: 436555 | S102: 431742 | U102: 427539 | W102: 423386 | Y102: 423330 | AA102: 420938 | AC102: 416097 | AE102: 415729 | AG102: 408508 | AI102: 402449 | AK102: 399400 | AM102: 402000 | AO102: 401400
B103: % leid areal | C103: 17.64219104 | E103: 23.1716523 | G103: 31.53044157 | I103: 0 | K103: 0 | M103: 0 | O103: 0 | Q103: 0 | S103: 0 | U103: 40.56705938 | W103: 41.5774258 | Y103: 41.33607351 | AA103: 42.06724031 | AC103: 42.39396102 | AE103: 43.02225729 | AG103: 44.35653647 | AI103: 45.14857783 | AK103: 45.0676014 | AM103: 46 | AO103: 46.06377678
A104: Sogn og Fjordane | B104: < 100 | C104: 47847 | D104: 66.63370749 | E104: 34721 | F104: 45.28924542 | G104: 29521 | H104: 25.69590725 | U104: 17864 | V104: 11.49838119 | W104: 15879 | X104: 10.00390605 | Y104: 16114 | Z104: 9.84770705 | AA104: 15845 | AB104: 9.730888277 | AC104: 16900 | AD104: 10.01184834 | AE104: 16012 | AF104: 9.421151108 | AG104: 16200 | AH104: 9.619952494 | AI104: 16600 | AJ104: 9.567723343 | AK104: 16300 | AL104: 9.438332368 | AM104: 15600 | AN104: 9 | AO104: 15100 | AP104: 8.643388666
B105: 100-199 | C105: 20290 | D105: 28.25669164 | E105: 35928 | F105: 46.86362747 | G105: 64798 | H105: 56.4019985 | U105: 62875 | V105: 40.47025959 | W105: 60274 | X105: 37.97313643 | Y105: 58663 | Z105: 35.85056713 | AA105: 55825 | AB105: 34.28380171 | AC105: 58200 | AD105: 34.47867299 | AE105: 56624 | AF105: 33.31646642 | AG105: 56700 | AH105: 33.66983373 | AI105: 54900 | AJ105: 31.6426513 | AK105: 50800 | AL105: 29.41517082 | AM105: 51700 | AN105: 29 | AO105: 50400 | AP105: 28.84945621
B106: 200-299 | C106: 1742 | D106: 2.425981116 | E106: 4807 | F106: 6.270136307 | G106: 16827 | H106: 14.64669324 | U106: 49292 | V106: 31.72739619 | W106: 51992 | X106: 32.75540547 | Y106: 50475 | Z106: 30.84665591 | AA106: 48920 | AB106: 30.04323475 | AC106: 50800 | AD106: 30.09478673 | AE106: 53053 | AF106: 31.21535909 | AG106: 49400 | AH106: 29.33491686 | AI106: 52400 | AJ106: 30.20172911 | AK106: 51300 | AL106: 29.70469021 | AM106: 49200 | AN106: 28 | AO106: 49900 | AP106: 28.56325129
B107: 300-499 | C107: 1427 | D107: 1.987299111 | E107: 624 | F107: 0.8139307376 | G107: 3740 | H107: 3.255401006 | U107: 22960 | V107: 14.77848366 | W107: 26584 | X107: 16.74814777 | Y107: 32531 | Z107: 19.8805857 | AA107: 36875 | AB107: 22.64604009 | AC107: 35500 | AD107: 21.03080569 | AE107: 36491 | AF107: 21.47059862 | AG107: 36600 | AH107: 21.73396675 | AI107: 38300 | AJ107: 22.07492795 | AK107: 40600 | AL107: 23.5089751 | AM107: 41500 | AN107: 24 | AO107: 40700 | AP107: 23.29708071
B108: 500-799 | C108: 500 | D108: 0.6963206417 | E108: 585 | F108: 0.7630600665 | G108: 0 | H108: 0 | U108: 2370 | V108: 1.525479367 | W108: 3574 | X108: 2.251650622 | Y108: 4458 | Z108: 2.724405984 | AA108: 3942 | AB108: 2.420900069 | AC108: 5800 | AD108: 3.436018957 | AE108: 6105 | AF108: 3.592063922 | AG108: 6200 | AH108: 3.681710214 | AI108: 8400 | AJ108: 4.841498559 | AK108: 10700 | AL108: 6.195715113 | AM108: 13600 | AN108: 8 | AO108: 14200 | AP108: 8.128219805
B109: ≥ 800 | C109: 0 | D109: 0 | E109: 0 | F109: 0 | G109: 0 | H109: 0 | U109: 0 | V109: 0 | W109: 425 | X109: 0.2677536414 | Y109: 1391 | Z109: 0.8500782243 | AA109: 1425 | AB109: 0.8751351086 | AC109: 1600 | AD109: 0.9478672986 | AE109: 1673 | AF109: 0.9843608421 | AG109: 3300 | AH109: 1.959619952 | AI109: 2900 | AJ109: 1.671469741 | AK109: 3000 | AL109: 1.737116387 | AM109: 3700 | AN109: 2 | AO109: 4400 | AP109: 2.51860332
B110: Sum leid areal | C110: 71806 | E110: 76665 | G110: 114886 | I110: 0 | K110: 0 | M110: 0 | O110: 0 | Q110: 0 | S110: 0 | U110: 155361 | W110: 158728 | Y110: 163632 | AA110: 162832 | AC110: 168800 | AE110: 169958 | AG110: 168400 | AI110: 173500 | AK110: 172700 | AM110: 175300 | AO110: 174700
B111: Totalt areal | C111: 448323 | E111: 456828 | G111: 476685 | I111: 474765 | K111: 482315 | M111: 480192 | O111: 477329 | Q111: 475094 | S111: 467198 | U111: 464179 | W111: 463292 | Y111: 462093 | AA111: 452556 | AC111: 448272 | AE111: 441158 | AG111: 432030 | AI111: 430572 | AK111: 428800 | AM111: 429000 | AO111: 426000
B112: % leid areal | C112: 16.01657733 | E112: 16.78202737 | G112: 24.10103108 | I112: 0 | K112: 0 | M112: 0 | O112: 0 | Q112: 0 | S112: 0 | U112: 33.4700622 | W112: 34.26089809 | Y112: 35.41105362 | AA112: 35.98051954 | AC112: 37.65570903 | AE112: 38.52542626 | AG112: 38.97877462 | AI112: 40.29523518 | AK112: 40.27518657 | AM112: 41 | AO112: 41.00938967
A113: Møre og Romsdal | B113: < 100 | C113: 53093 | D113: 47.81430115 | E113: 39901 | F113: 25.5805157 | G113: 27114 | H113: 11.99633659 | U113: 15221 | V113: 5.570764557 | W113: 13630 | X113: 4.966531481 | Y113: 13232 | Z113: 4.787923086 | AA113: 13694 | AB113: 4.990979499 | AC113: 13900 | AD113: 5.153874676 | AE113: 14794 | AF113: 5.495154502 | AG113: 15100 | AH113: 5.576070901 | AI113: 14400 | AJ113: 5.259313367 | AK113: 14100 | AL113: 5.183823529 | AM113: 14100 | AN113: 5 | AO113: 14300 | AP113: 5.153153153
B114: 100-199 | C114: 43684 | D114: 39.3407781 | E114: 83654 | F114: 53.63054711 | G114: 89657 | H114: 39.66790403 | U114: 65842 | V114: 24.09764667 | W114: 61720 | X114: 22.48967887 | Y114: 56525 | Z114: 20.4532461 | AA114: 56471 | AB114: 20.58168565 | AC114: 54900 | AD114: 20.35595106 | AE114: 52506 | AF114: 19.50308113 | AG114: 49600 | AH114: 18.31610044 | AI114: 47600 | AJ114: 17.38495252 | AK114: 44400 | AL114: 16.32352941 | AM114: 46000 | AN114: 17 | AO114: 44900 | AP114: 16.18018018
B115: 200-299 | C115: 11129 | D115: 10.02251441 | E115: 25298 | F115: 16.21853804 | G115: 72727 | H115: 32.17738332 | U115: 91191 | V115: 33.37517842 | W115: 85580 | X115: 31.18384183 | Y115: 84565 | Z115: 30.59935881 | AA115: 80303 | AB115: 29.2676082 | AC115: 73400 | AD115: 27.21542455 | AE115: 70615 | AF115: 26.22957518 | AG115: 67800 | AH115: 25.03692762 | AI115: 66600 | AJ115: 24.32432432 | AK115: 67400 | AL115: 24.77941176 | AM115: 61300 | AN115: 22 | AO115: 57500 | AP115: 20.72072072
B116: 300-499 | C116: 3134 | D116: 2.82240634 | E116: 5783 | F116: 3.707479068 | G116: 30177 | H116: 13.35153239 | U116: 74397 | V116: 27.22870841 | W116: 81053 | X116: 29.53428291 | Y116: 87986 | Z116: 31.83722798 | AA116: 88134 | AB116: 32.12173121 | AC116: 91300 | AD116: 33.85242862 | AE116: 86309 | AF116: 32.05903001 | AG116: 89800 | AH116: 33.16100443 | AI116: 92000 | AJ116: 33.60116874 | AK116: 90500 | AL116: 33.27205882 | AM116: 88400 | AN116: 32 | AO116: 87700 | AP116: 31.6036036
B117: 500-799 | C117: 0 | D117: 0 | E117: 1096 | F117: 0.702645177 | G117: 4820 | H117: 2.132564076 | U117: 21800 | V117: 7.978626066 | W117: 27259 | X117: 9.932698579 | Y117: 26620 | Z117: 9.632293875 | AA117: 26207 | AB117: 9.551526196 | AC117: 26700 | AD117: 9.899888765 | AE117: 35521 | AF117: 13.19409106 | AG117: 35600 | AH117: 13.14623338 | AI117: 40300 | AJ117: 14.71877283 | AK117: 39600 | AL117: 14.55882353 | AM117: 46200 | AN117: 17 | AO117: 46200 | AP117: 16.64864865
B118: ≥ 800 | C118: 0 | D118: 0 | E118: 250 | F118: 0.1602749035 | G118: 1524 | H118: 2.132564076 | U118: 4779 | V118: 1.74907587 | W118: 5195 | X118: 1.892966327 | Y118: 7434 | Z118: 2.689950138 | AA118: 9566 | AB118: 3.486469248 | AC118: 9500 | AD118: 3.522432332 | AE118: 9474 | AF118: 3.519068119 | AG118: 12900 | AH118: 4.76366322 | AI118: 12900 | AJ118: 4.711468225 | AK118: 16000 | AL118: 5.882352941 | AM118: 20500 | AN118: 7 | AO118: 26900 | AP118: 9.693693694
B119: Sum leid areal | C119: 111040 | E119: 155982 | G119: 226019 | I119: 0 | K119: 0 | M119: 0 | O119: 0 | Q119: 0 | S119: 0 | U119: 273230 | W119: 274437 | Y119: 276362 | AA119: 274375 | AC119: 269700 | AE119: 269219 | AG119: 270800 | AI119: 273800 | AK119: 272000 | AM119: 276500 | AO119: 277500
B120: Totalt areal | C120: 566007 | E120: 592514 | G120: 615800 | I120: 611419 | K120: 617707 | M120: 615103 | O120: 609487 | Q120: 605044 | S120: 598930 | U120: 599311 | W120: 592710 | Y120: 586332 | AA120: 570215 | AC120: 568981 | AE120: 555262 | AG120: 550266 | AI120: 544014 | AK120: 540000 | AM120: 536700 | AO120: 536600
B121: % leid areal | C121: 19.61813193 | E121: 26.32545391 | G121: 36.70331276 | I121: 0 | K121: 0 | M121: 0 | O121: 0 | Q121: 0 | S121: 0 | U121: 45.59068664 | W121: 46.30207015 | Y121: 47.13404692 | AA121: 48.11781521 | AC121: 47.40052831 | AE121: 48.48503949 | AG121: 49.21256265 | AI121: 50.32958711 | AK121: 50.37037037 | AM121: 52 | AO121: 51.7144987
A122: Sør-Trøndelag | B122: < 100 | C122: 31355 | D122: 24.87860226 | E122: 23705 | F122: 14.07844255 | G122: 15180 | H122: 6.240159827 | U122: 7965 | V122: 2.722378877 | W122: 7519 | X122: 2.546879657 | Y122: 7507 | Z122: 2.49938406 | AA122: 7392 | AB122: 2.435039266 | AC122: 9900 | AD122: 3.252299606 | AE122: 9223 | AF122: 2.966863643 | AG122: 9300 | AH122: 2.930980145 | AI122: 8900 | AJ122: 2.767412935 | AK122: 8900 | AL122: 2.748610253 | AM122: 8700 | AN122: 3 | AO122: 8100 | AP122: 2.484662577
B123: 100-199 | C123: 53734 | D123: 42.63520376 | E123: 74806 | F123: 44.42741926 | G123: 72621 | H123: 29.85287528 | U123: 46433 | V123: 15.87046057 | W123: 43376 | X123: 14.69257242 | Y123: 40803 | Z123: 13.58496974 | AA123: 37636 | AB123: 12.3978812 | AC123: 37700 | AD123: 12.38501971 | AE123: 35705 | AF123: 11.48561925 | AG123: 35700 | AH123: 11.25118185 | AI123: 34900 | AJ123: 10.85199005 | AK123: 34000 | AL123: 10.50030883 | AM123: 32400 | AN123: 10 | AO123: 32800 | AP123: 10.06134969
B124: 200-299 | C124: 22737 | D124: 18.04065634 | E124: 43094 | F124: 25.59360487 | G124: 88192 | H124: 36.2537665 | U124: 75886 | V124: 25.93728104 | W124: 70667 | X124: 23.93673956 | Y124: 67382 | Z124: 22.43419432 | AA124: 64151 | AB124: 21.13233279 | AC124: 60200 | AD124: 19.77660972 | AE124: 58826 | AF124: 18.9232051 | AG124: 55300 | AH124: 17.42830129 | AI124: 54000 | AJ124: 16.79104478 | AK124: 53300 | AL124: 16.46077826 | AM124: 54000 | AN124: 17 | AO124: 48500 | AP124: 14.87730061
B125: 300-499 | C125: 10472 | D125: 8.309000889 | E125: 16508 | F125: 9.804131181 | G125: 51923 | H125: 21.34438858 | U125: 100362 | V125: 34.30299923 | W125: 106543 | X125: 36.08886811 | Y125: 106269 | Z125: 35.38125012 | AA125: 106555 | AB125: 35.10086702 | AC125: 103100 | AD125: 33.86990802 | AE125: 102528 | AF125: 32.98130712 | AG125: 100700 | AH125: 31.73652695 | AI125: 99300 | AJ125: 30.87686567 | AK125: 94000 | AL125: 29.0302656 | AM125: 93700 | AN125: 29 | AO125: 97400 | AP125: 29.87730061
B126: 500-799 | C126: 1425 | D126: 1.130665228 | E126: 4873 | F126: 2.89408355 | G126: 9916 | H126: 4.076246696 | U126: 42169 | V126: 14.41305648 | W126: 45060 | X126: 15.26298675 | Y126: 50161 | Z126: 16.70062659 | AA126: 52832 | AB126: 17.40367891 | AC126: 53500 | AD126: 17.57555848 | AE126: 59370 | AF126: 19.09819955 | AG126: 63100 | AH126: 19.8865427 | AI126: 67100 | AJ126: 20.86442786 | AK126: 72700 | AL126: 22.45213095 | AM126: 69600 | AN126: 22 | AO126: 72000 | AP126: 22.08588957
B127: ≥ 800 | C127: 6309 | D127: 5.005871525 | E127: 5392 | F127: 3.202318593 | G127: 5431 | H127: 2.232563111 | U127: 19760 | V127: 6.753823806 | W127: 22059 | X127: 7.4719535 | Y127: 28232 | Z127: 9.399575168 | AA127: 35002 | AB127: 11.53020081 | AC127: 40000 | AD127: 13.14060447 | AE127: 45215 | AF127: 14.54480533 | AG127: 53200 | AH127: 16.76646707 | AI127: 57400 | AJ127: 17.84825871 | AK127: 60900 | AL127: 18.80790611 | AM127: 64800 | AN127: 20 | AO127: 67200 | AP127: 20.61349693
B128: Sum leid areal | C128: 126032 | E128: 168378 | G128: 243263 | I128: 0 | K128: 0 | M128: 0 | O128: 0 | Q128: 0 | S128: 0 | U128: 292575 | W128: 295224 | Y128: 300354 | AA128: 303568 | AC128: 304400 | AE128: 310867 | AG128: 317300 | AI128: 321600 | AK128: 323800 | AM128: 323200 | AO128: 326000
B129: Totalt areal | C129: 680042 | E129: 719312 | G129: 764700 | I129: 762496 | K129: 771061 | M129: 773636 | O129: 771260 | Q129: 773242 | S129: 773687 | U129: 773333 | W129: 766141 | Y129: 762674 | AA129: 748119 | AC129: 747231 | AE129: 741408 | AG129: 741902 | AI129: 737284 | AK129: 737800 | AM129: 735900 | AO129: 733500
B130: % leid areal | C130: 18.53297296 | E130: 23.40820117 | G130: 31.81156009 | I130: 0 | K130: 0 | M130: 0 | O130: 0 | Q130: 0 | S130: 0 | U130: 37.83299045 | W130: 38.53389911 | Y130: 39.38170175 | AA130: 40.57750171 | AC130: 40.73706792 | AE130: 41.92927511 | AG130: 42.7684519 | AI130: 43.61955502 | AK130: 43.88723231 | AM130: 44 | AO130: 44.44444444
A131: Nord-Trøndelag | B131: < 100 | C131: 22871 | D131: 21.83534938 | E131: 15411 | F131: 11.89028624 | G131: 11598 | H131: 5.992528715 | U131: 5654 | V131: 2.202571095 | W131: 5155 | X131: 1.983966625 | Y131: 5429 | Z131: 1.9924325 | AA131: 5556 | AB131: 2.024065837 | AC131: 6100 | AD131: 2.18559656 | AE131: 7200 | AF131: 2.473461816 | AG131: 6700 | AH131: 2.258173239 | AI131: 6300 | AJ131: 2.089552239 | AK131: 5300 | AL131: 1.779717931 | AM131: 5300 | AN131: 2 | AO131: 5000 | AP131: 1.62707452
B132: 100-199 | C132: 40700 | D132: 38.85701192 | E132: 54807 | F132: 42.28608904 | G132: 54533 | H132: 28.17645873 | U132: 36571 | V132: 14.24659135 | W132: 33749 | X132: 12.98872737 | Y132: 33478 | Z132: 12.28636125 | AA132: 30862 | AB132: 11.24311013 | AC132: 31000 | AD132: 11.10713006 | AE132: 30170 | AF132: 10.36449208 | AG132: 30000 | AH132: 10.11122346 | AI132: 28000 | AJ132: 9.286898839 | AK132: 24000 | AL132: 8.059100067 | AM132: 24500 | AN132: 8 | AO132: 24300 | AP132: 7.907582167
B133: 200-299 | C133: 24766 | D133: 23.64453949 | E133: 35757 | F133: 27.58814906 | G133: 61749 | H133: 31.9048677 | U133: 59521 | V133: 23.1869887 | W133: 57425 | X133: 22.10073393 | Y133: 58103 | Z133: 21.32368862 | AA133: 57559 | AB133: 20.96889948 | AC133: 56100 | AD133: 20.10032247 | AE133: 54463 | AF133: 18.71002096 | AG133: 50400 | AH133: 16.98685541 | AI133: 50200 | AJ133: 16.65008292 | AK133: 43400 | AL133: 14.57353929 | AM133: 39500 | AN133: 13 | AO133: 39100 | AP133: 12.72372275
B134: 300-499 | C134: 13927 | D134: 13.29635393 | E134: 20420 | F134: 15.75495718 | G134: 52858 | H134: 27.31100904 | U134: 87799 | V134: 34.20296065 | W134: 91531 | X134: 35.22685725 | Y134: 90762 | Z134: 33.30947846 | AA134: 89175 | AB134: 32.48669384 | AC134: 95300 | AD134: 34.14546757 | AE134: 94940 | AF134: 32.61534233 | AG134: 99900 | AH134: 33.67037412 | AI134: 97400 | AJ134: 32.30514096 | AK134: 99000 | AL134: 33.24378778 | AM134: 97600 | AN134: 32 | AO134: 94600 | AP134: 30.78424992
B135: 500-799 | C135: 1844 | D135: 1.760499508 | E135: 3185 | F135: 2.457372116 | G135: 11587 | H135: 5.986845165 | U135: 44134 | V135: 17.1928321 | W135: 45071 | X135: 17.34614156 | Y135: 53700 | Z135: 19.70779614 | AA135: 59742 | AB135: 21.76417229 | AC135: 56500 | AD135: 20.24364027 | AE135: 65031 | AF135: 22.34051324 | AG135: 66400 | AH135: 22.37950792 | AI135: 73200 | AJ135: 24.27860697 | AK135: 70300 | AL135: 23.60644728 | AM135: 71200 | AN135: 24 | AO135: 75300 | AP135: 24.50374227
B136: ≥ 800 | C136: 635 | D136: 0.6062457634 | E136: 30 | F136: 0.02314636216 | G136: 1216 | H136: 5.986845165 | U136: 23021 | V136: 8.968056097 | W136: 26902 | X136: 10.35357326 | Y136: 31009 | Z136: 11.38024303 | AA136: 31603 | AB136: 11.51305843 | AC136: 34100 | AD136: 12.21784307 | AE136: 39286 | AF136: 13.49616957 | AG136: 43300 | AH136: 14.59386586 | AI136: 46400 | AJ136: 15.38971808 | AK136: 55800 | AL136: 18.73740766 | AM136: 63400 | AN136: 21 | AO136: 69000 | AP136: 22.45362838
B137: Sum leid areal | C137: 104743 | E137: 129610 | G137: 193541 | I137: 0 | K137: 0 | M137: 0 | O137: 0 | Q137: 0 | S137: 0 | U137: 256700 | W137: 259833 | Y137: 272481 | AA137: 274497 | AC137: 279100 | AE137: 291090 | AG137: 296700 | AH137: 100 | AI137: 301500 | AJ137: 100 | AK137: 297800 | AM137: 301500 | AO137: 307300
B138: Totalt areal | C138: 790979 | E138: 841724 | G138: 885012 | I138: 885301 | K138: 894284 | M138: 896324 | O138: 895847 | Q138: 896948 | S138: 896949 | U138: 901971 | W138: 893006 | Y138: 885824 | AA138: 882364 | AC138: 872353 | AE138: 869437 | AG138: 869027 | AI138: 868332 | AK138: 867400 | AM138: 867200 | AO138: 869100
B139: % leid areal | C139: 13.24219733 | E139: 15.39815902 | G139: 21.86874302 | I139: 0 | K139: 0 | M139: 0 | O139: 0 | Q139: 0 | S139: 0 | U139: 28.45989505 | W139: 29.09644504 | Y139: 30.76017358 | AA139: 31.1092701 | AC139: 31.99392906 | AE139: 33.48028667 | AG139: 34.14163196 | AI139: 34.72174238 | AK139: 34.33248789 | AM139: 35 | AO139: 35.35841675
A140: Nordland | B140: < 100 | C140: 45557 | D140: 35.05517167 | E140: 33614 | F140: 19.53461883 | G140: 25795 | H140: 11.42443354 | U140: 10500 | V140: 3.948600503 | W140: 9451 | X140: 3.488329175 | Y140: 9676 | Z140: 3.570295261 | AA140: 9463 | AB140: 3.439790043 | AC140: 11400 | AD140: 4.166666667 | AE140: 11077 | AF140: 4.024516964 | AG140: 11000 | AH140: 3.972553268 | AI140: 10900 | AJ140: 3.909612626 | AK140: 10200 | AL140: 3.602967149 | AM140: 9800 | AN140: 3 | AO140: 9800 | AP140: 3.424178896
B141: 100-199 | C141: 56499 | D141: 43.47481494 | E141: 75373 | F141: 43.80266629 | G141: 65836 | H141: 29.15832551 | U141: 43611 | V141: 16.40023015 | W141: 40359 | X141: 14.89635776 | Y141: 41349 | Z141: 15.25714539 | AA141: 42108 | AB141: 15.30621147 | AC141: 43600 | AD141: 15.93567251 | AE141: 41925 | AF141: 15.23227171 | AG141: 39300 | AH141: 14.1928494 | AI141: 36400 | AJ141: 13.05595409 | AK141: 35700 | AL141: 12.61038502 | AM141: 35500 | AN141: 12 | AO141: 33700 | AP141: 11.77498253
B142: 200-299 | C142: 22439 | D142: 17.26634759 | E142: 47749 | F142: 27.74910794 | G142: 74982 | H142: 33.20902794 | U142: 72095 | V142: 27.11184317 | W142: 71376 | X142: 26.34461784 | Y142: 67096 | Z142: 24.75739261 | AA142: 61000 | AB142: 22.17343259 | AC142: 60600 | AD142: 22.14912281 | AE142: 60846 | AF142: 22.10668585 | AG142: 59000 | AH142: 21.30733117 | AI142: 56700 | AJ142: 20.33715925 | AK142: 54400 | AL142: 19.2158248 | AM142: 50300 | AN142: 18 | AO142: 47000 | AP142: 16.42208246
B143: 300-499 | C143: 4573 | D143: 3.51882916 | E143: 12475 | F143: 7.249787882 | G143: 51561 | H143: 22.83602317 | U143: 90258 | V143: 33.94216993 | W143: 91943 | X143: 33.93582153 | Y143: 93706 | Z143: 34.57607356 | AA143: 97947 | AB143: 35.60362626 | AC143: 95700 | AD143: 34.97807018 | AE143: 94978 | AF143: 34.5075898 | AG143: 95200 | AH143: 34.38064283 | AI143: 97900 | AJ143: 35.11477762 | AK143: 95000 | AL143: 33.55704698 | AM143: 90800 | AN143: 32 | AO143: 89400 | AP143: 31.23689727
B144: 500-799 | C144: 850 | D144: 0.6540574647 | E144: 2753 | F144: 1.599893069 | G144: 6509 | H144: 2.882792708 | U144: 33749 | V144: 12.69155413 | W144: 39213 | X144: 14.47337339 | Y144: 40452 | Z144: 14.92616618 | AA144: 46231 | AB144: 16.80491741 | AC144: 44500 | AD144: 16.26461988 | AE144: 47715 | AF144: 17.33590565 | AG144: 51500 | AH144: 18.59877212 | AI144: 52900 | AJ144: 18.97417504 | AK144: 61400 | AL144: 21.68844931 | AM144: 68200 | AN144: 24 | AO144: 71600 | AP144: 25.0174703
B145: ≥ 800 | C145: 40 | D145: 0.03077917481 | E145: 110 | F145: 0.06392598533 | G145: 1105 | H145: 0.4893971336 | U145: 15704 | V145: 5.905602124 | W145: 18590 | X145: 6.861500303 | Y145: 18735 | Z145: 6.912927007 | AA145: 18355 | AB145: 6.672022217 | AC145: 17800 | AD145: 6.505847953 | AE145: 18697 | AF145: 6.793030032 | AG145: 20900 | AH145: 7.54785121 | AI145: 24000 | AJ145: 8.608321377 | AK145: 26400 | AL145: 9.32532674 | AM145: 31000 | AN145: 11 | AO145: 34700 | AP145: 12.12438854
B146: Sum leid areal | C146: 129958 | E146: 172074 | G146: 225788 | I146: 0 | K146: 0 | M146: 0 | O146: 0 | Q146: 0 | S146: 0 | U146: 265917 | W146: 270932 | Y146: 271014 | AA146: 275104 | AC146: 273600 | AE146: 275238 | AG146: 276900 | AI146: 278800 | AK146: 283100 | AM146: 285600 | AO146: 286200
B147: Totalt areal | C147: 514062 | E147: 522109 | G147: 579531 | I147: 583543 | K147: 594169 | M147: 602389 | O147: 603062 | Q147: 603546 | S147: 600900 | U147: 604809 | W147: 609586 | Y147: 592230 | AA147: 585923 | AC147: 570886 | AE147: 565745 | AG147: 562338 | AI147: 557493 | AK147: 557700 | AM147: 556500 | AO147: 555400
B148: % leid areal | C148: 25.28060818 | E148: 32.95748589 | G148: 38.96046976 | I148: 0 | K148: 0 | M148: 0 | O148: 0 | Q148: 0 | S148: 0 | U148: 43.96710366 | W148: 44.44524645 | Y148: 45.76161289 | AA148: 46.95224458 | AC148: 47.92550527 | AE148: 48.65054044 | AG148: 49.24084803 | AI148: 50.00959653 | AK148: 50.76205845 | AM148: 51 | AO148: 51.53042852
A149: Troms | B149: < 100 | C149: 27093 | D149: 43.82207845 | E149: 21457 | F149: 25.40823456 | G149: 17518 | H149: 14.38424778 | U149: 7141 | V149: 5.160614273 | W149: 6031 | X149: 4.291488181 | Y149: 5580 | Z149: 3.946028513 | AA149: 6474 | AB149: 4.542137906 | AC149: 6300 | AD149: 4.303278689 | AE149: 5681 | AF149: 3.866651239 | AG149: 5200 | AH149: 3.687943262 | AI149: 4700 | AJ149: 3.239145417 | AK149: 4600 | AL149: 3.163686382 | AM149: 4400 | AN149: 3 | AO149: 4500 | AP149: 3.032345013
B150: 100-199 | C150: 24123 | D150: 39.01819652 | E150: 36531 | F150: 43.25806108 | G150: 40345 | H150: 33.12778152 | U150: 28862 | V150: 20.85781391 | W150: 27828 | X150: 19.80161384 | Y150: 26729 | Z150: 18.90204232 | AA150: 25228 | AB150: 17.69988494 | AC150: 24800 | AD150: 16.93989071 | AE150: 24938 | AF150: 16.97351674 | AG150: 24000 | AH150: 17.0212766 | AI150: 22600 | AJ150: 15.5754652 | AK150: 19400 | AL150: 13.34250344 | AM150: 18800 | AN150: 13 | AO150: 19100 | AP150: 12.87061995
B151: 200-299 | C151: 8572 | D151: 13.86494137 | E151: 19726 | F151: 23.35847671 | G151: 37167 | H151: 30.51828617 | U151: 39816 | V151: 28.77398374 | W151: 37884 | X151: 26.95717762 | Y151: 38133 | Z151: 26.96664969 | AA151: 35936 | AB151: 25.21258384 | AC151: 35900 | AD151: 24.52185792 | AE151: 34979 | AF151: 23.8077088 | AG151: 31100 | AH151: 22.05673759 | AI151: 32400 | AJ151: 22.32942798 | AK151: 30400 | AL151: 20.90784044 | AM151: 27900 | AN151: 19 | AO151: 24700 | AP151: 16.64420485
B152: 300-499 | C152: 1597 | D152: 2.583097452 | E152: 5678 | F152: 6.723584649 | G152: 23160 | H152: 19.01696418 | U152: 44108 | V152: 31.87570009 | W152: 44874 | X152: 31.93106295 | Y152: 44860 | Z152: 31.72380629 | AA152: 43935 | AB152: 30.82465692 | AC152: 44100 | AD152: 30.12295082 | AE152: 43294 | AF152: 29.46713585 | AG152: 47100 | AH152: 33.40425532 | AI152: 46200 | AJ152: 31.84011027 | AK152: 47700 | AL152: 32.80605227 | AM152: 47800 | AN152: 32 | AO152: 47200 | AP152: 31.80592992
B153: 500-799 | C153: 440 | D153: 0.7116862111 | E153: 1057 | F153: 1.251643003 | G153: 3596 | H153: 2.952720346 | U153: 15606 | V153: 11.27804878 | W153: 20000 | X153: 14.23143154 | Y153: 21033 | Z153: 14.87398167 | AA153: 25151 | AB153: 17.64586198 | AC153: 28000 | AD153: 19.12568306 | AE153: 27449 | AF153: 18.68257523 | AG153: 25000 | AH153: 17.73049645 | AI153: 29100 | AJ153: 20.05513439 | AK153: 29400 | AL153: 20.22008253 | AM153: 33200 | AN153: 22 | AO153: 34000 | AP153: 22.91105121
B154: ≥ 800 | C154: 0 | D154: 0 | E154: 0 | F154: 0 | G154: 0 | H154: 2.952720346 | U154: 2842 | V154: 2.053839205 | W154: 3917 | X154: 2.787225867 | Y154: 5073 | Z154: 3.587491514 | AA154: 5808 | AB154: 4.074874414 | AC154: 7300 | AD154: 4.986338798 | AE154: 10582 | AF154: 7.202412148 | AG154: 8600 | AH154: 6.09929078 | AI154: 10100 | AJ154: 6.960716747 | AK154: 13900 | AL154: 9.559834938 | AM154: 16200 | AN154: 11 | AO154: 18900 | AP154: 12.73584906
B155: Sum leid areal | C155: 61825 | E155: 84449 | G155: 121786 | I155: 0 | K155: 0 | M155: 0 | O155: 0 | Q155: 0 | S155: 0 | U155: 138375 | W155: 140534 | Y155: 141408 | AA155: 142532 | AC155: 146400 | AE155: 146923 | AG155: 141000 | AI155: 145100 | AK155: 145400 | AM155: 148300 | AO155: 148400
B156: Totalt areal | C156: 263418 | E156: 242389 | G156: 273189 | I156: 269306 | K156: 272176 | M156: 270920 | O156: 269480 | Q156: 266304 | S156: 262797 | U156: 263448 | W156: 273189 | Y156: 258964 | AA156: 254919 | AC156: 253897 | AE156: 248363 | AG156: 239694 | AI156: 241069 | AK156: 237400 | AM156: 239700 | AO156: 236900
B157: % leid areal | C157: 23.47030195 | E157: 34.84027741 | G157: 44.57939375 | I157: 0 | K157: 0 | M157: 0 | O157: 0 | Q157: 0 | S157: 0 | U157: 52.52459688 | W157: 51.44204196 | Y157: 54.60527332 | AA157: 55.91266245 | AC157: 57.66117756 | AE157: 59.15655714 | AG157: 58.82500188 | AI157: 60.19023599 | AK157: 61.24684078 | AM157: 62 | AO157: 62.64246518
A158: Finnmark | B158: < 100 | C158: 6485 | D158: 31.3254758 | E158: 4633 | F158: 16.24986847 | G158: 4044 | H158: 9.786554378 | U158: 1097 | V158: 2.458208219 | W158: 814 | X158: 1.811102459 | Y158: 975 | Z158: 2.173089353 | AA158: 649 | AB158: 1.418548228 | AC158: 1200 | AD158: 2.429149798 | AE158: 1306 | AF158: 2.569045558 | AG158: 1200 | AH158: 2.489626556 | AI158: 1200 | AJ158: 2.45398773 | AK158: 1500 | AL158: 3.073770492 | AM158: 1700 | AN158: 4 | AO158: 1500 | AP158: 3.191489362
B159: 100-199 | C159: 8859 | D159: 42.79296686 | E159: 9189 | F159: 32.22966574 | G159: 8300 | H159: 20.08615265 | U159: 5424 | V159: 12.15434948 | W159: 4389 | X159: 9.765268662 | Y159: 4502 | Z159: 10.03410079 | AA159: 4403 | AB159: 9.623833359 | AC159: 4800 | AD159: 9.71659919 | AE159: 4393 | AF159: 8.641513888 | AG159: 4100 | AH159: 8.506224066 | AI159: 4300 | AJ159: 8.793456033 | AK159: 4500 | AL159: 9.221311475 | AM159: 3400 | AN159: 7 | AO159: 3900 | AP159: 8.29787234
B160: 200-299 | C160: 4056 | D160: 19.59230992 | E160: 9949 | F160: 34.89530357 | G160: 12251 | H160: 29.64764532 | U160: 9690 | V160: 21.71379913 | W160: 9579 | X160: 21.31271554 | Y160: 8322 | Z160: 18.54815343 | AA160: 8045 | AB160: 17.5843151 | AC160: 9800 | AD160: 19.83805668 | AE160: 10534 | AF160: 20.72153592 | AG160: 9400 | AH160: 19.50207469 | AI160: 8200 | AJ160: 16.76891616 | AK160: 5900 | AL160: 12.09016393 | AM160: 5700 | AN160: 12 | AO160: 6300 | AP160: 13.40425532
B161: 300-499 | C161: 736 | D161: 3.555212057 | E161: 3991 | F161: 13.99810599 | G161: 10221 | H161: 24.73500799 | U161: 18466 | V161: 41.37946489 | W161: 18458 | X161: 41.06797197 | Y161: 18740 | Z161: 41.76789177 | AA161: 17443 | AB161: 38.1259426 | AC161: 16000 | AD161: 32.38866397 | AE161: 13474 | AF161: 26.50483909 | AG161: 11300 | AH161: 23.4439834 | AI161: 12100 | AJ161: 24.74437628 | AK161: 12400 | AL161: 25.40983607 | AM161: 12000 | AN161: 25 | AO161: 12100 | AP161: 25.74468085
B162: 500-799 | C162: 566 | D162: 2.734035359 | E162: 749 | F162: 2.627056224 | G162: 6506 | H162: 15.74463966 | U162: 8476 | V162: 18.99341191 | W162: 9809 | X162: 21.82445211 | Y162: 10550 | Z162: 23.5139412 | AA162: 12682 | AB162: 27.71961269 | AC162: 13500 | AD162: 27.32793522 | AE162: 15439 | AF162: 30.37021009 | AG162: 14200 | AH162: 29.46058091 | AI162: 15100 | AJ162: 30.8793456 | AK162: 15800 | AL162: 32.37704918 | AM162: 16000 | AN162: 34 | AO162: 14500 | AP162: 30.85106383
B163: ≥ 800 | C163: 0 | D163: 0 | E163: 0 | F163: 0 | G163: 0 | H163: 0 | U163: 1473 | V163: 3.300766369 | W163: 1896 | X163: 4.218489265 | Y163: 1778 | Z163: 3.962823456 | AA163: 2529 | AB163: 5.527748027 | AC163: 4100 | AD163: 8.299595142 | AE163: 5690 | AF163: 11.19285546 | AG163: 8000 | AH163: 16.59751037 | AI163: 8000 | AJ163: 16.3599182 | AK163: 8700 | AL163: 17.82786885 | AM163: 8300 | AN163: 18 | AO163: 8700 | AP163: 18.5106383
B164: Sum leid areal | C164: 20702 | E164: 28511 | G164: 41322 | I164: 0 | K164: 0 | M164: 0 | O164: 0 | Q164: 0 | S164: 0 | U164: 44626 | W164: 44945 | Y164: 44867 | AA164: 45751 | AC164: 49400 | AE164: 50836 | AG164: 48200 | AI164: 48900 | AK164: 48800 | AM164: 47100 | AO164: 47000
B165: Totalt areal | C165: 94222 | E165: 95411 | G165: 105508 | I165: 105473 | K165: 104911 | M165: 102806 | O165: 101137 | Q165: 99920 | S165: 99820 | U165: 100171 | W165: 99893 | Y165: 97661 | AA165: 97170 | AC165: 94321 | AE165: 94713 | AG165: 95535 | AI165: 93521 | AK165: 94600 | AM165: 92300 | AO165: 92600
B166: % leid areal | C166: 21.97151408 | E166: 29.88229869 | G166: 39.16480267 | I166: 0 | K166: 0 | M166: 0 | O166: 0 | Q166: 0 | S166: 0 | U166: 44.54981981 | W166: 44.99314266 | Y166: 45.9415734 | AA166: 47.08346197 | AC166: 52.37433869 | AE166: 53.67373011 | AG166: 50.45271367 | AI166: 52.28772147 | AK166: 51.58562368 | AM166: 51 | AO166: 50.75593952
A167: Hele landet | B167: < 100 | C167: 608861 | D167: 31.71854797 | E167: 458556 | F167: 19.78032501 | G167: 344247 | H167: 10.62953979 | U167: 182060 | V167: 4.6181831 | W167: 165294 | X167: 4.10694138 | Y167: 164893 | Z167: 4.036648152 | AA167: 164034 | AB167: 3.961656218 | AC167: 178600 | AD167: 4.268030397 | AE167: 175383 | AF167: 4.155821937 | AG167: 177200 | AH167: 4.153287238 | AI167: 174800 | AJ167: 4.027835384 | AK167: 167700 | AL167: 3.848272064 | AM167: 167600 | AN167: 4 | AO167: 162700 | AP167: 3.692021421
B168: 100-199 | C168: 652786 | D168: 34.0068161 | E168: 882879 | F168: 38.08397135 | G168: 933671 | H168: 28.82957017 | U168: 690820 | V168: 17.52352658 | W168: 655020 | X168: 16.27481181 | Y168: 631767 | Z168: 15.46591482 | AA168: 610371 | AB168: 14.74133453 | AC168: 623500 | AD168: 14.89987096 | AE168: 603440 | AF168: 14.29892971 | AG168: 586900 | AH168: 13.75600609 | AI168: 567000 | AJ168: 13.06511821 | AK168: 537000 | AL168: 12.32273165 | AM168: 532600 | AN168: 12 | AO168: 512800 | AP168: 11.63656168
B169: 200-299 | C169: 311011 | D169: 16.20208442 | E169: 498839 | F169: 21.51797719 | G169: 832147 | H169: 25.69474722 | U169: 868102 | V169: 22.02050964 | W169: 849778 | X169: 21.11382405 | Y169: 826622 | Z169: 20.236045 | AA169: 800229 | AB169: 19.32667736 | AC169: 786600 | AD169: 18.79749558 | AE169: 773305 | AF169: 18.32399881 | AG169: 749700 | AH169: 17.57178015 | AI169: 735200 | AJ169: 16.94087285 | AK169: 695700 | AL169: 15.96447749 | AM169: 665100 | AN169: 15 | AO169: 646700 | AP169: 14.67504765
B170: 300-499 | C170: 229551 | D170: 11.95843453 | E170: 326293 | F170: 14.07501284 | G170: 678311 | H170: 20.94465242 | U170: 1080568 | V170: 27.40997955 | W170: 1118768 | X170: 27.79722552 | Y170: 1133648 | Z170: 27.75216719 | AA170: 1143901 | AB170: 27.62684876 | AC170: 1138200 | AD170: 27.19973235 | AE170: 1140301 | AF170: 27.0202238 | AG170: 1134800 | AH170: 26.59791398 | AI170: 1136500 | AJ170: 26.18784276 | AK170: 1128100 | AL170: 25.88691542 | AM170: 1116900 | AN170: 26 | AO170: 1102700 | AP170: 25.0226922
B171: 500-799 | C171: 81114 | D171: 4.225625061 | E171: 107719 | F171: 4.646579328 | G171: 314979 | H171: 9.725812607 | U171: 625088 | V171: 15.85615093 | W171: 663840 | X171: 16.49395602 | Y171: 698912 | Z171: 17.10965192 | AA171: 750085 | AB171: 18.11562789 | AC171: 762600 | AD171: 18.22396406 | AE171: 780882 | AF171: 18.50354108 | AG171: 792800 | AH171: 18.58197586 | AI171: 840500 | AJ171: 19.36725195 | AK171: 890700 | AL171: 20.43921245 | AM171: 919900 | AN171: 21 | AO171: 948000 | AP171: 21.51220841
B172: ≥ 800 | C172: 36251 | D172: 1.888491926 | E172: 43957 | F172: 1.896134271 | G172: 135233 | H172: 4.175677795 | U172: 495605 | V172: 12.5716502 | W172: 572047 | X172: 14.21324123 | Y172: 629057 | Z172: 15.39957291 | AA172: 671921 | AB172: 16.22785525 | AC172: 695100 | AD172: 16.61090666 | AE172: 746865 | AF172: 17.69748465 | AG172: 825100 | AH172: 19.33903668 | AI172: 885800 | AJ172: 20.41107885 | AK172: 938600 | AL172: 21.53839093 | AM172: 975700 | AN172: 22 | AO172: 1033900 | AP172: 23.46146864
B173: Sum leid areal,1000 daa | C173: 1919.574 | E173: 2318.243 | G173: 3238.588 | I173: 0 | K173: 0 | M173: 0 | O173: 0 | Q173: 0 | S173: 0 | U173: 3942.243 | W173: 4024.747 | Y173: 4084.899 | AA173: 4140.541 | AC173: 4184.6 | AE173: 4220.176 | AG173: 4266.5 | AI173: 4339.8 | AK173: 4357.8 | AM173: 4377.8 | AO173: 4406.8
B174: Totalt areal, 1000 daa | C174: 9535.45 | E174: 9910.775 | G174: 10382.445 | I174: 10305.49 | K174: 10467.172 | M174: 10466.217 | O174: 10403.856 | Q174: 10397.288 | S174: 10354.236 | U174: 10344.607 | W174: 10330.735 | Y174: 10244.883 | AA174: 10142.874 | AC174: 10059.857 | AE174: 9989.187 | AG174: 9928.634 | AI174: 9871.428 | AK174: 9868.2 | AM174: 9860.4 | AO174: 9837.1
B175: % leid areal | C175: 20.13092198 | E175: 23.39113742 | G175: 31.19292228 | I175: 0 | K175: 0 | M175: 0 | O175: 0 | Q175: 0 | S175: 0 | U175: 38.10916161 | W175: 38.95896081 | Y175: 39.87257834 | AA175: 40.82216737 | AC175: 41.59701276 | AE175: 42.24744216 | AG175: 42.97167163 | AI175: 43.96324422 | AK175: 44.16002918 | AM175: 44.4 | AO175: 44.79775544

Sheet Ant. jordbr.bedr. (hidden)
A1: Antall jordbruksbedrifter i drift etter størrelse. Fylkestall, 1000 dekar
B3: Arealgruppe | C3: 1979 | D3: 1989 | E3: 1999 | F3: 2000 | G3: 2001 | H3: 2002 | I3: 2003 | J3: 2004 | K3: 2005 | L3: 2006 | M3: 2007 | N3: 2008 | O3: 2009 | P3: 2010 | Q3: 2011 | R3: 2012 | S3: 2013 | T3: 2014 | U3: 2015 | V3: 2016 | W3: 2017
A4: Østfold | B4: < 100 | C4: 2595 | D4: 2077 | E4: 1036 | F4: 967 | G4: 845 | H4: 776 | I4: 671 | J4: 607 | K4: 559 | L4: 548 | M4: 530 | N4: 527 | O4: 523 | P4: 532 | Q4: 515 | R4: 502 | S4: 502 | T4: 473 | U4: 455 | V4: 450 | W4: 447
B5: 100-199 | C5: 1490 | D5: 1430 | E5: 1056 | F5: 1002 | G5: 974 | H5: 912 | I5: 858 | J5: 820 | K5: 771 | L5: 771 | M5: 751 | N5: 720 | O5: 694 | P5: 650 | Q5: 629 | R5: 603 | S5: 578 | T5: 543 | U5: 535 | V5: 507 | W5: 509
B6: 200-299 | C6: 782 | D6: 812 | E6: 669 | F6: 657 | G6: 649 | H6: 617 | I6: 583 | J6: 583 | K6: 560 | L6: 527 | M6: 523 | N6: 505 | O6: 464 | P6: 446 | Q6: 444 | R6: 442 | S6: 424 | T6: 416 | U6: 410 | V6: 407 | W6: 392
B7: 300-499 | C7: 453 | D7: 496 | E7: 577 | F7: 565 | G7: 548 | H7: 540 | I7: 522 | J7: 522 | K7: 526 | L7: 506 | M7: 500 | N7: 466 | O7: 459 | P7: 462 | Q7: 465 | R7: 439 | S7: 421 | T7: 416 | U7: 404 | V7: 401 | W7: 403
B8: 500-799 | C8: 79 | D8: 106 | E8: 222 | F8: 227 | G8: 244 | H8: 239 | I8: 244 | J8: 243 | K8: 237 | L8: 236 | M8: 233 | N8: 239 | O8: 251 | P8: 245 | Q8: 241 | R8: 246 | S8: 243 | T8: 245 | U8: 254 | V8: 250 | W8: 249
B9: >800 | C9: 22 | D9: 24 | E9: 44 | F9: 54 | G9: 68 | H9: 88 | I9: 102 | J9: 109 | K9: 120 | L9: 134 | M9: 140 | N9: 145 | O9: 142 | P9: 153 | Q9: 152 | R9: 155 | S9: 166 | T9: 175 | U9: 177 | V9: 185 | W9: 186
B10: Sum | C10: 5421 | D10: 4945 | E10: 3604 | F10: 3472 | G10: 3328 | H10: 3172 | I10: 2980 | J10: 2884 | K10: 2773 | L10: 2722 | M10: 2677 | N10: 2602 | O10: 2533 | P10: 2488 | Q10: 2446 | R10: 2387 | S10: 2334 | T10: 2268 | U10: 2235 | V10: 2200 | W10: 2186
B11: Da/bruk gj.sn. | C11: 139.1938757 | D11: 155.1150657 | E11: 214.0233074 | F11: 221.6451613 | G11: 234.1186899 | H11: 244.8203026 | I11: 257.4479866 | J11: 265.9687933 | K11: 276.0753696 | L11: 280.0738428 | M11: 285.1565185 | N11: 288.169485 | O11: 293.2530596 | P11: 299.221865 | Q11: 301.23426 | R11: 307.7943025 | S11: 312.9687232 | T11: 321.8315697 | U11: 326.9946309 | V11: 333.9322727 | W11: 334.6335773
A12: Akershus/Oslo | B12: < 100 | C12: 3075 | D12: 2366 | E12: 1095 | F12: 1059 | G12: 917 | H12: 837 | I12: 728 | J12: 664 | K12: 604 | L12: 558 | M12: 531 | N12: 532 | O12: 538 | P12: 533 | Q12: 542 | R12: 507 | S12: 481 | T12: 479 | U12: 457 | V12: 447 | W12: 437
B13: 100-199 | C13: 1350 | D13: 1185 | E13: 854 | F13: 828 | G13: 799 | H13: 770 | I13: 747 | J13: 719 | K13: 688 | L13: 666 | M13: 650 | N13: 635 | O13: 604 | P13: 586 | Q13: 556 | R13: 548 | S13: 534 | T13: 506 | U13: 506 | V13: 477 | W13: 469
B14: 200-299 | C14: 695 | D14: 715 | E14: 540 | F14: 517 | G14: 504 | H14: 479 | I14: 471 | J14: 470 | K14: 459 | L14: 435 | M14: 420 | N14: 402 | O14: 389 | P14: 382 | Q14: 374 | R14: 367 | S14: 341 | T14: 337 | U14: 327 | V14: 330 | W14: 312
B15: 300-499 | C15: 494 | D15: 589 | E15: 639 | F15: 619 | G15: 615 | H15: 598 | I15: 556 | J15: 554 | K15: 538 | L15: 524 | M15: 505 | N15: 495 | O15: 489 | P15: 470 | Q15: 453 | R15: 428 | S15: 409 | T15: 409 | U15: 395 | V15: 386 | W15: 365
B16: 500-799 | C16: 165 | D16: 186 | E16: 280 | F16: 288 | G16: 305 | H16: 295 | I16: 309 | J16: 300 | K16: 307 | L16: 306 | M16: 287 | N16: 284 | O16: 276 | P16: 276 | Q16: 263 | R16: 255 | S16: 259 | T16: 270 | U16: 272 | V16: 262 | W16: 253
B17: >800 | C17: 35 | D17: 35 | E17: 76 | F17: 87 | G17: 94 | H17: 116 | I17: 122 | J17: 132 | K17: 138 | L17: 149 | M17: 165 | N17: 175 | O17: 180 | P17: 186 | Q17: 193 | R17: 205 | S17: 212 | T17: 205 | U17: 209 | V17: 209 | W17: 217
B18: Sum | C18: 5814 | D18: 5076 | E18: 3484 | F18: 3398 | G18: 3234 | H18: 3095 | I18: 2933 | J18: 2839 | K18: 2734 | L18: 2638 | M18: 2558 | N18: 2523 | O18: 2476 | P18: 2433 | Q18: 2381 | R18: 2310 | S18: 2236 | T18: 2206 | U18: 2166 | V18: 2111 | W18: 2053
B19: Da/bruk gj.sn. | C19: 137.6102511 | D19: 160.7760047 | E19: 233.662744 | F19: 238.6848146 | G19: 251.8135436 | H19: 261.9243942 | I19: 273.9809069 | J19: 283.0679817 | K19: 293.4524506 | L19: 302.4279757 | M19: 311.2427678 | N19: 314.6385256 | O19: 316.8170436 | P19: 321.6103576 | Q19: 327.1045779 | R19: 336.6307359 | S19: 345.8054562 | T19: 350.7379873 | U19: 355.8831948 | V19: 361.2131691 | W19: 366.7900633
A20: Hedmark | B20: < 100 | C20: 7665 | D20: 5469 | E20: 2394 | F20: 2220 | G20: 1919 | H20: 1650 | I20: 1426 | J20: 1291 | K20: 1137 | L20: 1044 | M20: 1012 | N20: 985 | O20: 961 | P20: 936 | Q20: 885 | R20: 868 | S20: 854 | T20: 849 | U20: 796 | V20: 763 | W20: 713
B21: 100-199 | C21: 1907 | D21: 2004 | E21: 1629 | F21: 1537 | G21: 1486 | H21: 1403 | I21: 1306 | J21: 1259 | K21: 1199 | L21: 1154 | M21: 1080 | N21: 1049 | O21: 976 | P21: 944 | Q21: 909 | R21: 850 | S21: 797 | T21: 791 | U21: 754 | V21: 708 | W21: 665
B22: 200-299 | C22: 582 | D22: 852 | E22: 952 | F22: 963 | G22: 931 | H22: 896 | I22: 887 | J22: 870 | K22: 813 | L22: 761 | M22: 733 | N22: 712 | O22: 673 | P22: 629 | Q22: 631 | R22: 631 | S22: 595 | T22: 558 | U22: 549 | V22: 520 | W22: 524
B23: 300-499 | C23: 428 | D23: 521 | E23: 642 | F23: 671 | G23: 678 | H23: 726 | I23: 712 | J23: 711 | K23: 722 | L23: 730 | M23: 745 | N23: 726 | O23: 720 | P23: 701 | Q23: 695 | R23: 654 | S23: 626 | T23: 640 | U23: 630 | V23: 623 | W23: 607
B24: 500-799 | C24: 165 | D24: 186 | E24: 271 | F24: 285 | G24: 298 | H24: 288 | I24: 288 | J24: 299 | K24: 315 | L24: 335 | M24: 330 | N24: 325 | O24: 344 | P24: 342 | Q24: 336 | R24: 346 | S24: 364 | T24: 374 | U24: 368 | V24: 385 | W24: 380
B25: >800 | C25: 40 | D25: 48 | E25: 86 | F25: 89 | G25: 102 | H25: 111 | I25: 128 | J25: 140 | K25: 144 | L25: 140 | M25: 159 | N25: 176 | O25: 184 | P25: 197 | Q25: 200 | R25: 210 | S25: 218 | T25: 216 | U25: 231 | V25: 243 | W25: 253
B26: Sum | C26: 10787 | D26: 9080 | E26: 5974 | F26: 5765 | G26: 5414 | H26: 5074 | I26: 4747 | J26: 4570 | K26: 4330 | L26: 4164 | M26: 4059 | N26: 3973 | O26: 3858 | P26: 3749 | Q26: 3656 | R26: 3559 | S26: 3454 | T26: 3428 | U26: 3328 | V26: 3242 | W26: 3142
B27: Da/bruk gj.sn. | C27: 92.82942431 | D27: 117.5109031 | E27: 181.8304319 | F27: 188.5320035 | G27: 200.9475434 | H27: 214.0293654 | I27: 226.9321677 | J27: 236.0588621 | K27: 247.4711316 | L27: 255.9423631 | M27: 263 | N27: 268.3596778 | O27: 275.7809746 | P27: 281.9447853 | Q27: 287.1444201 | R27: 293.9643158 | S27: 301.1441807 | T27: 305.2628355 | U27: 313.8692909 | V27: 323.5749537 | W27: 333.7170592
A28: Oppland | B28: < 100 | C28: 8155 | D28: 5523 | E28: 2885 | F28: 2735 | G28: 2490 | H28: 2201 | I28: 1975 | J28: 1789 | K28: 1631 | L28: 1609 | M28: 1531 | N28: 1562 | O28: 1522 | P28: 1478 | Q28: 1463 | R28: 1430 | S28: 1397 | T28: 1392 | U28: 1291 | V28: 1231 | W28: 1183
B29: 100-199 | C29: 2172 | D29: 2673 | E29: 2482 | F29: 2429 | G29: 2323 | H29: 2235 | I29: 2148 | J29: 2070 | K29: 1973 | L29: 1887 | M29: 1821 | N29: 1739 | O29: 1702 | P29: 1666 | Q29: 1631 | R29: 1597 | S29: 1552 | T29: 1502 | U29: 1506 | V29: 1440 | W29: 1390
B30: 200-299 | C30: 600 | D30: 797 | E30: 1106 | F30: 1134 | G30: 1193 | H30: 1190 | I30: 1195 | J30: 1202 | K30: 1211 | L30: 1186 | M30: 1168 | N30: 1149 | O30: 1082 | P30: 1052 | Q30: 1022 | R30: 988 | S30: 973 | T30: 914 | U30: 879 | V30: 876 | W30: 850
B31: 300-499 | C31: 258 | D31: 308 | E31: 453 | F31: 495 | G31: 525 | H31: 568 | I31: 614 | J31: 638 | K31: 672 | L31: 701 | M31: 719 | N31: 725 | O31: 725 | P31: 695 | Q31: 679 | R31: 689 | S31: 664 | T31: 667 | U31: 642 | V31: 638 | W31: 658
B32: 500-799 | C32: 42 | D32: 58 | E32: 115 | F32: 120 | G32: 122 | H32: 131 | I32: 138 | J32: 142 | K32: 157 | L32: 166 | M32: 184 | N32: 183 | O32: 192 | P32: 200 | Q32: 203 | R32: 199 | S32: 217 | T32: 222 | U32: 235 | V32: 241 | W32: 255
B33: >800 | C33: 8 | D33: 9 | E33: 13 | F33: 17 | G33: 23 | H33: 23 | I33: 26 | J33: 33 | K33: 37 | L33: 45 | M33: 54 | N33: 58 | O33: 59 | P33: 62 | Q33: 62 | R33: 67 | S33: 72 | T33: 85 | U33: 88 | V33: 95 | W33: 94
B34: Sum | C34: 11235 | D34: 9368 | E34: 7054 | F34: 6930 | G34: 6676 | H34: 6348 | I34: 6096 | J34: 5874 | K34: 5681 | L34: 5594 | M34: 5477 | N34: 5416 | O34: 5282 | P34: 5153 | Q34: 5060 | R34: 4970 | S34: 4875 | T34: 4782 | U34: 4641 | V34: 4521 | W34: 4430
B35: Da/bruk gj.sn. | C35: 81.08678238 | D35: 102.984842 | E35: 145.7366033 | F35: 150.1836941 | G35: 156.3963451 | H35: 164.6312224 | I35: 171.4547244 | J35: 178.5706503 | K35: 185.4103151 | L35: 188.6317483 | M35: 193 | N35: 194.1757755 | O35: 196.511738 | P35: 198.9701145 | Q35: 199.9699605 | R35: 202.5619718 | S35: 205.1624615 | T35: 208.951903 | U35: 214.8039216 | V35: 219.946472 | W35: 224.6395034
A36: Buskerud | B36: < 100 | C36: 5027 | D36: 3841 | E36: 1846 | F36: 1730 | G36: 1540 | H36: 1396 | I36: 1184 | J36: 1050 | K36: 943 | L36: 855 | M36: 817 | N36: 779 | O36: 772 | P36: 770 | Q36: 753 | R36: 748 | S36: 736 | T36: 748 | U36: 741 | V36: 696 | W36: 683
B37: 100-199 | C37: 1235 | D37: 1380 | E37: 1181 | F37: 1134 | G37: 1083 | H37: 1054 | I37: 1041 | J37: 1014 | K37: 947 | L37: 898 | M37: 849 | N37: 806 | O37: 743 | P37: 728 | Q37: 702 | R37: 697 | S37: 689 | T37: 666 | U37: 654 | V37: 633 | W37: 615
B38: 200-299 | C38: 298 | D38: 348 | E38: 472 | F38: 480 | G38: 497 | H38: 474 | I38: 483 | J38: 467 | K38: 478 | L38: 461 | M38: 437 | N38: 419 | O38: 410 | P38: 392 | Q38: 391 | R38: 378 | S38: 358 | T38: 356 | U38: 361 | V38: 350 | W38: 345
B39: 300-499 | C39: 124 | D39: 155 | E39: 254 | F39: 263 | G39: 275 | H39: 304 | I39: 292 | J39: 295 | K39: 308 | L39: 311 | M39: 312 | N39: 315 | O39: 308 | P39: 293 | Q39: 295 | R39: 292 | S39: 292 | T39: 282 | U39: 276 | V39: 281 | W39: 275
B40: 500-799 | C40: 27 | D40: 35 | E40: 57 | F40: 69 | G40: 77 | H40: 87 | I40: 84 | J40: 95 | K40: 104 | L40: 119 | M40: 122 | N40: 130 | O40: 146 | P40: 159 | Q40: 159 | R40: 152 | S40: 144 | T40: 152 | U40: 150 | V40: 146 | W40: 149
B41: >800 | C41: - | D41: 4 | E41: 10 | F41: 13 | G41: 19 | H41: 22 | I41: 32 | J41: 42 | K41: 42 | L41: 44 | M41: 56 | N41: 65 | O41: 63 | P41: 59 | Q41: 61 | R41: 68 | S41: 71 | T41: 72 | U41: 76 | V41: 81 | W41: 86
B42: Sum | C42: 6713 | D42: 5763 | E42: 3820 | F42: 3689 | G42: 3491 | H42: 3337 | I42: 3116 | J42: 2963 | K42: 2822 | L42: 2688 | M42: 2593 | N42: 2514 | O42: 2442 | P42: 2401 | Q42: 2361 | R42: 2335 | S42: 2290 | T42: 2276 | U42: 2258 | V42: 2187 | W42: 2153
B43: Da/bruk gj.sn. | C43: 74.4379562 | D43: 89.59153219 | E43: 136.710733 | F43: 142.3656818 | G43: 150.9713549 | H43: 158.9364699 | I43: 168.9801027 | J43: 179.3415457 | K43: 187.9893692 | L43: 196.7455357 | M43: 204 | N43: 210.1042164 | O43: 214.8771499 | P43: 215.060808 | Q43: 218.2727658 | R43: 219.0304069 | S43: 221.5790393 | T43: 223.258348 | U43: 225.4977857 | V43: 231.2565158 | W43: 235.2020437
A44: Vestfold | B44: < 100 | C44: 2226 | D44: 1740 | E44: 841 | F44: 809 | G44: 759 | H44: 687 | I44: 612 | J44: 570 | K44: 533 | L44: 521 | M44: 497 | N44: 499 | O44: 511 | P44: 502 | Q44: 496 | R44: 494 | S44: 477 | T44: 461 | U44: 455 | V44: 427 | W44: 405
B45: 100-199 | C45: 1258 | D45: 1184 | E45: 849 | F45: 811 | G45: 750 | H45: 734 | I45: 668 | J45: 632 | K45: 609 | L45: 570 | M45: 539 | N45: 494 | O45: 467 | P45: 448 | Q45: 436 | R45: 423 | S45: 399 | T45: 403 | U45: 397 | V45: 394 | W45: 375
B46: 200-299 | C46: 353 | D46: 441 | E46: 420 | F46: 395 | G46: 383 | H46: 366 | I46: 349 | J46: 334 | K46: 321 | L46: 295 | M46: 278 | N46: 267 | O46: 256 | P46: 255 | Q46: 235 | R46: 235 | S46: 216 | T46: 210 | U46: 201 | V46: 186 | W46: 178
B47: 300-499 | C47: 124 | D47: 165 | E47: 260 | F47: 268 | G47: 257 | H47: 246 | I47: 252 | J47: 252 | K47: 246 | L47: 248 | M47: 240 | N47: 243 | O47: 246 | P47: 230 | Q47: 235 | R47: 225 | S47: 227 | T47: 206 | U47: 204 | V47: 197 | W47: 198
B48: 500-799 | C48: 25 | D48: 30 | E48: 68 | F48: 79 | G48: 102 | H48: 111 | I48: 113 | J48: 107 | K48: 121 | L48: 122 | M48: 122 | N48: 130 | O48: 127 | P48: 123 | Q48: 118 | R48: 116 | S48: 120 | T48: 128 | U48: 127 | V48: 134 | W48: 130
B49: >800 | C49: 5 | D49: 5 | E49: 25 | F49: 29 | G49: 31 | H49: 38 | I49: 44 | J49: 53 | K49: 52 | L49: 58 | M49: 67 | N49: 63 | O49: 65 | P49: 74 | Q49: 80 | R49: 83 | S49: 83 | T49: 86 | U49: 90 | V49: 87 | W49: 94
B50: Sum | C50: 3991 | D50: 3565 | E50: 2463 | F50: 2391 | G50: 2282 | H50: 2182 | I50: 2038 | J50: 1948 | K50: 1882 | L50: 1814 | M50: 1743 | N50: 1696 | O50: 1672 | P50: 1632 | Q50: 1600 | R50: 1576 | S50: 1522 | T50: 1494 | U50: 1474 | V50: 1425 | W50: 1380
B51: Da/bruk gj.sn. | C51: 107.8907542 | D51: 123.0367461 | E51: 176.8887536 | F51: 181.7766625 | G51: 190.5170903 | H51: 199.5944088 | I51: 212.2134446 | J51: 219.7910678 | K51: 224.9957492 | L51: 232.7624035 | M51: 241.0258176 | N51: 245.0454009 | O51: 247.7278708 | P51: 253.9448529 | Q51: 257.945 | R51: 261.3064721 | S51: 268.6353482 | T51: 274.0809906 | U51: 277.4348711 | V51: 285.1473684 | W51: 291.3927536
A52: Telemark | B52: < 100 | C52: 4726 | D52: 3582 | E52: 1704 | F52: 1584 | G52: 1405 | H52: 1260 | I52: 1090 | J52: 987 | K52: 877 | L52: 810 | M52: 769 | N52: 758 | O52: 770 | P52: 773 | Q52: 732 | R52: 720 | S52: 710 | T52: 715 | U52: 688 | V52: 662 | W52: 655
B53: 100-199 | C53: 449 | D53: 569 | E53: 614 | F53: 626 | G53: 614 | H53: 602 | I53: 577 | J53: 563 | K53: 540 | L53: 520 | M53: 496 | N53: 476 | O53: 481 | P53: 463 | Q53: 461 | R53: 454 | S53: 413 | T53: 401 | U53: 402 | V53: 381 | W53: 375
B54: 200-299 | C54: 62 | D54: 101 | E54: 190 | F54: 182 | G54: 174 | H54: 176 | I54: 172 | J54: 175 | K54: 175 | L54: 177 | M54: 186 | N54: 190 | O54: 172 | P54: 178 | Q54: 173 | R54: 149 | S54: 154 | T54: 144 | U54: 135 | V54: 133 | W54: 142
B55: 300-499 | C55: 19 | D55: 32 | E55: 90 | F55: 103 | G55: 120 | H55: 129 | I55: 144 | J55: 147 | K55: 162 | L55: 160 | M55: 155 | N55: 154 | O55: 151 | P55: 134 | Q55: 123 | R55: 132 | S55: 132 | T55: 131 | U55: 132 | V55: 127 | W55: 121
B56: 500-799 | C56: 4 | D56: - | E56: 17 | F56: 18 | G56: 21 | H56: 23 | I56: 25 | J56: 28 | K56: 31 | L56: 42 | M56: 45 | N56: 42 | O56: 50 | P56: 56 | Q56: 56 | R56: 57 | S56: 59 | T56: 67 | U56: 66 | V56: 73 | W56: 71
B57: >800 | C57: - | D57: - | E57: - | F57: 3 | G57: 4 | H57: 6 | I57: 6 | J57: 10 | K57: 11 | L57: 10 | M57: 12 | N57: 15 | O57: 14 | P57: 14 | Q57: 16 | R57: 19 | S57: 22 | T57: 21 | U57: 23 | V57: 24 | W57: 26
B58: Sum | C58: 5262 | D58: 4287 | E58: 2616 | F58: 2516 | G58: 2338 | H58: 2196 | I58: 2014 | J58: 1910 | K58: 1796 | L58: 1719 | M58: 1663 | N58: 1635 | O58: 1638 | P58: 1618 | Q58: 1561 | R58: 1531 | S58: 1490 | T58: 1479 | U58: 1446 | V58: 1400 | W58: 1390
B59: Da/bruk gj.sn. | C59: 49.64329152 | D59: 60.05948216 | E59: 100.1108563 | F59: 105.0007949 | G59: 112.6210436 | H59: 120.3647541 | I59: 128.5084409 | J59: 136.326178 | K59: 144.2466592 | L59: 149.8214078 | M59: 154.4311485 | N59: 156.7547401 | O59: 155.3956044 | P59: 155.0648949 | Q59: 157.6213965 | R59: 159.478772 | S59: 163.5127517 | T59: 165.3353617 | U59: 168.8582296 | V59: 172.29 | W59: 173.4345324
A60: Aust-Agder | B60: < 100 | C60: 2800 | D60: 1812 | E60: 820 | F60: 728 | G60: 650 | H60: 557 | I60: 455 | J60: 394 | K60: 362 | L60: 328 | M60: 319 | N60: 308 | O60: 326 | P60: 341 | Q60: 318 | R60: 315 | S60: 303 | T60: 315 | U60: 306 | V60: 311 | W60: 322
B61: 100-199 | C61: 182 | D61: 266 | E61: 319 | F61: 307 | G61: 291 | H61: 281 | I61: 282 | J61: 259 | K61: 253 | L61: 236 | M61: 226 | N61: 209 | O61: 198 | P61: 186 | Q61: 190 | R61: 181 | S61: 189 | T61: 187 | U61: 187 | V61: 181 | W61: 176
B62: 200-299 | C62: 18 | D62: 45 | E62: 83 | F62: 94 | G62: 111 | H62: 113 | I62: 113 | J62: 119 | K62: 114 | L62: 113 | M62: 111 | N62: 101 | O62: 106 | P62: 101 | Q62: 98 | R62: 100 | S62: 98 | T62: 87 | U62: 90 | V62: 91 | W62: 92
B63: 300-499 | C63: 7 | D63: 10 | E63: 30 | F63: 39 | G63: 38 | H63: 48 | I63: 51 | J63: 58 | K63: 58 | L63: 66 | M63: 71 | N63: 78 | O63: 71 | P63: 74 | Q63: 70 | R63: 70 | S63: 68 | T63: 81 | U63: 80 | V63: 76 | W63: 73
B64: 500-799 | C64: - | D64: - | E64: 5 | F64: 3 | G64: 7 | H64: 9 | I64: 9 | J64: 11 | K64: 14 | L64: 15 | M64: 15 | N64: 20 | O64: 24 | P64: 23 | Q64: 25 | R64: 32 | S64: 30 | T64: 26 | U64: 27 | V64: 27 | W64: 30
B65: >800 | C65: 0 | D65: 0 | E65: - | F65: - | G65: - | H65: - | I65: - | J65: - | K65: - | L65: - | M65: - | N65: - | O65: - | P65: 3 | Q65: 4 | R65: - | S65: - | T65: - | U65: 3 | V65: 3 | W65: 3
B66: Sum | C66: 3008 | D66: 2134 | E66: 1258 | F66: 1172 | G66: 1098 | H66: 1009 | I66: 911 | J66: 842 | K66: 801 | L66: 758 | M66: 742 | N66: 716 | O66: 725 | P66: 728 | Q66: 705 | R66: 698 | S66: 690 | T66: 698 | U66: 693 | V66: 689 | W66: 696
B67: Da/bruk gj.sn. | C67: 38.39328457 | D67: 53.47188379 | E67: 95.68282989 | F67: 101.4556314 | G67: 107.9881603 | H67: 117.3964321 | I67: 127.4390779 | J67: 137.2684086 | K67: 142.3845194 | L67: 149.7335092 | M67: 152.3261456 | N67: 156.5810056 | O67: 154.6648276 | P67: 151.907967 | Q67: 157.364539 | R67: 158.3280802 | S67: 159.4086957 | T67: 159.5143266 | U67: 161.7561328 | V67: 160.2177068 | W67: 161.4224138
A68: Vest-Agder | B68: < 100 | C68: 3700 | D68: 2588 | E68: 1229 | F68: 1146 | G68: 1030 | H68: 896 | I68: 744 | J68: 626 | K68: 564 | L68: 530 | M68: 536 | N68: 510 | O68: 521 | P68: 528 | Q68: 506 | R68: 519 | S68: 503 | T68: 487 | U68: 485 | V68: 475 | W68: 470
B69: 100-199 | C69: 296 | D69: 468 | E69: 509 | F69: 499 | G69: 489 | H69: 455 | I69: 431 | J69: 413 | K69: 382 | L69: 350 | M69: 331 | N69: 331 | O69: 308 | P69: 311 | Q69: 310 | R69: 294 | S69: 286 | T69: 290 | U69: 271 | V69: 275 | W69: 269
B70: 200-299 | C70: 35 | D70: 87 | E70: 181 | F70: 196 | G70: 197 | H70: 204 | I70: 203 | J70: 209 | K70: 202 | L70: 200 | M70: 197 | N70: 196 | O70: 195 | P70: 173 | Q70: 163 | R70: 162 | S70: 154 | T70: 152 | U70: 144 | V70: 141 | W70: 137
B71: 300-499 | C71: 11 | D71: 19 | E71: 71 | F71: 75 | G71: 89 | H71: 95 | I71: 108 | J71: 103 | K71: 127 | L71: 134 | M71: 138 | N71: 133 | O71: 142 | P71: 141 | Q71: 146 | R71: 138 | S71: 146 | T71: 135 | U71: 137 | V71: 140 | W71: 147
B72: 500-799 | C72: - | D72: - | E72: 4 | F72: 4 | G72: 7 | H72: 9 | I72: 13 | J72: 21 | K72: 21 | L72: 23 | M72: 23 | N72: 30 | O72: 31 | P72: 33 | Q72: 35 | R72: 32 | S72: 33 | T72: 38 | U72: 49 | V72: 47 | W72: 49
B73: >800 | C73: 0 | D73: 0 | E73: 0 | F73: 0 | G73: 0 | H73: - | I73: - | J73: - | K73: - | L73: 3 | M73: 3 | N73: 3 | O73: 3 | P73: 3 | Q73: 4 | R73: 4 | S73: 5 | T73: 8 | U73: 5 | V73: 5 | W73: 4
B74: Sum | C74: 4043 | D74: 3163 | E74: 1994 | F74: 1920 | G74: 1812 | H74: 1660 | I74: 1500 | J74: 1373 | K74: 1297 | L74: 1240 | M74: 1228 | N74: 1203 | O74: 1200 | P74: 1189 | Q74: 1164 | R74: 1149 | S74: 1127 | T74: 1110 | U74: 1091 | V74: 1083 | W74: 1076
B75: Da/bruk gj.sn. | C75: 43.60648034 | D75: 59.0967436 | E75: 101.6850552 | F75: 105.525 | G75: 112.5783664 | H75: 121.2662651 | I75: 132.9933333 | J75: 143.5593591 | K75: 150.5443331 | L75: 158.3145161 | M75: 158 | N75: 162.0108063 | O75: 161.0008333 | P75: 159.3700589 | Q75: 162.3943299 | R75: 159.2732811 | S75: 162.0727595 | T75: 164.6702703 | U75: 167.9963336 | V75: 169.7931671 | W75: 173.0966543
A76: Rogaland | B76: < 100 | C76: 5985 | D76: 4024 | E76: 2185 | F76: 2065 | G76: 2001 | H76: 1907 | I76: 1770 | J76: 1722 | K76: 1598 | L76: 1525 | M76: 1505 | N76: 1497 | O76: 1477 | P76: 1426 | Q76: 1407 | R76: 1399 | S76: 1345 | T76: 1344 | U76: 1252 | V76: 1214 | W76: 1176
B77: 100-199 | C77: 2184 | D77: 2612 | E77: 2168 | F77: 2069 | G77: 2016 | H77: 1981 | I77: 1880 | J77: 1780 | K77: 1661 | L77: 1543 | M77: 1470 | N77: 1382 | O77: 1332 | P77: 1295 | Q77: 1230 | R77: 1205 | S77: 1194 | T77: 1155 | U77: 1129 | V77: 1082 | W77: 1067
B78: 200-299 | C78: 467 | D78: 758 | E78: 1226 | F78: 1238 | G78: 1265 | H78: 1247 | I78: 1218 | J78: 1209 | K78: 1171 | L78: 1114 | M78: 1083 | N78: 1032 | O78: 983 | P78: 939 | Q78: 928 | R78: 891 | S78: 865 | T78: 824 | U78: 810 | V78: 805 | W78: 776
B79: 300-499 | C79: 144 | D79: 231 | E79: 542 | F79: 591 | G79: 615 | H79: 658 | I79: 667 | J79: 689 | K79: 716 | L79: 732 | M79: 747 | N79: 764 | O79: 765 | P79: 767 | Q79: 782 | R79: 778 | S79: 755 | T79: 769 | U79: 762 | V79: 743 | W79: 731
B80: 500-799 | C80: 8 | D80: 28 | E80: 61 | F80: 65 | G80: 70 | H80: 89 | I80: 128 | J80: 143 | K80: 166 | L80: 202 | M80: 217 | N80: 210 | O80: 235 | P80: 253 | Q80: 252 | R80: 275 | S80: 279 | T80: 285 | U80: 291 | V80: 300 | W80: 312
B81: >800 | C81: 3 | D81: 3 | E81: 7 | F81: 9 | G81: 10 | H81: 19 | I81: 20 | J81: 26 | K81: 33 | L81: 41 | M81: 53 | N81: 65 | O81: 69 | P81: 73 | Q81: 81 | R81: 81 | S81: 93 | T81: 99 | U81: 103 | V81: 106 | W81: 114
B82: Sum | C82: 8791 | D82: 7656 | E82: 6189 | F82: 6037 | G82: 5977 | H82: 5901 | I82: 5683 | J82: 5569 | K82: 5345 | L82: 5157 | M82: 5075 | N82: 4950 | O82: 4861 | P82: 4753 | Q82: 4680 | R82: 4629 | S82: 4531 | T82: 4476 | U82: 4347 | V82: 4250 | W82: 4176
B83: Da/bruk gj.sn. | C83: 85.53008759 | D83: 110.6538662 | E83: 156.4493456 | F83: 161.1727679 | G83: 164.6113435 | H83: 171.0989663 | I83: 177.360725 | J83: 181.2939486 | K83: 188.4321796 | L83: 195.9076983 | M83: 200 | N83: 203.4690909 | O83: 206.2705205 | P83: 210.3141174 | Q83: 214.9570513 | R83: 216.7044718 | S83: 220.7291989 | T83: 223.2419571 | U83: 230.1258339 | V83: 234.6216471 | W83: 238.2775383
A84: Hordaland | B84: < 100 | C84: 9424 | D84: 6311 | E84: 3833 | F84: 3670 | G84: 3403 | H84: 3001 | I84: 2654 | J84: 2319 | K84: 2098 | L84: 1894 | M84: 1883 | N84: 1899 | O84: 1804 | P84: 1754 | Q84: 1739 | R84: 1770 | S84: 1752 | T84: 1716 | U84: 1698 | V84: 1701 | W84: 1674
B85: 100-199 | C85: 818 | D85: 1273 | E85: 1433 | F85: 1391 | G85: 1373 | H85: 1269 | I85: 1245 | J85: 1201 | K85: 1142 | L85: 1087 | M85: 1049 | N85: 1015 | O85: 987 | P85: 964 | Q85: 938 | R85: 898 | S85: 859 | T85: 839 | U85: 824 | V85: 790 | W85: 791
B86: 200-299 | C86: 43 | D86: 110 | E86: 271 | F86: 319 | G86: 342 | H86: 343 | I86: 333 | J86: 360 | K86: 372 | L86: 370 | M86: 367 | N86: 371 | O86: 387 | P86: 369 | Q86: 378 | R86: 368 | S86: 357 | T86: 355 | U86: 356 | V86: 352 | W86: 355
B87: 300-499 | C87: 14 | D87: 14 | E87: 54 | F87: 60 | G87: 71 | H87: 79 | I87: 108 | J87: 117 | K87: 139 | L87: 161 | M87: 167 | N87: 159 | O87: 167 | P87: 178 | Q87: 180 | R87: 173 | S87: 184 | T87: 191 | U87: 202 | V87: 196 | W87: 207
B88: 500-799 | C88: 3 | D88: 3 | E88: 3 | F88: 3 | G88: 7 | H88: 11 | I88: 13 | J88: 18 | K88: 22 | L88: 31 | M88: 34 | N88: 39 | O88: 40 | P88: 44 | Q88: 49 | R88: 47 | S88: 48 | T88: 52 | U88: 51 | V88: 54 | W88: 56
B89: >800 | C89: 0 | D89: 0 | E89: - | F89: - | G89: 0 | H89: - | I89: - | J89: - | K89: 3 | L89: 3 | M89: 3 | N89: 6 | O89: 6 | P89: 6 | Q89: 6 | R89: 7 | S89: 5 | T89: 6 | U89: 6 | V89: 9 | W89: 13
B90: Sum | C90: 10302 | D90: 7711 | E90: 5595 | F90: 5444 | G90: 5196 | H90: 4704 | I90: 4354 | J90: 4017 | K90: 3776 | L90: 3546 | M90: 3503 | N90: 3489 | O90: 3391 | P90: 3315 | Q90: 3290 | R90: 3263 | S90: 3205 | T90: 3159 | U90: 3137 | V90: 3102 | W90: 3096
B91: Da/bruk gj.sn. | C91: 46.21626869 | D91: 60.29944236 | E91: 84.20589812 | F91: 87.1688097 | G91: 91.11836028 | H91: 95.0127551 | I91: 101.4379881 | J91: 108.6768733 | K91: 114.3384534 | L91: 120.5693739 | M91: 121 | N91: 121.3327601 | O91: 124.1338838 | P91: 124.8078431 | Q91: 126.3613982 | R91: 125.1939933 | S91: 125.5691108 | T91: 126.421969 | U91: 128.1335671 | V91: 129.3842682 | W91: 131.9257106
A92: Sogn og Fjordane | B92: < 100 | C92: 8078 | D92: 5738 | E92: 3296 | F92: 3069 | G92: 2835 | H92: 2541 | I92: 2236 | J92: 2006 | K92: 1791 | L92: 1669 | M92: 1544 | N92: 1489 | O92: 1455 | P92: 1414 | Q92: 1381 | R92: 1362 | S92: 1349 | T92: 1318 | U92: 1279 | V92: 1252 | W92: 1193
B93: 100-199 | C93: 752 | D93: 1290 | E93: 1760 | F93: 1757 | G93: 1740 | H93: 1667 | I93: 1620 | J93: 1559 | K93: 1509 | L93: 1450 | M93: 1391 | N93: 1315 | O93: 1246 | P93: 1207 | Q93: 1146 | R93: 1107 | S93: 1049 | T93: 1010 | U93: 1014 | V93: 990 | W93: 978
B94: 200-299 | C94: 29 | D94: 76 | E94: 208 | F94: 254 | G94: 305 | H94: 370 | I94: 407 | J94: 451 | K94: 461 | L94: 473 | M94: 497 | N94: 495 | O94: 479 | P94: 485 | Q94: 491 | R94: 465 | S94: 478 | T94: 469 | U94: 448 | V94: 447 | W94: 434
B95: 300-499 | C95: 10 | D95: 7 | E95: 30 | F95: 35 | G95: 43 | H95: 53 | I95: 72 | J95: 80 | K95: 95 | L95: 119 | M95: 137 | N95: 164 | O95: 187 | P95: 178 | Q95: 182 | R95: 181 | S95: 188 | T95: 196 | U95: 198 | V95: 193 | W95: 218
B96: 500-799 | C96: - | D96: - | E96: - | F96: - | G96: 3 | H96: 7 | I96: 7 | J96: 8 | K96: 9 | L96: 11 | M96: 15 | N96: 17 | O96: 18 | P96: 21 | Q96: 23 | R96: 24 | S96: 28 | T96: 34 | U96: 42 | V96: 44 | W96: 46
B97: >800 | C97: 0 | D97: 0 | E97: 0 | F97: 0 | G97: 0 | H97: 0 | I97: 0 | J97: 0 | K97: 0 | L97: 0 | M97: - | N97: 3 | O97: - | P97: 3 | Q97: 3 | R97: 7 | S97: 6 | T97: 6 | U97: 7 | V97: 8 | W97: 7
B98: Sum | C98: 8870 | D98: 7112 | E98: 5295 | F98: 5117 | G98: 4926 | H98: 4638 | I98: 4342 | J98: 4104 | K98: 3865 | L98: 3722 | M98: 3584 | N98: 3483 | O98: 3385 | P98: 3308 | Q98: 3226 | R98: 3146 | S98: 3098 | T98: 3033 | U98: 2988 | V98: 2934 | W98: 2876
B99: Da/bruk gj.sn. | C99: 50.53348365 | D99: 64.23340832 | E99: 90.02549575 | F99: 93.71135431 | G99: 97.91209907 | H99: 103.534282 | I99: 109.9329802 | J99: 115.7636452 | K99: 120.8791721 | L99: 124.7122515 | M99: 129.2578125 | N99: 132.6709733 | O99: 133.6945347 | P99: 134.9942563 | Q99: 136.750775 | R99: 137.3267641 | S99: 138.9838606 | T99: 141.352786 | U99: 143.5508701 | V99: 145.1888207 | W99: 148.5664117
A100: Møre og Romsdal | B100: < 100 | C100: 8465 | D100: 5034 | E100: 2371 | F100: 2219 | G100: 2045 | H100: 1714 | I100: 1506 | J100: 1305 | K100: 1154 | L100: 1097 | M100: 1028 | N100: 993 | O100: 937 | P100: 908 | Q100: 909 | R100: 927 | S100: 881 | T100: 897 | U100: 858 | V100: 859 | W100: 827
B101: 100-199 | C101: 1331 | D101: 1966 | E101: 1774 | F101: 1668 | G101: 1582 | H101: 1472 | I101: 1408 | J101: 1354 | K101: 1257 | L101: 1179 | M101: 1106 | N101: 1020 | O101: 991 | P101: 970 | Q101: 904 | R101: 854 | S101: 821 | T101: 784 | U101: 766 | V101: 748 | W101: 700
B102: 200-299 | C102: 172 | D102: 350 | E102: 686 | F102: 714 | G102: 751 | H102: 783 | I102: 770 | J102: 777 | K102: 807 | L102: 791 | M102: 734 | N102: 722 | O102: 690 | P102: 646 | Q102: 616 | R102: 576 | S102: 561 | T102: 559 | U102: 502 | V102: 477 | W102: 456
B103: 300-499 | C103: 25 | D103: 47 | E103: 170 | F103: 203 | G103: 225 | H103: 258 | I103: 292 | J103: 308 | K103: 324 | L103: 359 | M103: 398 | N103: 423 | O103: 413 | P103: 429 | Q103: 414 | R103: 424 | S103: 425 | T103: 409 | U103: 401 | V103: 400 | W103: 395
B104: 500-799 | C104: - | D104: 3 | E104: 14 | F104: 18 | G104: 25 | H104: 30 | I104: 37 | J104: 45 | K104: 46 | L104: 54 | M104: 68 | N104: 69 | O104: 69 | P104: 73 | Q104: 92 | R104: 93 | S104: 104 | T104: 104 | U104: 116 | V104: 115 | W104: 137
B105: >800 | C105: - | D105: - | E105: 3 | F105: 3 | G105: 3 | H105: 6 | I105: 5 | J105: 6 | K105: 8 | L105: 7 | M105: 8 | N105: 12 | O105: 12 | P105: 17 | Q105: 16 | R105: 22 | S105: 21 | T105: 26 | U105: 34 | V105: 42 | W105: 45
B106: Sum | C106: 9995 | D106: 7402 | E106: 5018 | F106: 4825 | G106: 4631 | H106: 4263 | I106: 4018 | J106: 3795 | K106: 3596 | L106: 3487 | M106: 3342 | N106: 3239 | O106: 3112 | P106: 3043 | Q106: 2951 | R106: 2896 | S106: 2813 | T106: 2779 | U106: 2677 | V106: 2641 | W106: 2560
B107: Da/bruk gj.sn. | C107: 56.62901451 | D107: 80.04782491 | E107: 122.7182144 | F107: 127.5660104 | G107: 133.38523 | H107: 144.2887638 | I107: 151.6891488 | J107: 159.4318841 | K107: 166.554505 | L107: 171.8700889 | M107: 177.6149013 | N107: 181.0225378 | O107: 183.2310411 | P107: 186.7581334 | Q107: 188.1606235 | R107: 190.0089779 | S107: 193.3928191 | T107: 194.3368118 | U107: 200.5069107 | V107: 203.1802348 | W107: 210.8566406
A108: Sør-Trøndelag | B108: < 100 | C108: 5240 | D108: 3093 | E108: 1561 | F108: 1484 | G108: 1317 | H108: 1115 | I108: 957 | J108: 850 | K108: 781 | L108: 759 | M108: 741 | N108: 727 | O108: 743 | P108: 730 | Q108: 735 | R108: 740 | S108: 704 | T108: 687 | U108: 666 | V108: 638 | W108: 618
B109: 100-199 | C109: 2002 | D109: 2313 | E109: 1816 | F109: 1717 | G109: 1618 | H109: 1484 | I109: 1395 | J109: 1292 | K109: 1203 | L109: 1139 | M109: 1100 | N109: 1062 | O109: 994 | P109: 960 | Q109: 904 | R109: 875 | S109: 872 | T109: 860 | U109: 822 | V109: 801 | W109: 751
B110: 200-299 | C110: 410 | D110: 673 | E110: 1005 | F110: 1012 | G110: 1011 | H110: 986 | I110: 956 | J110: 932 | K110: 913 | L110: 877 | M110: 817 | N110: 754 | O110: 728 | P110: 680 | Q110: 649 | R110: 631 | S110: 602 | T110: 596 | U110: 609 | V110: 577 | W110: 545
B111: 300-499 | C111: 135 | D111: 160 | E111: 379 | F111: 428 | G111: 477 | H111: 528 | I111: 567 | J111: 608 | K111: 618 | L111: 628 | M111: 634 | N111: 627 | O111: 610 | P111: 601 | Q111: 592 | R111: 580 | S111: 554 | T111: 531 | U111: 517 | V111: 523 | W111: 536
B112: 500-799 | C112: 9 | D112: 20 | E112: 37 | F112: 49 | G112: 57 | H112: 81 | I112: 90 | J112: 108 | K112: 121 | L112: 135 | M112: 143 | N112: 160 | O112: 160 | P112: 167 | Q112: 182 | R112: 187 | S112: 196 | T112: 215 | U112: 209 | V112: 214 | W112: 219
B113: >800 | C113: 5 | D113: 3 | E113: 7 | F113: 6 | G113: 7 | H113: 10 | I113: 12 | J113: 13 | K113: 22 | L113: 29 | M113: 34 | N113: 44 | O113: 52 | P113: 66 | Q113: 71 | R113: 78 | S113: 85 | T113: 86 | U113: 93 | V113: 94 | W113: 102
B114: Sum | C114: 7801 | D114: 6262 | E114: 4805 | F114: 4696 | G114: 4487 | H114: 4204 | I114: 3977 | J114: 3803 | K114: 3658 | L114: 3567 | M114: 3469 | N114: 3374 | O114: 3287 | P114: 3204 | Q114: 3133 | R114: 3091 | S114: 3013 | T114: 2975 | U114: 2916 | V114: 2847 | W114: 2771
B115: Da/bruk gj.sn. | C115: 87.17369568 | D115: 114.8693708 | E115: 159.1490114 | F115: 163.6362862 | G115: 171.8433252 | H115: 184.0237869 | I115: 193.9300981 | J115: 203.3242177 | K115: 211.5054675 | L115: 216.8020746 | M115: 221 | N115: 226.0444576 | O115: 227.5993307 | P115: 233.2640449 | Q115: 236.6447494 | R115: 240.0200582 | S115: 244.7009625 | T115: 248.0144538 | U115: 252.3734568 | V115: 257.627327 | W115: 265.3680982
A116: Nord-Trøndelag | B116: < 100 | C116: 4192 | D116: 2567 | E116: 1431 | F116: 1330 | G116: 1254 | H116: 1097 | I116: 930 | J116: 838 | K116: 800 | L116: 783 | M116: 772 | N116: 780 | O116: 796 | P116: 749 | Q116: 750 | R116: 753 | S116: 722 | T116: 698 | U116: 649 | V116: 621 | W116: 589
B117: 100-199 | C117: 2117 | D117: 2286 | E117: 1806 | F117: 1697 | G117: 1581 | H117: 1489 | I117: 1403 | J117: 1318 | K117: 1231 | L117: 1164 | M117: 1113 | N117: 1036 | O117: 976 | P117: 948 | Q117: 910 | R117: 888 | S117: 859 | T117: 815 | U117: 810 | V117: 774 | W117: 729
B118: 200-299 | C118: 736 | D118: 928 | E118: 1131 | F118: 1163 | G118: 1181 | H118: 1143 | I118: 1115 | J118: 1058 | K118: 1013 | L118: 954 | M118: 921 | N118: 895 | O118: 862 | P118: 827 | Q118: 783 | R118: 738 | S118: 710 | T118: 678 | U118: 633 | V118: 625 | W118: 605
B119: 300-499 | C119: 277 | D119: 374 | E119: 560 | F119: 587 | G119: 626 | H119: 644 | I119: 689 | J119: 722 | K119: 729 | L119: 747 | M119: 752 | N119: 731 | O119: 717 | P119: 723 | Q119: 711 | R119: 716 | S119: 707 | T119: 700 | U119: 695 | V119: 677 | W119: 667
B120: 500-799 | C120: 39 | D120: 43 | E120: 86 | F120: 98 | G120: 107 | H120: 135 | I120: 142 | J120: 165 | K120: 181 | L120: 206 | M120: 208 | N120: 228 | O120: 249 | P120: 236 | Q120: 257 | R120: 257 | S120: 273 | T120: 273 | U120: 269 | V120: 284 | W120: 302
B121: >800 | C121: 9 | D121: 7 | E121: 12 | F121: 14 | G121: 15 | H121: 19 | I121: 26 | J121: 30 | K121: 42 | L121: 49 | M121: 53 | N121: 59 | O121: 66 | P121: 74 | Q121: 77 | R121: 83 | S121: 89 | T121: 108 | U121: 120 | V121: 126 | W121: 130
B122: Sum | C122: 7370 | D122: 6205 | E122: 5026 | F122: 4889 | G122: 4764 | H122: 4527 | I122: 4305 | J122: 4131 | K122: 3996 | L122: 3903 | M122: 3819 | N122: 3729 | O122: 3666 | P122: 3557 | Q122: 3488 | R122: 3435 | S122: 3360 | T122: 3272 | U122: 3176 | V122: 3107 | W122: 3022
B123: Da/bruk gj.sn. | C123: 107.324152 | D123: 135.6525383 | E123: 176.0867489 | F123: 181.8361628 | G123: 187.7170445 | H123: 197.9951403 | I123: 208.0945412 | J123: 217.1261196 | K123: 224.4617117 | L123: 231.0968486 | M123: 234 | N123: 237.5500134 | O123: 240.6884888 | P123: 247.0385156 | Q123: 249.265195 | R123: 252.9918486 | S123: 258.4321429 | T123: 265.1161369 | U123: 273.0160579 | V123: 279.71355 | W123: 287.3054269
A124: Nordland | B124: < 100 | C124: 7235 | D124: 3382 | E124: 1481 | F124: 1332 | G124: 1208 | H124: 1030 | I124: 873 | J124: 754 | K124: 662 | L124: 639 | M124: 628 | N124: 644 | O124: 621 | P124: 624 | Q124: 598 | R124: 584 | S124: 551 | T124: 522 | U124: 475 | V124: 488 | W124: 447
B125: 100-199 | C125: 1334 | D125: 1557 | E125: 1229 | F125: 1167 | G125: 1100 | H125: 1050 | I125: 987 | J125: 900 | K125: 832 | L125: 769 | M125: 731 | N125: 740 | O125: 729 | P125: 695 | Q125: 670 | R125: 637 | S125: 605 | T125: 585 | U125: 561 | V125: 531 | W125: 511
B126: 200-299 | C126: 243 | D126: 522 | E126: 770 | F126: 783 | G126: 788 | H126: 747 | I126: 740 | J126: 720 | K126: 694 | L126: 695 | M126: 671 | N126: 610 | O126: 569 | P126: 543 | Q126: 540 | R126: 525 | S126: 508 | T126: 487 | U126: 458 | V126: 427 | W126: 409
B127: 300-499 | C127: 37 | D127: 80 | E127: 327 | F127: 386 | G127: 421 | H127: 460 | I127: 478 | J127: 516 | K127: 529 | L127: 530 | M127: 536 | N127: 524 | O127: 529 | P127: 511 | Q127: 494 | R127: 492 | S127: 484 | T127: 467 | U127: 455 | V127: 451 | W127: 431
B128: 500-799 | C128: 3 | D128: 7 | E128: 22 | F128: 23 | G128: 32 | H128: 60 | I128: 76 | J128: 84 | K128: 104 | L128: 110 | M128: 127 | N128: 124 | O128: 136 | P128: 134 | Q128: 144 | R128: 152 | S128: 155 | T128: 176 | U128: 193 | V128: 198 | W128: 213
B129: >800 | C129: - | D129: - | E129: 4 | F129: 4 | G129: 4 | H129: 6 | I129: 8 | J129: 11 | K129: 16 | L129: 23 | M129: 27 | N129: 28 | O129: 25 | P129: 26 | Q129: 27 | R129: 30 | S129: 34 | T129: 38 | U129: 45 | V129: 51 | W129: 61
B130: Sum | C130: 8854 | D130: 5550 | E130: 3833 | F130: 3695 | G130: 3553 | H130: 3353 | I130: 3162 | J130: 2985 | K130: 2837 | L130: 2766 | M130: 2720 | N130: 2670 | O130: 2609 | P130: 2533 | Q130: 2473 | R130: 2420 | S130: 2337 | T130: 2275 | U130: 2187 | V130: 2146 | W130: 2072
B131: Da/bruk gj.sn. | C131: 58.05985995 | D131: 94.07369369 | E131: 151.1951474 | F131: 159.2251691 | G131: 167.230228 | H131: 179.6567253 | I131: 190.7216951 | J131: 202.1929648 | K131: 211.8082481 | L131: 218.6583514 | M131: 224 | N131: 221.8089888 | O131: 224.5776159 | P131: 226.8302408 | Q131: 228.768702 | R131: 232.3710744 | S131: 238.550706 | T131: 245.1894505 | U131: 254.47508 | V131: 258.8122088 | W131: 269.5637066
A132: Troms | B132: < 100 | C132: 4758 | D132: 2203 | E132: 950 | F132: 850 | G132: 736 | H132: 630 | I132: 510 | J132: 422 | K132: 364 | L132: 341 | M132: 320 | N132: 297 | O132: 293 | P132: 282 | Q132: 247 | R132: 239 | S132: 227 | T132: 224 | U132: 203 | V132: 204 | W132: 193
B133: 100-199 | C133: 526 | D133: 670 | E133: 642 | F133: 611 | G133: 596 | H133: 574 | I133: 562 | J133: 497 | K133: 463 | L133: 423 | M133: 409 | N133: 371 | O133: 349 | P133: 335 | Q133: 327 | R133: 320 | S133: 290 | T133: 267 | U133: 247 | V133: 252 | W133: 228
B134: 200-299 | C134: 82 | D134: 198 | E134: 330 | F134: 337 | G134: 321 | H134: 312 | I134: 300 | J134: 310 | K134: 317 | L134: 307 | M134: 292 | N134: 289 | O134: 275 | P134: 264 | Q134: 247 | R134: 227 | S134: 231 | T134: 209 | U134: 194 | V134: 167 | W134: 158
B135: 300-499 | C135: 9 | D135: 26 | E135: 122 | F135: 142 | G135: 164 | H135: 181 | I135: 194 | J135: 201 | K135: 206 | L135: 208 | M135: 208 | N135: 207 | O135: 194 | P135: 189 | Q135: 185 | R135: 199 | S135: 192 | T135: 193 | U135: 194 | V135: 193 | W135: 197
B136: 500-799 | C136: - | D136: 3 | E136: 10 | F136: 10 | G136: 12 | H136: 20 | I136: 24 | J136: 32 | K136: 34 | L136: 41 | M136: 51 | N136: 54 | O136: 64 | P136: 70 | Q136: 67 | R136: 60 | S136: 68 | T136: 70 | U136: 79 | V136: 81 | W136: 86
B137: >800 | C137: 0 | D137: 0 | E137: 0 | F137: 0 | G137: - | H137: - | I137: - | J137: 0 | K137: 0 | L137: 4 | M137: 5 | N137: 6 | O137: 8 | P137: 11 | Q137: 14 | R137: 14 | S137: 15 | T137: 20 | U137: 22 | V137: 26 | W137: 30
B138: Sum | C138: 5376 | D138: 3100 | E138: 2054 | F138: 1950 | G138: 1830 | H138: 1718 | I138: 1591 | J138: 1462 | K138: 1384 | L138: 1324 | M138: 1285 | N138: 1224 | O138: 1183 | P138: 1151 | Q138: 1087 | R138: 1059 | S138: 1023 | T138: 983 | U138: 939 | V138: 923 | W138: 892
B139: Da/bruk gj.sn. | C139: 48.99888393 | D139: 78.19 | E139: 133.003408 | F139: 139.6707692 | G139: 148.7300546 | H139: 157.6949942 | I139: 169.3777498 | J139: 182.1504788 | K139: 189.8822254 | L139: 198.978852 | M139: 204 | N139: 211.5718954 | O139: 215.4852071 | P139: 220.8479583 | Q139: 228.4848206 | R139: 226.3399433 | S139: 235.6490714 | T139: 241.335707 | U139: 255.2811502 | V139: 256.6348862 | W139: 269.4237668
A140: Finnmark | B140: < 100 | C140: 1387 | D140: 650 | E140: 279 | F140: 254 | G140: 212 | H140: 156 | I140: 120 | J140: 96 | K140: 94 | L140: 85 | M140: 83 | N140: 87 | O140: 66 | P140: 79 | Q140: 76 | R140: 72 | S140: 70 | T140: 78 | U140: 84 | V140: 76 | W140: 70
B141: 100-199 | C141: 229 | D141: 204 | E141: 165 | F141: 161 | G141: 126 | H141: 123 | I141: 111 | J141: 104 | K141: 104 | L141: 95 | M141: 83 | N141: 81 | O141: 90 | P141: 84 | Q141: 76 | R141: 73 | S141: 74 | T141: 75 | U141: 64 | V141: 64 | W141: 61
B142: 200-299 | C142: 45 | D142: 115 | E142: 127 | F142: 118 | G142: 123 | H142: 117 | I142: 109 | J142: 108 | K142: 105 | L142: 100 | M142: 99 | N142: 89 | O142: 77 | P142: 83 | Q142: 81 | R142: 79 | S142: 67 | T142: 53 | U142: 51 | V142: 56 | W142: 50
B143: 300-499 | C143: 7 | D143: 32 | E143: 73 | F143: 83 | G143: 91 | H143: 94 | I143: 106 | J143: 110 | K143: 102 | L143: 99 | M143: 100 | N143: 97 | O143: 95 | P143: 81 | Q143: 69 | R143: 64 | S143: 65 | T143: 67 | U143: 61 | V143: 60 | W143: 54
B144: 500-799 | C144: - | D144: - | E144: 14 | F144: 17 | G144: 18 | H144: 17 | I144: 17 | J144: 19 | K144: 24 | L144: 27 | M144: 30 | N144: 32 | O144: 35 | P144: 35 | Q144: 39 | R144: 39 | S144: 39 | T144: 42 | U144: 46 | V144: 42 | W144: 46
B145: >800 | C145: 0 | D145: 0 | E145: 0 | F145: 0 | G145: 0 | H145: - | I145: - | J145: - | K145: - | L145: 3 | M145: 3 | N145: 3 | O145: 5 | P145: 7 | Q145: 9 | R145: 13 | S145: 13 | T145: 14 | U145: 13 | V145: 15 | W145: 17
B146: Sum | C146: 1669 | D146: 1003 | E146: 658 | F146: 633 | G146: 570 | H146: 509 | I146: 464 | J146: 438 | K146: 430 | L146: 409 | M146: 398 | N146: 389 | O146: 368 | P146: 369 | Q146: 350 | R146: 340 | S146: 328 | T146: 329 | U146: 319 | V146: 313 | W146: 298
B147: Da/bruk gj.sn. | C147: 56.45356501 | D147: 95.12562313 | E147: 160.3465046 | F147: 169.5450237 | G147: 184.054386 | H147: 201.9764244 | I147: 217.9676724 | J147: 228.1278539 | K147: 232.1395349 | L147: 244.9168704 | M147: 251 | N147: 251.0565553 | O147: 264.048913 | P147: 253.9457995 | Q147: 270.6085714 | R147: 280.9852941 | S147: 285.125 | T147: 286.9118541 | U147: 289.30721 | V147: 295.7124601 | W147: 307.2348993
A148: Hele landet | B148: < 100 | C148: 94733 | D148: 62000 | E148: 31237 | F148: 29251 | G148: 26566 | H148: 23451 | I148: 20441 | J148: 18290 | K148: 16552 | L148: 15595 | M148: 15046 | N148: 14873 | O148: 14636 | P148: 14359 | Q148: 14052 | R148: 13949 | S148: 13564 | T148: 13403 | U148: 12838 | V148: 12515 | W148: 12102
B149: 100-199 | C149: 21632 | D149: 25330 | E149: 22286 | F149: 21411 | G149: 20541 | H149: 19555 | I149: 18669 | J149: 17754 | K149: 16764 | L149: 15901 | M149: 15195 | N149: 14481 | O149: 13867 | P149: 13440 | Q149: 12929 | R149: 12504 | S149: 12060 | T149: 11679 | U149: 11449 | V149: 11028 | W149: 10659
B150: 200-299 | C150: 5652 | D150: 7928 | E150: 10367 | F150: 10556 | G150: 10726 | H150: 10563 | I150: 10404 | J150: 10354 | K150: 10186 | L150: 9836 | M150: 9534 | N150: 9198 | O150: 8797 | P150: 8444 | Q150: 8244 | R150: 7952 | S150: 7692 | T150: 7404 | U150: 7157 | V150: 6967 | W150: 6760
B151: 300-499 | C151: 2576 | D151: 3266 | E151: 5273 | F151: 5613 | G151: 5878 | H151: 6209 | I151: 6424 | J151: 6631 | K151: 6817 | L151: 6963 | M151: 7064 | N151: 7031 | O151: 6988 | P151: 6857 | Q151: 6770 | R151: 6674 | S151: 6539 | T151: 6490 | U151: 6385 | V151: 6305 | W151: 6283
B152: 500-799 | C152: 575 | D152: 714 | E152: 1287 | F152: 1378 | G152: 1514 | H152: 1642 | I152: 1757 | J152: 1868 | K152: 2013 | L152: 2180 | M152: 2251 | N152: 2315 | O152: 2443 | P152: 2490 | Q152: 2541 | R152: 2568 | S152: 2659 | T152: 2773 | U152: 2844 | V152: 2897 | W152: 2983
B153: >800 | C153: 134 | D153: 144 | E153: 290 | F153: 330 | G153: 382 | H153: 470 | I153: 536 | J153: 610 | K153: 671 | L153: 743 | M153: 845 | N153: 927 | O153: 957 | P153: 1034 | Q153: 1076 | R153: 1147 | S153: 1212 | T153: 1273 | U153: 1345 | V153: 1409 | W153: 1482
B154: Sum | C154: 125302 | D154: 99382 | E154: 70740 | F154: 68539 | G154: 65607 | H154: 61890 | I154: 58231 | J154: 55507 | K154: 53003 | L154: 51218 | M154: 49935 | N154: 48825 | O154: 47688 | P154: 46624 | Q154: 45612 | R154: 44794 | S154: 43726 | T154: 43022 | U154: 42018 | V154: 41121 | W154: 40269
B155: 1000 dekar | C155: 9539 | D155: 9909 | E155: 10382 | F155: 10421.798 | G155: 10467.172 | H155: 10466.217 | I155: 10404 | J155: 10397.288 | K155: 10354.236 | L155: 10359.751 | M155: 10320.198 | N155: 10244.883 | O155: 10142.874 | P155: 10060 | Q155: 9989.187 | R155: 9928.634 | S155: 9871.428 | T155: 9867.679 | U155: 9860.355 | V155: 9836.608 | W155: 9840.958
B156: Da/bruk gj.sn. | C156: 76.12807457 | D156: 99.70618422 | E156: 146.7627933 | F156: 152.0564642 | G156: 159.5435243 | H156: 169.1099855 | I156: 178.6677199 | J156: 187.3148972 | K156: 195.3518857 | L156: 202.267777 | M156: 206.6726344 | N156: 209.8286329 | O156: 212.6923754 | P156: 215.936063 | Q156: 219.0034859 | R156: 221.65098 | S156: 225.7564836 | T156: 229.3635582 | U156: 234.6697844 | V156: 239.2113032 | W156: 244.3804912
A157: 1) Der hvor det er mindre enn 3 enheter i gruppen er enhetene lagt til nærmeste gruppe. Dette pga anonymisering.

Sheet J.bedr. korn (hidden)
A1: Antall jordbruksbedrifter med korn etter størrelsen på kornarealet. Fylkestall, 1000 dekar
B3: Arealgruppe | C3: 1979 | E3: 1989 | G3: 1999 | I3: 2000 | K3: 2001 | M3: 2002 | O3: 2003 | Q3: 2004 | S3: 2005 | U3: 2006 | W3: 2007 | Y3: 2008 | AA3: 2009 | AC3: 2010 | AE3: 2011 | AG3: 2012 | AI3: 2013 | AK3: 2014 | AM3: 2015 | AO3: 2016 | AQ3: 2017
C4: Antall | D4: % | E4: Antall | F4: % | G4: Antall | H4: % | I4: Antall | J4: % | K4: Antall | L4: % | M4: Antall | N4: % | O4: Antall | P4: % | Q4: Antall | R4: % | S4: Antall | T4: % | U4: Antall | V4: % | W4: Antall | X4: % | Y4: Antall | Z4: % | AA4: Antall | AB4: % | AC4: Antall | AD4: % | AE4: Antall | AF4: % | AG4: Antall | AH4: % | AI4: Antall | AJ4: % | AK4: Antall | AL4: % | AM4: Antall | AN4: % | AO4: Antall | AP4: % | AQ4: Antall | AR4: %
A5: Østfold | B5: <99 | C5: 2667 | D5: 54.59570113 | E5: 2000 | F5: 44.38526409 | G5: 1070 | H5: 32.25806452 | I5: 972 | J5: 30.49890179 | K5: 853 | L5: 27.85760941 | M5: 763 | N5: 26.35578584 | O5: 649 | P5: 24.14434524 | Q5: 598 | R5: 22.79832253 | S5: 536 | T5: 21.41430284 | U5: 484 | V5: 20.15826739 | W5: 461 | X5: 19.76843911 | Y5: 440 | Z5: 19.41747573 | AA5: 410 | AB5: 18.84191176 | AC5: 381 | AD5: 18.23839157 | AE5: 381 | AF5: 18.45930233 | AG5: 357 | AH5: 17.85 | AI5: 335 | AJ5: 17.42976067 | AK5: 305 | AL5: 16.30144308 | AM5: 292 | AN5: 15.89548176 | AO5: 292 | AP5: 15.98248495 | AQ5: 295 | AR5: 16.26240353
B6: 100-199 | C6: 1343 | D6: 27.49232344 | E6: 1407 | F6: 31.22503329 | G6: 1048 | H6: 31.59481459 | I6: 1011 | J6: 31.72262316 | K6: 989 | L6: 32.29915088 | M6: 924 | N6: 31.91709845 | O6: 851 | P6: 31.65922619 | Q6: 826 | R6: 31.49065955 | S6: 765 | T6: 30.56332401 | U6: 749 | V6: 31.19533528 | W6: 713 | X6: 30.57461407 | Y6: 695 | Z6: 30.67078553 | AA6: 683 | AB6: 31.38786765 | AC6: 619 | AD6: 29.63140258 | AE6: 590 | AF6: 28.58527132 | AG6: 578 | AH6: 28.9 | AI6: 550 | AJ6: 28.61602497 | AK6: 535 | AL6: 28.59433458 | AM6: 520 | AN6: 28.30702232 | AO6: 497 | AP6: 27.20306513 | AQ6: 484 | AR6: 26.68136714
B7: 200-299 | C7: 522 | D7: 10.68577277 | E7: 630 | F7: 13.98135819 | G7: 582 | H7: 17.54597528 | I7: 565 | J7: 17.7282711 | K7: 568 | L7: 18.54996734 | M7: 546 | N7: 18.86010363 | O7: 502 | P7: 18.67559524 | Q7: 505 | R7: 19.25276401 | S7: 498 | T7: 19.89612465 | U7: 478 | V7: 19.90837151 | W7: 486 | X7: 20.84048027 | Y7: 456 | Z7: 20.12356575 | AA7: 419 | AB7: 19.25551471 | AC7: 416 | AD7: 19.91383437 | AE7: 412 | AF7: 19.96124031 | AG7: 405 | AH7: 20.25 | AI7: 388 | AJ7: 20.18730489 | AK7: 382 | AL7: 20.41688936 | AM7: 374 | AN7: 20.35928144 | AO7: 382 | AP7: 20.90859332 | AQ7: 372 | AR7: 20.50716648
B8: 300-499 | C8: 300 | D8: 6.141248721 | E8: 385 | F8: 8.544163338 | G8: 444 | H8: 13.38558939 | I8: 453 | J8: 14.21399435 | K8: 440 | L8: 14.36969301 | M8: 436 | N8: 15.06044905 | O8: 448 | P8: 16.66666667 | Q8: 453 | R8: 17.27030118 | S8: 464 | T8: 18.53775469 | U8: 442 | V8: 18.40899625 | W8: 431 | X8: 18.48198971 | Y8: 424 | Z8: 18.7113857 | AA8: 404 | AB8: 18.56617647 | AC8: 417 | AD8: 19.96170416 | AE8: 420 | AF8: 20.34883721 | AG8: 399 | AH8: 19.95 | AI8: 385 | AJ8: 20.03121748 | AK8: 382 | AL8: 20.41688936 | AM8: 377 | AN8: 20.52259118 | AO8: 357 | AP8: 19.54022989 | AQ8: 360 | AR8: 19.84564498
B9: 500-799 | C9: 45 | D9: 0.9211873081 | E9: 74 | F9: 1.642254771 | G9: 142 | H9: 4.280976786 | I9: 149 | J9: 4.675243175 | K9: 165 | L9: 5.388634879 | M9: 166 | N9: 5.73402418 | O9: 170 | P9: 6.324404762 | Q9: 173 | R9: 6.595501334 | S9: 166 | T9: 6.63204155 | U9: 165 | V9: 6.87213661 | W9: 160 | X9: 6.861063465 | Y9: 166 | Z9: 7.325684025 | AA9: 176 | AB9: 8.088235294 | AC9: 170 | AD9: 8.137865007 | AE9: 175 | AF9: 8.478682171 | AG9: 171 | AH9: 8.55 | AI9: 167 | AJ9: 8.688865765 | AK9: 166 | AL9: 8.872260823 | AM9: 174 | AN9: 9.471965161 | AO9: 192 | AP9: 10.5090312 | AQ9: 192 | AR9: 10.58434399
B10: >800 | C10: 8 | D10: 0.1637666325 | E10: 10 | F10: 0.2219263205 | G10: 31 | H10: 0.9345794393 | I10: 37 | J10: 1.160966426 | K10: 47 | L10: 1.534944481 | M10: 60 | N10: 2.07253886 | O10: 68 | P10: 2.529761905 | Q10: 68 | R10: 2.592451392 | S10: 74 | T10: 2.956452257 | U10: 83 | V10: 3.456892961 | W10: 81 | X10: 3.473413379 | Y10: 85 | Z10: 3.751103266 | AA10: 84 | AB10: 3.860294118 | AC10: 86 | AD10: 4.116802298 | AE10: 86 | AF10: 4.166666667 | AG10: 90 | AH10: 4.5 | AI10: 97 | AJ10: 5.046826223 | AK10: 101 | AL10: 5.39818279 | AM10: 100 | AN10: 5.443658138 | AO10: 107 | AP10: 5.856595512 | AQ10: 111 | AR10: 6.11907387
B11: Antall bruk | C11: 4885 | E11: 4506 | G11: 3317 | I11: 3187 | K11: 3062 | M11: 2895 | O11: 2688 | Q11: 2623 | S11: 2503 | U11: 2401 | W11: 2332 | Y11: 2266 | AA11: 2176 | AC11: 2089 | AE11: 2064 | AG11: 2000 | AI11: 1922 | AK11: 1871 | AM11: 1837 | AO11: 1827 | AQ11: 1814
B12: 1000 daa | C12: 584.631 | E12: 648.278 | G12: 611.927 | I12: 618.361 | K12: 610.171 | M12: 611.319 | O12: 611.08 | Q12: 613.937 | S12: 607.865 | U12: 619.606 | W12: 610.06 | Y12: 602.139 | AA12: 591.231 | AC12: 583.928 | AE12: 581.868 | AG12: 577.053 | AI12: 569.28 | AK12: 563.965 | AM12: 562.021 | AO12: 569.479 | AQ12: 571.362
A13: Akershus/Oslo | B13: <99 | C13: 2756 | D13: 57.16656295 | E13: 1944 | F13: 45.42056075 | G13: 899 | H13: 30.24899058 | I13: 856 | J13: 29.67071057 | K13: 779 | L13: 27.86123033 | M13: 701 | N13: 26.43288084 | O13: 624 | P13: 24.74226804 | Q13: 560 | R13: 22.75497765 | S13: 509 | T13: 21.53130288 | U13: 449 | V13: 19.9113082 | W13: 411 | X13: 19.07192575 | Y13: 402 | Z13: 19.1246432 | AA13: 368 | AB13: 18.22684497 | AC13: 351 | AD13: 18.03699897 | AE13: 343 | AF13: 18.06213797 | AG13: 320 | AH13: 17.59208356 | AI13: 290 | AJ13: 16.93925234 | AK13: 298 | AL13: 17.60189014 | AM13: 281 | AN13: 16.89717378 | AO13: 274 | AP13: 16.7995095 | AQ13: 252 | AR13: 16
B14: 100-199 | C14: 1121 | D14: 23.25243725 | E14: 1105 | F14: 25.81775701 | G14: 825 | H14: 27.75908479 | I14: 787 | J14: 27.27902946 | K14: 761 | L14: 27.21745351 | M14: 711 | N14: 26.80995475 | O14: 694 | P14: 27.51784298 | Q14: 684 | R14: 27.79357985 | S14: 653 | T14: 27.62267343 | U14: 627 | V14: 27.80487805 | W14: 600 | X14: 27.84222738 | Y14: 578 | Z14: 27.49762131 | AA14: 551 | AB14: 27.29073799 | AC14: 520 | AD14: 26.72147996 | AE14: 507 | AF14: 26.69826224 | AG14: 476 | AH14: 26.1682243 | AI14: 450 | AJ14: 26.28504673 | AK14: 417 | AL14: 24.63083284 | AM14: 415 | AN14: 24.95490078 | AO14: 394 | AP14: 24.15695892 | AQ14: 382 | AR14: 24.25396825
B15: 200-299 | C15: 523 | D15: 10.84837171 | E15: 620 | F15: 14.48598131 | G15: 503 | H15: 16.92462988 | I15: 492 | J15: 17.05372617 | K15: 490 | L15: 17.52503577 | M15: 459 | N15: 17.30769231 | O15: 440 | P15: 17.44647105 | Q15: 451 | R15: 18.32588379 | S15: 436 | T15: 18.44331641 | U15: 425 | V15: 18.84700665 | W15: 415 | X15: 19.2575406 | Y15: 382 | Z15: 18.17316841 | AA15: 364 | AB15: 18.02872709 | AC15: 353 | AD15: 18.1397739 | AE15: 332 | AF15: 17.48288573 | AG15: 316 | AH15: 17.37218252 | AI15: 288 | AJ15: 16.82242991 | AK15: 301 | AL15: 17.77909037 | AM15: 290 | AN15: 17.4383644 | AO15: 298 | AP15: 18.27099939 | AQ15: 283 | AR15: 17.96825397
B16: 300-499 | C16: 303 | D16: 6.285003111 | E16: 456 | F16: 10.65420561 | G16: 506 | H16: 17.02557201 | I16: 491 | J16: 17.01906412 | K16: 485 | L16: 17.34620887 | M16: 479 | N16: 18.06184012 | O16: 448 | P16: 17.76367962 | Q16: 454 | R16: 18.44778545 | S16: 448 | T16: 18.95093063 | U16: 433 | V16: 19.20177384 | W16: 403 | X16: 18.70069606 | Y16: 414 | Z16: 19.69552807 | AA16: 412 | AB16: 20.40614165 | AC16: 392 | AD16: 20.14388489 | AE16: 383 | AF16: 20.16850974 | AG16: 365 | AH16: 20.06597031 | AI16: 336 | AJ16: 19.62616822 | AK16: 331 | AL16: 19.55109273 | AM16: 319 | AN16: 19.18220084 | AO16: 312 | AP16: 19.12936849 | AQ16: 307 | AR16: 19.49206349
B17: 500-799 | C17: 101 | D17: 2.095001037 | E17: 129 | F17: 3.014018692 | G17: 188 | H17: 6.325706595 | I17: 205 | J17: 7.105719237 | K17: 218 | L17: 7.796852647 | M17: 225 | N17: 8.484162896 | O17: 234 | P17: 9.278350515 | Q17: 225 | R17: 9.142624949 | S17: 226 | T17: 9.560067682 | U17: 223 | V17: 9.889135255 | W17: 220 | X17: 10.20881671 | Y17: 213 | Z17: 10.13320647 | AA17: 205 | AB17: 10.15354136 | AC17: 202 | AD17: 10.38026721 | AE17: 204 | AF17: 10.74249605 | AG17: 208 | AH17: 11.43485432 | AI17: 208 | AJ17: 12.14953271 | AK17: 206 | AL17: 12.16774956 | AM17: 219 | AN17: 13.16897174 | AO17: 213 | AP17: 13.05947272 | AQ17: 203 | AR17: 12.88888889
B18: >800 | C18: 17 | D18: 0.3526239369 | E18: 26 | F18: 0.6074766355 | G18: 51 | H18: 1.716016151 | I18: 54 | J18: 1.871750433 | K18: 63 | L18: 2.253218884 | M18: 77 | N18: 2.90346908 | O18: 82 | P18: 3.251387787 | Q18: 87 | R18: 3.535148314 | S18: 92 | T18: 3.891708968 | U18: 98 | V18: 4.345898004 | W18: 106 | X18: 4.918793503 | Y18: 113 | Z18: 5.37583254 | AA18: 119 | AB18: 5.894006934 | AC18: 128 | AD18: 6.577595067 | AE18: 130 | AF18: 6.845708268 | AG18: 134 | AH18: 7.366684992 | AI18: 140 | AJ18: 8.177570093 | AK18: 140 | AL18: 8.269344359 | AM18: 139 | AN18: 8.358388455 | AO18: 140 | AP18: 8.583690987 | AQ18: 148 | AR18: 9.396825397
B19: Antall bruk | C19: 4821 | E19: 4280 | G19: 2972 | I19: 2885 | K19: 2796 | M19: 2652 | O19: 2522 | Q19: 2461 | S19: 2364 | U19: 2255 | W19: 2155 | Y19: 2102 | AA19: 2019 | AC19: 1946 | AE19: 1899 | AG19: 1819 | AI19: 1712 | AK19: 1693 | AM19: 1663 | AO19: 1631 | AQ19: 1575
B20: 1000 daa | C20: 592.156 | E20: 673.608 | G20: 640.532 | I20: 639.932 | K20: 633.583 | M20: 628.4 | O20: 635.195 | Q20: 636.133 | S20: 630.099 | U20: 637.873 | W20: 629.317 | Y20: 624.67 | AA20: 612.304 | AC20: 605.855 | AE20: 604.724 | AG20: 599.896 | AI20: 585.825 | AK20: 587.409 | AM20: 584.77 | AO20: 582.463 | AQ20: 575.858
A21: Hedmark | B21: <99 | C21: 5090 | D21: 74.17662489 | E21: 3512 | F21: 63.58862937 | G21: 1548 | H21: 44.2791762 | I21: 1432 | J21: 42.66984505 | K21: 1286 | L21: 40.49118388 | M21: 1096 | N21: 37.12737127 | O21: 921 | P21: 33.96017699 | Q21: 839 | R21: 32.14559387 | S21: 730 | T21: 30.07828595 | U21: 638 | V21: 27.89680805 | W21: 597 | X21: 27.03804348 | Y21: 575 | Z21: 26.69452182 | AA21: 541 | AB21: 26.1352657 | AC21: 474 | AD21: 24.15902141 | AE21: 434 | AF21: 23.17138281 | AG21: 390 | AH21: 22.03389831 | AI21: 337 | AJ21: 20.49878345 | AK21: 333 | AL21: 20.36697248 | AM21: 325 | AN21: 20.29981262 | AO21: 316 | AP21: 20.12738854 | AQ21: 288 | AR21: 18.9848385
B22: 100-199 | C22: 1001 | D22: 14.58758379 | E22: 1089 | F22: 19.71754481 | G22: 899 | H22: 25.71510297 | I22: 860 | J22: 25.62574493 | K22: 823 | L22: 25.91309824 | M22: 780 | N22: 26.42276423 | O22: 725 | P22: 26.73303835 | Q22: 720 | R22: 27.5862069 | S22: 649 | T22: 26.7408323 | U22: 646 | V22: 28.24661128 | W22: 622 | X22: 28.17028986 | Y22: 616 | Z22: 28.59795729 | AA22: 563 | AB22: 27.19806763 | AC22: 531 | AD22: 27.06422018 | AE22: 497 | AF22: 26.53497064 | AG22: 466 | AH22: 26.32768362 | AI22: 433 | AJ22: 26.33819951 | AK22: 426 | AL22: 26.05504587 | AM22: 398 | AN22: 24.85946284 | AO22: 376 | AP22: 23.94904459 | AQ22: 357 | AR22: 23.53328939
B23: 200-299 | C23: 384 | D23: 5.596036141 | E23: 456 | F23: 8.256382401 | G23: 447 | H23: 12.78604119 | I23: 444 | J23: 13.23003576 | K23: 436 | L23: 13.7279597 | M23: 440 | N23: 14.90514905 | O23: 427 | P23: 15.74483776 | Q23: 405 | R23: 15.51724138 | S23: 397 | T23: 16.35764318 | U23: 360 | V23: 15.74114561 | W23: 361 | X23: 16.34963768 | Y23: 323 | Z23: 14.99535747 | AA23: 306 | AB23: 14.7826087 | AC23: 302 | AD23: 15.39245668 | AE23: 302 | AF23: 16.12386546 | AG23: 278 | AH23: 15.70621469 | AI23: 257 | AJ23: 15.63260341 | AK23: 254 | AL23: 15.5351682 | AM23: 260 | AN23: 16.23985009 | AO23: 251 | AP23: 15.98726115 | AQ23: 240 | AR23: 15.82069875
B24: 300-499 | C24: 282 | D24: 4.109589041 | E24: 350 | F24: 6.337135615 | G24: 412 | H24: 11.78489703 | I24: 416 | J24: 12.39570918 | K24: 415 | L24: 13.06675063 | M24: 403 | N24: 13.65176152 | O24: 394 | P24: 14.5280236 | Q24: 387 | R24: 14.82758621 | S24: 380 | T24: 15.65718995 | U24: 378 | V24: 16.52820289 | W24: 367 | X24: 16.62137681 | Y24: 370 | Z24: 17.17734448 | AA24: 372 | AB24: 17.97101449 | AC24: 368 | AD24: 18.75637105 | AE24: 342 | AF24: 18.25947678 | AG24: 334 | AH24: 18.8700565 | AI24: 316 | AJ24: 19.22141119 | AK24: 312 | AL24: 19.08256881 | AM24: 295 | AN24: 18.42598376 | AO24: 297 | AP24: 18.91719745 | AQ24: 295 | AR24: 19.44627554
B25: 500-799 | C25: 88 | D25: 1.282424949 | E25: 93 | F25: 1.683867463 | G25: 147 | H25: 4.204805492 | I25: 166 | J25: 4.94636472 | K25: 164 | L25: 5.16372796 | M25: 175 | N25: 5.928184282 | O25: 183 | P25: 6.747787611 | Q25: 189 | R25: 7.24137931 | S25: 195 | T25: 8.03461063 | U25: 190 | V25: 8.307826847 | W25: 186 | X25: 8.423913043 | Y25: 190 | Z25: 8.820798514 | AA25: 200 | AB25: 9.661835749 | AC25: 189 | AD25: 9.633027523 | AE25: 195 | AF25: 10.41110518 | AG25: 187 | AH25: 10.56497175 | AI25: 185 | AJ25: 11.25304136 | AK25: 191 | AL25: 11.68195719 | AM25: 202 | AN25: 12.6171143 | AO25: 203 | AP25: 12.92993631 | AQ25: 204 | AR25: 13.44759394
B26: >800 | C26: 17 | D26: 0.2477411833 | E26: 23 | F26: 0.4164403404 | G26: 43 | H26: 1.229977117 | I26: 38 | J26: 1.132300358 | K26: 52 | L26: 1.637279597 | M26: 58 | N26: 1.964769648 | O26: 62 | P26: 2.286135693 | Q26: 70 | R26: 2.681992337 | S26: 76 | T26: 3.131437989 | U26: 75 | V26: 3.279405334 | W26: 75 | X26: 3.39673913 | Y26: 80 | Z26: 3.714020427 | AA26: 88 | AB26: 4.251207729 | AC26: 98 | AD26: 4.99490316 | AE26: 103 | AF26: 5.499199146 | AG26: 115 | AH26: 6.497175141 | AI26: 116 | AJ26: 7.055961071 | AK26: 119 | AL26: 7.278287462 | AM26: 121 | AN26: 7.55777639 | AO26: 127 | AP26: 8.089171975 | AQ26: 133 | AR26: 8.767303889
B27: Antall bruk | C27: 6862 | E27: 5523 | G27: 3496 | I27: 3356 | K27: 3176 | M27: 2952 | O27: 2712 | Q27: 2610 | S27: 2427 | U27: 2287 | W27: 2208 | Y27: 2154 | AA27: 2070 | AC27: 1962 | AE27: 1873 | AG27: 1770 | AI27: 1644 | AK27: 1635 | AM27: 1601 | AO27: 1570 | AQ27: 1517
B28: 1000 daa | C28: 591.2 | E28: 614.332 | G28: 595.016 | I28: 593.114 | K28: 590.437 | M28: 585.966 | O28: 582.648 | Q28: 586.653 | S28: 580.006 | U28: 569.108 | W28: 559.877 | Y28: 557.147 | AA28: 558.733 | AC28: 554.881 | AE28: 546.885 | AG28: 539.125 | AI28: 521.025 | AK28: 523.279 | AM28: 524.056 | AO28: 525.477 | AQ28: 524.598
A29: Oppland | B29: <99 | C29: 3607 | D29: 80.28043623 | E29: 2355 | F29: 69.92280285 | G29: 1115 | H29: 54.15250121 | I29: 1058 | J29: 52.87356322 | K29: 1015 | L29: 52.21193416 | M29: 948 | N29: 50.94035465 | O29: 840 | P29: 48.66743917 | Q29: 742 | R29: 45.27150702 | S29: 707 | T29: 44.77517416 | U29: 642 | V29: 43.79263302 | W29: 581 | X29: 42.25454545 | Y29: 575 | Z29: 42.87844892 | AA29: 538 | AB29: 41.99843872 | AC29: 507 | AD29: 41.1525974 | AE29: 493 | AF29: 41.32439229 | AG29: 449 | AH29: 39.98219056 | AI29: 433 | AJ29: 41.75506268 | AK29: 407 | AL29: 40.90452261 | AM29: 358 | AN29: 37.72391992 | AO29: 369 | AP29: 38.2780083 | AQ29: 372 | AR29: 38.70967742
B30: 100-199 | C30: 618 | D30: 13.75472958 | E30: 665 | F30: 19.74465558 | G30: 548 | H30: 26.61486158 | I30: 539 | J30: 26.93653173 | K30: 527 | L30: 27.1090535 | M30: 507 | N30: 27.24341752 | O30: 486 | P30: 28.1575898 | Q30: 493 | R30: 30.07931666 | S30: 476 | T30: 30.14566181 | U30: 442 | V30: 30.15006821 | W30: 428 | X30: 31.12727273 | Y30: 404 | Z30: 30.12677107 | AA30: 390 | AB30: 30.44496487 | AC30: 370 | AD30: 30.03246753 | AE30: 353 | AF30: 29.58927075 | AG30: 333 | AH30: 29.65271594 | AI30: 279 | AJ30: 26.9045323 | AK30: 284 | AL30: 28.54271357 | AM30: 282 | AN30: 29.71548999 | AO30: 285 | AP30: 29.56431535 | AQ30: 281 | AR30: 29.24037461
B31: 200-299 | C31: 177 | D31: 3.939461384 | E31: 230 | F31: 6.828978622 | G31: 246 | H31: 11.94754735 | I31: 255 | J31: 12.74362819 | K31: 237 | L31: 12.19135802 | M31: 234 | N31: 12.57388501 | O31: 231 | P31: 13.38354577 | Q31: 224 | R31: 13.66687004 | S31: 217 | T31: 13.74287524 | U31: 210 | V31: 14.32469304 | W31: 201 | X31: 14.61818182 | Y31: 197 | Z31: 14.69052946 | AA31: 187 | AB31: 14.59797034 | AC31: 181 | AD31: 14.69155844 | AE31: 174 | AF31: 14.58507963 | AG31: 162 | AH31: 14.42564559 | AI31: 156 | AJ31: 15.04339441 | AK31: 132 | AL31: 13.26633166 | AM31: 139 | AN31: 14.64699684 | AO31: 138 | AP31: 14.3153527 | AQ31: 137 | AR31: 14.25598335
B32: 300-499 | C32: 84 | D32: 1.869574894 | E32: 104 | F32: 3.087885986 | G32: 118 | H32: 5.730937348 | I32: 121 | J32: 6.046976512 | K32: 133 | L32: 6.841563786 | M32: 136 | N32: 7.307898979 | O32: 130 | P32: 7.531865585 | Q32: 138 | R32: 8.419768151 | S32: 139 | T32: 8.803039899 | U32: 131 | V32: 8.935879945 | W32: 123 | X32: 8.945454545 | Y32: 117 | Z32: 8.724832215 | AA32: 115 | AB32: 8.977361436 | AC32: 119 | AD32: 9.659090909 | AE32: 118 | AF32: 9.891031014 | AG32: 121 | AH32: 10.7747106 | AI32: 116 | AJ32: 11.18611379 | AK32: 117 | AL32: 11.75879397 | AM32: 111 | AN32: 11.69652266 | AO32: 110 | AP32: 11.41078838 | AQ32: 107 | AR32: 11.13423517
B33: 500-799 | C33: 6 | D33: 0.1335410639 | E33: 12 | F33: 0.3562945368 | G33: 30 | H33: 1.45701797 | I33: 26 | J33: 1.299350325 | K33: 27 | L33: 1.388888889 | M33: 28 | N33: 1.504567437 | O33: 32 | P33: 1.853997683 | Q33: 33 | R33: 2.013422819 | S33: 31 | T33: 1.963267891 | U33: 31 | V33: 2.114597544 | W33: 33 | X33: 2.4 | Y33: 35 | Z33: 2.609992543 | AA33: 37 | AB33: 2.888368462 | AC33: 42 | AD33: 3.409090909 | AE33: 43 | AF33: 3.604358759 | AG33: 45 | AH33: 4.007123776 | AI33: 38 | AJ33: 3.664416586 | AK33: 39 | AL33: 3.91959799 | AM33: 45 | AN33: 4.741833509 | AO33: 45 | AP33: 4.668049793 | AQ33: 49 | AR33: 5.098855359
B34: >800 | C34: 1 | D34: 0.02225684398 | E34: - | F34: 0.0593824228 | G34: - | H34: 0.09713453133 | I34: - | J34: 0.09995002499 | K34: 5 | L34: 0.2572016461 | M34: 8 | N34: 0.4298764105 | O34: 7 | P34: 0.405561993 | Q34: 9 | R34: 0.5491153142 | S34: 9 | T34: 0.5699810006 | U34: 10 | V34: 0.6821282401 | W34: 9 | X34: 0.6545454545 | Y34: 13 | Z34: 0.9694258016 | AA34: 14 | AB34: 1.092896175 | AC34: 13 | AD34: 1.055194805 | AE34: 12 | AF34: 1.005867561 | AG34: 13 | AH34: 1.157613535 | AI34: 15 | AJ34: 1.446480231 | AK34: 16 | AL34: 1.608040201 | AM34: 14 | AN34: 1.475237092 | AO34: 17 | AP34: 1.763485477 | AQ34: 15 | AR34: 1.560874089
B35: Antall bruk | C35: 4493 | E35: 3368 | G35: 2059 | I35: 2001 | K35: 1944 | M35: 1861 | O35: 1726 | Q35: 1639 | S35: 1579 | U35: 1466 | W35: 1375 | Y35: 1341 | AA35: 1281 | AC35: 1232 | AE35: 1193 | AG35: 1123 | AI35: 1037 | AK35: 995 | AM35: 949 | AO35: 964 | AQ35: 961
B36: 1000 daa | C36: 279.667 | E36: 281.783 | G36: 249.885 | I36: 246.885 | K36: 245.553 | M36: 243.239 | O36: 237.492 | Q36: 237.933 | S36: 233.578 | U36: 226.06 | W36: 216.082 | Y36: 213.865 | AA36: 209.877 | AC36: 206.423 | AE36: 202.562 | AG36: 197.535 | AI36: 183.41 | AK36: 178.962 | AM36: 178.494 | AO36: 183.908 | AQ36: 183.677
A37: Buskerud | B37: <99 | C37: 2577 | D37: 72.77605196 | E37: 1975 | F37: 64.31129925 | G37: 997 | H37: 49.18598915 | I37: 939 | J37: 48.67807154 | K37: 874 | L37: 47.16675661 | M37: 790 | N37: 44.70854556 | O37: 674 | P37: 41.45141451 | Q37: 613 | R37: 39.49742268 | S37: 553 | T37: 37.92866941 | U37: 487 | V37: 36.07407407 | W37: 454 | X37: 35.46875 | Y37: 432 | Z37: 35.00810373 | AA37: 406 | AB37: 34.64163823 | AC37: 381 | AD37: 33.5978836 | AE37: 360 | AF37: 32.46167719 | AG37: 338 | AH37: 31.41263941 | AI37: 341 | AJ37: 33.56299213 | AK37: 325 | AL37: 32.24206349 | AM37: 321 | AN37: 32.35887097 | AO37: 298 | AP37: 30.72164948 | AQ37: 288 | AR37: 30.44397463
B38: 100-199 | C38: 694 | D38: 19.59898334 | E38: 759 | F38: 24.71507652 | G38: 631 | H38: 31.1297484 | I38: 581 | J38: 30.11923276 | K38: 568 | L38: 30.65299514 | M38: 553 | N38: 31.29598189 | O38: 529 | P38: 32.53382534 | Q38: 520 | R38: 33.50515464 | S38: 475 | T38: 32.57887517 | U38: 448 | V38: 33.18518519 | W38: 434 | X38: 33.90625 | Y38: 417 | Z38: 33.79254457 | AA38: 386 | AB38: 32.93515358 | AC38: 388 | AD38: 34.21516755 | AE38: 391 | AF38: 35.25698828 | AG38: 381 | AH38: 35.40892193 | AI38: 333 | AJ38: 32.77559055 | AK38: 339 | AL38: 33.63095238 | AM38: 337 | AN38: 33.97177419 | AO38: 343 | AP38: 35.36082474 | AQ38: 321 | AR38: 33.93234672
B39: 200-299 | C39: 172 | D39: 4.85738492 | E39: 207 | F39: 6.740475415 | G39: 220 | H39: 10.85347805 | I39: 220 | J39: 11.40487299 | K39: 212 | L39: 11.44090664 | M39: 217 | N39: 12.28070175 | O39: 215 | P39: 13.22263223 | Q39: 209 | R39: 13.46649485 | S39: 212 | T39: 14.54046639 | U39: 193 | V39: 14.2962963 | W39: 176 | X39: 13.75 | Y39: 170 | Z39: 13.77633712 | AA39: 176 | AB39: 15.01706485 | AC39: 161 | AD39: 14.19753086 | AE39: 152 | AF39: 13.70604148 | AG39: 159 | AH39: 14.77695167 | AI39: 147 | AJ39: 14.46850394 | AK39: 155 | AL39: 15.37698413 | AM39: 150 | AN39: 15.12096774 | AO39: 135 | AP39: 13.91752577 | AQ39: 143 | AR39: 15.11627907
B40: 300-499 | C40: 81 | D40: 2.28748941 | E40: 107 | F40: 3.484207099 | G40: 142 | H40: 7.005426739 | I40: 147 | J40: 7.620528771 | K40: 145 | L40: 7.825148408 | M40: 151 | N40: 8.545557442 | O40: 152 | P40: 9.348093481 | Q40: 155 | R40: 9.987113402 | S40: 153 | T40: 10.49382716 | U40: 157 | V40: 11.62962963 | W40: 148 | X40: 11.5625 | Y40: 137 | Z40: 11.10210697 | AA40: 125 | AB40: 10.66552901 | AC40: 123 | AD40: 10.84656085 | AE40: 120 | AF40: 10.82055906 | AG40: 111 | AH40: 10.31598513 | AI40: 115 | AJ40: 11.31889764 | AK40: 113 | AL40: 11.21031746 | AM40: 106 | AN40: 10.68548387 | AO40: 119 | AP40: 12.26804124 | AQ40: 120 | AR40: 12.68498943
B41: 500-799 | C41: 15 | D41: 0.42360915 | E41: 22 | F41: 0.7163790296 | G41: 32 | H41: 1.578687716 | I41: 35 | J41: 1.814411612 | K41: 42 | L41: 2.266594711 | M41: 46 | N41: 2.6032824 | O41: 44 | P41: 2.70602706 | Q41: 41 | R41: 2.641752577 | S41: 49 | T41: 3.360768176 | U41: 47 | V41: 3.481481481 | W41: 47 | X41: 3.671875 | Y41: 55 | Z41: 4.457050243 | AA41: 55 | AB41: 4.692832765 | AC41: 62 | AD41: 5.467372134 | AE41: 65 | AF41: 5.861136159 | AG41: 65 | AH41: 6.040892193 | AI41: 56 | AJ41: 5.511811024 | AK41: 57 | AL41: 5.654761905 | AM41: 56 | AN41: 5.64516129 | AO41: 51 | AP41: 5.257731959 | AQ41: 51 | AR41: 5.391120507
B42: >800 | C42: - | D42: 0.05648121999 | E42: - | F42: 0.03256268317 | G42: 5 | H42: 0.2466699556 | I42: 7 | J42: 0.3628823224 | K42: 12 | L42: 0.6475984889 | M42: 10 | N42: 0.5659309564 | O42: 12 | P42: 0.7380073801 | Q42: 14 | R42: 0.9020618557 | S42: 16 | T42: 1.09739369 | U42: 18 | V42: 1.333333333 | W42: 21 | X42: 1.640625 | Y42: 23 | Z42: 1.863857374 | AA42: 24 | AB42: 2.04778157 | AC42: 19 | AD42: 1.675485009 | AE42: 21 | AF42: 1.893597836 | AG42: 22 | AH42: 2.044609665 | AI42: 24 | AJ42: 2.362204724 | AK42: 19 | AL42: 1.884920635 | AM42: 22 | AN42: 2.217741935 | AO42: 24 | AP42: 2.474226804 | AQ42: 23 | AR42: 2.431289641
B43: Antall bruk | C43: 3541 | E43: 3071 | G43: 2027 | I43: 1929 | K43: 1853 | M43: 1767 | O43: 1626 | Q43: 1552 | S43: 1458 | U43: 1350 | W43: 1280 | Y43: 1234 | AA43: 1172 | AC43: 1134 | AE43: 1109 | AG43: 1076 | AI43: 1016 | AK43: 1008 | AM43: 992 | AO43: 970 | AQ43: 946
B44: 1000 daa | C44: 272.839 | E44: 293.384 | G44: 265.379 | I44: 263.775 | K44: 256.023 | M44: 254.732 | O44: 251.512 | Q44: 252.187 | S44: 247.343 | U44: 245.226 | W44: 237.122 | Y44: 233.005 | AA44: 228.404 | AC44: 222.201 | AE44: 220.148 | AG44: 215.757 | AI44: 204.963 | AK44: 204.34 | AM44: 203.312 | AO44: 202.736 | AQ44: 203.86
A45: Vestfold | B45: <99 | C45: 2234 | D45: 63.64672365 | E45: 1740 | F45: 56.32890903 | G45: 902 | H45: 41.85614849 | I45: 846 | J45: 40.71222329 | K45: 760 | L45: 38.50050659 | M45: 697 | N45: 37.05475811 | O45: 620 | P45: 35.32763533 | Q45: 566 | R45: 33.89221557 | S45: 512 | T45: 32.52858958 | U45: 476 | V45: 31.77570093 | W45: 448 | X45: 31.5270936 | Y45: 436 | Z45: 32.01174743 | AA45: 399 | AB45: 30.76329992 | AC45: 384 | AD45: 30.99273608 | AE45: 363 | AF45: 30.22481266 | AG45: 349 | AH45: 30.03442341 | AI45: 316 | AJ45: 28.99082569 | AK45: 321 | AL45: 29.9719888 | AM45: 309 | AN45: 29.54110899 | AO45: 308 | AP45: 30.01949318 | AQ45: 272 | AR45: 27.44702321
B46: 100-199 | C46: 953 | D46: 27.15099715 | E46: 991 | F46: 32.0815798 | G46: 786 | H46: 36.47331787 | I46: 754 | J46: 36.28488932 | K46: 722 | L46: 36.57548126 | M46: 690 | N46: 36.68261563 | O46: 612 | P46: 34.87179487 | Q46: 605 | R46: 36.22754491 | S46: 570 | T46: 36.21346887 | U46: 534 | V46: 35.64753004 | W46: 490 | X46: 34.48275862 | Y46: 445 | Z46: 32.67254038 | AA46: 423 | AB46: 32.61372398 | AC46: 405 | AD46: 32.68765133 | AE46: 396 | AF46: 32.9725229 | AG46: 372 | AH46: 32.01376936 | AI46: 360 | AJ46: 33.02752294 | AK46: 352 | AL46: 32.86647993 | AM46: 332 | AN46: 31.73996176 | AO46: 318 | AP46: 30.99415205 | AQ46: 325 | AR46: 32.79515641
B47: 200-299 | C47: 232 | D47: 6.60968661 | E47: 260 | F47: 8.416963419 | G47: 288 | H47: 13.36426914 | I47: 279 | J47: 13.42637151 | K47: 272 | L47: 13.77912867 | M47: 267 | N47: 14.19457735 | O47: 265 | P47: 15.0997151 | Q47: 246 | R47: 14.73053892 | S47: 256 | T47: 16.26429479 | U47: 236 | V47: 15.75433912 | W47: 227 | X47: 15.97466573 | Y47: 226 | Z47: 16.59324523 | AA47: 224 | AB47: 17.27062452 | AC47: 200 | AD47: 16.14205004 | AE47: 189 | AF47: 15.73688593 | AG47: 199 | AH47: 17.12564544 | AI47: 174 | AJ47: 15.96330275 | AK47: 160 | AL47: 14.93930906 | AM47: 162 | AN47: 15.4875717 | AO47: 164 | AP47: 15.98440546 | AQ47: 144 | AR47: 14.53077699
B48: 300-499 | C48: 74 | D48: 2.108262108 | E48: 87 | F48: 2.816445452 | G48: 133 | H48: 6.171693735 | I48: 148 | J48: 7.122232916 | K48: 154 | L48: 7.80141844 | M48: 151 | N48: 8.02764487 | O48: 179 | P48: 10.1994302 | Q48: 170 | R48: 10.17964072 | S48: 154 | T48: 9.783989835 | U48: 160 | V48: 10.68090788 | W48: 161 | X48: 11.33004926 | Y48: 163 | Z48: 11.96769457 | AA48: 149 | AB48: 11.48804934 | AC48: 148 | AD48: 11.94511703 | AE48: 149 | AF48: 12.40632806 | AG48: 140 | AH48: 12.04819277 | AI48: 142 | AJ48: 13.02752294 | AK48: 140 | AL48: 13.07189542 | AM48: 143 | AN48: 13.67112811 | AO48: 132 | AP48: 12.86549708 | AQ48: 138 | AR48: 13.92532795
B49: 500-799 | C49: 14 | D49: 0.3988603989 | E49: 9 | F49: 0.291356426 | G49: 38 | H49: 1.763341067 | I49: 41 | J49: 1.973051011 | K49: 54 | L49: 2.73556231 | M49: 63 | N49: 3.349282297 | O49: 60 | P49: 3.418803419 | Q49: 60 | R49: 3.592814371 | S49: 61 | T49: 3.875476493 | U49: 74 | V49: 4.939919893 | W49: 69 | X49: 4.855735398 | Y49: 67 | Z49: 4.919236417 | AA49: 75 | AB49: 5.782575173 | AC49: 71 | AD49: 5.730427764 | AE49: 74 | AF49: 6.161532057 | AG49: 70 | AH49: 6.024096386 | AI49: 69 | AJ49: 6.330275229 | AK49: 64 | AL49: 5.975723623 | AM49: 66 | AN49: 6.309751434 | AO49: 69 | AP49: 6.725146199 | AQ49: 75 | AR49: 7.568113017
B50: >800 | C50: 3 | D50: 0.08547008547 | E50: - | F50: 0.06474587245 | G50: 8 | H50: 0.3712296984 | I50: 10 | J50: 0.4812319538 | K50: 12 | L50: 0.6079027356 | M50: 13 | N50: 0.6911217438 | O50: 19 | P50: 1.082621083 | Q50: 23 | R50: 1.377245509 | S50: 21 | T50: 1.334180432 | U50: 18 | V50: 1.201602136 | W50: 26 | X50: 1.829697396 | Y50: 25 | Z50: 1.835535977 | AA50: 27 | AB50: 2.081727062 | AC50: 31 | AD50: 2.502017756 | AE50: 30 | AF50: 2.497918401 | AG50: 32 | AH50: 2.753872633 | AI50: 29 | AJ50: 2.660550459 | AK50: 34 | AL50: 3.174603175 | AM50: 34 | AN50: 3.250478011 | AO50: 35 | AP50: 3.411306043 | AQ50: 37 | AR50: 3.733602422
B51: Antall bruk | C51: 3510 | E51: 3089 | G51: 2155 | I51: 2078 | K51: 1974 | M51: 1881 | O51: 1755 | Q51: 1670 | S51: 1574 | U51: 1498 | W51: 1421 | Y51: 1362 | AA51: 1297 | AC51: 1239 | AE51: 1201 | AG51: 1162 | AI51: 1090 | AK51: 1071 | AM51: 1046 | AO51: 1026 | AQ51: 991
B52: 1000 daa | C52: 333.803 | E52: 330.511 | G52: 301.502 | I52: 302.824 | K52: 297.592 | M52: 299.017 | O52: 301.002 | Q52: 296.551 | S52: 286.284 | U52: 292.135 | W52: 285.749 | Y52: 279.732 | AA52: 274.561 | AC52: 267.631 | AE52: 264.485 | AG52: 260.3 | AI52: 250.633 | AK52: 244.686 | AM52: 243.364 | AO52: 241.765 | AQ52: 244.9
A53: Telemark | B53: <99 | C53: 1896 | D53: 89.98576175 | E53: 1371 | F53: 81.99760766 | G53: 764 | H53: 70.34990792 | I53: 706 | J53: 68.08100289 | K53: 644 | L53: 66.25514403 | M53: 589 | N53: 64.16122004 | O53: 505 | P53: 61.58536585 | Q53: 473 | R53: 60.40868455 | S53: 402 | T53: 56.61971831 | U53: 371 | V53: 56.21212121 | W53: 334 | X53: 54.84400657 | Y53: 324 | Z53: 55.10204082 | AA53: 300 | AB53: 54.15162455 | AC53: 272 | AD53: 51.61290323 | AE53: 261 | AF53: 51.88866799 | AG53: 234 | AH53: 50.21459227 | AI53: 208 | AJ53: 49.76076555 | AK53: 218 | AL53: 50.5800464 | AM53: 203 | AN53: 48.79807692 | AO53: 197 | AP53: 47.1291866 | AQ53: 183 | AR53: 45.52238806
B54: 100-199 | C54: 173 | D54: 8.210726151 | E54: 249 | F54: 14.8923445 | G54: 236 | H54: 21.73112339 | I54: 243 | J54: 23.43297975 | K54: 226 | L54: 23.25102881 | M54: 231 | N54: 25.16339869 | O54: 211 | P54: 25.73170732 | Q54: 201 | R54: 25.67049808 | S54: 194 | T54: 27.32394366 | U54: 175 | V54: 26.51515152 | W54: 165 | X54: 27.09359606 | Y54: 151 | Z54: 25.68027211 | AA54: 150 | AB54: 27.07581227 | AC54: 156 | AD54: 29.60151803 | AE54: 140 | AF54: 27.83300199 | AG54: 130 | AH54: 27.89699571 | AI54: 110 | AJ54: 26.31578947 | AK54: 117 | AL54: 27.14617169 | AM54: 120 | AN54: 28.84615385 | AO54: 129 | AP54: 30.86124402 | AQ54: 126 | AR54: 31.34328358
B55: 200-299 | C55: 26 | D55: 1.233981965 | E55: 37 | F55: 2.21291866 | G55: 58 | H55: 5.340699816 | I55: 57 | J55: 5.496624879 | K55: 65 | L55: 6.687242798 | M55: 61 | N55: 6.644880174 | O55: 63 | P55: 7.682926829 | Q55: 63 | R55: 8.045977011 | S55: 66 | T55: 9.295774648 | U55: 64 | V55: 9.696969697 | W55: 58 | X55: 9.523809524 | Y55: 66 | Z55: 11.2244898 | AA55: 59 | AB55: 10.64981949 | AC55: 52 | AD55: 9.867172676 | AE55: 56 | AF55: 11.1332008 | AG55: 49 | AH55: 10.51502146 | AI55: 53 | AJ55: 12.67942584 | AK55: 53 | AL55: 12.29698376 | AM55: 50 | AN55: 12.01923077 | AO55: 46 | AP55: 11.00478469 | AQ55: 45 | AR55: 11.19402985
B56: 300-499 | C56: 10 | D56: 0.474608448 | E56: 13 | F56: 0.7775119617 | G56: 22 | H56: 2.025782689 | I56: 24 | J56: 2.31436837 | K56: 27 | L56: 2.777777778 | M56: 26 | N56: 2.832244009 | O56: 30 | P56: 3.658536585 | Q56: 35 | R56: 4.469987229 | S56: 35 | T56: 4.929577465 | U56: 38 | V56: 5.757575758 | W56: 37 | X56: 6.075533662 | Y56: 34 | Z56: 5.782312925 | AA56: 32 | AB56: 5.776173285 | AC56: 33 | AD56: 6.261859583 | AE56: 33 | AF56: 6.560636183 | AG56: 39 | AH56: 8.369098712 | AI56: 31 | AJ56: 7.416267943 | AK56: 25 | AL56: 5.800464037 | AM56: 28 | AN56: 6.730769231 | AO56: 32 | AP56: 7.655502392 | AQ56: 31 | AR56: 7.711442786
B57: 500-799 | C57: - | D57: 0.09492168961 | E57: - | F57: 0.05980861244 | G57: 5 | H57: 0.4604051565 | I57: 6 | J57: 0.5785920926 | K57: 9 | L57: 0.9259259259 | M57: 10 | N57: 1.089324619 | O57: 10 | P57: 1.219512195 | Q57: 10 | R57: 1.277139208 | S57: 12 | T57: 1.690140845 | U57: 11 | V57: 1.666666667 | W57: 14 | X57: 2.298850575 | Y57: 13 | Z57: 1.870748299 | AA57: 13 | AB57: 2.166064982 | AC57: 14 | AD57: 2.466793169 | AE57: 13 | AF57: 2.186878728 | AG57: 14 | AH57: 2.575107296 | AI57: 13 | AJ57: 3.110047847 | AK57: 15 | AL57: 3.480278422 | AM57: 15 | AN57: 3.605769231 | AO57: 14 | AP57: 3.110047847 | AQ57: 17 | AR57: 3.731343284
B58: >800 | C58: 0 | D58: 0 | E58: - | F58: 0.05980861244 | G58: - | H58: 0.09208103131 | I58: - | J58: 0.09643201543 | K58: - | L58: 0.1028806584 | M58: - | N58: 0.1089324619 | O58: - | P58: 0.1219512195 | Q58: - | R58: 0.1277139208 | S58: - | T58: 0.1408450704 | U58: - | V58: 0.1515151515 | W58: - | X58: 0.1642036125 | Y58: - | Z58: 0.3401360544 | AA58: - | AB58: 0.1805054152 | AC58: - | AD58: 0.1897533207 | AE58: - | AF58: 0.3976143141 | AG58: - | AH58: 0.4291845494 | AI58: 3 | AJ58: 0.7177033493 | AK58: 3 | AL58: 0.6960556845 | AM58: 0 | AN58: 0 | AO58: - | AP58: 0.2392344498 | AQ58: - | AR58: 0.4975124378
B59: Antall bruk | C59: 2107 | E59: 1672 | G59: 1086 | I59: 1037 | K59: 972 | M59: 918 | O59: 820 | Q59: 783 | S59: 710 | U59: 660 | W59: 609 | Y59: 588 | AA59: 554 | AC59: 527 | AE59: 503 | AG59: 466 | AI59: 418 | AK59: 431 | AM59: 416 | AO59: 418 | AQ59: 402
B60: 1000 daa | C60: 100.146 | E60: 108.668 | G60: 95.325 | I60: 95.205 | K60: 93.361 | M60: 92.96 | O60: 88.758 | Q60: 88.157 | S60: 85.738 | U60: 83.452 | W60: 79.127 | Y60: 77.57 | AA60: 74.385 | AC60: 71.744 | AE60: 70.614 | AG60: 68.481 | AI60: 63.127 | AK60: 64.698 | AM60: 62.388 | AO60: 63.737 | AQ60: 63.452
A61: Aust-Agder | B61: <99 | C61: 799 | D61: 98.64197531 | E61: 466 | F61: 96.08247423 | G61: 189 | H61: 85.52036199 | I61: 166 | J61: 83 | K61: 160 | L61: 81.21827411 | M61: 134 | N61: 77.01149425 | O61: 109 | P61: 72.18543046 | Q61: 106 | R61: 74.12587413 | S61: 88 | T61: 72.13114754 | U61: 77 | V61: 68.14159292 | W61: 75 | X61: 71.42857143 | Y61: 68 | Z61: 68.68686869 | AA61: 45 | AB61: 56.25 | AC61: 47 | AD61: 61.84210526 | AE61: 49 | AF61: 65.33333333 | AG61: 38 | AH61: 56.71641791 | AI61: 36 | AJ61: 61.01694915 | AK61: 34 | AL61: 59.64912281 | AM61: 33 | AN61: 55.93220339 | AO61: 33 | AP61: 54.09836066 | AQ61: 35 | AR61: 57.37704918
B62: 100-199 | C62: 8 | D62: 0.987654321 | E62: 14 | F62: 2.886597938 | G62: 26 | H62: 11.76470588 | I62: 27 | J62: 13.5 | K62: 26 | L62: 13.19796954 | M62: 27 | N62: 15.51724138 | O62: 28 | P62: 18.54304636 | Q62: 24 | R62: 16.78321678 | S62: 21 | T62: 17.21311475 | U62: 26 | V62: 23.00884956 | W62: 20 | X62: 19.04761905 | Y62: 21 | Z62: 21.21212121 | AA62: 25 | AB62: 31.25 | AC62: 18 | AD62: 23.68421053 | AE62: 18 | AF62: 24 | AG62: 21 | AH62: 31.34328358 | AI62: 18 | AJ62: 30.50847458 | AK62: 18 | AL62: 31.57894737 | AM62: 19 | AN62: 32.20338983 | AO62: 21 | AP62: 34.42622951 | AQ62: 18 | AR62: 29.50819672
B63: 200-299 | C63: 3 | D63: 0.3703703704 | E63: 4 | F63: 0.824742268 | G63: 5 | H63: 2.262443439 | I63: 5 | J63: 2.5 | K63: 9 | L63: 4.568527919 | M63: 8 | N63: 4.597701149 | O63: 9 | P63: 5.960264901 | Q63: 8 | R63: 5.594405594 | S63: 8 | T63: 6.557377049 | U63: 6 | V63: 5.309734513 | W63: 6 | X63: 5.714285714 | Y63: 6 | Z63: 6.060606061 | AA63: 10 | AB63: 8.75 | AC63: 7 | AD63: 9.210526316 | AE63: 8 | AF63: 9.333333333 | AG63: 8 | AH63: 8.955223881 | AI63: 5 | AJ63: 6.779661017 | AK63: 5 | AL63: 5.263157895 | AM63: 7 | AN63: 10.16949153 | AO63: 7 | AP63: 9.836065574 | AQ63: 5 | AR63: 8.196721311
B64: 300-499 | C64: 0 | D64: 0 | E64: - | F64: 0.206185567 | G64: 0 | H64: 0 | I64: - | J64: 0.5 | K64: - | L64: 0.5076142132 | M64: 4 | N64: 2.298850575 | O64: 4 | P64: 2.649006623 | Q64: 4 | R64: 2.797202797 | S64: 4 | T64: 3.278688525 | U64: 3 | V64: 2.654867257 | W64: 3 | X64: 2.857142857 | Y64: 4 | Z64: 3.03030303 | AA64: - | AB64: 2.5 | AC64: 4 | AD64: 3.947368421 | AE64: 0 | AF64: 0 | AG64: - | AH64: 2.985074627 | AI64: - | AJ64: 1.694915254 | AK64: - | AL64: 3.50877193 | AM64: - | AN64: 1.694915254 | AO64: - | AP64: 1.639344262 | AQ64: 3 | AR64: 4.918032787
B65: 500-799 | C65: 0 | D65: 0 | E65: 0 | F65: 0 | G65: 0 | H65: 0 | I65: - | J65: 0.5 | K65: - | L65: 0.5076142132 | M65: 0 | N65: 0 | O65: - | P65: 0.6622516556 | Q65: 0 | R65: 0 | S65: 0 | T65: 0 | U65: 0 | V65: 0 | W65: 0 | X65: 0 | Y65: 0 | Z65: 0 | AA65: 0 | AB65: 0 | AC65: 0 | AD65: 0 | AE65: 0 | AF65: 0 | AG65: 0 | AH65: 0 | AI65: 0 | AJ65: 0 | AK65: 0 | AL65: 0 | AM65: 0 | AN65: 0 | AO65: 0 | AP65: 0 | AQ65: 0 | AR65: 0
B66: >800 | C66: 0 | D66: 0 | E66: 0 | F66: 0 | G66: - | H66: 0 | I66: 0 | J66: 0 | K66: 0 | L66: 0 | M66: - | N66: 0.5747126437 | O66: 0 | P66: 0 | Q66: - | R66: 0.6993006993 | S66: - | T66: 0.8196721311 | U66: - | V66: 0.8849557522 | W66: - | X66: 0.9523809524 | Y66: - | Z66: 1.01010101 | AA66: - | AB66: 1.25 | AC66: - | AD66: 1.315789474 | AE66: - | AF66: 1.333333333 | AG66: 0 | AH66: 0 | AI66: 0 | AJ66: 0 | AK66: 0 | AL66: 0 | AM66: 0 | AN66: 0 | AO66: 0 | AP66: 0 | AQ66: 0 | AR66: 0
B67: Antall bruk | C67: 810 | E67: 485 | G67: 221 | I67: 200 | K67: 197 | M67: 174 | O67: 151 | Q67: 143 | S67: 122 | U67: 113 | W67: 105 | Y67: 99 | AA67: 80 | AC67: 76 | AE67: 75 | AG67: 67 | AI67: 59 | AK67: 57 | AM67: 59 | AO67: 61 | AQ67: 61
B68: 1000 daa | C68: 16.106 | E68: 15.32 | G68: 12.586 | I68: 12.069 | K68: 13.408 | M68: 13.308 | O68: 12.224 | Q68: 11.651 | S68: 10.994 | U68: 10.134 | W68: 9.906 | Y68: 9.387 | AA68: 9.273 | AC68: 8.477 | AE68: 7.619 | AG68: 6.922 | AI68: 5.841 | AK68: 5.811 | AM68: 5.975 | AO68: 6.28 | AQ68: 6.772
A69: Vest-Agder | B69: <99 | C69: 430 | D69: 98.17351598 | E69: 306 | F69: 96.83544304 | G69: 125 | H69: 88.02816901 | I69: 131 | J69: 83.43949045 | K69: 130 | L69: 83.33333333 | M69: 115 | N69: 83.33333333 | O69: 105 | P69: 80.15267176 | Q69: 94 | R69: 77.68595041 | S69: 85 | T69: 75.89285714 | U69: 88 | V69: 78.57142857 | W69: 78 | X69: 75 | Y69: 66 | Z69: 70.21276596 | AA69: 70 | AB69: 76.92307692 | AC69: 67 | AD69: 72.04301075 | AE69: 56 | AF69: 69.13580247 | AG69: 49 | AH69: 69.01408451 | AI69: 43 | AJ69: 76.78571429 | AK69: 39 | AL69: 78 | AM69: 39 | AN69: 78 | AO69: 36 | AP69: 73.46938776 | AQ69: 36 | AR69: 75
B70: 100-199 | C70: 7 | D70: 1.598173516 | E70: 8 | F70: 2.53164557 | G70: 12 | H70: 8.450704225 | I70: 22 | J70: 14.01273885 | K70: 22 | L70: 14.1025641 | M70: 15 | N70: 10.86956522 | O70: 17 | P70: 12.97709924 | Q70: 15 | R70: 12.39669421 | S70: 16 | T70: 14.28571429 | U70: 14 | V70: 12.5 | W70: 16 | X70: 15.38461538 | Y70: 19 | Z70: 20.21276596 | AA70: 17 | AB70: 16.48351648 | AC70: 16 | AD70: 17.20430108 | AE70: 15 | AF70: 18.51851852 | AG70: 14 | AH70: 19.71830986 | AI70: 7 | AJ70: 12.5 | AK70: 5 | AL70: 10 | AM70: 4 | AN70: 8 | AO70: 6 | AP70: 12.24489796 | AQ70: 6 | AR70: 12.5
B71: 200-299 | C71: - | D71: 0.2283105023 | E71: - | F71: 0.6329113924 | G71: 5 | H71: 3.521126761 | I71: 3 | J71: 1.910828025 | K71: - | L71: 1.282051282 | M71: 5 | N71: 3.623188406 | O71: 6 | P71: 4.580152672 | Q71: 9 | R71: 7.438016529 | S71: 7 | T71: 6.25 | U71: 6 | V71: 5.357142857 | W71: 6 | X71: 5.769230769 | Y71: 5 | Z71: 5.319148936 | AA71: - | AB71: 2.197802198 | AC71: 5 | AD71: 5.376344086 | AE71: 5 | AF71: 6.172839506 | AG71: 5 | AH71: 7.042253521 | AI71: 6 | AJ71: 8.928571429 | AK71: 6 | AL71: 8 | AM71: 7 | AN71: 10 | AO71: 7 | AP71: 12.24489796 | AQ71: 3 | AR71: 6.25
B72: 300-499 | C72: 0 | D72: 0 | E72: 0 | F72: 0 | G72: 0 | H72: 0 | I72: - | J72: 0.6369426752 | K72: 2 | L72: 1.282051282 | M72: 3 | N72: 2.173913043 | O72: 3 | P72: 2.290076336 | Q72: - | R72: 1.652892562 | S72: 3 | T72: 2.678571429 | U72: 4 | V72: 3.571428571 | W72: 4 | X72: 3.846153846 | Y72: 4 | Z72: 4.255319149 | AA72: 4 | AB72: 3.296703297 | AC72: 5 | AD72: 4.301075269 | AE72: 5 | AF72: 4.938271605 | AG72: 3 | AH72: 2.816901408 | AI72: 0 | AJ72: 0 | AK72: - | AL72: 2 | AM72: - | AN72: 4 | AO72: - | AP72: 2.040816327 | AQ72: 3 | AR72: 6.25
B73: 500-799 | C73: 0 | D73: 0 | E73: 0 | F73: 0 | G73: 0 | H73: 0 | I73: 0 | J73: 0 | K73: 0 | L73: 0 | M73: 0 | N73: 0 | O73: 0 | P73: 0 | Q73: - | R73: 0.826446281 | S73: - | T73: 0.8928571429 | U73: 0 | V73: 0 | W73: 0 | X73: 0 | Y73: 0 | Z73: 0 | AA73: - | AB73: 1.098901099 | AC73: - | AD73: 1.075268817 | AE73: - | AF73: 1.234567901 | AG73: 0 | AH73: 0 | AI73: 0 | AJ73: 0 | AK73: 0 | AL73: 0 | AM73: 0 | AN73: 0 | AO73: 0 | AP73: 0 | AQ73: 0 | AR73: 0
B74: >800 | C74: 0 | D74: 0 | E74: 0 | F74: 0 | G74: 0 | H74: 0 | I74: 0 | J74: 0 | K74: 0 | L74: 0 | M74: 0 | N74: 0 | O74: 0 | P74: 0 | Q74: 0 | R74: 0 | S74: 0 | T74: 0 | U74: 0 | V74: 0 | W74: 0 | X74: 0 | Y74: 0 | Z74: 0 | AA74: 0 | AB74: 0 | AC74: 0 | AD74: 0 | AE74: 0 | AF74: 0 | AG74: - | AH74: 1.408450704 | AI74: - | AJ74: 1.785714286 | AK74: - | AL74: 2 | AM74: 0 | AN74: 0 | AO74: 0 | AP74: 0 | AQ74: 0 | AR74: 0
B75: Antall bruk | C75: 438 | E75: 316 | G75: 142 | I75: 157 | K75: 156 | M75: 138 | O75: 131 | Q75: 121 | S75: 112 | U75: 112 | W75: 104 | Y75: 94 | AA75: 91 | AC75: 93 | AE75: 81 | AG75: 71 | AI75: 56 | AK75: 50 | AM75: 50 | AO75: 49 | AQ75: 48
B76: 1000 daa | C76: 9.174 | E76: 9.958 | G76: 7.777 | I76: 9.028 | K76: 9.407 | M76: 9.34 | O76: 9.713 | Q76: 9.773 | S76: 9.486 | U76: 9.032 | W76: 8.547 | Y76: 8.523 | AA76: 8.036 | AC76: 8.825 | AE76: 8.048 | AG76: 6.78 | AI76: 4.766 | AK76: 4.493 | AM76: 4.282 | AO76: 4.611 | AQ76: 4.425
A77: Rogaland | B77: <99 | C77: 1253 | D77: 97.13178295 | E77: 1048 | F77: 93.73881932 | G77: 583 | H77: 88.19969743 | I77: 624 | J77: 85.47945205 | K77: 618 | L77: 85.00687758 | M77: 552 | N77: 82.26527571 | O77: 507 | P77: 79.59183673 | Q77: 441 | R77: 77.50439367 | S77: 372 | T77: 74.69879518 | U77: 296 | V77: 72.19512195 | W77: 279 | X77: 72.845953 | Y77: 255 | Z77: 70.24793388 | AA77: 243 | AB77: 66.94214876 | AC77: 236 | AD77: 65.19337017 | AE77: 195 | AF77: 65 | AG77: 162 | AH77: 64.03162055 | AI77: 117 | AJ77: 63.24324324 | AK77: 103 | AL77: 59.53757225 | AM77: 122 | AN77: 62.88659794 | AO77: 157 | AP77: 62.3015873 | AQ77: 141 | AR77: 60.25641026
B78: 100-199 | C78: 33 | D78: 2.558139535 | E78: 59 | F78: 5.277280859 | G78: 62 | H78: 9.379727685 | I78: 80 | J78: 10.95890411 | K78: 83 | L78: 11.41678129 | M78: 89 | N78: 13.26378539 | O78: 98 | P78: 15.38461538 | Q78: 91 | R78: 15.99297012 | S78: 90 | T78: 18.07228916 | U78: 78 | V78: 19.02439024 | W78: 72 | X78: 18.79895561 | Y78: 65 | Z78: 17.90633609 | AA78: 81 | AB78: 22.31404959 | AC78: 81 | AD78: 22.37569061 | AE78: 67 | AF78: 22.33333333 | AG78: 55 | AH78: 21.73913043 | AI78: 44 | AJ78: 23.78378378 | AK78: 47 | AL78: 27.16763006 | AM78: 47 | AN78: 24.22680412 | AO78: 55 | AP78: 21.82539683 | AQ78: 58 | AR78: 24.78632479
B79: 200-299 | C79: - | D79: 0.1550387597 | E79: 9 | F79: 0.8050089445 | G79: 10 | H79: 1.512859304 | I79: 17 | J79: 2.328767123 | K79: 16 | L79: 2.200825309 | M79: 18 | N79: 2.682563338 | O79: 17 | P79: 2.668759812 | Q79: 20 | R79: 3.514938489 | S79: 20 | T79: 4.016064257 | U79: 23 | V79: 5.609756098 | W79: 21 | X79: 5.483028721 | Y79: 29 | Z79: 7.988980716 | AA79: 22 | AB79: 6.060606061 | AC79: 27 | AD79: 7.458563536 | AE79: 24 | AF79: 8 | AG79: 28 | AH79: 11.06719368 | AI79: 18 | AJ79: 9.72972973 | AK79: 16 | AL79: 9.248554913 | AM79: 16 | AN79: 8.24742268 | AO79: 26 | AP79: 10.31746032 | AQ79: 23 | AR79: 9.829059829
B80: 300-499 | C80: - | D80: 0.1550387597 | E80: - | F80: 0.1788908766 | G80: 4 | H80: 0.6051437216 | I80: 7 | J80: 0.9589041096 | K80: 8 | L80: 1.100412655 | M80: 9 | N80: 1.341281669 | O80: 11 | P80: 1.726844584 | Q80: 13 | R80: 2.284710018 | S80: 12 | T80: 2.409638554 | U80: 6 | V80: 1.463414634 | W80: 5 | X80: 1.305483029 | Y80: 9 | Z80: 2.479338843 | AA80: 12 | AB80: 3.305785124 | AC80: 12 | AD80: 3.314917127 | AE80: 8 | AF80: 2.666666667 | AG80: 4 | AH80: 1.581027668 | AI80: 6 | AJ80: 2.162162162 | AK80: 7 | AL80: 2.89017341 | AM80: 9 | AN80: 3.608247423 | AO80: 9 | AP80: 3.571428571 | AQ80: 9 | AR80: 3.846153846
B81: 500-799 | C81: 0 | D81: 0 | E81: 0 | F81: 0 | G81: - | H81: 0.3025718608 | I81: - | J81: 0.2739726027 | K81: - | L81: 0.2751031637 | M81: 3 | N81: 0.4470938897 | O81: 4 | P81: 0.6279434851 | Q81: 4 | R81: 0.7029876977 | S81: 4 | T81: 0.8032128514 | U81: 6 | V81: 1.463414634 | W81: 6 | X81: 1.566579634 | Y81: 5 | Z81: 1.377410468 | AA81: 5 | AB81: 1.377410468 | AC81: 6 | AD81: 1.657458564 | AE81: 6 | AF81: 2 | AG81: 4 | AH81: 1.581027668 | AI81: - | AJ81: 1.081081081 | AK81: - | AL81: 1.156069364 | AM81: - | AN81: 1.030927835 | AO81: 5 | AP81: 1.587301587 | AQ81: 3 | AR81: 1.282051282
B82: >800 | C82: 0 | D82: 0 | E82: 0 | F82: 0 | G82: 0 | H82: 0 | I82: 0 | J82: 0 | K82: 0 | L82: 0 | M82: 0 | N82: 0 | O82: 0 | P82: 0 | Q82: 0 | R82: 0 | S82: 0 | T82: 0 | U82: - | V82: 0.243902439 | W82: 0 | X82: 0 | Y82: 0 | Z82: 0 | AA82: 0 | AB82: 0 | AC82: 0 | AD82: 0 | AE82: 0 | AF82: 0 | AG82: 0 | AH82: 0 | AI82: 0 | AJ82: 0 | AK82: 0 | AM82: 0 | AO82: - | AP82: 0.3968253968 | AQ82: 0
B83: Antall bruk | C83: 1290 | E83: 1118 | G83: 661 | I83: 730 | K83: 727 | M83: 671 | O83: 637 | Q83: 569 | S83: 498 | U83: 410 | W83: 383 | Y83: 363 | AA83: 363 | AC83: 362 | AE83: 300 | AG83: 253 | AI83: 185 | AK83: 173 | AM83: 194 | AO83: 252 | AQ83: 234
B84: 1000 daa | C84: 33.259 | E84: 43.959 | G84: 36.411 | I84: 44.199 | K84: 44.614 | M84: 44.741 | O84: 45.755 | Q84: 44.341 | S84: 40.886 | U84: 36.247 | W84: 33.704 | Y84: 34.266 | AA84: 34.908 | AC84: 36.451 | AE84: 30.457 | AG84: 25.587 | AI84: 18.298 | AK84: 17.805 | AM84: 19.928 | AO84: 28.564 | AQ84: 25.359
A85: Hordaland | B85: <99 | C85: 85 | D85: 98.8372093 | E85: 33 | F85: 97.05882353 | G85: 20 | H85: 95.23809524 | I85: 16 | J85: 94.11764706 | K85: 15 | L85: 93.75 | M85: 14 | N85: 93.33333333 | O85: 15 | P85: 93.75 | Q85: 7 | R85: 87.5 | S85: 5 | T85: 83.33333333 | U85: 7 | V85: 87.5 | W85: 5 | X85: 83.33333333 | Y85: 4 | Z85: 100 | AA85: 3 | AB85: 100 | AC85: 4 | AD85: 75 | AE85: 3 | AF85: 66.66666667 | AG85: 5 | AH85: 80 | AI85: 4 | AJ85: 100 | AK85: 3 | AL85: 66.66666667 | AM85: 5 | AN85: 80 | AO85: 4 | AP85: 75 | AQ85: 4 | AR85: 75
B86: 100-199 | C86: - | D86: 1.162790698 | E86: 1 | F86: 2.941176471 | G86: - | H86: 4.761904762 | I86: - | J86: 5.882352941 | K86: - | L86: 6.25 | M86: - | N86: 6.666666667 | O86: - | P86: 6.25 | Q86: - | R86: 12.5 | S86: - | T86: 16.66666667 | U86: - | V86: 12.5 | W86: - | X86: 16.66666667 | Y86: 0 | Z86: 0 | AA86: 0 | AB86: 0 | AC86: - | AD86: 25 | AE86: - | AF86: 33.33333333 | AG86: - | AH86: 20 | AI86: 0 | AJ86: 0 | AK86: - | AL86: 33.33333333 | AM86: - | AN86: 20 | AO86: - | AP86: 25 | AQ86: - | AR86: 25
B87: 200-299 | C87: 0 | D87: 0 | E87: 0 | F87: 0 | G87: 0 | H87: 0 | I87: 0 | J87: 0 | K87: 0 | L87: 0 | M87: 0 | N87: 0 | O87: 0 | P87: 0 | Q87: 0 | R87: 0 | S87: 0 | T87: 0 | U87: 0 | V87: 0 | W87: 0 | X87: 0 | Y87: 0 | Z87: 0 | AA87: 0 | AB87: 0 | AC87: 0 | AD87: 0 | AE87: 0 | AF87: 0 | AG87: 0 | AH87: 0 | AI87: 0 | AJ87: 0 | AK87: 0 | AL87: 0 | AM87: 0 | AN87: 0 | AO87: 0 | AP87: 0 | AQ87: 0 | AR87: 0
B88: 300-499 | C88: 0 | D88: 0 | E88: 0 | F88: 0 | G88: 0 | H88: 0 | I88: 0 | J88: 0 | K88: 0 | L88: 0 | M88: 0 | N88: 0 | O88: 0 | P88: 0 | Q88: 0 | R88: 0 | S88: 0 | T88: 0 | U88: 0 | V88: 0 | W88: 0 | X88: 0 | Y88: 0 | Z88: 0 | AA88: 0 | AB88: 0 | AC88: 0 | AD88: 0 | AE88: 0 | AF88: 0 | AG88: 0 | AH88: 0 | AI88: 0 | AJ88: 0 | AK88: 0 | AL88: 0 | AM88: 0 | AN88: 0 | AO88: 0 | AP88: 0 | AQ88: 0 | AR88: 0
B89: 500-799 | C89: 0 | D89: 0 | E89: 0 | F89: 0 | G89: 0 | H89: 0 | I89: 0 | J89: 0 | K89: 0 | L89: 0 | M89: 0 | N89: 0 | O89: 0 | P89: 0 | Q89: 0 | R89: 0 | S89: 0 | T89: 0 | U89: 0 | V89: 0 | W89: 0 | X89: 0 | Y89: 0 | Z89: 0 | AA89: 0 | AB89: 0 | AC89: 0 | AD89: 0 | AE89: 0 | AF89: 0 | AG89: 0 | AH89: 0 | AI89: 0 | AJ89: 0 | AK89: 0 | AL89: 0 | AM89: 0 | AN89: 0 | AO89: 0 | AP89: 0 | AQ89: 0 | AR89: 0
B90: >800 | C90: 0 | D90: 0 | E90: 0 | F90: 0 | G90: 0 | H90: 0 | I90: 0 | J90: 0 | K90: 0 | L90: 0 | M90: 0 | N90: 0 | O90: 0 | P90: 0 | Q90: 0 | R90: 0 | S90: 0 | T90: 0 | U90: 0 | V90: 0 | W90: 0 | X90: 0 | Y90: 0 | Z90: 0 | AA90: 0 | AB90: 0 | AC90: 0 | AD90: 0 | AE90: 0 | AF90: 0 | AG90: 0 | AH90: 0 | AI90: 0 | AJ90: 0 | AK90: 0 | AL90: 0 | AM90: 0 | AN90: 0 | AO90: 0 | AP90: 0 | AQ90: 0 | AR90: 0
B91: Antall bruk | C91: 86 | E91: 34 | G91: 21 | I91: 17 | K91: 16 | M91: 15 | O91: 16 | Q91: 8 | S91: 6 | U91: 8 | W91: 6 | Y91: 4 | AA91: 3 | AC91: 4 | AE91: 3 | AF91: 0 | AG91: 5 | AI91: 4 | AK91: 3 | AM91: 5 | AO91: 4 | AQ91: 4
B92: 1000 daa | C92: 1.752 | E92: 1.267 | G92: 0.615 | I92: 0.517 | K92: 0.505 | M92: 0.447 | O92: 0.458 | Q92: 0.281 | S92: 0.237 | U92: 0.248 | W92: 0.2 | Y92: 0.154 | AA92: 0.116 | AC92: 0.193 | AE92: 0 | AG92: 0.237 | AI92: 0.153 | AK92: 0.182 | AM92: 0.183 | AO92: 0.178 | AQ92: 0.179
A93: Sogn og Fjordane | B93: <99 | C93: 59 | D93: 98.33333333 | E93: 30 | F93: 93.75 | G93: 22 | H93: 88 | I93: 21 | J93: 87.5 | K93: 19 | L93: 86.36363636 | M93: 20 | N93: 95.23809524 | O93: 15 | P93: 93.75 | Q93: 13 | R93: 86.66666667 | S93: 16 | T93: 94.11764706 | U93: 11 | V93: 91.66666667 | W93: 9 | X93: 90 | Y93: 11 | Z93: 90.90909091 | AA93: 10 | AB93: 90 | AC93: 9 | AD93: 88.88888889 | AE93: 6 | AF93: 83.33333333 | AG93: 4 | AH93: 100 | AI93: 4 | AJ93: 100 | AK93: 4 | AL93: 100 | AM93: 6 | AN93: 100 | AO93: 4 | AP93: 100 | AQ93: 3 | AR93: 100
B94: 100-199 | C94: - | D94: 1.666666667 | E94: - | F94: 6.25 | G94: 3 | H94: 12 | I94: 3 | J94: 12.5 | K94: 3 | L94: 13.63636364 | M94: - | N94: 4.761904762 | O94: - | P94: 6.25 | Q94: - | R94: 13.33333333 | S94: - | T94: 5.882352941 | U94: - | V94: 8.333333333 | W94: - | X94: 10 | Y94: - | Z94: 9.090909091 | AA94: - | AB94: 10 | AC94: - | AD94: 11.11111111 | AE94: - | AF94: 16.66666667 | AG94: 0 | AH94: 0 | AI94: 0 | AJ94: 0 | AK94: 0 | AL94: 0 | AM94: 0 | AN94: 0 | AO94: 0 | AP94: 0 | AQ94: 0 | AR94: 0
B95: 200-299 | C95: 0 | D95: 0 | E95: 0 | F95: 0 | G95: 0 | H95: 0 | I95: 0 | J95: 0 | K95: 0 | L95: 0 | M95: 0 | N95: 0 | O95: 0 | P95: 0 | Q95: 0 | R95: 0 | S95: 0 | T95: 0 | U95: 0 | V95: 0 | W95: 0 | X95: 0 | Y95: 0 | Z95: 0 | AA95: 0 | AB95: 0 | AC95: 0 | AD95: 0 | AE95: 0 | AF95: 0 | AG95: 0 | AH95: 0 | AI95: 0 | AJ95: 0 | AK95: 0 | AL95: 0 | AM95: 0 | AN95: 0 | AO95: 0 | AP95: 0 | AQ95: 0 | AR95: 0
B96: 300-499 | C96: 0 | D96: 0 | E96: 0 | F96: 0 | G96: 0 | H96: 0 | I96: 0 | J96: 0 | K96: 0 | L96: 0 | M96: 0 | N96: 0 | O96: 0 | P96: 0 | Q96: 0 | R96: 0 | S96: 0 | T96: 0 | U96: 0 | V96: 0 | W96: 0 | X96: 0 | Y96: 0 | Z96: 0 | AA96: 0 | AB96: 0 | AC96: 0 | AD96: 0 | AE96: 0 | AF96: 0 | AG96: 0 | AH96: 0 | AI96: 0 | AJ96: 0 | AK96: 0 | AL96: 0 | AM96: 0 | AN96: 0 | AO96: 0 | AP96: 0 | AQ96: 0 | AR96: 0
B97: 500-799 | C97: 0 | D97: 0 | E97: 0 | F97: 0 | G97: 0 | H97: 0 | I97: 0 | J97: 0 | K97: 0 | L97: 0 | M97: 0 | N97: 0 | O97: 0 | P97: 0 | Q97: 0 | R97: 0 | S97: 0 | T97: 0 | U97: 0 | V97: 0 | W97: 0 | X97: 0 | Y97: 0 | Z97: 0 | AA97: 0 | AB97: 0 | AC97: 0 | AD97: 0 | AE97: 0 | AF97: 0 | AG97: 0 | AH97: 0 | AI97: 0 | AJ97: 0 | AK97: 0 | AL97: 0 | AM97: 0 | AN97: 0 | AO97: 0 | AP97: 0 | AQ97: 0 | AR97: 0
B98: >800 | C98: 0 | D98: 0 | E98: 0 | F98: 0 | G98: 0 | H98: 0 | I98: 0 | J98: 0 | K98: 0 | L98: 0 | M98: 0 | N98: 0 | O98: 0 | P98: 0 | Q98: 0 | R98: 0 | S98: 0 | T98: 0 | U98: 0 | V98: 0 | W98: 0 | X98: 0 | Y98: 0 | Z98: 0 | AA98: 0 | AB98: 0 | AC98: 0 | AD98: 0 | AE98: 0 | AF98: 0 | AG98: 0 | AH98: 0 | AI98: 0 | AJ98: 0 | AK98: 0 | AL98: 0 | AM98: 0 | AN98: 0 | AO98: 0 | AP98: 0 | AQ98: 0 | AR98: 0
B99: Antall bruk | C99: 60 | E99: 32 | G99: 25 | I99: 24 | K99: 22 | M99: 21 | O99: 16 | Q99: 15 | S99: 17 | U99: 12 | W99: 10 | Y99: 11 | AA99: 10 | AC99: 9 | AE99: 6 | AG99: 4 | AI99: 4 | AK99: 4 | AM99: 6 | AO99: 4 | AQ99: 3
B100: 1000 daa | C100: 1.751 | E100: 1.211 | G100: 1.157 | I100: 1.036 | K100: 1.018 | M100: 0.794 | O100: 0.736 | Q100: 0.618 | S100: 0.608 | U100: 0.503 | W100: 0.441 | Y100: 0.454 | AA100: 0.389 | AC100: 0.363 | AE100: 0 | AG100: 0.109 | AI100: 0.115 | AK100: 0.105 | AM100: 0.109 | AO100: 0.11 | AQ100: 0.094
A101: Møre og Romsdal | B101: <99 | C101: 353 | D101: 93.88297872 | E101: 443 | F101: 87.72277228 | G101: 176 | H101: 77.53303965 | I101: 180 | J101: 73.7704918 | K101: 172 | L101: 70.781893 | M101: 156 | N101: 69.02654867 | O101: 143 | P101: 65.29680365 | Q101: 125 | R101: 62.5 | S101: 117 | T101: 59.69387755 | U101: 116 | V101: 62.03208556 | W101: 104 | X101: 60.11560694 | Y101: 90 | Z101: 58.44155844 | AA101: 92 | AB101: 57.5 | AC101: 81 | AD101: 53.64238411 | AE101: 73 | AF101: 51.4084507 | AG101: 66 | AH101: 50.76923077 | AI101: 56 | AJ101: 48.69565217 | AK101: 61 | AL101: 53.98230088 | AM101: 60 | AN101: 53.57142857 | AO101: 54 | AP101: 49.5412844 | AQ101: 50 | AR101: 50.50505051
B102: 100-199 | C102: 20 | D102: 5.319148936 | E102: 55 | F102: 10.89108911 | G102: 42 | H102: 18.50220264 | I102: 53 | J102: 21.72131148 | K102: 56 | L102: 23.04526749 | M102: 54 | N102: 23.89380531 | O102: 60 | P102: 27.39726027 | Q102: 56 | R102: 28 | S102: 56 | T102: 28.57142857 | U102: 50 | V102: 26.73796791 | W102: 45 | X102: 26.01156069 | Y102: 43 | Z102: 27.92207792 | AA102: 44 | AB102: 27.5 | AC102: 47 | AD102: 31.12582781 | AE102: 43 | AF102: 30.28169014 | AG102: 39 | AH102: 30 | AI102: 42 | AJ102: 36.52173913 | AK102: 36 | AL102: 31.85840708 | AM102: 36 | AN102: 32.14285714 | AO102: 41 | AP102: 37.6146789 | AQ102: 34 | AR102: 34.34343434
B103: 200-299 | C103: 3 | D103: 0.7978723404 | E103: 6 | F103: 1.188118812 | G103: 5 | H103: 2.202643172 | I103: 10 | J103: 4.098360656 | K103: 13 | L103: 5.349794239 | M103: 15 | N103: 6.637168142 | O103: 11 | P103: 5.02283105 | Q103: 13 | R103: 6.5 | S103: 13 | T103: 6.632653061 | U103: 12 | V103: 6.417112299 | W103: 16 | X103: 9.248554913 | Y103: 12 | Z103: 7.792207792 | AA103: 13 | AB103: 8.125 | AC103: 13 | AD103: 8.609271523 | AE103: 18 | AF103: 12.67605634 | AG103: 17 | AH103: 13.07692308 | AI103: 11 | AJ103: 9.565217391 | AK103: 9 | AL103: 7.96460177 | AM103: 9 | AN103: 8.035714286 | AO103: 7 | AP103: 6.422018349 | AQ103: 10 | AR103: 10.1010101
B104: 300-499 | C104: 0 | D104: 0 | E104: - | F104: 0.198019802 | G104: 4 | H104: 1.762114537 | I104: - | J104: 0.4098360656 | K104: - | L104: 0.8230452675 | M104: - | N104: 0.4424778761 | O104: 4 | P104: 1.826484018 | Q104: 5 | R104: 2.5 | S104: 9 | T104: 4.591836735 | U104: 7 | V104: 3.743315508 | W104: 7 | X104: 4.046242775 | Y104: 9 | Z104: 4.545454545 | AA104: 11 | AB104: 6.25 | AC104: 10 | AD104: 5.960264901 | AE104: 8 | AF104: 5.633802817 | AG104: 8 | AH104: 6.153846154 | AI104: 6 | AJ104: 5.217391304 | AK104: 7 | AL104: 6.194690265 | AM104: 7 | AN104: 6.25 | AO104: 7 | AP104: 6.422018349 | AQ104: 5 | AR104: 5.050505051
B105: 500-799 | C105: 0 | D105: 0 | E105: 0 | F105: 0 | G105: 0 | H105: 0 | I105: 0 | J105: 0 | K105: 0 | L105: 0 | M105: 0 | N105: 0 | O105: - | P105: 0.4566210046 | Q105: - | R105: 0.5 | S105: - | T105: 0.5102040816 | U105: - | V105: 1.069518717 | W105: - | X105: 0.5780346821 | Y105: - | Z105: 1.298701299 | AA105: - | AB105: 0.625 | AC105: - | AD105: 0.6622516556 | AE105: 0 | AF105: 0 | AG105: 0 | AH105: 0 | AI105: 0 | AJ105: 0 | AK105: 0 | AL105: 0 | AM105: 0 | AN105: 0 | AO105: 0 | AP105: 0 | AQ105: 0 | AR105: 0
B106: >800 | C106: 0 | D106: 0 | E106: 0 | F106: 0 | G106: 0 | H106: 0 | I106: 0 | J106: 0 | K106: 0 | L106: 0 | M106: 0 | N106: 0 | O106: 0 | P106: 0 | Q106: 0 | R106: 0 | S106: 0 | T106: 0 | U106: 0 | V106: 0 | W106: 0 | X106: 0 | Y106: 0 | Z106: 0 | AA106: 0 | AB106: 0 | AC106: 0 | AD106: 0 | AE106: 0 | AF106: 0 | AG106: 0 | AH106: 0 | AI106: 0 | AJ106: 0 | AK106: 0 | AL106: 0 | AM106: 0 | AN106: 0 | AO106: 0 | AP106: 0 | AQ106: 0 | AR106: 0
B107: Antall bruk | C107: 376 | E107: 505 | G107: 227 | I107: 244 | K107: 243 | M107: 226 | O107: 219 | Q107: 200 | S107: 196 | U107: 187 | W107: 173 | Y107: 154 | AA107: 160 | AC107: 151 | AE107: 142 | AG107: 130 | AI107: 115 | AK107: 113 | AM107: 112 | AO107: 109 | AQ107: 99
B108: 1000 daa | C108: 12.987 | E108: 26.935 | G108: 16.79 | I108: 18.837 | K108: 19.991 | M108: 19.458 | O108: 20.472 | Q108: 19.771 | S108: 20.94 | U108: 20.492 | W108: 19.217 | Y108: 17.555 | AA108: 18.474 | AC108: 18.006 | AE108: 16.839 | AG108: 15.615 | AI108: 13.649 | AK108: 12.959 | AM108: 12.734 | AO108: 13.032 | AQ108: 12.033
A109: Sør-Trøndelag | B109: <99 | C109: 2102 | D109: 84.11364546 | E109: 1374 | F109: 71.33956386 | G109: 709 | H109: 54.79134467 | I109: 719 | J109: 53.61670395 | K109: 697 | L109: 53.20610687 | M109: 656 | N109: 52.18774861 | O109: 618 | P109: 49.95957963 | Q109: 562 | R109: 46.71654198 | S109: 526 | T109: 44.72789116 | U109: 498 | V109: 43.83802817 | W109: 454 | X109: 41.04882459 | Y109: 419 | Z109: 39.9047619 | AA109: 411 | AB109: 39.63355834 | AC109: 407 | AD109: 39.55296404 | AE109: 385 | AF109: 38.19444444 | AG109: 368 | AH109: 37.74358974 | AI109: 342 | AJ109: 36.53846154 | AK109: 324 | AL109: 35.72216097 | AM109: 313 | AN109: 34.89409142 | AO109: 287 | AP109: 32.42937853 | AQ109: 261 | AR109: 30.74204947
B110: 100-199 | C110: 292 | D110: 11.68467387 | E110: 393 | F110: 20.40498442 | G110: 369 | H110: 28.51622875 | I110: 391 | J110: 29.15734526 | K110: 373 | L110: 28.47328244 | M110: 352 | N110: 28.00318218 | O110: 366 | P110: 29.58771221 | Q110: 378 | R110: 31.42144638 | S110: 377 | T110: 32.05782313 | U110: 362 | V110: 31.86619718 | W110: 377 | X110: 34.08679928 | Y110: 348 | Z110: 33.14285714 | AA110: 328 | AB110: 31.62970106 | AC110: 327 | AD110: 31.77842566 | AE110: 328 | AF110: 32.53968254 | AG110: 315 | AH110: 32.30769231 | AI110: 309 | AJ110: 33.01282051 | AK110: 292 | AL110: 32.19404631 | AM110: 302 | AN110: 33.66778149 | AO110: 317 | AP110: 35.81920904 | AQ110: 306 | AR110: 36.04240283
B111: 200-299 | C111: 78 | D111: 3.121248499 | E111: 110 | F111: 5.711318795 | G111: 142 | H111: 10.97372488 | I111: 152 | J111: 11.33482476 | K111: 156 | L111: 11.90839695 | M111: 159 | N111: 12.64916468 | O111: 157 | P111: 12.69199677 | Q111: 161 | R111: 13.38320865 | S111: 167 | T111: 14.20068027 | U111: 159 | V111: 13.99647887 | W111: 154 | X111: 13.92405063 | Y111: 155 | Z111: 14.76190476 | AA111: 176 | AB111: 16.97203472 | AC111: 161 | AD111: 15.6462585 | AE111: 162 | AF111: 16.07142857 | AG111: 155 | AH111: 15.8974359 | AI111: 154 | AJ111: 16.45299145 | AK111: 168 | AL111: 18.52260198 | AM111: 159 | AN111: 17.72575251 | AO111: 151 | AP111: 17.06214689 | AQ111: 151 | AR111: 17.78563015
B112: 300-499 | C112: 24 | D112: 0.9603841537 | E112: 40 | F112: 2.076843198 | G112: 65 | H112: 5.023183926 | I112: 71 | J112: 5.294556301 | K112: 72 | L112: 5.496183206 | M112: 76 | N112: 6.046141607 | O112: 81 | P112: 6.548100243 | Q112: 86 | R112: 7.14879468 | S112: 89 | T112: 7.568027211 | U112: 95 | V112: 8.362676056 | W112: 99 | X112: 8.951175407 | Y112: 101 | Z112: 9.619047619 | AA112: 87 | AB112: 8.389585342 | AC112: 94 | AD112: 9.135082604 | AE112: 94 | AF112: 9.325396825 | AG112: 98 | AH112: 10.05128205 | AI112: 90 | AJ112: 9.615384615 | AK112: 79 | AL112: 8.710033076 | AM112: 79 | AN112: 8.807134894 | AO112: 84 | AP112: 9.491525424 | AQ112: 87 | AR112: 10.24734982
B113: 500-799 | C113: 3 | D113: 0.1200480192 | E113: 9 | F113: 0.4672897196 | G113: 6 | H113: 0.4636785162 | I113: 5 | J113: 0.3728560776 | K113: 9 | L113: 0.6870229008 | M113: 11 | N113: 0.8750994431 | O113: 13 | P113: 1.050929669 | Q113: 14 | R113: 1.163757273 | S113: 14 | T113: 1.19047619 | U113: 19 | V113: 1.672535211 | W113: 18 | X113: 1.627486438 | Y113: 20 | Z113: 1.904761905 | AA113: 25 | AB113: 2.410800386 | AC113: 30 | AD113: 2.915451895 | AE113: 29 | AF113: 2.876984127 | AG113: 29 | AH113: 2.974358974 | AI113: 28 | AJ113: 2.991452991 | AK113: 31 | AL113: 3.41786108 | AM113: 30 | AN113: 3.344481605 | AO113: 31 | AP113: 3.502824859 | AQ113: 28 | AR113: 3.297997644
B114: >800 | C114: 0 | D114: 0 | E114: 0 | F114: 0 | G114: 3 | H114: 0.2318392581 | I114: 3 | J114: 0.2237136465 | K114: 3 | L114: 0.2290076336 | M114: 3 | N114: 0.2386634845 | O114: - | P114: 0.1616814875 | Q114: - | R114: 0.1662510391 | S114: 3 | T114: 0.2551020408 | U114: 3 | V114: 0.264084507 | W114: 4 | X114: 0.3616636528 | Y114: 7 | Z114: 0.6666666667 | AA114: 10 | AB114: 0.9643201543 | AC114: 10 | AD114: 0.9718172983 | AE114: 10 | AF114: 0.9920634921 | AG114: 10 | AH114: 1.025641026 | AI114: 13 | AJ114: 1.388888889 | AK114: 13 | AL114: 1.433296582 | AM114: 14 | AN114: 1.560758082 | AO114: 15 | AP114: 1.694915254 | AQ114: 16 | AR114: 1.884570082
B115: Antall bruk | C115: 2499 | E115: 1926 | G115: 1294 | I115: 1341 | K115: 1310 | M115: 1257 | O115: 1237 | Q115: 1203 | S115: 1176 | U115: 1136 | W115: 1106 | Y115: 1050 | AA115: 1037 | AC115: 1029 | AE115: 1008 | AG115: 975 | AI115: 936 | AK115: 907 | AM115: 897 | AO115: 885 | AQ115: 849
B116: 1000 daa | C116: 135.905 | E116: 157.592 | G116: 152.676 | I116: 159.342 | K116: 160.975 | M116: 160.15 | O116: 162.58 | Q116: 164.677 | S116: 167.542 | U116: 167.96 | W116: 168.84 | Y116: 166.683 | AA116: 169.603 | AC116: 171.77 | AE116: 171.63 | AG116: 168.909 | AI116: 164.353 | AK116: 163.261 | AM116: 162.643 | AO116: 164.702 | AQ116: 163.101
A117: Nord-Trøndelag | B117: <99 | C117: 2593 | D117: 72.02777778 | E117: 1858 | F117: 60.28552888 | G117: 1010 | H117: 46.73762147 | I117: 962 | J117: 44.76500698 | K117: 934 | L117: 44.03583215 | M117: 871 | N117: 42.59168704 | O117: 790 | P117: 40.04054739 | Q117: 770 | R117: 38.55783676 | S117: 734 | T117: 37.23997971 | U117: 682 | V117: 36.31522897 | W117: 582 | X117: 32.89994347 | Y117: 549 | Z117: 32.67857143 | AA117: 525 | AB117: 31.68376584 | AC117: 513 | AD117: 31.43382353 | AE117: 475 | AF117: 29.91183879 | AG117: 482 | AH117: 30.54499366 | AI117: 445 | AJ117: 29.25706772 | AK117: 432 | AL117: 29.18918919 | AM117: 403 | AN117: 28.4203103 | AO117: 385 | AP117: 27.18926554 | AQ117: 375 | AR117: 27.17391304
B118: 100-199 | C118: 692 | D118: 19.22222222 | E118: 799 | F118: 25.92472421 | G118: 675 | H118: 31.2355391 | I118: 676 | J118: 31.45649139 | K118: 671 | L118: 31.63602074 | M118: 652 | N118: 31.88264059 | O118: 640 | P118: 32.43791181 | Q118: 660 | R118: 33.04957436 | S118: 654 | T118: 33.18112633 | U118: 603 | V118: 32.1086262 | W118: 603 | X118: 34.08705483 | Y118: 563 | Z118: 33.51190476 | AA118: 567 | AB118: 34.21846711 | AC118: 551 | AD118: 33.7622549 | AE118: 548 | AF118: 34.50881612 | AG118: 534 | AH118: 33.84030418 | AI118: 515 | AJ118: 33.85930309 | AK118: 500 | AL118: 33.78378378 | AM118: 470 | AN118: 33.14527504 | AO118: 470 | AP118: 33.1920904 | AQ118: 446 | AR118: 32.31884058
B119: 200-299 | C119: 222 | D119: 6.166666667 | E119: 275 | F119: 8.922777417 | G119: 280 | H119: 12.95696437 | I119: 305 | J119: 14.19264774 | K119: 302 | L119: 14.23856671 | M119: 307 | N119: 15.01222494 | O119: 305 | P119: 15.45869235 | Q119: 304 | R119: 15.22283425 | S119: 301 | T119: 15.27143582 | U119: 301 | V119: 16.02768903 | W119: 286 | X119: 16.16732617 | Y119: 272 | Z119: 16.19047619 | AA119: 262 | AB119: 15.81170791 | AC119: 258 | AD119: 15.80882353 | AE119: 253 | AF119: 15.93198992 | AG119: 250 | AH119: 15.84283904 | AI119: 250 | AJ119: 16.4365549 | AK119: 226 | AL119: 15.27027027 | AM119: 232 | AN119: 16.36107193 | AO119: 237 | AP119: 16.73728814 | AQ119: 229 | AR119: 16.5942029
B120: 300-499 | C120: 82 | D120: 2.277777778 | E120: 131 | F120: 4.250486697 | G120: 176 | H120: 8.144377603 | I120: 184 | J120: 8.562121917 | K120: 187 | L120: 8.816595945 | M120: 176 | N120: 8.606356968 | O120: 199 | P120: 10.0861632 | Q120: 217 | R120: 10.86629945 | S120: 229 | T120: 11.61846778 | U120: 227 | V120: 12.08732694 | W120: 231 | X120: 13.05822499 | Y120: 225 | Z120: 13.39285714 | AA120: 228 | AB120: 13.75980688 | AC120: 230 | AD120: 14.09313725 | AE120: 227 | AF120: 14.29471033 | AG120: 221 | AH120: 14.00506971 | AI120: 217 | AJ120: 14.26692965 | AK120: 222 | AL120: 15 | AM120: 218 | AN120: 15.37376587 | AO120: 223 | AP120: 15.74858757 | AQ120: 222 | AR120: 16.08695652
B121: 500-799 | C121: 9 | D121: 0.25 | E121: 18 | F121: 0.58403634 | G121: 19 | H121: 0.8792225821 | I121: 21 | J121: 0.9771986971 | K121: 27 | L121: 1.272984441 | M121: 36 | N121: 1.760391198 | O121: 37 | P121: 1.875316776 | Q121: 43 | R121: 2.153229845 | S121: 48 | T121: 2.435312024 | U121: 58 | V121: 3.088391906 | W121: 57 | X121: 3.222159412 | Y121: 63 | Z121: 3.75 | AA121: 65 | AB121: 3.922751961 | AC121: 68 | AD121: 4.166666667 | AE121: 72 | AF121: 4.534005038 | AG121: 79 | AH121: 5.006337136 | AI121: 83 | AJ121: 5.456936226 | AK121: 87 | AL121: 5.878378378 | AM121: 79 | AN121: 5.57122708 | AO121: 82 | AP121: 5.790960452 | AQ121: 85 | AR121: 6.15942029
B122: >800 | C122: - | D122: 0.05555555556 | E122: 1 | F122: 0.03244646334 | G122: - | H122: 0.04627487274 | I122: - | J122: 0.04653327129 | K122: 0 | L122: 0 | M122: 3 | N122: 0.1466992665 | O122: - | P122: 0.1013684744 | Q122: 3 | R122: 0.150225338 | S122: 5 | T122: 0.2536783359 | U122: 7 | V122: 0.3727369542 | W122: 10 | X122: 0.5652911249 | Y122: 8 | Z122: 0.4761904762 | AA122: 10 | AB122: 0.6035003018 | AC122: 12 | AD122: 0.7352941176 | AE122: 13 | AF122: 0.8186397985 | AG122: 12 | AH122: 0.7604562738 | AI122: 11 | AJ122: 0.7232084155 | AK122: 13 | AL122: 0.8783783784 | AM122: 16 | AN122: 1.128349788 | AO122: 19 | AP122: 1.34180791 | AQ122: 23 | AR122: 1.666666667
B123: Antall bruk | C123: 3600 | E123: 3082 | G123: 2161 | I123: 2149 | K123: 2121 | M123: 2045 | O123: 1973 | Q123: 1997 | S123: 1971 | U123: 1878 | W123: 1769 | Y123: 1680 | AA123: 1657 | AC123: 1632 | AE123: 1588 | AG123: 1578 | AI123: 1521 | AK123: 1480 | AM123: 1418 | AO123: 1416 | AQ123: 1380
B124: 1000 daa | C124: 285.953 | E124: 317.705 | G124: 291.519 | I124: 298.262 | K124: 302.252 | M124: 301.688 | O124: 304.718 | Q124: 316.873 | S124: 326.881 | U124: 325.347 | W124: 319.889 | Y124: 309.768 | AA124: 310.058 | AC124: 310.171 | AE124: 309.872 | AG124: 311.538 | AI124: 306.948 | AK124: 304.162 | AM124: 295.108 | AO124: 302.887 | AQ124: 300.809
A125: Nordland | B125: <99 | C125: 128 | D125: 96.96969697 | E125: 76 | F125: 81.72043011 | G125: 36 | H125: 80 | I125: 34 | J125: 0 | K125: 21 | L125: 0 | M125: 21 | N125: 0 | O125: 32 | P125: 0 | Q125: 42 | R125: 82.35294118 | S125: 37 | T125: 75.51020408 | U125: 40 | V125: 78.43137255 | W125: 33 | X125: 76.74418605 | Y125: 32 | Z125: 72.72727273 | AA125: 33 | AB125: 70.21276596 | AC125: 32 | AD125: 74.41860465 | AE125: 20 | AF125: 58.82352941 | AG125: 17 | AH125: 56.66666667 | AI125: 14 | AJ125: 56 | AK125: 9 | AL125: 50 | AM125: 12 | AN125: 60 | AO125: 11 | AP125: 61.11111111 | AQ125: 11 | AR125: 64.70588235
B126: 100-199 | C126: 3 | D126: 2.272727273 | E126: 15 | F126: 16.12903226 | G126: 7 | H126: 15.55555556 | I126: 8 | J126: 0 | K126: 6 | L126: 0 | M126: 6 | N126: 0 | O126: 4 | P126: 0 | Q126: 5 | R126: 9.803921569 | S126: 7 | T126: 14.28571429 | U126: 5 | V126: 9.803921569 | W126: 4 | X126: 9.302325581 | Y126: 5 | Z126: 11.36363636 | AA126: 7 | AB126: 14.89361702 | AC126: 3 | AD126: 6.976744186 | AE126: 7 | AF126: 20.58823529 | AG126: 7 | AH126: 23.33333333 | AI126: 6 | AJ126: 24 | AK126: 4 | AL126: 22.22222222 | AM126: 3 | AN126: 15 | AO126: 4 | AP126: 16.66666667 | AQ126: 3 | AR126: 11.76470588
B127: 200-299 | C127: - | D127: 0.7575757576 | E127: - | F127: 2.150537634 | G127: - | H127: 4.444444444 | I127: - | J127: 0 | K127: 3 | L127: 0 | M127: 4 | N127: 0 | O127: 4 | P127: 0 | Q127: 3 | R127: 5.882352941 | S127: 5 | T127: 10.20408163 | U127: 6 | V127: 11.76470588 | W127: 6 | X127: 13.95348837 | Y127: 7 | Z127: 13.63636364 | AA127: 7 | AB127: 12.76595745 | AC127: 7 | AD127: 13.95348837 | AE127: 7 | AF127: 17.64705882 | AG127: 6 | AH127: 13.33333333 | AI127: 5 | AJ127: 16 | AK127: 5 | AL127: 22.22222222 | AM127: 5 | AN127: 15 | AO127: - | AP127: 5.555555556 | AQ127: - | AR127: 5.882352941
B128: 300-499 | C128: 0 | D128: 0 | E128: 0 | F128: 0 | G128: 0 | H128: 0 | I128: 0 | J128: 0 | K128: 0 | L128: 0 | M128: 0 | N128: 0 | O128: 0 | P128: 0 | Q128: - | R128: 1.960784314 | S128: 0 | T128: 0 | U128: 0 | V128: 0 | W128: 0 | X128: 0 | Y128: - | Z128: 2.272727273 | AA128: - | AB128: 2.127659574 | AC128: - | AD128: 2.325581395 | AE128: 0 | AF128: 0 | AG128: - | AH128: 3.333333333 | AI128: 0 | AJ128: 0 | AK128: 0 | AL128: 0 | AM128: - | AN128: 5 | AO128: 3 | AP128: 11.11111111 | AQ128: 3 | AR128: 11.76470588
B129: 500-799 | C129: 0 | D129: 0 | E129: 0 | F129: 0 | G129: 0 | H129: 0 | I129: 0 | J129: 0 | K129: 0 | L129: 0 | M129: 0 | N129: 0 | O129: 0 | P129: 0 | Q129: 0 | R129: 0 | S129: 0 | T129: 0 | U129: 0 | V129: 0 | W129: 0 | X129: 0 | Y129: 0 | Z129: 0 | AA129: 0 | AB129: 0 | AC129: - | AD129: 2.325581395 | AE129: - | AF129: 2.941176471 | AG129: - | AH129: 3.333333333 | AI129: - | AJ129: 4 | AK129: - | AL129: 5.555555556 | AM129: - | AN129: 5 | AO129: - | AP129: 5.555555556 | AQ129: - | AR129: 5.882352941
B130: >800 | C130: 0 | D130: 0 | E130: 0 | F130: 0 | G130: 0 | H130: 0 | I130: 0 | J130: 0 | K130: 0 | L130: 0 | M130: 0 | N130: 0 | O130: 0 | P130: 0 | Q130: 0 | R130: 0 | S130: 0 | T130: 0 | U130: 0 | V130: 0 | W130: 0 | X130: 0 | Y130: 0 | Z130: 0 | AA130: 0 | AB130: 0 | AC130: 0 | AD130: 0 | AE130: 0 | AF130: 0 | AG130: 0 | AH130: 0 | AI130: 0 | AJ130: 0 | AK130: 0 | AL130: 0 | AM130: 0 | AN130: 0 | AO130: 0 | AP130: 0 | AQ130: 0 | AR130: 0
B131: Antall bruk | C131: 132 | E131: 93 | G131: 45 | I131: 44 | K131: 30 | M131: 31 | O131: 40 | Q131: 51 | S131: 49 | U131: 51 | W131: 43 | Y131: 44 | AA131: 47 | AC131: 43 | AE131: 34 | AG131: 30 | AI131: 25 | AK131: 18 | AM131: 20 | AO131: 18 | AQ131: 17
B132: 1000 daa | C132: 2.856 | E132: 5.276 | G132: 2.643 | I132: 2.638 | K132: 2.234 | M132: 2.241 | O132: 2.274 | Q132: 3.001 | S132: 3.45 | U132: 3.452 | W132: 2.942 | Y132: 3.349 | AA132: 3.75 | AC132: 3.671 | AE132: 3.34 | AG132: 3.134 | AI132: 2.8 | AK132: 2.34 | AM132: 2.52 | AO132: 2.115 | AQ132: 2.345
A133: Troms | B133: <99 | C133: 22 | D133: 100 | E133: 3 | F133: 100 | G133: 0 | H133: 0 | I133: 0 | J133: 0 | K133: 0 | L133: 0 | M133: 4 | N133: 80 | O133: 8 | P133: 100 | Q133: 5 | R133: 100 | S133: 7 | T133: 100 | U133: 4 | V133: 100 | W133: - | X133: 100 | Y133: 4 | Z133: 100 | AA133: - | AB133: 100 | AC133: 4 | AD133: 100 | AE133: - | AF133: 100 | AG133: - | AH133: 100 | AI133: 0 | AJ133: - | AK133: - | AL133: 100 | AM133: - | AN133: 100 | AO133: - | AP133: 100 | AQ133: - | AR133: 100
B134: 100-199 | C134: 0 | D134: 0 | E134: 0 | F134: 0 | G134: 0 | H134: 0 | I134: 0 | J134: 0 | K134: 0 | L134: 0 | M134: 0 | N134: 0 | O134: 0 | P134: 0 | Q134: 0 | R134: 0 | S134: 0 | T134: 0 | U134: 0 | V134: 0 | W134: 0 | X134: 0 | Y134: 0 | Z134: 0 | AA134: 0 | AB134: 0 | AC134: 0 | AD134: 0 | AE134: 0 | AF134: 0 | AG134: 0 | AH134: 0 | AI134: 0 | AJ134: - | AK134: 0 | AL134: 0 | AM134: 0 | AN134: 0 | AO134: 0 | AP134: 0 | AQ134: 0 | AR134: 0
B135: 200-299 | C135: 0 | D135: 0 | E135: 0 | F135: 0 | G135: 0 | H135: 0 | I135: 0 | J135: 0 | K135: 0 | L135: 0 | M135: - | N135: 20 | O135: 0 | P135: 0 | Q135: 0 | R135: 0 | S135: 0 | T135: 0 | U135: 0 | V135: 0 | W135: 0 | X135: 0 | Y135: 0 | Z135: 0 | AA135: 0 | AB135: 0 | AC135: 0 | AD135: 0 | AE135: 0 | AF135: 0 | AG135: 0 | AH135: 0 | AI135: 0 | AJ135: - | AK135: 0 | AL135: 0 | AM135: 0 | AN135: 0 | AO135: 0 | AP135: 0 | AQ135: 0 | AR135: 0
B136: 300-499 | C136: 0 | D136: 0 | E136: 0 | F136: 0 | G136: 0 | H136: 0 | I136: 0 | J136: 0 | K136: 0 | L136: 0 | M136: 0 | N136: 0 | O136: 0 | P136: 0 | Q136: 0 | R136: 0 | S136: 0 | T136: 0 | U136: 0 | V136: 0 | W136: 0 | X136: 0 | Y136: 0 | Z136: 0 | AA136: 0 | AB136: 0 | AC136: 0 | AD136: 0 | AE136: 0 | AF136: 0 | AG136: 0 | AH136: 0 | AI136: 0 | AJ136: - | AK136: 0 | AL136: 0 | AM136: 0 | AN136: 0 | AO136: 0 | AP136: 0 | AQ136: 0 | AR136: 0
B137: 500-799 | C137: 0 | D137: 0 | E137: 0 | F137: 0 | G137: 0 | H137: 0 | I137: 0 | J137: 0 | K137: 0 | L137: 0 | M137: 0 | N137: 0 | O137: 0 | P137: 0 | Q137: 0 | R137: 0 | S137: 0 | T137: 0 | U137: 0 | V137: 0 | W137: 0 | X137: 0 | Y137: 0 | Z137: 0 | AA137: 0 | AB137: 0 | AC137: 0 | AD137: 0 | AE137: 0 | AF137: 0 | AG137: 0 | AH137: 0 | AI137: 0 | AJ137: - | AK137: 0 | AL137: 0 | AM137: 0 | AN137: 0 | AO137: 0 | AP137: 0 | AQ137: 0 | AR137: 0
B138: >800 | C138: 0 | D138: 0 | E138: 0 | F138: 0 | G138: 0 | H138: 0 | I138: 0 | J138: 0 | K138: 0 | L138: 0 | M138: 0 | N138: 0 | O138: 0 | P138: 0 | Q138: 0 | R138: 0 | S138: 0 | T138: 0 | U138: 0 | V138: 0 | W138: 0 | X138: 0 | Y138: 0 | Z138: 0 | AA138: 0 | AB138: 0 | AC138: 0 | AD138: 0 | AE138: 0 | AF138: 0 | AG138: 0 | AH138: 0 | AI138: 0 | AJ138: - | AK138: 0 | AL138: 0 | AM138: 0 | AN138: 0 | AO138: 0 | AP138: 0 | AQ138: 0 | AR138: 0
B139: Antall bruk | C139: 22 | E139: 3 | G139: 0 | I139: 0 | K139: 0 | M139: 5 | O139: 8 | Q139: 5 | S139: 7 | U139: 4 | W139: - | Y139: 4 | AA139: - | AC139: 4 | AE139: - | AG139: - | AI139: 0 | AK139: - | AM139: - | AO139: - | AQ139: -
B140: 1000 daa | C140: 0.164 | E140: 0.016 | G140: 0 | I140: 0 | K140: 0 | M140: 0.366 | O140: 0.142 | Q140: 0.105 | S140: 0.167 | U140: 0.07 | W140: 0.004 | Y140: 0.052 | AA140: 0.017 | AC140: 0.1 | AE140: 0.007 | AG140: 0.016 | AI140: 0.007 | AK140: 0.006 | AM140: 0.006 | AO140: 0.01 | AQ140: 0.004
A141: Finnmark | B141: <99 | C141: 0 | D141: 0 | E141: 0 | F141: 0 | G141: 0 | H141: 0 | I141: 0 | J141: 0 | K141: 0 | L141: 0 | M141: 0 | N141: 0 | O141: 0 | P141: 0 | Q141: - | R141: 100 | S141: - | T141: 100 | U141: 0 | V141: 0 | W141: - | X141: 100 | Y141: 0 | Z141: 0 | AA141: 0 | AB141: 0 | AC141: - | AD141: 100 | AE141: - | AF141: 100 | AG141: - | AH141: 100 | AI141: - | AJ141: 100 | AK141: - | AL141: 100 | AM141: - | AN141: 100 | AO141: - | AP141: 100 | AQ141: 0 | AR141: 0
B142: 100-199 | C142: 0 | D142: 0 | E142: 0 | F142: 0 | G142: 0 | H142: 0 | I142: 0 | J142: 0 | K142: 0 | L142: 0 | M142: 0 | N142: 0 | O142: 0 | P142: 0 | Q142: 0 | R142: 0 | S142: 0 | T142: 0 | U142: 0 | V142: 0 | W142: 0 | X142: 0 | Y142: 0 | Z142: 0 | AA142: 0 | AB142: 0 | AC142: 0 | AD142: 0 | AE142: 0 | AF142: 0 | AG142: 0 | AH142: 0 | AI142: 0 | AJ142: 0 | AK142: 0 | AL142: 0 | AM142: 0 | AN142: 0 | AO142: 0 | AP142: 0 | AQ142: 0 | AR142: 0
B143: 200-299 | C143: 0 | D143: 0 | E143: 0 | F143: 0 | G143: 0 | H143: 0 | I143: 0 | J143: 0 | K143: 0 | L143: 0 | M143: 0 | N143: 0 | O143: 0 | P143: 0 | Q143: 0 | R143: 0 | S143: 0 | T143: 0 | U143: 0 | V143: 0 | W143: 0 | X143: 0 | Y143: 0 | Z143: 0 | AA143: 0 | AB143: 0 | AC143: 0 | AD143: 0 | AE143: 0 | AF143: 0 | AG143: 0 | AH143: 0 | AI143: 0 | AJ143: 0 | AK143: 0 | AL143: 0 | AM143: 0 | AN143: 0 | AO143: 0 | AP143: 0 | AQ143: 0 | AR143: 0
B144: 300-499 | C144: 0 | D144: 0 | E144: 0 | F144: 0 | G144: 0 | H144: 0 | I144: 0 | J144: 0 | K144: 0 | L144: 0 | M144: 0 | N144: 0 | O144: 0 | P144: 0 | Q144: 0 | R144: 0 | S144: 0 | T144: 0 | U144: 0 | V144: 0 | W144: 0 | X144: 0 | Y144: 0 | Z144: 0 | AA144: 0 | AB144: 0 | AC144: 0 | AD144: 0 | AE144: 0 | AF144: 0 | AG144: 0 | AH144: 0 | AI144: 0 | AJ144: 0 | AK144: 0 | AL144: 0 | AM144: 0 | AN144: 0 | AO144: 0 | AP144: 0 | AQ144: 0 | AR144: 0
B145: 500-799 | C145: 0 | D145: 0 | E145: 0 | F145: 0 | G145: 0 | H145: 0 | I145: 0 | J145: 0 | K145: 0 | L145: 0 | M145: 0 | N145: 0 | O145: 0 | P145: 0 | Q145: 0 | R145: 0 | S145: 0 | T145: 0 | U145: 0 | V145: 0 | W145: 0 | X145: 0 | Y145: 0 | Z145: 0 | AA145: 0 | AB145: 0 | AC145: 0 | AD145: 0 | AE145: 0 | AF145: 0 | AG145: 0 | AH145: 0 | AI145: 0 | AJ145: 0 | AK145: 0 | AL145: 0 | AM145: 0 | AN145: 0 | AO145: 0 | AP145: 0 | AQ145: 0 | AR145: 0
B146: >800 | C146: 0 | D146: 0 | E146: 0 | F146: 0 | G146: 0 | H146: 0 | I146: 0 | J146: 0 | K146: 0 | L146: 0 | M146: 0 | N146: 0 | O146: 0 | P146: 0 | Q146: 0 | R146: 0 | S146: 0 | T146: 0 | U146: 0 | V146: 0 | W146: 0 | X146: 0 | Y146: 0 | Z146: 0 | AA146: 0 | AB146: 0 | AC146: 0 | AD146: 0 | AE146: 0 | AF146: 0 | AG146: 0 | AH146: 0 | AI146: 0 | AJ146: 0 | AK146: 0 | AL146: 0 | AM146: 0 | AN146: 0 | AO146: 0 | AP146: 0 | AQ146: 0 | AR146: 0
B147: Antall bruk | C147: 0 | E147: 0 | G147: 0 | I147: 0 | K147: 0 | M147: 0 | O147: 0 | Q147: - | S147: - | U147: 0 | W147: - | Y147: 0 | AA147: 0 | AC147: - | AE147: - | AG147: - | AI147: - | AJ147: 0 | AK147: - | AM147: - | AO147: - | AQ147: 0
B148: 1000 daa | C148: 0 | E148: 0 | G148: 0 | I148: 0 | K148: 0 | M148: 0 | O148: 0 | Q148: 0.016 | S148: 0.08 | U148: 0 | W148: 0.032 | Y148: 0 | AA148: 0 | AC148: 0.012 | AE148: 0 | AG148: 0 | AI148: 0.01 | AK148: 0.002 | AM148: 0.06 | AO148: 0.058 | AQ148: 0
A149: Hele landet | B149: <99 | C149: 28651 | D149: 72.47546292 | E149: 20534 | F149: 62.03063166 | G149: 10165 | H149: 46.39645808 | I149: 9662 | J149: 45.19388185 | K149: 8977 | L149: 43.57978543 | M149: 8127 | N149: 41.65769645 | O149: 7175 | P149: 39.25698966 | Q149: 6558 | R149: 37.15159755 | S149: 5937 | T149: 35.40250447 | U149: 5366 | V149: 33.90194592 | W149: 4909 | X149: 32.54657561 | Y149: 4681 | Z149: 32.17182131 | AA149: 4395 | AB149: 31.35031029 | AC149: 4149 | AD149: 30.6583906 | AE149: 3896 | AF149: 29.78593272 | AG149: 3630 | AH149: 28.96584743 | AI149: 3322 | AJ149: 28.28437633 | AK149: 3217 | AL149: 27.94718096 | AM149: 3084 | AN149: 27.36954207 | AO149: 3027 | AP149: 27.00990452 | AQ149: 2867 | AR149: 26.295515
B150: 100-199 | C150: 6960 | D150: 17.60599008 | E150: 7611 | F150: 22.99187385 | G150: 6170 | H150: 28.16194258 | I150: 6036 | J150: 28.23331306 | K150: 5857 | L150: 28.4334191 | M150: 5593 | N150: 28.66881952 | O150: 5323 | P150: 29.12403567 | Q150: 5281 | R150: 29.91728983 | S150: 5005 | T150: 29.84496124 | U150: 4761 | V150: 30.07960576 | W150: 4591 | X150: 30.43824173 | Y150: 4371 | Z150: 30.04123711 | AA150: 4214 | AB150: 30.05920536 | AC150: 4034 | AD150: 29.80861598 | AE150: 3902 | AF150: 29.83180428 | AG150: 3722 | AH150: 29.69996808 | AI150: 3456 | AJ150: 29.42528736 | AK150: 3373 | AL150: 29.30240639 | AM150: 3286 | AN150: 29.16222932 | AO150: 3256 | AP150: 29.05327028 | AQ150: 3147 | AR150: 28.86361552
B151: 200-299 | C151: 2346 | D151: 5.934432865 | E151: 2848 | F151: 8.603449838 | G151: 2793 | H151: 12.74818568 | I151: 2806 | J151: 13.12502923 | K151: 2781 | L151: 13.50065537 | M151: 2741 | N151: 14.04992568 | O151: 2652 | P151: 14.51003994 | Q151: 2621 | R151: 14.84817584 | S151: 2603 | T151: 15.52176506 | U151: 2479 | V151: 15.66211777 | W151: 2419 | X151: 16.03792349 | Y151: 2305 | Z151: 15.8419244 | AA151: 2223 | AB151: 15.85705114 | AC151: 2142 | AD151: 15.82797606 | AE151: 2092 | AF151: 15.99388379 | AG151: 2033 | AH151: 16.22247048 | AI151: 1909 | AJ151: 16.25372499 | AK151: 1867 | AL151: 16.21926853 | AM151: 1855 | AN151: 16.46254881 | AO151: 1848 | AP151: 16.48969394 | AQ151: 1786 | AR151: 16.38081262
B152: 300-499 | C152: 1242 | D152: 3.141758575 | E152: 1677 | F152: 5.066006102 | G152: 2026 | H152: 9.247341275 | I152: 2065 | J152: 9.659011179 | K152: 2071 | L152: 10.05388611 | M152: 2051 | N152: 10.51309652 | O152: 2083 | P152: 11.39683756 | Q152: 2120 | R152: 12.00997054 | S152: 2119 | T152: 12.63565891 | U152: 2081 | V152: 13.14758656 | W152: 2019 | X152: 13.38593118 | Y152: 2009 | Z152: 13.80756014 | AA152: 1952 | AB152: 13.92396034 | AC152: 1953 | AD152: 14.43138994 | AE152: 1906 | AF152: 14.57186544 | AG152: 1845 | AH152: 14.72231088 | AI152: 1759 | AJ152: 14.97658578 | AK152: 1736 | AL152: 15.08122665 | AM152: 1694 | AN152: 15.03372382 | AO152: 1686 | AP152: 15.04416882 | AQ152: 1689 | AR152: 15.49114922
B153: 500-799 | C153: 283 | D153: 0.7158757462 | E153: 367 | F153: 1.108660846 | G153: 609 | H153: 2.779679584 | I153: 657 | J153: 3.073109126 | K153: 718 | L153: 3.485606097 | M153: 763 | N153: 3.911015429 | O153: 789 | P153: 4.316901023 | Q153: 794 | R153: 4.498073873 | S153: 808 | T153: 4.818127609 | U153: 826 | V153: 5.218599949 | W153: 811 | X153: 5.376914407 | Y153: 827 | Z153: 5.683848797 | AA153: 857 | AB153: 6.113132178 | AC153: 856 | AD153: 6.325278948 | AE153: 876 | AF153: 6.697247706 | AG153: 871 | AH153: 6.950207469 | AI153: 850 | AJ153: 7.23712218 | AK153: 859 | AL153: 7.462427244 | AM153: 889 | AN153: 7.889598864 | AO153: 904 | AP153: 8.06638708 | AQ153: 906 | AR153: 8.309639549
B154: >800 | C154: 50 | D154: 0.1264798138 | E154: 66 | F154: 0.1993776999 | G154: 146 | H154: 0.6663928066 | I154: 153 | J154: 0.7156555498 | K154: 195 | L154: 0.9466478955 | M154: 234 | N154: 1.199446409 | O154: 255 | P154: 1.395196148 | Q154: 278 | R154: 1.574892363 | S154: 298 | T154: 1.776982707 | U154: 315 | V154: 1.990144049 | W154: 334 | X154: 2.214413578 | Y154: 357 | Z154: 2.453608247 | AA154: 378 | AB154: 2.696340681 | AC154: 399 | AD154: 2.948348481 | AE154: 408 | AF154: 3.119266055 | AG154: 431 | AH154: 3.439195659 | AI154: 449 | AJ154: 3.822903363 | AK154: 459 | AL154: 3.987490227 | AM154: 460 | AN154: 4.082357118 | AO154: 486 | AP154: 4.336575355 | AQ154: 508 | AR154: 4.659268091
B155: Antall bruk | C155: 39532 | E155: 33103 | G155: 21909 | I155: 21379 | K155: 20599 | M155: 19509 | O155: 18277 | Q155: 17652 | S155: 16770 | U155: 15828 | W155: 15083 | Y155: 14550 | AA155: 14019 | AC155: 13533 | AE155: 13080 | AG155: 12532 | AI155: 11745 | AK155: 11511 | AM155: 11268 | AO155: 11207 | AQ155: 10903
B156: 1000 daa | C156: 3252 | E156: 3529.803 | G156: 3281.74 | I156: 3306.024 | K156: 3281.124 | M156: 3268.166 | O156: 3266.759 | Q156: 3282.658 | S156: 3252.184 | U156: 3246.945 | W156: 3181.056 | Y156: 3138.319 | AA156: 3104.119 | AC156: 3070.702 | AE156: 3039.526 | AG156: 2996.994 | AI156: 2895.203 | AK156: 2878.465 | AM156: 2861.953 | AO156: 2892.112 | AQ156: 2882.828
A157: 1) Der hvor det er mindre enn 3 enheter i gruppen er enhetene lagt til nærmeste gruppe. Dette pga anonymisering.

Sheet J.bedr. potet (hidden)
A1: Antall jordbruksbedrifter med poteter etter størrelsen på potetarealet. Fylkestall, 1000 dekar
B3: Arealgruppe | C3: 1979 | E3: 1989 | G3: 1999 | I3: 2000 | K3: 2001 | M3: 2002 | O3: 2003 | Q3: 2004 | S3: 2005 | U3: 2006 | W3: 2007 | Y3: 2008 | Z3: 0 | AA3: 2009 | AC3: 2010 | AE3: 2011 | AG3: 2012 | AI3: 2013 | AK3: 2014 | AM3: 2015 | AO3: 2016 | AQ3: 2017
C4: Antall | D4: % | E4: Antall | F4: % | G4: Antall | H4: % | I4: Antall | J4: % | K4: Antall | L4: % | M4: Antall | N4: % | O4: Antall | P4: % | Q4: Antall | R4: % | S4: Antall | T4: % | U4: Antall | V4: % | W4: Antall | X4: % | Y4: Antall | Z4: % | AA4: Antall | AB4: % | AC4: Antall | AD4: % | AE4: Antall | AF4: % | AG4: Antall | AH4: % | AI4: Antall | AJ4: % | AK4: Antall | AL4: % | AM4: Antall | AN4: % | AO4: Antall | AP4: % | AQ4: Antall | AR4: %
A5: Østfold | B5: <10 | C5: 2903 | D5: 90.80387864 | E5: 977 | F5: 77.35550277 | G5: 253 | H5: 60.23809524 | I5: 223 | J5: 59.46666667 | K5: 182 | L5: 56 | M5: 148 | N5: 52.29681979 | O5: 112 | P5: 47.45762712 | Q5: 109 | R5: 50.23041475 | S5: 88 | T5: 46.56084656 | U5: 67 | V5: 42.13836478 | W5: 62 | X5: 42.75862069 | Y5: 53 | Z5: 39.84962406 | AA5: 51 | AB5: 43.96551724 | AC5: 47 | AD5: 43.51851852 | AE5: 37 | AF5: 39.78494624 | AG5: 35 | AH5: 40.69767442 | AI5: 31 | AJ5: 37.34939759 | AK5: 28 | AL5: 35 | AM5: 29 | AN5: 36.70886076 | AO5: 32 | AP5: 38.55421687 | AQ5: 35 | AR5: 42.1686747
B6: 10-49 | C6: 246 | D6: 7.694713794 | E6: 195 | F6: 15.43942993 | G6: 89 | H6: 21.19047619 | I6: 81 | J6: 21.6 | K6: 81 | L6: 24.92307692 | M6: 80 | N6: 28.26855124 | O6: 74 | P6: 31.3559322 | Q6: 60 | R6: 27.64976959 | S6: 55 | T6: 29.1005291 | U6: 50 | V6: 31.44654088 | W6: 39 | X6: 26.89655172 | Y6: 37 | Z6: 27.81954887 | AA6: 29 | AB6: 25 | AC6: 25 | AD6: 23.14814815 | AE6: 20 | AF6: 21.50537634 | AG6: 20 | AH6: 23.25581395 | AI6: 17 | AJ6: 20.48192771 | AK6: 15 | AL6: 18.75 | AM6: 13 | AN6: 16.4556962 | AO6: 15 | AP6: 18.07228916 | AQ6: 14 | AR6: 16.86746988
B7: 50-99 | C7: 45 | D7: 1.407569596 | E7: 71 | F7: 5.621536025 | G7: 50 | H7: 11.9047619 | I7: 45 | J7: 12 | K7: 40 | L7: 12.30769231 | M7: 28 | N7: 9.893992933 | O7: 25 | P7: 10.59322034 | Q7: 23 | R7: 10.59907834 | S7: 20 | T7: 10.58201058 | U7: 18 | V7: 11.32075472 | W7: 18 | X7: 12.4137931 | Y7: 17 | Z7: 12.78195489 | AA7: 11 | AB7: 9.482758621 | AC7: 14 | AD7: 12.96296296 | AE7: 13 | AF7: 13.97849462 | AG7: 10 | AH7: 11.62790698 | AI7: 12 | AJ7: 14.45783133 | AK7: 15 | AL7: 18.75 | AM7: 16 | AN7: 20.25316456 | AO7: 14 | AP7: 16.86746988 | AQ7: 15 | AR7: 18.07228916
B8: 100-199 | C8: 3 | D8: 0.0938379731 | E8: 19 | F8: 1.504354711 | G8: 27 | H8: 6.428571429 | I8: 23 | J8: 6.133333333 | K8: 19 | L8: 5.846153846 | M8: 21 | N8: 7.4204947 | O8: 23 | P8: 9.745762712 | Q8: 20 | R8: 9.216589862 | S8: 23 | T8: 12.16931217 | U8: 21 | V8: 13.20754717 | W8: 21 | X8: 14.48275862 | Y8: 21 | Z8: 15.78947368 | AA8: 21 | AB8: 18.10344828 | AC8: 18 | AD8: 16.66666667 | AE8: 20 | AF8: 21.50537634 | AG8: 15 | AH8: 17.44186047 | AI8: 17 | AJ8: 20.48192771 | AK8: 16 | AL8: 20 | AM8: 16 | AN8: 20.25316456 | AO8: 16 | AP8: 19.27710843 | AQ8: 12 | AR8: 14.45783133
B9: 200-299 | C9: 0 | D9: 0 | E9: 0 | F9: 0 | G9: - | H9: 0.2380952381 | I9: 3 | J9: 0.8 | K9: 3 | L9: 0.9230769231 | M9: 6 | N9: 2.120141343 | O9: 2 | P9: 0.8474576271 | Q9: 5 | R9: 2.304147465 | S9: 3 | T9: 1.587301587 | U9: 3 | V9: 1.886792453 | W9: 5 | X9: 3.448275862 | Y9: 5 | Z9: 3.007518797 | AA9: 4 | AB9: 2.586206897 | AC9: 4 | AD9: 2.777777778 | AE9: 3 | AF9: 2.150537634 | AG9: 6 | AH9: 6.976744186 | AI9: 6 | AJ9: 7.228915663 | AK9: 6 | AL9: 7.5 | AM9: 5 | AN9: 6.329113924 | AO9: 6 | AP9: 7.228915663 | AQ9: 7 | AR9: 8.43373494
B10: >300 | C10: 0 | D10: 0 | E10: - | F10: 0 | G10: 0 | H10: 0 | I10: 0 | J10: 0 | K10: 0 | L10: 0 | M10: 0 | N10: 0 | O10: 0 | P10: 0 | Q10: 0 | R10: 0 | S10: 0 | T10: 0 | U10: 0 | V10: 0 | W10: 0 | X10: 0 | Y10: - | Z10: 0.7518796992 | AA10: - | AB10: 0.8620689655 | AC10: - | AD10: 0.9259259259 | AE10: - | AF10: 1.075268817 | AG10: 0 | AH10: 0 | AJ10: 0 | AK10: 0 | AL10: 0 | AM10: 0 | AN10: 0 | AO10: 0 | AP10: 0 | AQ10: 0 | AR10: 0
B11: Sum | C11: 3197 | E11: 1263 | G11: 420 | I11: 375 | K11: 325 | M11: 283 | O11: 236 | Q11: 217 | S11: 189 | U11: 159 | W11: 145 | Y11: 133 | AA11: 116 | AC11: 108 | AE11: 93 | AG11: 86 | AI11: 83 | AK11: 80 | AM11: 79 | AO11: 83 | AQ11: 83
B12: Antall daa | C12: 13609 | E12: 13546 | G12: 9939 | I12: 9498 | K12: 8675 | M12: 8247 | O12: 7612 | Q12: 7160 | S12: 6855 | U12: 6451 | W12: 6651 | Y12: 6412 | AA12: 5588 | AC12: 5603 | AE12: 5314 | AG12: 4952 | AI12: 5101 | AK12: 5459 | AM12: 5101 | AO12: 5187 | AQ12: 4878
A13: Akershus/Oslo | B13: <10 | C13: 3130 | D13: 94.10703548 | E13: 934 | F13: 85.06375228 | G13: 184 | H13: 65.94982079 | I13: 183 | J13: 68.02973978 | K13: 164 | L13: 65.6 | M13: 133 | N13: 61.00917431 | O13: 105 | P13: 55.85106383 | Q13: 93 | R13: 56.70731707 | S13: 79 | T13: 54.86111111 | U13: 65 | V13: 50.78125 | W13: 51 | X13: 46.78899083 | Y13: 52 | Z13: 48.59813084 | AA13: 42 | AB13: 45.16129032 | AC13: 35 | AD13: 46.66666667 | AE13: 33 | AF13: 46.47887324 | AG13: 34 | AH13: 50.74626866 | AI13: 30 | AJ13: 47.61904762 | AK13: 33 | AL13: 50.76923077 | AM13: 31 | AN13: 49.20634921 | AO13: 30 | AP13: 48.38709677 | AQ13: 30 | AR13: 49.18032787
B14: 10-49 | C14: 162 | D14: 4.870715574 | E14: 114 | F14: 10.38251366 | G14: 48 | H14: 17.20430108 | I14: 46 | J14: 17.10037175 | K14: 40 | L14: 16 | M14: 41 | N14: 18.80733945 | O14: 42 | P14: 22.34042553 | Q14: 29 | R14: 17.68292683 | S14: 28 | T14: 19.44444444 | U14: 23 | V14: 17.96875 | W14: 18 | X14: 16.51376147 | Y14: 20 | Z14: 18.69158879 | AA14: 17 | AB14: 18.27956989 | AC14: 12 | AD14: 16 | AE14: 8 | AF14: 11.26760563 | AG14: 6 | AH14: 8.955223881 | AI14: 4 | AJ14: 6.349206349 | AK14: 3 | AL14: 4.615384615 | AM14: 3 | AN14: 4.761904762 | AO14: 6 | AP14: 9.677419355 | AQ14: 7 | AR14: 11.47540984
B15: 50-99 | C15: 28 | D15: 0.8418520746 | E15: 44 | F15: 4.007285974 | G15: 36 | H15: 12.90322581 | I15: 27 | J15: 10.03717472 | K15: 33 | L15: 13.2 | M15: 28 | N15: 12.8440367 | O15: 26 | P15: 13.82978723 | Q15: 28 | R15: 17.07317073 | S15: 18 | T15: 12.5 | U15: 21 | V15: 16.40625 | W15: 20 | X15: 18.34862385 | Y15: 13 | Z15: 12.14953271 | AA15: 15 | AB15: 16.12903226 | AC15: 7 | AD15: 9.333333333 | AE15: 11 | AF15: 15.49295775 | AG15: 8 | AH15: 11.94029851 | AI15: 9 | AJ15: 14.28571429 | AK15: 8 | AL15: 12.30769231 | AM15: 9 | AN15: 14.28571429 | AO15: 7 | AP15: 11.29032258 | AQ15: 6 | AR15: 9.836065574
B16: 100-199 | C16: 5 | D16: 0.1503307276 | E16: 6 | F16: 0.5464480874 | G16: 8 | H16: 2.867383513 | I16: 10 | J16: 3.717472119 | K16: 10 | L16: 4 | M16: 12 | N16: 5.504587156 | O16: 12 | P16: 6.382978723 | Q16: 9 | R16: 5.487804878 | S16: 15 | T16: 10.41666667 | U16: 12 | V16: 9.375 | W16: 14 | X16: 11.9266055 | Y16: 14 | Z16: 13.08411215 | AA16: 9 | AB16: 9.677419355 | AC16: 15 | AD16: 17.33333333 | AE16: 13 | AF16: 15.49295775 | AG16: 10 | AH16: 14.92537313 | AI16: 11 | AJ16: 17.46031746 | AK16: 12 | AL16: 18.46153846 | AM16: 15 | AN16: 20.63492063 | AO16: 11 | AP16: 17.74193548 | AQ16: 13 | AR16: 21.31147541
B17: 200-299 | C17: - | D17: 0.03006614552 | E17: 0 | F17: 0 | G17: 3 | H17: 1.075268817 | I17: 3 | J17: 1.115241636 | K17: - | L17: 0.4 | M17: - | N17: 0.9174311927 | O17: - | P17: 0.5319148936 | Q17: - | R17: 1.219512195 | S17: - | T17: 0.6944444444 | U17: 4 | V17: 3.125 | W17: - | X17: 0.9174311927 | Y17: 3 | Z17: 2.803738318 | AA17: 4 | AB17: 4.301075269 | AC17: - | AD17: 2.666666667 | AE17: - | AF17: 2.816901408 | AG17: 4 | AH17: 5.970149254 | AI17: 4 | AJ17: 6.349206349 | AK17: 3 | AL17: 4.615384615 | AM17: - | AN17: 3.174603175 | AO17: 3 | AP17: 4.838709677 | AQ17: 0 | AR17: 0
B18: >300 | C18: 0 | D18: 0 | E18: 0 | F18: 0 | G18: 0 | H18: 0 | I18: 0 | J18: 0 | K18: - | L18: 0.8 | M18: - | N18: 0.9174311927 | O18: - | P18: 1.063829787 | Q18: 3 | R18: 1.829268293 | S18: 3 | T18: 2.083333333 | U18: 3 | V18: 2.34375 | W18: 6 | X18: 5.504587156 | Y18: 5 | Z18: 4.672897196 | AA18: 6 | AB18: 6.451612903 | AC18: 6 | AD18: 8 | AE18: 6 | AF18: 8.450704225 | AG18: 5 | AH18: 7.462686567 | AI18: 5 | AJ18: 7.936507937 | AK18: 6 | AL18: 9.230769231 | AM18: 5 | AN18: 7.936507937 | AO18: 5 | AP18: 8.064516129 | AQ18: 5 | AR18: 8.196721311
B19: Sum | C19: 3326 | E19: 1098 | G19: 279 | I19: 269 | K19: 250 | M19: 218 | O19: 188 | Q19: 164 | S19: 144 | U19: 128 | W19: 109 | Y19: 107 | AA19: 93 | AC19: 75 | AE19: 71 | AG19: 67 | AI19: 63 | AK19: 65 | AM19: 63 | AO19: 62 | AQ19: 61
B20: Antall daa | C20: 10318 | E20: 7256 | G20: 5686 | I20: 5581 | K20: 5871 | M20: 6043 | O20: 5714 | Q20: 5853 | S20: 5672 | U20: 5977 | W20: 6818 | Y20: 6827 | AA20: 6705 | AC20: 6218 | AE20: 6533 | AG20: 6454 | AI20: 6318 | AK20: 6254 | AM20: 5731 | AO20: 5821 | AQ20: 5554
A21: Hedmark | B21: <10 | C21: 5837 | D21: 89.53827274 | E21: 2438 | F21: 76.69078327 | G21: 486 | H21: 45.63380282 | I21: 432 | J21: 44.72049689 | K21: 340 | L21: 40.47619048 | M21: 285 | N21: 37.109375 | O21: 243 | P21: 34.9137931 | Q21: 217 | R21: 33.74805599 | S21: 173 | T21: 29.8791019 | U21: 135 | V21: 25.23364486 | W21: 117 | X21: 22.98624754 | Y21: 104 | Z21: 21.44329897 | AA21: 104 | AB21: 22.17484009 | AC21: 95 | AD21: 21.49321267 | AE21: 86 | AF21: 20.72289157 | AG21: 72 | AH21: 18.84816754 | AI21: 60 | AJ21: 16.62049861 | AK21: 63 | AL21: 17.94871795 | AM21: 61 | AN21: 17.99410029 | AO21: 52 | AP21: 16 | AQ21: 49 | AR21: 16.0130719
B22: 10-49 | C22: 498 | D22: 7.639208468 | E22: 417 | F22: 13.11733249 | G22: 234 | H22: 21.97183099 | I22: 204 | J22: 21.11801242 | K22: 169 | L22: 20.11904762 | M22: 156 | N22: 20.3125 | O22: 133 | P22: 19.1091954 | Q22: 122 | R22: 18.97356143 | S22: 108 | T22: 18.65284974 | U22: 97 | V22: 18.13084112 | W22: 84 | X22: 16.50294695 | Y22: 82 | Z22: 16.90721649 | AA22: 76 | AB22: 16.20469083 | AC22: 66 | AD22: 14.9321267 | AE22: 65 | AF22: 15.6626506 | AG22: 60 | AH22: 15.70680628 | AI22: 53 | AJ22: 14.68144044 | AK22: 48 | AL22: 13.67521368 | AM22: 44 | AN22: 12.97935103 | AO22: 45 | AP22: 13.84615385 | AQ22: 35 | AR22: 11.4379085
B23: 50-99 | C23: 144 | D23: 2.20892775 | E23: 210 | F23: 6.605850897 | G23: 175 | H23: 16.43192488 | I23: 157 | J23: 16.25258799 | K23: 140 | L23: 16.66666667 | M23: 136 | N23: 17.70833333 | O23: 129 | P23: 18.53448276 | Q23: 118 | R23: 18.35147745 | S23: 109 | T23: 18.82556131 | U23: 110 | V23: 20.56074766 | W23: 108 | X23: 21.21807466 | Y23: 95 | Z23: 19.58762887 | AA23: 90 | AB23: 19.18976546 | AC23: 86 | AD23: 19.45701357 | AE23: 73 | AF23: 17.59036145 | AG23: 65 | AH23: 17.01570681 | AI23: 72 | AJ23: 19.94459834 | AK23: 65 | AL23: 18.51851852 | AM23: 73 | AN23: 21.5339233 | AO23: 59 | AP23: 18.15384615 | AQ23: 54 | AR23: 17.64705882
B24: 100-199 | C24: 36 | D24: 0.5522319374 | E24: 96 | F24: 3.019817553 | G24: 121 | H24: 11.36150235 | I24: 127 | J24: 13.14699793 | K24: 131 | L24: 15.5952381 | M24: 131 | N24: 17.05729167 | O24: 130 | P24: 18.67816092 | Q24: 123 | R24: 19.12908243 | S24: 126 | T24: 21.76165803 | U24: 128 | V24: 23.92523364 | W24: 126 | X24: 24.75442043 | Y24: 122 | Z24: 25.15463918 | AA24: 125 | AB24: 26.65245203 | AC24: 122 | AD24: 27.60180995 | AE24: 120 | AF24: 28.91566265 | AG24: 110 | AH24: 28.79581152 | AI24: 100 | AJ24: 27.70083102 | AK24: 96 | AL24: 27.35042735 | AM24: 87 | AN24: 25.66371681 | AO24: 90 | AP24: 27.69230769 | AQ24: 78 | AR24: 25.49019608
B25: 200-299 | C25: 3 | D25: 0.04601932812 | E25: 10 | F25: 0.3145643284 | G25: 37 | H25: 3.474178404 | I25: 33 | J25: 3.416149068 | K25: 39 | L25: 4.642857143 | M25: 42 | N25: 5.46875 | O25: 39 | P25: 5.603448276 | Q25: 39 | R25: 6.065318818 | S25: 42 | T25: 7.25388601 | U25: 38 | V25: 7.102803738 | W25: 41 | X25: 8.055009823 | Y25: 47 | Z25: 9.690721649 | AA25: 39 | AB25: 8.315565032 | AC25: 37 | AD25: 8.371040724 | AE25: 31 | AF25: 7.469879518 | AG25: 37 | AH25: 9.685863874 | AI25: 34 | AJ25: 9.418282548 | AK25: 39 | AL25: 11.11111111 | AM25: 30 | AN25: 8.849557522 | AO25: 35 | AP25: 10.76923077 | AQ25: 44 | AR25: 14.37908497
B26: >300 | C26: - | D26: 0.01533977604 | E26: 8 | F26: 0.2516514627 | G26: 12 | H26: 1.126760563 | I26: 13 | J26: 1.345755694 | K26: 21 | L26: 2.5 | M26: 18 | N26: 2.34375 | O26: 22 | P26: 3.16091954 | Q26: 24 | R26: 3.732503888 | S26: 21 | T26: 3.626943005 | U26: 27 | V26: 5.046728972 | W26: 33 | X26: 6.483300589 | Y26: 35 | Z26: 7.216494845 | AA26: 35 | AB26: 7.462686567 | AC26: 36 | AD26: 8.14479638 | AE26: 40 | AF26: 9.638554217 | AG26: 38 | AH26: 9.947643979 | AI26: 42 | AJ26: 11.63434903 | AK26: 40 | AL26: 11.3960114 | AM26: 44 | AN26: 12.97935103 | AO26: 44 | AP26: 13.53846154 | AQ26: 46 | AR26: 15.03267974
B27: Sum | C27: 6519 | E27: 3179 | G27: 1065 | I27: 966 | K27: 840 | M27: 768 | O27: 696 | Q27: 643 | S27: 579 | U27: 535 | W27: 509 | Y27: 485 | AA27: 469 | AC27: 442 | AE27: 415 | AG27: 382 | AI27: 361 | AK27: 351 | AM27: 339 | AO27: 325 | AQ27: 306
B28: Antall daa | C28: 34825 | E28: 46081 | G28: 48987 | I28: 47641 | K28: 49445 | M28: 49615 | O28: 48524 | Q28: 47405 | S28: 46323 | U28: 49029 | W28: 51925 | Y28: 53060 | AA28: 50895 | AC28: 49849 | AE28: 48493 | AG28: 48214 | AI28: 48798 | AK28: 47918 | AM28: 45838 | AO28: 47197 | AQ28: 47472
A29: Oppland | B29: <10 | C29: 7288 | D29: 93.59188391 | E29: 3332 | F29: 88.68778281 | G29: 885 | H29: 77.69973661 | I29: 814 | J29: 77.01040681 | K29: 716 | L29: 75.0524109 | M29: 563 | N29: 70.72864322 | O29: 489 | P29: 69.36170213 | Q29: 396 | R29: 66.33165829 | S29: 329 | T29: 63.75968992 | U29: 239 | V29: 56.9047619 | W29: 186 | X29: 52.54237288 | Y29: 162 | Z29: 50.46728972 | AA29: 130 | AB29: 46.09929078 | AC29: 117 | AD29: 45.34883721 | AE29: 81 | AF29: 38.20754717 | AG29: 75 | AH29: 38.26530612 | AI29: 71 | AJ29: 37.76595745 | AK29: 68 | AL29: 37.98882682 | AM29: 69 | AN29: 39.65517241 | AO29: 63 | AP29: 38.65030675 | AQ29: 58 | AR29: 37.41935484
B30: 10-49 | C30: 386 | D30: 4.956979581 | E30: 262 | F30: 6.973649188 | G30: 119 | H30: 10.44776119 | I30: 113 | J30: 10.69063387 | K30: 106 | L30: 11.11111111 | M30: 107 | N30: 13.44221106 | O30: 91 | P30: 12.90780142 | Q30: 88 | R30: 14.74036851 | S30: 74 | T30: 14.34108527 | U30: 67 | V30: 15.95238095 | W30: 63 | X30: 17.79661017 | Y30: 59 | Z30: 18.38006231 | AA30: 58 | AB30: 20.56737589 | AC30: 50 | AD30: 19.37984496 | AE30: 55 | AF30: 25.94339623 | AG30: 46 | AH30: 23.46938776 | AI30: 36 | AJ30: 19.14893617 | AK30: 42 | AL30: 23.46368715 | AM30: 40 | AN30: 22.98850575 | AO30: 33 | AP30: 20.24539877 | AQ30: 31 | AR30: 20
B31: 50-99 | C31: 105 | D31: 1.348401181 | E31: 140 | F31: 3.726377429 | G31: 92 | H31: 8.077260755 | I31: 81 | J31: 7.663197729 | K31: 81 | L31: 8.490566038 | M31: 70 | N31: 8.793969849 | O31: 74 | P31: 10.4964539 | Q31: 59 | R31: 9.882747069 | S31: 68 | T31: 13.17829457 | U31: 63 | V31: 15 | W31: 59 | X31: 16.66666667 | Y31: 59 | Z31: 18.38006231 | AA31: 58 | AB31: 20.56737589 | AC31: 51 | AD31: 19.76744186 | AE31: 43 | AF31: 20.28301887 | AG31: 44 | AH31: 22.44897959 | AI31: 50 | AJ31: 26.59574468 | AK31: 38 | AL31: 21.22905028 | AM31: 38 | AN31: 21.83908046 | AO31: 44 | AP31: 26.99386503 | AQ31: 39 | AR31: 25.16129032
B32: 100-199 | C32: 8 | D32: 0.1027353281 | E32: 20 | F32: 0.5323396327 | G32: 36 | H32: 3.160667252 | I32: 42 | J32: 3.973509934 | K32: 40 | L32: 4.192872117 | M32: 50 | N32: 6.281407035 | O32: 43 | P32: 6.09929078 | Q32: 44 | R32: 7.370184255 | S32: 35 | T32: 6.782945736 | U32: 38 | V32: 9.047619048 | W32: 34 | X32: 9.604519774 | Y32: 30 | Z32: 9.345794393 | AA32: 24 | AB32: 8.510638298 | AC32: 32 | AD32: 12.40310078 | AE32: 25 | AF32: 11.79245283 | AG32: 21 | AH32: 10.71428571 | AI32: 21 | AJ32: 11.17021277 | AK32: 21 | AL32: 11.73184358 | AM32: 17 | AN32: 9.770114943 | AO32: 12 | AP32: 7.36196319 | AQ32: 16 | AR32: 10.32258065
B33: 200-299 | C33: 0 | D33: 0 | E33: - | F33: 0.05323396327 | G33: 7 | H33: 0.6145741879 | I33: 4 | J33: 0.3784295175 | K33: 9 | L33: 0.9433962264 | M33: 5 | N33: 0.6281407035 | O33: 6 | P33: 0.8510638298 | Q33: 8 | R33: 1.340033501 | S33: 9 | T33: 1.744186047 | U33: 11 | V33: 2.619047619 | W33: 12 | X33: 2.824858757 | Y33: 11 | Z33: 2.803738318 | AA33: 12 | AB33: 3.546099291 | AC33: 8 | AD33: 2.713178295 | AE33: 8 | AF33: 3.301886792 | AG33: 7 | AH33: 3.571428571 | AI33: 10 | AJ33: 4.787234043 | AK33: 10 | AL33: 4.469273743 | AM33: 6 | AN33: 3.448275862 | AO33: 11 | AP33: 5.521472393 | AQ33: 8 | AR33: 5.161290323
B34: >300 | C34: 0 | D34: 0 | E34: - | F34: 0.02661698163 | G34: 0 | H34: 0 | I34: 3 | J34: 0 | K34: - | L34: 0.2096436059 | M34: - | N34: 0.1256281407 | O34: - | P34: 0.2836879433 | Q34: - | R34: 0.3350083752 | S34: - | T34: 0.1937984496 | U34: - | V34: 0.4761904762 | W34: - | X34: 0.5649717514 | Y34: - | Z34: 0.6230529595 | AA34: - | AB34: 0.7092198582 | AC34: - | AD34: 0.3875968992 | AE34: - | AF34: 0.4716981132 | AG34: 3 | AH34: 1.530612245 | AI34: - | AJ34: 0.5319148936 | AK34: - | AL34: 1.117318436 | AM34: 4 | AN34: 2.298850575 | AO34: - | AP34: 1.226993865 | AQ34: 3 | AR34: 1.935483871
B35: Sum | C35: 7787 | E35: 3757 | G35: 1139 | I35: 1057 | K35: 954 | M35: 796 | O35: 705 | Q35: 597 | S35: 516 | U35: 420 | W35: 354 | Y35: 321 | AA35: 282 | AC35: 258 | AE35: 212 | AG35: 196 | AI35: 188 | AK35: 179 | AM35: 174 | AO35: 163 | AQ35: 155
B36: Antall daa | C36: 26707 | E36: 22715 | G36: 16735 | I36: 17473 | K36: 17672 | M36: 16791 | O36: 15920 | Q36: 15420 | S36: 14836 | U36: 15326 | W36: 14318 | Y36: 13457 | AA36: 12617 | AC36: 11707 | AE36: 10235 | AG36: 10225 | AI36: 10279 | AK36: 10091 | AM36: 9520 | AO36: 9224 | AQ36: 9442
A37: Buskerud | B37: <10 | C37: 4090 | D37: 97.52026705 | E37: 1539 | F37: 93.44262295 | G37: 331 | H37: 81.32678133 | I37: 298 | J37: 82.77777778 | K37: 264 | L37: 82.75862069 | M37: 222 | N37: 78.44522968 | O37: 177 | P37: 75 | Q37: 157 | R37: 75.11961722 | S37: 121 | T37: 69.94219653 | U37: 99 | V37: 67.34693878 | W37: 85 | X37: 65.89147287 | Y37: 69 | Z37: 61.60714286 | AA37: 67 | AB37: 63.80952381 | AC37: 63 | AD37: 64.94845361 | AE37: 47 | AF37: 59.49367089 | AG37: 32 | AH37: 53.33333333 | AI37: 25 | AJ37: 48.07692308 | AK37: 28 | AL37: 54.90196078 | AM37: 29 | AN37: 54.71698113 | AO37: 33 | AP37: 58.92857143 | AQ37: 29 | AR37: 53.7037037
B38: 10-49 | C38: 96 | D38: 2.288984263 | E38: 88 | F38: 5.343047966 | G38: 48 | H38: 11.79361179 | I38: 36 | J38: 10 | K38: 32 | L38: 10.03134796 | M38: 39 | N38: 13.78091873 | O38: 39 | P38: 16.52542373 | Q38: 34 | R38: 16.26794258 | S38: 32 | T38: 18.49710983 | U38: 31 | V38: 21.08843537 | W38: 25 | X38: 19.37984496 | Y38: 23 | Z38: 20.53571429 | AA38: 21 | AB38: 20 | AC38: 18 | AD38: 18.55670103 | AE38: 16 | AF38: 20.25316456 | AG38: 14 | AH38: 23.33333333 | AI38: 14 | AJ38: 26.92307692 | AK38: 11 | AL38: 21.56862745 | AM38: 11 | AN38: 20.75471698 | AO38: 8 | AP38: 14.28571429 | AQ38: 11 | AR38: 20.37037037
B39: 50-99 | C39: 5 | D39: 0.1192179304 | E39: 15 | F39: 0.9107468124 | G39: 16 | H39: 3.931203931 | I39: 15 | J39: 4.166666667 | K39: 13 | L39: 4.07523511 | M39: 9 | N39: 3.180212014 | O39: 5 | P39: 2.118644068 | Q39: 4 | R39: 1.913875598 | S39: 6 | T39: 3.468208092 | U39: - | V39: 1.360544218 | W39: 4 | X39: 3.100775194 | Y39: 3 | Z39: 2.678571429 | AA39: 5 | AB39: 4.761904762 | AC39: 4 | AD39: 4.12371134 | AE39: 3 | AF39: 3.797468354 | AG39: 4 | AH39: 6.666666667 | AI39: 3 | AJ39: 5.769230769 | AK39: 2 | AL39: 3.921568627 | AM39: 3 | AN39: 5.660377358 | AO39: 5 | AP39: 8.928571429 | AQ39: 5 | AR39: 9.259259259
B40: 100-199 | C40: - | D40: 0.04768717215 | E40: 5 | F40: 0.3035822708 | G40: 10 | H40: 2.457002457 | I40: 7 | J40: 1.944444444 | K40: 7 | L40: 2.194357367 | M40: 11 | N40: 3.886925795 | O40: 11 | P40: 4.661016949 | Q40: 9 | R40: 4.306220096 | S40: 9 | T40: 5.202312139 | U40: 8 | V40: 5.442176871 | W40: 7 | X40: 5.426356589 | Y40: 10 | Z40: 8.928571429 | AA40: 6 | AB40: 5.714285714 | AC40: 6 | AD40: 6.18556701 | AE40: 10 | AF40: 11.39240506 | AG40: 6 | AH40: 8.333333333 | AI40: 4 | AJ40: 7.692307692 | AK40: 4 | AL40: 7.843137255 | AM40: 6 | AN40: 11.32075472 | AO40: 5 | AP40: 8.928571429 | AQ40: 5 | AR40: 9.259259259
B41: 200-299 | C41: - | D41: 0.02384358608 | E41: 0 | F41: 0 | G41: - | H41: 0.2457002457 | I41: 3 | J41: 0.8333333333 | K41: - | L41: 0.6269592476 | M41: 0 | N41: 0 | O41: - | P41: 0.8474576271 | Q41: 3 | R41: 1.435406699 | S41: 4 | T41: 2.312138728 | U41: 4 | V41: 2.721088435 | W41: 3 | X41: 2.325581395 | Y41: 3 | Z41: 2.678571429 | AA41: 3 | AB41: 2.857142857 | AC41: 3 | AD41: 3.092783505 | AE41: - | AF41: 1.265822785 | AG41: - | AH41: 1.666666667 | AI41: 3 | AJ41: 5.769230769 | AK41: 3 | AL41: 5.882352941 | AM41: 4 | AN41: 3.773584906 | AO41: 5 | AP41: 5.357142857 | AQ41: 4 | AR41: 3.703703704
B42: >300 | C42: 0 | D42: 0 | E42: 0 | F42: 0 | G42: - | H42: 0.2457002457 | I42: - | J42: 0.2777777778 | K42: - | L42: 0.3134796238 | M42: - | N42: 0.7067137809 | O42: - | P42: 0.8474576271 | Q42: - | R42: 0.956937799 | S42: - | T42: 0.5780346821 | U42: 3 | V42: 2.040816327 | W42: 5 | X42: 3.875968992 | Y42: 4 | Z42: 3.571428571 | AA42: 3 | AB42: 2.857142857 | AC42: 3 | AD42: 3.092783505 | AE42: 3 | AF42: 3.797468354 | AG42: 4 | AH42: 6.666666667 | AI42: 3 | AJ42: 5.769230769 | AK42: 3 | AL42: 5.882352941 | AM42: - | AN42: 3.773584906 | AO42: - | AP42: 3.571428571 | AQ42: - | AR42: 3.703703704
B43: Sum | C43: 4194 | E43: 1647 | G43: 407 | I43: 360 | K43: 319 | M43: 283 | O43: 236 | Q43: 209 | S43: 173 | U43: 147 | W43: 129 | Y43: 112 | AA43: 105 | AC43: 97 | AE43: 79 | AG43: 60 | AI43: 52 | AK43: 51 | AM43: 53 | AO43: 56 | AQ43: 54
B44: Antall daa | C44: 7556 | E44: 5228 | G44: 4653 | I44: 4430 | K44: 4040 | M44: 4181 | O44: 4080 | Q44: 3921 | S44: 3860 | U44: 3980 | W44: 4192 | Y44: 4154 | AA44: 3604 | AC44: 3580 | AE44: 3304 | AG44: 3151 | AI44: 2941 | AK44: 2947 | AM44: 2824 | AO44: 2939 | AQ44: 2713
A45: Vestfold | B45: <10 | C45: 1999 | D45: 83.71021776 | E45: 625 | F45: 60.44487427 | G45: 124 | H45: 30.76923077 | I45: 110 | J45: 30.1369863 | K45: 92 | L45: 28.2208589 | M45: 84 | N45: 27.0096463 | O45: 73 | P45: 26.16487455 | Q45: 57 | R45: 22.70916335 | S45: 51 | T45: 22.27074236 | U45: 34 | V45: 17.34693878 | W45: 26 | X45: 14.44444444 | Y45: 26 | Z45: 15.11627907 | AA45: 32 | AB45: 19.04761905 | AC45: 32 | AD45: 20.25316456 | AE45: 24 | AF45: 15.89403974 | AG45: 23 | AH45: 16.42857143 | AI45: 22 | AJ45: 16.41791045 | AK45: 15 | AL45: 11.9047619 | AM45: 20 | AN45: 15.87301587 | AO45: 18 | AP45: 15.38461538 | AQ45: 14 | AR45: 12.61261261
B46: 10-49 | C46: 367 | D46: 15.36850921 | E46: 295 | F46: 28.52998066 | G46: 164 | H46: 40.69478908 | I46: 134 | J46: 36.71232877 | K46: 129 | L46: 39.57055215 | M46: 115 | N46: 36.97749196 | O46: 96 | P46: 34.40860215 | Q46: 81 | R46: 32.27091633 | S46: 67 | T46: 29.25764192 | U46: 56 | V46: 28.57142857 | W46: 53 | X46: 29.44444444 | Y46: 48 | Z46: 27.90697674 | AA46: 40 | AB46: 23.80952381 | AC46: 29 | AD46: 18.35443038 | AE46: 30 | AF46: 19.86754967 | AG46: 24 | AH46: 17.14285714 | AI46: 25 | AJ46: 18.65671642 | AK46: 28 | AL46: 22.22222222 | AM46: 28 | AN46: 22.22222222 | AO46: 21 | AP46: 17.94871795 | AQ46: 25 | AR46: 22.52252252
B47: 50-99 | C47: 22 | D47: 0.9212730318 | E47: 101 | F47: 9.767891683 | G47: 81 | H47: 20.09925558 | I47: 79 | J47: 21.64383562 | K47: 58 | L47: 17.79141104 | M47: 63 | N47: 20.25723473 | O47: 63 | P47: 22.58064516 | Q47: 65 | R47: 25.89641434 | S47: 64 | T47: 27.94759825 | U47: 55 | V47: 28.06122449 | W47: 39 | X47: 21.66666667 | Y47: 45 | Z47: 26.1627907 | AA47: 44 | AB47: 26.19047619 | AC47: 45 | AD47: 28.48101266 | AE47: 48 | AF47: 31.78807947 | AG47: 35 | AH47: 25 | AI47: 32 | AJ47: 23.88059701 | AK47: 27 | AL47: 21.42857143 | AM47: 28 | AN47: 22.22222222 | AO47: 28 | AP47: 23.93162393 | AQ47: 24 | AR47: 21.62162162
B48: 100-199 | C48: 0 | D48: 0 | E48: 11 | F48: 1.063829787 | G48: 30 | H48: 7.444168734 | I48: 35 | J48: 9.589041096 | K48: 36 | L48: 11.04294479 | M48: 31 | N48: 9.967845659 | O48: 29 | P48: 10.39426523 | Q48: 30 | R48: 11.95219124 | S48: 28 | T48: 12.22707424 | U48: 29 | V48: 14.79591837 | W48: 39 | X48: 21.66666667 | Y48: 30 | Z48: 17.44186047 | AA48: 26 | AB48: 15.47619048 | AC48: 29 | AD48: 18.35443038 | AE48: 26 | AF48: 17.21854305 | AG48: 35 | AH48: 25 | AI48: 34 | AJ48: 25.37313433 | AK48: 34 | AL48: 26.98412698 | AM48: 27 | AN48: 21.42857143 | AO48: 28 | AP48: 23.93162393 | AQ48: 28 | AR48: 25.22522523
B49: 200-299 | C49: 0 | D49: 0 | E49: - | F49: 0.09671179884 | G49: 4 | H49: 0.9925558313 | I49: 5 | J49: 1.369863014 | K49: 8 | L49: 2.45398773 | M49: 16 | N49: 5.144694534 | O49: 13 | P49: 4.659498208 | Q49: 12 | R49: 4.780876494 | S49: 15 | T49: 6.550218341 | U49: 16 | V49: 8.163265306 | W49: 15 | X49: 8.333333333 | Y49: 12 | Z49: 6.976744186 | AA49: 12 | AB49: 7.142857143 | AC49: 11 | AD49: 6.962025316 | AE49: 12 | AF49: 7.947019868 | AG49: 10 | AH49: 7.142857143 | AI49: 7 | AJ49: 5.223880597 | AK49: 9 | AL49: 7.142857143 | AM49: 11 | AN49: 8.73015873 | AO49: 9 | AP49: 7.692307692 | AQ49: 7 | AR49: 6.306306306
B50: >300 | C50: 0 | D50: 0 | E50: - | F50: 0.09671179884 | G50: 0 | H50: 0 | I50: - | J50: 0 | K50: 3 | L50: 0.9202453988 | M50: - | N50: 0.6430868167 | O50: 5 | P50: 1.792114695 | Q50: 6 | R50: 2.390438247 | S50: 4 | T50: 1.746724891 | U50: 6 | V50: 3.06122449 | W50: 8 | X50: 4.444444444 | Y50: 11 | Z50: 6.395348837 | AA50: 14 | AB50: 8.333333333 | AC50: 12 | AD50: 7.594936709 | AE50: 11 | AF50: 7.284768212 | AG50: 13 | AH50: 9.285714286 | AI50: 14 | AJ50: 10.44776119 | AK50: 13 | AL50: 10.31746032 | AM50: 12 | AN50: 9.523809524 | AO50: 13 | AP50: 11.11111111 | AQ50: 13 | AR50: 11.71171171
B51: Sum | C51: 2388 | E51: 1034 | G51: 403 | I51: 365 | K51: 326 | M51: 311 | O51: 279 | Q51: 251 | S51: 229 | U51: 196 | W51: 180 | Y51: 172 | AA51: 168 | AC51: 158 | AE51: 151 | AG51: 140 | AI51: 134 | AK51: 126 | AM51: 126 | AO51: 117 | AQ51: 111
B52: Antall daa | C52: 12339 | E52: 16979 | G52: 15181 | I52: 16163 | K52: 16080 | M52: 16656 | O52: 16369 | Q52: 16545 | S52: 16015 | U52: 16439 | W52: 17304 | Y52: 16979 | AA52: 16866 | AC52: 15562 | AE52: 15773 | AG52: 16632 | AI52: 16605 | AK52: 15764 | AM52: 15138 | AO52: 15328 | AQ52: 13739
A53: Telemark | B53: <10 | C53: 3637 | D53: 97.16804702 | E53: 1386 | F53: 91.42480211 | G53: 199 | H53: 79.28286853 | I53: 175 | J53: 76.08695652 | K53: 150 | L53: 73.89162562 | M53: 140 | N53: 74.86631016 | O53: 104 | P53: 68.42105263 | Q53: 81 | R53: 65.85365854 | S53: 68 | T53: 62.96296296 | U53: 52 | V53: 56.52173913 | W53: 46 | X53: 54.76190476 | Y53: 39 | Z53: 49.36708861 | AA53: 33 | AB53: 47.82608696 | AC53: 40 | AD53: 56.33802817 | AE53: 30 | AF53: 49.18032787 | AG53: 27 | AH53: 49.09090909 | AI53: 26 | AJ53: 48.14814815 | AK53: 26 | AL53: 50 | AM53: 29 | AN53: 50.87719298 | AO53: 30 | AP53: 53.57142857 | AQ53: 26 | AR53: 54.16666667
B54: 10-49 | C54: 97 | D54: 2.591504141 | E54: 108 | F54: 7.124010554 | G54: 30 | H54: 11.95219124 | I54: 33 | J54: 14.34782609 | K54: 31 | L54: 15.27093596 | M54: 25 | N54: 13.36898396 | O54: 25 | P54: 16.44736842 | Q54: 21 | R54: 17.07317073 | S54: 21 | T54: 19.44444444 | U54: 22 | V54: 23.91304348 | W54: 20 | X54: 23.80952381 | Y54: 21 | Z54: 26.58227848 | AA54: 21 | AB54: 30.43478261 | AC54: 15 | AD54: 21.12676056 | AE54: 17 | AF54: 27.86885246 | AG54: 13 | AH54: 23.63636364 | AI54: 14 | AJ54: 25.92592593 | AK54: 12 | AL54: 23.07692308 | AM54: 14 | AN54: 24.56140351 | AO54: 13 | AP54: 23.21428571 | AQ54: 10 | AR54: 20.83333333
B55: 50-99 | C55: 8 | D55: 0.2137323003 | E55: 17 | F55: 1.121372032 | G55: 14 | H55: 5.577689243 | I55: 15 | J55: 6.52173913 | K55: 16 | L55: 7.881773399 | M55: 13 | N55: 6.951871658 | O55: 12 | P55: 7.894736842 | Q55: 11 | R55: 8.943089431 | S55: 11 | T55: 10.18518519 | U55: 9 | V55: 9.782608696 | W55: 8 | X55: 9.523809524 | Y55: 11 | Z55: 13.92405063 | AA55: 8 | AB55: 11.5942029 | AC55: 8 | AD55: 11.26760563 | AE55: 6 | AF55: 9.836065574 | AG55: 8 | AH55: 14.54545455 | AI55: 6 | AJ55: 11.11111111 | AK55: 6 | AL55: 11.53846154 | AM55: 7 | AN55: 12.28070175 | AO55: 5 | AP55: 8.928571429 | AQ55: 6 | AR55: 12.5
B56: 100-199 | C56: - | D56: 0.02671653754 | E56: 5 | F56: 0.3298153034 | G56: 7 | H56: 2.788844622 | I56: 6 | J56: 2.608695652 | K56: 5 | L56: 2.463054187 | M56: 7 | N56: 3.743315508 | O56: 8 | P56: 5.263157895 | Q56: 7 | R56: 5.691056911 | S56: 5 | T56: 4.62962963 | U56: 5 | V56: 5.434782609 | W56: 5 | X56: 5.952380952 | Y56: 5 | Z56: 6.329113924 | AA56: 7 | AB56: 7.246376812 | AC56: 5 | AD56: 7.042253521 | AE56: 4 | AF56: 6.557377049 | AG56: 7 | AH56: 9.090909091 | AI56: 5 | AJ56: 9.259259259 | AK56: 8 | AL56: 11.53846154 | AM56: 4 | AN56: 7.01754386 | AO56: 8 | AP56: 10.71428571 | AQ56: 3 | AR56: 6.25
B57: 200-299 | C57: 0 | D57: 0 | E57: 0 | F57: 0 | G57: 0 | H57: 0 | I57: 0 | J57: 0 | K57: 0 | L57: 0 | M57: - | N57: 0.5347593583 | O57: - | P57: 1.315789474 | Q57: - | R57: 1.62601626 | S57: - | T57: 1.851851852 | U57: 3 | V57: 3.260869565 | W57: 5 | X57: 4.761904762 | Y57: 3 | Z57: 2.53164557 | AA57: - | AB57: 1.449275362 | AC57: 3 | AD57: 2.816901408 | AE57: 4 | AF57: 4.918032787 | AG57: - | AH57: 1.818181818 | AI57: 3 | AJ57: 1.851851852 | AK57: - | AL57: 3.846153846 | AM57: 3 | AN57: 3.50877193 | AO57: - | AP57: 3.571428571 | AQ57: 3 | AR57: 4.166666667
B58: >300 | C58: 0 | D58: 0 | E58: 0 | F58: 0 | G58: - | H58: 0 | I58: - | J58: 0 | K58: - | L58: 0 | M58: - | N58: 0.5347593583 | O58: - | P58: 0.6578947368 | Q58: - | R58: 0.8130081301 | S58: - | T58: 0.9259259259 | U58: - | V58: 1.086956522 | W58: - | X58: 1.19047619 | Y58: - | Z58: 1.265822785 | AA58: - | AB58: 1.449275362 | AC58: - | AD58: 1.408450704 | AE58: - | AF58: 1.639344262 | AG58: - | AH58: 1.818181818 | AI58: - | AJ58: 3.703703704 | AK58: - | AL58: 0 | AM58: - | AN58: 1.754385965 | AO58: 0 | AP58: 0 | AQ58: - | AR58: 2.083333333
B59: Sum | C59: 3743 | E59: 1516 | G59: 251 | I59: 230 | K59: 203 | M59: 187 | O59: 152 | Q59: 123 | S59: 108 | U59: 92 | W59: 84 | Y59: 79 | AA59: 69 | AC59: 71 | AE59: 61 | AG59: 55 | AI59: 54 | AK59: 52 | AM59: 57 | AO59: 56 | AQ59: 48
B60: Antall daa | C60: 6937 | E60: 5686 | G60: 3045 | I60: 3159 | K60: 3097 | M60: 3216 | O60: 3329 | Q60: 3049 | S60: 2814 | U60: 2937 | W60: 3026 | Y60: 2784 | AA60: 2267 | AC60: 2412 | AE60: 2341 | AG60: 2142 | AI60: 2496 | AK60: 2166 | AM60: 2365 | AO60: 2054 | AQ60: 1929
A61: Aust-Agder | B61: <10 | C61: 2262 | D61: 96.50170648 | E61: 939 | F61: 89.68481375 | G61: 169 | H61: 77.88018433 | I61: 141 | J61: 74.6031746 | K61: 120 | L61: 74.07407407 | M61: 101 | N61: 69.17808219 | O61: 71 | P61: 60.68376068 | Q61: 59 | R61: 59 | S61: 48 | T61: 56.47058824 | U61: 35 | V61: 46.66666667 | W61: 31 | X61: 48.4375 | Y61: 31 | Z61: 49.20634921 | AA61: 25 | AB61: 43.10344828 | AC61: 17 | AD61: 32.69230769 | AE61: 12 | AF61: 25 | AG61: 11 | AH61: 22.91666667 | AI61: 10 | AJ61: 23.25581395 | AK61: 14 | AL61: 33.33333333 | AM61: 12 | AN61: 30 | AO61: 12 | AP61: 32.43243243 | AQ61: 11 | AR61: 32.35294118
B62: 10-49 | C62: 79 | D62: 3.370307167 | E62: 97 | F62: 9.264565425 | G62: 30 | H62: 13.82488479 | I62: 33 | J62: 17.46031746 | K62: 23 | L62: 14.19753086 | M62: 27 | N62: 18.49315068 | O62: 26 | P62: 22.22222222 | Q62: 19 | R62: 19 | S62: 16 | T62: 0.6490872211 | U62: 21 | V62: 28 | W62: 15 | X62: 23.4375 | Y62: 13 | Z62: 20.63492063 | AA62: 13 | AB62: 22.4137931 | AC62: 13 | AD62: 25 | AE62: 12 | AF62: 25 | AG62: 16 | AH62: 33.33333333 | AI62: 13 | AJ62: 30.23255814 | AK62: 10 | AL62: 23.80952381 | AM62: 11 | AN62: 27.5 | AO62: 11 | AP62: 29.72972973 | AQ62: 6 | AR62: 17.64705882
B63: 50-99 | C63: 3 | D63: 0.1279863481 | E63: 8 | F63: 0.7640878701 | G63: 15 | H63: 6.912442396 | I63: 10 | J63: 5.291005291 | K63: 16 | L63: 9.87654321 | M63: 13 | N63: 8.904109589 | O63: 13 | P63: 11.11111111 | Q63: 15 | R63: 15 | S63: 15 | T63: 24.19354839 | U63: 10 | V63: 13.33333333 | W63: 9 | X63: 14.0625 | Y63: 10 | Z63: 15.87301587 | AA63: 11 | AB63: 18.96551724 | AC63: 14 | AD63: 26.92307692 | AE63: 18 | AF63: 37.5 | AG63: 15 | AH63: 31.25 | AI63: 9 | AJ63: 20.93023256 | AK63: 10 | AL63: 23.80952381 | AM63: 9 | AN63: 22.5 | AO63: 3 | AP63: 8.108108108 | AQ63: 8 | AR63: 23.52941176
B64: 100-199 | C64: 0 | D64: 0 | E64: 3 | F64: 0.2865329513 | G64: 3 | H64: 1.382488479 | I64: 4 | J64: 2.116402116 | K64: 3 | L64: 1.851851852 | M64: 5 | N64: 3.424657534 | O64: 6 | P64: 5.128205128 | Q64: 7 | R64: 7 | S64: 6 | T64: 42.85714286 | U64: 8 | V64: 10.66666667 | W64: 9 | X64: 14.0625 | Y64: 9 | Z64: 12.6984127 | AA64: 9 | AB64: 13.79310345 | AC64: 8 | AD64: 13.46153846 | AE64: 6 | AF64: 10.41666667 | AG64: 6 | AH64: 8.333333333 | AI64: 11 | AJ64: 23.25581395 | AK64: 8 | AL64: 16.66666667 | AM64: 5 | AN64: 12.5 | AO64: 11 | AP64: 27.02702703 | AQ64: 9 | AR64: 23.52941176
B65: 200-299 | C65: 0 | D65: 0 | E65: 0 | F65: 0 | G65: 0 | H65: 0 | I65: - | J65: 0.5291005291 | K65: 0 | L65: 0 | M65: 0 | N65: 0 | O65: - | P65: 0.8547008547 | Q65: 0 | R65: 0 | S65: 0 | T65: 0 | U65: 0 | V65: 0 | W65: 0 | X65: 0 | Y65: - | Z65: 1.587301587 | AA65: - | AB65: 1.724137931 | AC65: - | AD65: 1.923076923 | AE65: - | AF65: 2.083333333 | AG65: - | AH65: 4.166666667 | AI65: - | AJ65: 2.325581395 | AK65: 0 | AL65: 2.380952381 | AM65: 3 | AN65: 7.5 | AO65: 0 | AP65: 0 | AQ65: - | AR65: 2.941176471
B66: >300 | C66: 0 | D66: 0 | E66: 0 | F66: 0 | G66: 0 | H66: 0 | I66: 0 | J66: 0 | K66: 0 | L66: 0 | M66: 0 | N66: 0 | O66: 0 | P66: 0 | Q66: 0 | R66: 0 | S66: 0 | T66: 0 | U66: - | V66: 1.333333333 | W66: 0 | X66: 0 | Y66: 0 | Z66: 0 | AA66: 0 | AB66: 0 | AC66: 0 | AD66: 0 | AE66: 0 | AF66: 0 | AG66: 0 | AH66: 0 | AJ66: 0 | AK66: 0 | AL66: 0 | AM66: 0 | AN66: 0 | AO66: - | AP66: 2.702702703 | AQ66: 0 | AR66: 0
B67: Sum | C67: 2344 | E67: 1047 | G67: 217 | I67: 189 | K67: 162 | M67: 146 | O67: 117 | Q67: 100 | S67: 85 | U67: 75 | W67: 64 | Y67: 63 | AA67: 58 | AC67: 52 | AE67: 48 | AG67: 48 | AI67: 43 | AK67: 42 | AM67: 40 | AO67: 37 | AQ67: 34
B68: Antall daa | C68: 4950 | E68: 4081 | G68: 2393 | I68: 2404 | K68: 2160 | M68: 2368 | O68: 2608 | Q68: 2533 | S68: 2465 | U68: 2658 | W68: 2250 | Y68: 2444 | AA68: 2490 | AC68: 2528 | AE68: 2562 | AG68: 2526 | AI68: 2604 | AK68: 2382 | AM68: 2365 | AO68: 2232 | AQ68: 2178
A69: Vest-Agder | B69: <10 | C69: 2996 | D69: 98.26172516 | E69: 1210 | F69: 97.03287891 | G69: 184 | H69: 88.03827751 | I69: 175 | J69: 89.28571429 | K69: 145 | L69: 86.30952381 | M69: 111 | N69: 80.43478261 | O69: 88 | P69: 77.87610619 | Q69: 69 | R69: 75.82417582 | S69: 62 | T69: 77.5 | U69: 45 | V69: 67.1641791 | W69: 44 | X69: 73.33333333 | Y69: 44 | Z69: 73.33333333 | AA69: 39 | AB69: 72.22222222 | AC69: 29 | AD69: 67.44186047 | AE69: 21 | AF69: 55.26315789 | AG69: 18 | AH69: 54.54545455 | AI69: 13 | AJ69: 46.42857143 | AK69: 17 | AL69: 58.62068966 | AM69: 15 | AN69: 55.55555556 | AO69: 17 | AP69: 54.83870968 | AQ69: 14 | AR69: 48.27586207
B70: 10-49 | C70: 49 | D70: 1.60708429 | E70: 34 | F70: 2.726543705 | G70: 22 | H70: 10.52631579 | I70: 18 | J70: 9.183673469 | K70: 20 | L70: 11.9047619 | M70: 25 | N70: 18.11594203 | O70: 23 | P70: 20.3539823 | Q70: 20 | R70: 21.97802198 | S70: 14 | T70: 17.5 | U70: 19 | V70: 28.35820896 | W70: 11 | X70: 18.33333333 | Y70: 11 | Z70: 18.33333333 | AA70: 9 | AB70: 16.66666667 | AC70: 7 | AD70: 16.27906977 | AE70: 10 | AF70: 26.31578947 | AG70: 8 | AH70: 24.24242424 | AI70: 8 | AJ70: 28.57142857 | AK70: 5 | AL70: 17.24137931 | AM70: 5 | AN70: 18.51851852 | AO70: 7 | AP70: 22.58064516 | AQ70: 9 | AR70: 31.03448276
B71: 50-99 | C71: 3 | D71: 0.09839291571 | E71: 3 | F71: 0.2405773857 | G71: - | H71: 0.956937799 | I71: - | J71: 1.020408163 | K71: - | L71: 1.19047619 | M71: - | N71: 0.7246376812 | O71: - | P71: 0.8849557522 | Q71: - | R71: 1.098901099 | S71: 3 | T71: 3.75 | U71: - | V71: 2.985074627 | W71: 5 | X71: 6.666666667 | Y71: 5 | Z71: 6.666666667 | AA71: 6 | AB71: 7.407407407 | AC71: 4 | AD71: 9.302325581 | AE71: 4 | AF71: 10.52631579 | AG71: 7 | AH71: 15.15151515 | AI71: 4 | AJ71: 14.28571429 | AK71: 3 | AL71: 10.34482759 | AM71: 3 | AN71: 11.11111111 | AO71: 3 | AP71: 9.677419355 | AQ71: 6 | AR71: 6.896551724
B72: 100-199 | C72: - | D72: 0.03279763857 | E72: 0 | F72: 0 | G72: - | H72: 0.4784688995 | I72: - | J72: 0.5102040816 | K72: - | L72: 0.5952380952 | M72: - | N72: 0.7246376812 | O72: - | P72: 0.8849557522 | Q72: - | R72: 1.098901099 | S72: - | T72: 1.25 | U72: - | V72: 1.492537313 | W72: - | X72: 1.666666667 | Y72: - | Z72: 1.666666667 | AA72: - | AB72: 1.851851852 | AC72: 3 | AD72: 4.651162791 | AE72: 3 | AF72: 5.263157895 | AG72: 0 | AH72: 0 | AI72: 3 | AJ72: 3.571428571 | AK72: 4 | AL72: 6.896551724 | AM72: 4 | AN72: 11.11111111 | AO72: 4 | AP72: 9.677419355 | AQ72: - | AR72: 6.896551724
B73: 200-299 | C73: 0 | D73: 0 | E73: 0 | F73: 0 | G73: 0 | H73: 0 | I73: 0 | J73: 0 | K73: 0 | L73: 0 | M73: 0 | N73: 0 | O73: 0 | P73: 0 | Q73: 0 | R73: 0 | S73: 0 | T73: 0 | U73: 0 | V73: 0 | W73: 0 | X73: 0 | Y73: 0 | Z73: 0 | AA73: 0 | AB73: 0 | AC73: - | AD73: 2.325581395 | AE73: - | AF73: 2.631578947 | AG73: - | AH73: 6.060606061 | AI73: - | AJ73: 7.142857143 | AK73: 0 | AL73: 6.896551724 | AM73: 0 | AN73: 3.703703704 | AO73: 0 | AP73: 0 | AQ73: - | AR73: 6.896551724
B74: >300 | C74: 0 | D74: 0 | E74: 0 | F74: 0 | G74: 0 | H74: 0 | I74: 0 | J74: 0 | K74: 0 | L74: 0 | M74: 0 | N74: 0 | O74: 0 | P74: 0 | Q74: 0 | R74: 0 | S74: 0 | T74: 0 | U74: 0 | V74: 0 | W74: 0 | X74: 0 | Y74: 0 | Z74: 0 | AA74: - | AB74: 1.851851852 | AC74: 0 | AD74: 0 | AE74: 0 | AF74: 0 | AG74: 0 | AH74: 0 | AJ74: 0 | AK74: 0 | AL74: 0 | AM74: 0 | AN74: 0 | AO74: - | AP74: 3.225806452 | AQ74: 0 | AR74: 0
B75: Sum | C75: 3049 | E75: 1247 | G75: 209 | I75: 196 | K75: 168 | M75: 138 | O75: 113 | Q75: 91 | S75: 80 | U75: 67 | W75: 60 | Y75: 60 | AA75: 54 | AC75: 43 | AE75: 38 | AG75: 33 | AI75: 28 | AK75: 29 | AM75: 27 | AO75: 31 | AQ75: 29
B76: Antall daa | C76: 4701 | E76: 2120 | G76: 959 | I76: 965 | K76: 942 | M76: 923 | O76: 902 | Q76: 775 | S76: 699 | U76: 747 | W76: 763 | Y76: 776 | AA76: 981 | AC76: 1036 | AE76: 1102 | AG76: 1055 | AI76: 1042 | AK76: 1061 | AM76: 1033 | AO76: 1093 | AQ76: 1154
A77: Rogaland | B77: <10 | C77: 5445 | D77: 92.16316858 | E77: 2481 | F77: 85.05313678 | G77: 557 | H77: 69.79949875 | I77: 512 | J77: 68.35781041 | K77: 472 | L77: 67.23646724 | M77: 409 | N77: 64.8177496 | O77: 333 | P77: 61.78107607 | Q77: 255 | R77: 56.4159292 | S77: 218 | T77: 54.63659148 | U77: 173 | V77: 50.73313783 | W77: 139 | X77: 46.95945946 | Y77: 120 | Z77: 45.28301887 | AA77: 119 | AB77: 46.66666667 | AC77: 90 | AD77: 41.28440367 | AE77: 68 | AF77: 35.60209424 | AG77: 67 | AH77: 38.06818182 | AI77: 58 | AJ77: 38.15789474 | AK77: 57 | AL77: 38.51351351 | AM77: 51 | AN77: 36.69064748 | AO77: 50 | AP77: 37.87878788 | AQ77: 35 | AR77: 30.70175439
B78: 10-49 | C78: 442 | D78: 7.481381178 | E78: 388 | F78: 13.30133699 | G78: 198 | H78: 24.81203008 | I78: 181 | J78: 24.16555407 | K78: 170 | L78: 24.21652422 | M78: 161 | N78: 25.51505547 | O78: 134 | P78: 24.86085343 | Q78: 129 | R78: 28.53982301 | S78: 115 | T78: 28.82205514 | U78: 108 | V78: 31.67155425 | W78: 86 | X78: 29.05405405 | Y78: 80 | Z78: 30.18867925 | AA78: 74 | AB78: 29.01960784 | AC78: 66 | AD78: 30.27522936 | AE78: 67 | AF78: 35.07853403 | AG78: 61 | AH78: 34.65909091 | AI78: 52 | AJ78: 34.21052632 | AK78: 50 | AL78: 33.78378378 | AM78: 45 | AN78: 32.37410072 | AO78: 39 | AP78: 29.54545455 | AQ78: 36 | AR78: 31.57894737
B79: 50-99 | C79: 21 | D79: 0.355450237 | E79: 41 | F79: 1.405553651 | G79: 41 | H79: 5.137844612 | I79: 46 | J79: 6.141522029 | K79: 47 | L79: 6.695156695 | M79: 45 | N79: 7.131537242 | O79: 54 | P79: 10.01855288 | Q79: 51 | R79: 11.28318584 | S79: 51 | T79: 12.78195489 | U79: 41 | V79: 12.02346041 | W79: 45 | X79: 15.2027027 | Y79: 40 | Z79: 15.09433962 | AA79: 35 | AB79: 13.7254902 | AC79: 34 | AD79: 15.59633028 | AE79: 30 | AF79: 15.70680628 | AG79: 24 | AH79: 13.63636364 | AI79: 21 | AJ79: 13.81578947 | AK79: 26 | AL79: 17.56756757 | AM79: 27 | AN79: 19.42446043 | AO79: 24 | AP79: 18.18181818 | AQ79: 22 | AR79: 19.29824561
B80: 100-199 | C80: 0 | D80: 0 | E80: 7 | F80: 0.2399725746 | G80: - | H80: 0.1253132832 | I80: 8 | J80: 1.068090788 | K80: 11 | L80: 1.566951567 | M80: 13 | N80: 2.06022187 | O80: 15 | P80: 2.782931354 | Q80: 12 | R80: 2.654867257 | S80: 11 | T80: 2.756892231 | U80: 13 | V80: 3.812316716 | W80: 22 | X80: 6.756756757 | Y80: 19 | Z80: 7.169811321 | AA80: 21 | AB80: 8.235294118 | AC80: 20 | AD80: 9.174311927 | AE80: 19 | AF80: 9.947643979 | AG80: 18 | AH80: 10.22727273 | AI80: 15 | AJ80: 9.868421053 | AK80: 10 | AL80: 6.756756757 | AM80: 9 | AN80: 6.474820144 | AO80: 10 | AP80: 7.575757576 | AQ80: 14 | AR80: 12.28070175
B81: 200-299 | C81: 0 | D81: 0 | E81: 0 | F81: 0 | G81: - | H81: 0.1253132832 | I81: - | J81: 0.2670226969 | K81: - | L81: 0.2849002849 | M81: 3 | N81: 0.4754358162 | O81: - | P81: 0.3710575139 | Q81: 4 | R81: 0.8849557522 | S81: 3 | T81: 0.7518796992 | U81: 4 | V81: 1.173020528 | W81: - | X81: 0.6756756757 | Y81: 6 | Z81: 1.509433962 | AA81: 6 | AB81: 1.568627451 | AC81: 5 | AD81: 2.293577982 | AE81: 7 | AF81: 2.617801047 | AG81: 6 | AH81: 2.840909091 | AI81: 6 | AJ81: 3.289473684 | AK81: 5 | AL81: 2.027027027 | AM81: 7 | AN81: 3.597122302 | AO81: 9 | AP81: 6.060606061 | AQ81: 4 | AR81: 3.50877193
B82: >300 | C82: 0 | D82: 0 | E82: 0 | F82: 0 | G82: 0 | H82: 0 | I82: 0 | J82: 0 | K82: 0 | L82: 0 | M82: 0 | N82: 0 | O82: - | P82: 0.185528757 | Q82: - | R82: 0.2212389381 | S82: - | T82: 0.2506265664 | U82: - | V82: 0.5865102639 | W82: 4 | X82: 1.351351351 | Y82: - | Z82: 0.7547169811 | AA82: - | AB82: 0.7843137255 | AC82: 3 | AD82: 1.376146789 | AE82: - | AF82: 1.047120419 | AG82: - | AH82: 0.5681818182 | AI82: - | AJ82: 0.6578947368 | AK82: - | AL82: 1.351351351 | AM82: - | AN82: 1.438848921 | AO82: - | AP82: 0.7575757576 | AQ82: 3 | AR82: 2.631578947
B83: Sum | C83: 5908 | E83: 2917 | G83: 798 | I83: 749 | K83: 702 | M83: 631 | O83: 539 | Q83: 452 | S83: 399 | U83: 341 | W83: 296 | Y83: 265 | AA83: 255 | AC83: 218 | AE83: 191 | AG83: 176 | AI83: 152 | AK83: 148 | AM83: 139 | AO83: 132 | AQ83: 114
B84: Antall daa | C84: 18225 | E84: 15403 | G84: 8630 | I84: 9576 | K84: 10050 | M84: 10286 | O84: 10255 | Q84: 10044 | S84: 9411 | U84: 9382 | W84: 10146 | Y84: 9251 | AA84: 9350 | AC84: 9182 | AE84: 8573 | AG84: 7612 | AI84: 6673 | AK84: 6535 | AM84: 6321 | AO84: 6436 | AQ84: 6581
A85: Hordaland | B85: <10 | C85: 7326 | D85: 99.78207573 | E85: 2536 | F85: 99.64636542 | G85: 357 | H85: 99.44289694 | I85: 319 | J85: 99.06832298 | K85: 291 | L85: 98.97959184 | M85: 244 | N85: 98.38709677 | O85: 213 | P85: 98.15668203 | Q85: 160 | R85: 97.56097561 | S85: 129 | T85: 97.72727273 | U85: 99 | V85: 99 | W85: 79 | X85: 97.46835443 | Y85: 72 | Z85: 97.22222222 | AA85: 70 | AB85: 97.14285714 | AC85: 62 | AD85: 98.38709677 | AE85: 54 | AF85: 98.14814815 | AG85: 44 | AH85: 97.72727273 | AI85: 38 | AJ85: 97.36842105 | AK85: 33 | AL85: 96.96969697 | AM85: 25 | AN85: 96 | AO85: 26 | AP85: 96.15384615 | AQ85: 21 | AR85: 95.23809524
B86: 10-49 | C86: 16 | D86: 0.2179242713 | E86: 9 | F86: 0.3536345776 | G86: - | H86: 0.5571030641 | I86: 3 | J86: 0.9316770186 | K86: 3 | L86: 1.020408163 | M86: 3 | N86: 1.209677419 | O86: 3 | P86: 1.382488479 | Q86: 4 | R86: 2.43902439 | S86: - | T86: 1.515151515 | U86: - | V86: 1 | W86: - | X86: 1.265822785 | Y86: - | Z86: 1.388888889 | AA86: - | AB86: 1.428571429 | AC86: 0 | AD86: 0 | AE86: 0 | AF86: 0 | AG86: 0 | AH86: 0 | AJ86: 0 | AK86: 0 | AL86: 3.03030303 | AM86: 0 | AN86: 4 | AO86: - | AP86: 3.846153846 | AQ86: - | AR86: 4.761904762
B87: 50-99 | C87: 0 | D87: 0 | E87: 0 | F87: 0 | G87: 0 | H87: 0 | I87: 0 | J87: 0 | K87: 0 | L87: 0 | M87: - | N87: 0.4032258065 | O87: - | P87: 0.4608294931 | Q87: 0 | R87: 0 | S87: - | T87: 0.7575757576 | U87: 0 | V87: 0 | W87: - | X87: 1.265822785 | Y87: - | Z87: 1.388888889 | AA87: - | AB87: 1.428571429 | AC87: - | AD87: 1.612903226 | AE87: 0 | AF87: 1.851851852 | AG87: 0 | AH87: 2.272727273 | AI87: - | AJ87: 2.631578947 | AK87: 0 | AL87: 0 | AM87: 0 | AN87: 0 | AO87: 0 | AP87: 0 | AQ87: 0 | AR87: 0
B88: 100-199 | C88: 0 | D88: 0 | E88: 0 | F88: 0 | G88: 0 | H88: 0 | I88: 0 | J88: 0 | K88: 0 | L88: 0 | M88: 0 | N88: 0 | O88: 0 | P88: 0 | Q88: 0 | R88: 0 | S88: 0 | T88: 0 | U88: 0 | V88: 0 | W88: 0 | X88: 0 | Y88: 0 | Z88: 0 | AA88: 0 | AB88: 0 | AC88: 0 | AD88: 0 | AE88: 0 | AF88: 0 | AG88: 0 | AH88: 0 | AJ88: 0 | AK88: 0 | AL88: 0 | AM88: 0 | AN88: 0 | AO88: 0 | AP88: 0 | AQ88: 0 | AR88: 0
B89: 200-299 | C89: 0 | D89: 0 | E89: 0 | F89: 0 | G89: 0 | H89: 0 | I89: 0 | J89: 0 | K89: 0 | L89: 0 | M89: 0 | N89: 0 | O89: 0 | P89: 0 | Q89: 0 | R89: 0 | S89: 0 | T89: 0 | U89: 0 | V89: 0 | W89: 0 | X89: 0 | Y89: 0 | Z89: 0 | AA89: 0 | AB89: 0 | AC89: 0 | AD89: 0 | AE89: 0 | AF89: 0 | AG89: 0 | AH89: 0 | AJ89: 0 | AK89: 0 | AL89: 0 | AM89: 0 | AN89: 0 | AO89: 0 | AP89: 0 | AQ89: 0 | AR89: 0
B90: >300 | C90: 0 | D90: 0 | E90: 0 | F90: 0 | G90: 0 | H90: 0 | I90: 0 | J90: 0 | K90: 0 | L90: 0 | M90: 0 | N90: 0 | O90: 0 | P90: 0 | Q90: 0 | R90: 0 | S90: 0 | T90: 0 | U90: 0 | V90: 0 | W90: 0 | X90: 0 | Y90: 0 | Z90: 0 | AA90: 0 | AB90: 0 | AC90: 0 | AD90: 0 | AE90: 0 | AF90: 0 | AG90: 0 | AH90: 0 | AJ90: 0 | AK90: 0 | AL90: 0 | AM90: 0 | AN90: 0 | AO90: 0 | AP90: 0 | AQ90: 0 | AR90: 0
B91: Sum | C91: 7342 | E91: 2545 | G91: 359 | I91: 322 | K91: 294 | M91: 248 | O91: 217 | Q91: 164 | S91: 132 | U91: 100 | W91: 79 | Y91: 72 | AA91: 70 | AC91: 62 | AE91: 54 | AG91: 44 | AI91: 38 | AK91: 33 | AM91: 25 | AO91: 26 | AQ91: 21
B92: Antall daa | C92: 6108 | E92: 2118 | G92: 515 | I92: 489 | K92: 445 | M92: 415 | O92: 364 | Q92: 286 | S92: 240 | U92: 188 | W92: 169 | Y92: 162 | AA92: 158 | AC92: 162 | AE92: 143 | AG92: 120 | AI92: 108 | AK92: 79 | AM92: 70 | AO92: 77 | AQ92: 67
A93: Sogn og Fjordane | B93: <10 | C93: 6291 | D93: 99.08647031 | E93: 3068 | F93: 97.89406509 | G93: 581 | H93: 94.47154472 | I93: 543 | J93: 92.97945205 | K93: 487 | L93: 92.06049149 | M93: 417 | N93: 90.8496732 | O93: 370 | P93: 90.46454768 | Q93: 324 | R93: 89.25619835 | S93: 270 | T93: 88.52459016 | U93: 211 | V93: 85.77235772 | W93: 179 | X93: 85.64593301 | Y93: 158 | Z93: 83.5978836 | AA93: 145 | AB93: 82.85714286 | AC93: 109 | AD93: 78.41726619 | AE93: 106 | AF93: 79.10447761 | AG93: 82 | AH93: 72.56637168 | AI93: 76 | AJ93: 73.07692308 | AK93: 74 | AL93: 74.74747475 | AM93: 64 | AN93: 75.29411765 | AO93: 59 | AP93: 72.83950617 | AQ93: 49 | AR93: 70
B94: 10-49 | C94: 57 | D94: 0.8977791778 | E94: 65 | F94: 2.074026803 | G94: 34 | H94: 5.528455285 | I94: 41 | J94: 7.020547945 | K94: 41 | L94: 7.75047259 | M94: 40 | N94: 8.71459695 | O94: 39 | P94: 9.535452323 | Q94: 36 | R94: 9.917355372 | S94: 31 | T94: 10.16393443 | U94: 30 | V94: 12.19512195 | W94: 25 | X94: 11.96172249 | Y94: 26 | Z94: 13.75661376 | AA94: 25 | AB94: 14.28571429 | AC94: 25 | AD94: 17.98561151 | AE94: 22 | AF94: 16.41791045 | AG94: 26 | AH94: 23.00884956 | AI94: 24 | AJ94: 23.07692308 | AK94: 20 | AL94: 20.2020202 | AM94: 16 | AN94: 18.82352941 | AO94: 18 | AP94: 22.22222222 | AQ94: 16 | AR94: 22.85714286
B95: 50-99 | C95: - | D95: 0.01575051189 | E95: - | F95: 0.03190810466 | G95: 0 | H95: 0 | I95: 0 | J95: 0 | K95: - | L95: 0.1890359168 | M95: - | N95: 0.4357298475 | O95: 0 | P95: 0 | Q95: 3 | R95: 0.826446281 | S95: 4 | T95: 1.31147541 | U95: 5 | V95: 2.032520325 | W95: 5 | X95: 2.392344498 | Y95: 5 | Z95: 2.645502646 | AA95: 5 | AB95: 2.857142857 | AC95: 5 | AD95: 3.597122302 | AE95: 6 | AF95: 4.47761194 | AG95: 5 | AH95: 4.424778761 | AI95: 4 | AJ95: 3.846153846 | AK95: 5 | AL95: 5.050505051 | AM95: 5 | AN95: 5.882352941 | AO95: 4 | AP95: 4.938271605 | AQ95: 5 | AR95: 7.142857143
B96: 100-199 | C96: 0 | D96: 0 | E96: 0 | F96: 0 | G96: 0 | H96: 0 | I96: 0 | J96: 0 | K96: 0 | L96: 0 | M96: 0 | N96: 0 | O96: 0 | P96: 0 | Q96: 0 | R96: 0 | S96: 0 | T96: 0 | U96: 0 | V96: 0 | W96: 0 | X96: 0 | Y96: 0 | Z96: 0 | AA96: 0 | AB96: 0 | AC96: 0 | AD96: 0 | AE96: 0 | AF96: 0 | AG96: 0 | AH96: 0 | AJ96: 0 | AK96: 0 | AL96: 0 | AM96: 0 | AN96: 0 | AO96: 0 | AP96: 0 | AQ96: 0 | AR96: 0
B97: 200-299 | C97: 0 | D97: 0 | E97: 0 | F97: 0 | G97: 0 | H97: 0 | I97: 0 | J97: 0 | K97: 0 | L97: 0 | M97: 0 | N97: 0 | O97: 0 | P97: 0 | Q97: 0 | R97: 0 | S97: 0 | T97: 0 | U97: 0 | V97: 0 | W97: 0 | X97: 0 | Y97: 0 | Z97: 0 | AA97: 0 | AB97: 0 | AC97: 0 | AD97: 0 | AE97: 0 | AF97: 0 | AG97: 0 | AH97: 0 | AJ97: 0 | AK97: 0 | AL97: 0 | AM97: 0 | AN97: 0 | AO97: 0 | AP97: 0 | AQ97: 0 | AR97: 0
B98: >300 | C98: 0 | D98: 0 | E98: 0 | F98: 0 | G98: 0 | H98: 0 | I98: 0 | J98: 0 | K98: 0 | L98: 0 | M98: 0 | N98: 0 | O98: 0 | P98: 0 | Q98: 0 | R98: 0 | S98: 0 | T98: 0 | U98: 0 | V98: 0 | W98: 0 | X98: 0 | Y98: 0 | Z98: 0 | AA98: 0 | AB98: 0 | AC98: 0 | AD98: 0 | AE98: 0 | AF98: 0 | AG98: 0 | AH98: 0 | AJ98: 0 | AK98: 0 | AL98: 0 | AM98: 0 | AN98: 0 | AO98: 0 | AP98: 0 | AQ98: 0 | AR98: 0
B99: Sum | C99: 6349 | E99: 3134 | G99: 615 | I99: 584 | K99: 529 | M99: 459 | O99: 409 | Q99: 363 | S99: 305 | U99: 246 | W99: 209 | Y99: 189 | AA99: 175 | AC99: 139 | AE99: 134 | AG99: 113 | AI99: 104 | AK99: 99 | AM99: 85 | AO99: 81 | AQ99: 70
B100: Antall daa | C100: 7093 | E100: 4138 | G100: 1548 | I100: 1605 | K100: 1570 | M100: 1561 | O100: 1401 | Q100: 1447 | S100: 1312 | U100: 1318 | W100: 1241 | Y100: 1259 | AA100: 1255 | AC100: 1143 | AE100: 1133 | AG100: 1194 | AI100: 1052 | AK100: 1003 | AM100: 900 | AO100: 903 | AQ100: 890
A101: Møre og Romsdal | B101: <10 | C101: 8085 | D101: 99.50769231 | E101: 3343 | F101: 98.00644972 | G101: 432 | H101: 91.52542373 | I101: 391 | J101: 90.50925926 | K101: 333 | L101: 89.03743316 | M101: 274 | N101: 88.10289389 | O101: 243 | P101: 88.68613139 | Q101: 191 | R101: 87.21461187 | S101: 153 | T101: 85.47486034 | U101: 109 | V101: 81.95488722 | W101: 83 | X101: 76.85185185 | Y101: 77 | Z101: 76.23762376 | AA101: 64 | AB101: 73.56321839 | AC101: 58 | AD101: 71.60493827 | AE101: 49 | AF101: 67.12328767 | AG101: 46 | AH101: 67.64705882 | AI101: 42 | AJ101: 64.61538462 | AK101: 44 | AL101: 67.69230769 | AM101: 39 | AN101: 65 | AO101: 35 | AP101: 60.34482759 | AQ101: 33 | AR101: 62.26415094
B102: 10-49 | C102: 37 | D102: 0.4553846154 | E102: 54 | F102: 1.583113456 | G102: 26 | H102: 5.508474576 | I102: 25 | J102: 5.787037037 | K102: 26 | L102: 6.951871658 | M102: 20 | N102: 6.430868167 | O102: 17 | P102: 6.204379562 | Q102: 14 | R102: 6.392694064 | S102: 11 | T102: 6.145251397 | U102: 12 | V102: 9.022556391 | W102: 14 | X102: 12.96296296 | Y102: 11 | Z102: 10.89108911 | AA102: 9 | AB102: 10.34482759 | AC102: 9 | AD102: 11.11111111 | AE102: 10 | AF102: 13.69863014 | AG102: 8 | AH102: 11.76470588 | AI102: 11 | AJ102: 16.92307692 | AK102: 9 | AL102: 13.84615385 | AM102: 9 | AN102: 15 | AO102: 13 | AP102: 22.4137931 | AQ102: 11 | AR102: 20.75471698
B103: 50-99 | C103: - | D103: 0.02461538462 | E103: 11 | F103: 0.3224860745 | G103: 8 | H103: 1.694915254 | I103: 10 | J103: 2.314814815 | K103: 7 | L103: 1.871657754 | M103: 9 | N103: 2.893890675 | O103: 9 | P103: 3.284671533 | Q103: 9 | R103: 4.109589041 | S103: 11 | T103: 6.145251397 | U103: 8 | V103: 6.015037594 | W103: 7 | X103: 6.481481481 | Y103: 7 | Z103: 6.930693069 | AA103: 9 | AB103: 10.34482759 | AC103: 9 | AD103: 11.11111111 | AE103: 7 | AF103: 9.589041096 | AG103: 7 | AH103: 10.29411765 | AI103: 6 | AJ103: 9.230769231 | AK103: 5 | AL103: 7.692307692 | AM103: 6 | AN103: 10 | AO103: 4 | AP103: 6.896551724 | AQ103: 3 | AR103: 5.660377358
B104: 100-199 | C104: - | D104: 0.01230769231 | E104: 3 | F104: 0.08795074758 | G104: 5 | H104: 1.059322034 | I104: 5 | J104: 1.157407407 | K104: 6 | L104: 1.604278075 | M104: 6 | N104: 1.92926045 | O104: - | P104: 0.7299270073 | Q104: - | R104: 0.9132420091 | S104: - | T104: 1.117318436 | U104: - | V104: 1.503759398 | W104: - | X104: 0.9259259259 | Y104: 6 | Z104: 3.96039604 | AA104: 5 | AB104: 4.597701149 | AC104: 5 | AD104: 4.938271605 | AE104: 7 | AF104: 6.849315068 | AG104: 7 | AH104: 8.823529412 | AI104: 6 | AJ104: 7.692307692 | AK104: 7 | AL104: 7.692307692 | AM104: 6 | AN104: 6.666666667 | AO104: 6 | AP104: 6.896551724 | AQ104: 3 | AR104: 5.660377358
B105: 200-299 | C105: 0 | D105: 0 | E105: 0 | F105: 0 | G105: - | H105: 0.2118644068 | I105: 0 | J105: 0 | K105: - | L105: 0.2673796791 | M105: - | N105: 0.3215434084 | O105: - | P105: 0.3649635036 | Q105: - | R105: 0.9132420091 | S105: - | T105: 1.117318436 | U105: - | V105: 0.7518796992 | W105: 4 | X105: 1.851851852 | Y105: - | Z105: 1.98019802 | AA105: - | AB105: 1.149425287 | AC105: - | AD105: 1.234567901 | AE105: 0 | AF105: 1.369863014 | AG105: 0 | AH105: 0 | AJ105: 0 | AK105: - | AL105: 1.538461538 | AM105: - | AN105: 1.666666667 | AO105: - | AP105: 1.724137931 | AQ105: 3 | AR105: 3.773584906
B106: >300 | C106: 0 | D106: 0 | E106: 0 | F106: 0 | G106: 0 | H106: 0 | I106: - | J106: 0 | K106: - | L106: 0.2673796791 | M106: - | N106: 0.3215434084 | O106: - | P106: 0.7299270073 | Q106: - | R106: 0.4566210046 | S106: 0 | T106: 0 | U106: - | V106: 0.7518796992 | W106: - | X106: 0.9259259259 | Y106: 0 | Z106: 0 | AA106: 0 | AB106: 0 | AC106: 0 | AD106: 0 | AE106: 0 | AF106: 1.369863014 | AG106: 0 | AH106: 1.470588235 | AI106: - | AJ106: 1.538461538 | AK106: - | AL106: 1.538461538 | AM106: - | AN106: 1.666666667 | AO106: - | AP106: 1.724137931 | AQ106: - | AR106: 1.886792453
B107: Sum | C107: 8125 | E107: 3411 | G107: 472 | I107: 432 | K107: 374 | M107: 311 | O107: 274 | Q107: 219 | S107: 179 | U107: 133 | W107: 108 | Y107: 101 | AA107: 87 | AC107: 81 | AE107: 73 | AG107: 68 | AI107: 65 | AK107: 65 | AM107: 60 | AO107: 58 | AQ107: 53
B108: Antall daa | C108: 9077 | E108: 5307 | G108: 2632 | I108: 2657 | K108: 2750 | M108: 2614 | O108: 2415 | Q108: 2334 | S108: 2034 | U108: 2019 | W108: 1876 | Y108: 1940 | AA108: 1763 | AC108: 1735 | AE108: 1985 | AG108: 1898 | AI108: 1790 | AK108: 1780 | AM108: 1846 | AO108: 1791 | AQ108: 1848
A109: Sør-Trøndelag | B109: <10 | C109: 5482 | D109: 98.56166846 | E109: 2245 | F109: 95.36958369 | G109: 605 | H109: 89.76261128 | I109: 565 | J109: 88.55799373 | K109: 475 | L109: 86.996337 | M109: 399 | N109: 86.17710583 | O109: 347 | P109: 86.31840796 | Q109: 278 | R109: 85.53846154 | S109: 222 | T109: 83.45864662 | U109: 175 | V109: 79.54545455 | W109: 142 | X109: 76.34408602 | Y109: 126 | Z109: 76.82926829 | AA109: 112 | AB109: 74.66666667 | AC109: 91 | AD109: 72.22222222 | AE109: 73 | AF109: 68.22429907 | AG109: 73 | AH109: 72.27722772 | AI109: 70 | AJ109: 71.42857143 | AK109: 73 | AL109: 73.73737374 | AM109: 63 | AN109: 74.11764706 | AO109: 61 | AP109: 73.4939759 | AQ109: 51 | AR109: 73.91304348
B110: 10-49 | C110: 78 | D110: 1.402373247 | E110: 93 | F110: 3.950722175 | G110: 53 | H110: 7.863501484 | I110: 57 | J110: 8.934169279 | K110: 52 | L110: 9.523809524 | M110: 46 | N110: 9.935205184 | O110: 37 | P110: 9.2039801 | Q110: 30 | R110: 9.230769231 | S110: 28 | T110: 10.52631579 | U110: 32 | V110: 14.54545455 | W110: 31 | X110: 16.66666667 | Y110: 26 | Z110: 15.85365854 | AA110: 26 | AB110: 17.33333333 | AC110: 22 | AD110: 17.46031746 | AE110: 20 | AF110: 18.69158879 | AG110: 13 | AH110: 12.87128713 | AI110: 13 | AJ110: 13.26530612 | AK110: 14 | AL110: 14.14141414 | AM110: 13 | AN110: 15.29411765 | AO110: 12 | AP110: 14.45783133 | AQ110: 8 | AR110: 11.5942029
B111: 50-99 | C111: - | D111: 0.01797914419 | E111: 14 | F111: 0.5947323704 | G111: 12 | H111: 1.78041543 | I111: 11 | J111: 1.724137931 | K111: 14 | L111: 2.564102564 | M111: 12 | N111: 2.591792657 | O111: 13 | P111: 3.233830846 | Q111: 11 | R111: 3.384615385 | S111: 11 | T111: 4.135338346 | U111: 8 | V111: 3.636363636 | W111: 9 | X111: 4.838709677 | Y111: 8 | Z111: 4.87804878 | AA111: 8 | AB111: 5.333333333 | AC111: 8 | AD111: 6.349206349 | AE111: 10 | AF111: 9.345794393 | AG111: 11 | AH111: 10.89108911 | AI111: 11 | AJ111: 11.2244898 | AK111: 8 | AL111: 8.080808081 | AM111: 6 | AN111: 7.058823529 | AO111: 6 | AP111: 7.228915663 | AQ111: 5 | AR111: 7.246376812
B112: 100-199 | C112: 0 | D112: 0 | E112: 0 | F112: 0 | G112: - | H112: 0.296735905 | I112: - | J112: 0.3134796238 | K112: - | L112: 0.3663003663 | M112: 3 | N112: 0.6479481641 | O112: 3 | P112: 0.7462686567 | Q112: 4 | R112: 1.230769231 | S112: - | T112: 0.7518796992 | U112: 4 | V112: 1.818181818 | W112: 4 | X112: 1.075268817 | Y112: 4 | Z112: 1.829268293 | AA112: 4 | AB112: 2 | AC112: 5 | AD112: 2.380952381 | AE112: 4 | AF112: 1.869158879 | AG112: 4 | AH112: 1.98019802 | AI112: 4 | AJ112: 2.040816327 | AK112: 4 | AL112: 2.02020202 | AM112: 3 | AN112: 2.352941176 | AO112: 4 | AP112: 3.614457831 | AQ112: 5 | AR112: 7.246376812
B113: 200-299 | C113: - | D113: 0.01797914419 | E113: - | F113: 0.0849617672 | G113: - | H113: 0.1483679525 | I113: - | J113: 0.3134796238 | K113: - | L113: 0.1831501832 | M113: - | N113: 0.4319654428 | O113: 0 | P113: 0 | Q113: 0 | R113: 0 | S113: - | T113: 0.7518796992 | U113: - | V113: 0.4545454545 | W113: - | X113: 1.075268817 | Y113: - | Z113: 0.6097560976 | AA113: - | AB113: 0.6666666667 | AC113: - | AD113: 1.587301587 | AE113: 0 | AF113: 0 | AG113: 0 | AH113: 0.9900990099 | AI113: - | AJ113: 2.040816327 | AK113: - | AL113: 1.01010101 | AM113: 0 | AN113: 0 | AO113: 0 | AP113: 0 | AQ113: 0 | AR113: 0
